{"text_format":"3","workbook":"xlsx","n_sheets":7,"sheets":["Ficha","MIR GENERL DEL PMDyG","Pp2 MIR DS","Listas","Base","SUSTENTO INDICADOR","Hoja5"],"not_rendered":{"charts":1,"images":12,"macros":1,"external_links":2,"defined_names":76},"read":"whole","date_system":"1900"}

{"sheet":"Ficha","index":0,"n_rows":20,"n_cols":8,"rows_kept":20}
[]
[]
[]
[]
[{"$nulls":3},"Información para la evaluación del desempeño"]
[]
[{"$nulls":3},"Municipio:"]
[{"$nulls":3},"Ixtlahuacán de los Membrillos"]
[]
[{"$nulls":3},"Registre por favor los programas que fueron capturados en la pestaña MIR",{"$nulls":3},"Registre por favor los programas que fueron capturados en la pestaña SinMatriz"]
[null,null,1,"Estado de Derecho y Seguridad",null,null,1]
[null,null,2,"Desarrollo Social",null,null,2]
[null,null,3,"Desarrollo Económico",null,null,3]
[null,null,4,"Gestión del Territorio",null,null,4]
[null,null,5,{"$nulls":3},5]
[null,null,6,{"$nulls":3},6]
[]
[{"$nulls":3},"Número de programas con MIR (programas que fueron capturados en la pestaña MIR)",null,4,null,"Número de programas sin matriz (programas que fueron capturados en la pestaña SinMatriz)"]
[]
[{"$nulls":3},"TOTAL",null,{"$f":"F18+J18","v":4}]

{"sheet":"MIR GENERL DEL PMDyG","index":1,"n_rows":213,"n_cols":27,"rows_kept":213,"merged":[[1,1,1,26],[3,1,3,26],[5,1,5,26],[8,1,9,1],[8,3,8,15],[8,16,8,24],[8,25,9,25],[8,26,9,26],[15,1,21,1],[22,1,23,1],[24,1,26,1],[27,1,32,1],[33,1,37,1],[38,1,42,1],[43,1,49,1],[50,1,51,1],[52,1,54,1],[55,1,58,1],[59,1,62,1],[63,1,66,1],[67,1,70,1],[71,1,73,1],[74,1,77,1],[78,1,80,1],[81,1,84,1],[86,1,94,1],[95,1,98,1],[99,1,100,1],[101,1,104,1],[105,1,108,1],[109,1,112,1],[113,1,117,1],[118,1,120,1],[121,1,124,1],[125,1,127,1],[128,1,131,1],[132,1,136,1],[137,1,138,1],[139,1,141,1],[142,1,146,1],[147,1,148,1],[149,1,150,1],[151,1,153,1],[155,1,160,1],[161,1,165,1],[166,1,172,1],[173,1,175,1],[176,1,179,1],[180,1,183,1],[184,1,187,1],[189,1,196,1],[197,1,204,1],[205,1,208,1],[209,1,212,1]]}
[]
[null,"Municipio de Ixtlahuacán de los Membrillos, Jal."]
[]
[null,"Presupuesto base para Resultados (PbR) / Sistema de Evaluación del Desempeño (SED)"]
[]
[null,"MIR - Matriz de Indicadores para Resultados Municipal 2020"]
[]
[]
[null,"Unidad Administrativa Municipal",null,"I N D I C A D O R E S",{"$nulls":12},"P R E S U P U E S T O",{"$nulls":8},"Presupuesto","Porcentaje y Ponderación"]
[{"$nulls":3},"Resumen Narrativo","Nombre del indicador","Definición","Dimensión","Tipo","Método de cálculo","Valor programado 1 (Numerador)","Valor programado 2 (Denominador)","Frecuencia de medición","Unidad de medida","Metas","Medios de verificación","Supuestos","Capítulo 1000","Capítulo 2000","Capítulo 3000","Capítulo 4000","Capítulo 5000","Capítulo 6000","Capítulo 7000","Capítulo 8000","Capítulo 9000"]
[null,{"v":1,"d":"100%"},"Fin","La población que reside en Ixtlhuacán de los Membreillos disponen de un estado de bienestar en cuatro dimensiónes; Estado de Derecho, Desarrollo Social, Desarrollo Económico y Gestión del Territorio.","INDICE Integral de Cumplimiento del Plan Municipal de Desarrollo y Gobernanza 2018-2021 (IICPMDG 1821)","Mide en el cumplimiento en cada uno de los programas presupuestarios establecidos en cada eje del PMDyG para su segumiento al cumplimiento de las metas definidas para cada unidad administrativa municipal","Eficiencia","Estratégico","(IICPMDG 1821) = [(IIEDSmt + IIDSmt + IIDEmt + IAGTmt) /4]",2.21,4,"Anual","Índice",0.55," Portal Web del Municipio página de transparencia","Se dispone de personal y recursos",{"v":21838923,"d":"21,838,923.0"},{"v":7417188,"d":"7,417,188.0"},{"v":21957996,"d":"21,957,996.0"},{"v":100000,"d":"100,000.0"},{"v":1515000,"d":"1,515,000.0"},{"v":0,"d":"0.0"},{"v":0,"d":"0.0"},{"v":0,"d":"0.0"},{"v":6593052,"d":"6,593,052.0"},{"v":145101531,"d":"145,101,531.0"},{"v":1,"d":"100%"}]
[null,{"v":0.4095,"d":"40.95%"},"1    Propósito","Fortalecer el estado de derecho, la seguridad pública y la proteccion civil mediante la modernizacion y eficacia de la administracion pública.","INDICE de Desarrollo Municipal (IDM)","Mide el progreso de un municipio en cuatro dimensiones del desarrollo: social, económica, ambiental e institucional","Eficiencia","Estratégico","(valor resultante de sumar los valores individuales  de  los cosientes entre sus denominadores por su ponderacion asignada, que miden las  variables de:  percepción  inseguridad, ampliación señaletica,  confianza Juzgado Municipal, riesgos desastres, administración municipal,  eficiencia municipal, eficiencia gasto público, contribuyetes incumplidos, cumplimiento servidores públicos, confianza cuerpo seguridad pública, ordenamientos actualizados,  cumplimiento normatividad, eficiencia Registro Civil, eficiencia Catastro,mantenimiento parque vehicular, satisfacción Gubernamental,  transparencia con su correspondientes ponderaciones de .1, .05, .05, .05, .1, .05, .1, .05, .05, .05, .05, .05, .05, .05, .05, .05 y .05)",1415.5900000000001,2133.9,"Semestral","Índice",0.66," Portal Web del Municipio página de transparencia","Se dispone de personal y recursos ",{"v":21838923,"d":"21,838,923.0"},{"v":7417188,"d":"7,417,188.0"},{"v":21957996,"d":"21,957,996.0"},{"v":100000,"d":"100,000.0"},{"v":1515000,"d":"1,515,000.0"},{"v":0,"d":"0.0"},{"v":0,"d":"0.0"},{"v":0,"d":"0.0"},{"v":6593052,"d":"6,593,052.0"},{"v":59422159,"d":"59,422,159.0"},{"v":0.4095,"d":"40.95%"}]
[null,"37.7%","2    Propósito","Continuar mejorando las condiciones y la calidad de vida de los habitantes de Ixtlahuacán de los Membrillos","Índice de avance en el combate a la marginación municipal (IMNM)","Mide el progreso del municipio en la dimensiones del desarrollo: social","Eficiencia","Estratégico","(valor resultante de sumar los valores individuales  de  los cosientes entre sus denominadores por su ponderacion asignada, que miden las  variables de:  cobertura agua potable, eficiencia alumbrado público, cobertura áreas verdes, cobertura servicio limpia,  reducción situación de pobreza, maltrato desigualdad de género, actividad física deportiva, Cobertura Educativa, participación actividades culturales, urbanización, servicios de cementerios, atención DIF, atención ciudadana, participación ciudadana, calidad servicios de salud,  atención Agencias, atención Delegaciones, cobertura comunicación social, con su correspondientes ponderaciones de .1, .06, .04, .07, .08, .05, .05, .06, .05, .06, .04, .06, .04, .05, .07, .04, .04 y .04)",{"v":1442.9850000000004,"d":"1442.99"},{"v":6400.682999999999,"d":"6400.68"},"Semestral","Índice",0.23," Portal Web del Municipio página de transparencia","Se dispone de personal y recursos",{"v":17052117,"d":"$17,052,117.0"},{"v":6679493,"d":"$6,679,493.0"},{"v":15959645,"d":"$15,959,645.0"},{"v":9000000,"d":"$9,000,000.0"},{"v":0,"d":"$0.0"},{"v":0,"d":"$0.0"},{"v":0,"d":"$0.0"},{"v":0,"d":"$0.0"},{"v":6000000,"d":"$6,000,000.0"},{"v":54691255,"d":"$54,691,255.0"},"37.7%"]
[null,"1.21%","3   Propósito","Impulsar la producción, producción agropecuaria, trabajadores asegurados, y población ocupada, ","índice de desarrollo municipal del aspecto económico (IDM-E)","Mide el progreso del municipio en la dimension del desarrollo económico ","Eficiencia","Estratégico","(valor resultante de sumar los valores individuales  de  los cosientes entre sus denominadores por su ponderacion asignada, que miden las  variables de: recaudación por licencias, incremento de turistas, productividad agropecuaria, sacrificio e inspeccion de ganado, proveduria de carne, incremento en promocion economica  con su correspondientes ponderaciones de .2, .2, .2, .1, 0.15, .1  y .05)",387.43999999999994,480.87,"Semestral","Índice",0.8," Portal Web del Municipio página de transparencia","Se dispone de personal y recursos",{"v":1528229,"d":"$1,528,229.0"},{"v":169000,"d":"$169,000.0"},{"v":62000,"d":"$62,000.0"},{"v":0,"d":"$0.0"},{"v":0,"d":"$0.0"},{"v":0,"d":"$0.0"},{"v":0,"d":"$0.0"},{"v":0,"d":"$0.0"},{"v":0,"d":"$0.0"},{"v":1759229,"d":"$1,759,229.0"},"1.21%"]
[null,{"v":0.2014,"d":"20.14%"},"4   Propósito","Valorar y cuidar la generación de residuos sólidos, la deforestación, la explotación de acuíferos, la cobertura forestal, las áreas naturales protegidas.","Índice Municipal de Medio Ambiente","Mide el progreso del municipio en tener un indice de desarrollo medioambiental alto en comparación con los municipios de Jalisco","Eficiencia","Estratégico","(valor resultante de sumar los valores individuales  de  los cosientes entre sus denominadores por su ponderacion asignada, que miden las  variables de: ordenamiento, instrumentos, obra pública y condiciones  con su correspondientes ponderaciones de .3 .2, .2, y .3)",401.28,766.66,"Semestral","Índice",0.52," Portal Web del Municipio página de transparencia","Se dispone de personal y recursos ",{"v":4017143,"d":"$4,017,143.00"},{"v":4016000,"d":"$4,016,000.00"},{"v":2041000,"d":"$2,041,000.00"},{"v":0,"d":"$0.00"},{"v":0,"d":"$0.00"},{"v":0,"d":"$0.00"},{"v":0,"d":"$0.00"},{"v":0,"d":"$0.00"},{"v":0,"d":"$0.00"},{"v":29228888,"d":"$29,228,888.00"},{"v":0.2014,"d":"20.14%"}]
[null,"Seguridad pública","Componente 1","Percepción de Seguridad Pública Incrementada","INDICE de percepción de inseguridad por parte de la población (IPS)","Mide el cambio de percepción por la ciudadania en la seguridad personal y de sus cosas ","Eficacia","Gestión","(valor resultante de sumar los valores individuales  de  los cosientes entre sus denominadores por su ponderacion asignada, que miden las  variables de: prevalencia delictiva, elementos integrados, evaluados,  capacitados, vinculacion de delitos, derechos humanos,  con sus correspondientes ponderaciones de .2, .1, .2, .2, .2 y .1 / la suma de los valores del denominador de las mismas variables)",57,106.6,"Bimestral","Índice",0.53," Portal Web del Municipio página de transparencia","Se dispone de personal y recursos ",{"v":9569478,"d":"9,569,478.0"},{"v":5973004,"d":"5,973,004.0"},{"v":15992996,"d":"15,992,996.0"},{"v":0,"d":"0.0"},{"v":1500000,"d":"1,500,000.0"},{"v":0,"d":"0.0"},{"v":0,"d":"0.0"},{"v":0,"d":"0.0"},{"v":3216300,"d":"3,216,300.0"},{"v":36251778,"d":"36,251,778.0"}]
[null,null,"Actividad 1.1","Trabajar con la ciudadanía en la prevención social","Tasa de prevalencia delictiva por cada diez habitantes denunciados por la ciudadania y resueltos. (P1-DDCR)","Mide la tasa de delitos que fueron denunciados por la ciudadania y resueltos como producto de trabajar conjuntamente","Eficacia","Gestión","(Tasa de delitos denunciados por la ciudadania y resueltos como resultado del trabajo conjunto entre el cuerpo de seguridad pública y la ciudadania  por cada 10 habitantes    ",2,10,"Mensual","Tasa",{"v":0.2,"d":"0.20"}," Portal Web del Municipio página de transparencia","Se dispone de personal y recursos ",{"v":1913895.6,"d":"1,913,895.6"},{"v":1194600.8,"d":"1,194,600.8"},{"v":3198599.2,"d":"3,198,599.2"},{"v":0,"d":"0.0"},{"v":300000,"d":"300,000.0"},{"v":0,"d":"0.0"},{"v":0,"d":"0.0"},{"v":0,"d":"0.0"},{"v":643260,"d":"643,260.0"},{"v":7250355.6,"d":"$7,250,355.60"},20]
[null,null,"Actividad 1.2","Integrar, orientar y capacitar a los actuales y nuevos elementos de seguridad pública.","PORCENTAJE de elementos integrados y capacitados a Cuerpo de Seguridad Pública. (P2-EICCSP)","Mide el porcentaje de elementos del cuerpo de seguridad pública que transitaron por un proceso de integración, orientación y capacitacion y entonces salieron a atender a la ciudadania","Eficacia","Gestión","(Cantidad de ciudadanos (8) que se incorporan al cuerpo de seguridad pública y transitan por un proceso de integración, orientación y capacitacion antes de salir  a dar atención a la ciudadania al año / Total de  ciudadanos que se incorporan al cuerpo de seguridad pública y transitan por un proceso de integración al año (10))*100",8,10,"Mensual","Porcentaje",{"v":0.8,"d":"80%"}," Portal Web del Municipio página de transparencia","Se dispone de personal y recursos ",{"v":1913895.6,"d":"1,913,895.6"},{"v":1194600.8,"d":"1,194,600.8"},{"v":3198599.2,"d":"3,198,599.2"},{"v":0,"d":"0.0"},{"v":300000,"d":"300,000.0"},{"v":0,"d":"0.0"},{"v":0,"d":"0.0"},{"v":0,"d":"0.0"},{"v":643260,"d":"643,260.0"},{"v":7250355.6,"d":"$7,250,355.60"},20]
[null,null,"Actividad 1.3","Definir en el corto plazo y capacitar a los integrantes del grupo especializado en reacción para atender las localidades más vulnerables del municipio.","PORCENTAJE de elementos evaluados y capacitados en cuerpo de reacción. (P3-EECCR)","Mide el tiempo transcurrido para que los elementos de seguridad se encuentren capacitados para participar en el grupo especializado","Eficacia","Gestión","(Cantidad de tiempo (6 meses) necesario para que los elementos de seguridad pública se encuentren capacitados para integrarse a cuerpos epecializados / Total de tiempo disponible en el año para que los elementos de seguridad pública se encuentren capacitados para integrarse a cuerpos epecializados)*100",6,12,"Mensual","Porcentaje",{"v":0.5,"d":"0.50"}," Portal Web del Municipio página de transparencia","Se dispone de personal y recursos ",{"v":1435421.7,"d":"1,435,421.7"},{"v":895950.6,"d":"895,950.6"},{"v":2398949.4,"d":"2,398,949.4"},{"v":0,"d":"0.0"},{"v":225000,"d":"225,000.0"},{"v":0,"d":"0.0"},{"v":0,"d":"0.0"},{"v":0,"d":"0.0"},{"v":482445,"d":"482,445.0"},{"v":5437766.7,"d":"$5,437,766.70"},15]
[null,null,"Actividad 1.4","Concientizar y capacitar a los choferes de las patrullas de seguridad publica en un mejor manejo del parque vehicular.","PORCENTAJE de elementos capacitados como choferes de patrulla y manejo de equipo. (P4-ECCPME)","Mide los beneficios de capacitar en el manejo de patrullas a los choferes en meyor tiempo en funcionamiento cada unidad","Eficacia","Gestión","(Cantidad de elementos de seguridad pública (25) capacitados como choferes de patrulla  y manejo de radio y videocamara / Total de elementos de seguridad pública (50) )*100",10,50,"Mensual","Porcentaje",{"v":0.5,"d":"50%"}," Portal Web del Municipio página de transparencia","Se dispone de personal y recursos ",{"v":478473.9,"d":"478,473.9"},{"v":298650.2,"d":"298,650.2"},{"v":799649.8,"d":"799,649.8"},{"v":0,"d":"0.0"},{"v":75000,"d":"75,000.0"},{"v":0,"d":"0.0"},{"v":0,"d":"0.0"},{"v":0,"d":"0.0"},{"v":160815,"d":"160,815.0"},{"v":1812588.9,"d":"$1,812,588.90"},5]
[null,null,"Actividad 1.5","Instalación de cámaras de video vigilancia así como una base de datos sobre los registros de denuncias.  Establecer una instancia en el municipio que dé seguimiento a los asuntos ante la fiscalía","PORCENTAJE de vinculación de delitos entre denuncias, fiscalia y videocamaras. (T1-VDDFV)","Mide la vinculación de delitos denucnciados y registrados en medios electronicos y el tiempo de solucion por la fiscalia","Eficacia","Gestión","(Cantidad de delitos denunciados y registrados en videocamaras (26) durante el año  / Total de  delitos denunciados (156) durante el año)*100",109,156,"Mensual","Porcentaje",{"v":0.7,"d":"0.70"}," Portal Web del Municipio página de transparencia","Se dispone de personal y recursos ",{"v":2870843.4,"d":"2,870,843.4"},{"v":1791901.2,"d":"1,791,901.2"},{"v":4797898.8,"d":"4,797,898.8"},{"v":0,"d":"0.0"},{"v":450000,"d":"450,000.0"},{"v":0,"d":"0.0"},{"v":0,"d":"0.0"},{"v":0,"d":"0.0"},{"v":964890,"d":"964,890.0"},{"v":10875533.4,"d":"$10,875,533.40"},30]
[null,null,"Actividad 1.6","Conjuntamente con asuntos internos y oficialía mayor administrativa gestionar capacitaciones constantes y diversas sobre los derechos humanos.","PORCENTAJE de empledos municipales que se capacitan en derechos humanos. (P5-EMCDH)","Mide la participación y sencibilización de los empleados municipales al cuidado y respeto de los derechos humanos","Eficacia","Gestión","(Cantidad de emplados municipales (300) que reciben capacitacion sobre derechos humanos  / Total de emplados municipales (600) )*100",300,600,"Mensual","Porcentaje",{"v":0.5,"d":"50%"}," Portal Web del Municipio página de transparencia","Se dispone de personal y recursos ",{"v":956947.8,"d":"956,947.8"},{"v":597300.4,"d":"597,300.4"},{"v":1599299.6,"d":"1,599,299.6"},{"v":0,"d":"0.0"},{"v":150000,"d":"150,000.0"},{"v":0,"d":"0.0"},{"v":0,"d":"0.0"},{"v":0,"d":"0.0"},{"v":321630,"d":"321,630.0"},{"v":3625177.8,"d":"$3,625,177.80"},10]
[null,"Vialidad","Componente 2","Señalética vial ampliada ","TASA de ampliación de la señaletica vial (TAS)","Mide la relación de señalamiento vial en buen estado","Eficacia","Gestión","Relacion de señaletica y vialidades con necesidad de mantenimiento o rehabilitacion por cada 24 vialidades con señaletica en buen estado",5,24,"Bimestral","Tasa",0.2," Portal Web del Municipio página de transparencia","Se dispone de personal y recursos ",{"v":116245,"d":"116,245.0"},{"v":10000,"d":"10,000.0"},{"v":8000,"d":"8,000.0"},{"v":0,"d":"0.0"},{"v":0,"d":"0.0"},{"v":0,"d":"0.0"},{"v":0,"d":"0.0"},{"v":0,"d":"0.0"},{"v":0,"d":"0.0"},{"v":134245,"d":"134,245.0"}]
[null,null,"Actividad 2.1","Evaluación y reporte mensual sobre el deterioro vial y señalética, así como de la aplicación del reglamento","PORCENTAJE de vialidades y señaletica con deterioro. (P6-VSD)","Mide el porcentaje de vialidades con señaletica de apoyo al ciudadano y su nivel de deterioro","Eficacia","Gestión","(Cantidad de vialidades (6) municipales con señaletica de apoyo para el ciudadano que presentan algun tipo de deterioro de acuerdo al reglamento  / Total (24) de  vialidades municipales con señaletica de apoyo para el ciudadano de acuerdo al reglamento)*100",6,24,"Mensual","Porcentaje",0.25," Portal Web del Municipio página de transparencia","Se dispone de personal y recursos ",{"v":116245,"d":"116,245.0"},{"v":10000,"d":"10,000.0"},{"v":8000,"d":"8,000.0"},{"v":0,"d":"0.0"},{"v":0,"d":"0.0"},{"v":0,"d":"0.0"},{"v":0,"d":"0.0"},{"v":0,"d":"0.0"},{"v":0,"d":"0.0"},{"v":134245,"d":"134,245.0"},{"v":100,"d":"100.0"}]
[null,"Juzgado Municipal","Componente 3","Confianza en el juzgado municipal incrementada","INDICE de confianza en el Juzgado Municipal (V1-CJM)","Mide el nivel de confianza de la ciudadania en el trabajo de la Oficina del Juez Municipal","Eficacia","Gestión","(valor resultante de sumar los valores individuales  de  los cosientes entre sus denominadores por su ponderacion asignada, que miden las  variables de: mediación y reinsidencia,  con sus correspondientes ponderaciones de .4 y .6 / la suma de los valores del denominador de las mismas variables)",72.4,156,"Bimestral","Índice",0.46," Portal Web del Municipio página de transparencia","Se dispone de personal y recursos ",{"v":244593,"d":"244,593.0"},{"v":16000,"d":"16,000.0"},{"v":46000,"d":"46,000.0"},{"v":0,"d":"0.0"},{"v":0,"d":"0.0"},{"v":0,"d":"0.0"},{"v":0,"d":"0.0"},{"v":0,"d":"0.0"},{"v":0,"d":"0.0"},{"v":306593,"d":"306,593.0"}]
[null,null,"Actividad 3.1","Certificación del personal en mediación y conciliaciones a través del juzgado municipal.","PORCENTAJE de conflictos resueltos en Juzgado Municipal por justicia alternativa. (P7-CRJMJA)","Mide el buen desempeño del personal especializado en mediacion y conciliación","Eficacia","Gestión","(Cantidad de delitos (106) resueltos aplicando la justicia alternativa por los Jueces Municipales durante el año  / Total de  delitos  (156) resuletos por los Jueces Municipales durante el año)*100",106,156,"Mensual","Porcentaje",{"v":0.6794,"d":"0.68"}," Portal Web del Municipio página de transparencia","Se dispone de personal y recursos ",{"v":48918.6,"d":"48,918.6"},{"v":3200,"d":"3,200.0"},{"v":9200,"d":"9,200.0"},{"v":0,"d":"0.0"},{"v":0,"d":"0.0"},{"v":0,"d":"0.0"},{"v":0,"d":"0.0"},{"v":0,"d":"0.0"},{"v":0,"d":"0.0"},{"v":61318.6,"d":"61,318.6"},{"v":20,"d":"20.0"}]
[null,null,"Actividad 3.2","Equipo interdisciplinario para mejorar el acercamiento a la población y reducir problemas sociales.","TASA de delitos calificados como administrativas y del fuero común. (T2-DCAFC)","Mide el desempeño de los inegrantes del equipo calificador para resolver problemas sociales reduciendo la reinsidencia","Eficacia","Gestión","(Cantidad de ciudadanos (50) infractores reinsidentes al cometer delitos administrativos o del fuero común durante el año  / Total de  ciudadanos (156) infractores al cometer delitos administrativos o del fuero común durante el año)*100",50,156,"Mensual","Tasa",{"v":0.3205,"d":"32%"}," Portal Web del Municipio página de transparencia","Se dispone de personal y recursos ",{"v":195674.4,"d":"195,674.4"},{"v":12800,"d":"12,800.0"},{"v":36800,"d":"36,800.0"},{"v":0,"d":"0.0"},{"v":0,"d":"0.0"},{"v":0,"d":"0.0"},{"v":0,"d":"0.0"},{"v":0,"d":"0.0"},{"v":0,"d":"0.0"},{"v":245274.4,"d":"245,274.4"},{"v":80,"d":"80.0"}]
[null,"Protección Civil","Componente 4","Riesgos geológicos, hidrológicos, químicos, sanitarios, organizativos, astrológicos, por incendios y antropogénicos reducidos","Índice de reducción de riesgos por desastres geológicos, hirdrológicos, químicos, sanitario, organizativos, astro lógicos, por incendios y antropogénicos. (TRR)","Mide la reduccion en la relación de siniestros materiales y personales en eventos geologicos-administrativos-hidrológicos-sanitarios-quimicos-organizativos","Eficacia","Gestión","(valor resultante de sumar los valores individuales  de  los cosientes entre sus denominadores por su ponderacion asignada, que miden las  variables de:  ciudadanos capacitados, riezgos evitados, ejidatarios capacitados, denuncia de riezgos y actualizacion del atlas,  con sus correspondientes ponderaciones de .1, .2 .1, .2, y .3 / la suma de los valores del denominador de las mismas variables)",306.8,307.4,"Bimestral","Índice",0.99," Portal Web del Municipio página de transparencia","Se dispone de personal y recursos ",{"v":1131439,"d":"1,131,439.0"},{"v":163000,"d":"163,000.0"},{"v":48000,"d":"48,000.0"},{"v":0,"d":"0.0"},{"v":15000,"d":"15,000.0"},{"v":0,"d":"0.0"},{"v":0,"d":"0.0"},{"v":0,"d":"0.0"},{"v":0,"d":"0.0"},{"v":1357439,"d":"1,357,439.0"}]
[null,null,"Actividad 4.1","Programa de capacitación ciudadana sobre Protección Civil y mejorar la prevención.","PORCENTAJE de ciudadanos capacitados en Proteccion Civil. (P8-CCPC)","Mide la participación de la ciudadania en temas de protección civil respecto a la poblacion total del municipio","Eficacia","Gestión","(Cantidad de ciudadanos (1200) que participan en el programa de capacitacion bimestrales sobre los diferentes riezgos y mecanismos de prevencion que se ofrece durante el año  / Total de ciudadanos en el municipio)*100",1200,59435,"Mensual","Porcentaje",{"v":0.0201,"d":"0.02"}," Portal Web del Municipio página de transparencia","Se dispone de personal y recursos ",{"v":113143.9,"d":"113,143.9"},{"v":16300,"d":"16,300.0"},{"v":4800,"d":"4,800.0"},{"v":0,"d":"0.0"},{"v":1500,"d":"1,500.0"},{"v":0,"d":"0.0"},{"v":0,"d":"0.0"},{"v":0,"d":"0.0"},{"v":0,"d":"0.0"},{"v":135743.9,"d":"135,743.9"},10]
[null,null,"Actividad 4.2","Instalación de dos unidades fijas de seguridad pública y protección civil que realicen evaluaciones trimestrales a los entes establecidos","PORCENTAJE de riesgos evitados por inspeccion preventiva. (T3-REIP)","Mide la reducción de riesgos en entes establecidos, moviles y transeuntes por inspeccion preventiva","Eficacia","Gestión","(Cantidad de eventos de emergencia y riezgo reducidos  o evitados  (25%) en entes establecidos, moviles y transeuntes por inspeccion preventiva / Total  de inspecciónes realizadas en los diferentes espacios de actividad social registradas en el atlas de riezgo municipal  (100))",25,100,"Mensual","Porcentaje",{"v":0.25,"d":"25%"}," Portal Web del Municipio página de transparencia","Se dispone de personal y recursos ",{"v":226287.8,"d":"226,287.8"},{"v":32600,"d":"32,600.0"},{"v":9600,"d":"9,600.0"},{"v":0,"d":"0.0"},{"v":3000,"d":"3,000.0"},{"v":0,"d":"0.0"},{"v":0,"d":"0.0"},{"v":0,"d":"0.0"},{"v":0,"d":"0.0"},{"v":271487.8,"d":"271,487.8"},20]
[null,null,"Actividad 4.3","Revisar el reglamentos que incorpore la capacitación por parte de los cuerpos de seguridad pública y protección civil a los integrantes de los ejidos municipales y pequeña propiedad","PORCENTAJE de ejidatarios capacitados sobre reglamento municipal de proteccion civil. (P9-ECRM)","Mide la participación de los integrantes de los ejidos municipales y pequeños propietarios en temas de protección civil en consecuencia reduccion de fenomenos antropogénicos.","Eficacia","Gestión","(Cantidad de ejidatarios y pequeños propiestarios (600) que participan en las capacitaciones bimestrales sobre los diferentes riezgos y mecanismos de prevencion que se ofrezcan durante el año  / Total capacitaciones (6) sobre riezgos y mecanismos de prevencion)*100",600,6,"Mensual","Porcentaje",{"v":1,"d":"1.00"}," Portal Web del Municipio página de transparencia","Se dispone de personal y recursos ",{"v":169715.85,"d":"169,715.9"},{"v":24450,"d":"24,450.0"},{"v":7200,"d":"7,200.0"},{"v":0,"d":"0.0"},{"v":2250,"d":"2,250.0"},{"v":0,"d":"0.0"},{"v":0,"d":"0.0"},{"v":0,"d":"0.0"},{"v":0,"d":"0.0"},{"v":203615.85,"d":"203,615.9"},15]
[null,null,"Actividad 4.4","Establecer capacitación para protección civil y población en general sobre mecanismos de prevención y control de emergencias por fenomenos antropogénicos en el reglamentos.","PORCENTAJE de ciudadanos capacitados en emergencias causadas  por fenomenos antropogénicos. (P10-CCIF)","Mide la particpacion de la ciudadania en la reducción y denuncia de riezgos  antropogénicos  y sus causas","Eficacia","Gestión","(Cantidad de ciudadanos (600) que participan en las capacitaciones bimestrales sobre los diferentes riezgos y mecanismos de prevencion que se ofrezcan durante el año  / Total capacitaciones (6) sobre riezgos y mecanismos de prevencion)*100",600,6,"Mensual","Porcentaje",{"v":1,"d":"1.00"}," Portal Web del Municipio página de transparencia","Se dispone de personal y recursos ",{"v":226287.8,"d":"226,287.8"},{"v":32600,"d":"32,600.0"},{"v":9600,"d":"9,600.0"},{"v":0,"d":"0.0"},{"v":3000,"d":"3,000.0"},{"v":0,"d":"0.0"},{"v":0,"d":"0.0"},{"v":0,"d":"0.0"},{"v":0,"d":"0.0"},{"v":271487.8,"d":"271,487.8"},20]
[null,null,"Actividad 4.5","Actualizar el atlas de riesgo municipal y los mecanismos de vigilancia y prevención ","PORCENTAJE la cantidad de riezgos incluidos en los programas de prevencion y mecanismos de vigilancia en el atlas de riesgos actualizado. (P11-RIPAR)","Mide la cantidad de riezgos y mecanismos de emergencias actualizados en el atlas de riesgos municipal y difundidos a la ciudadania","Eficacia","Gestión","(Cantidad de riezgos y mecanismos de prevencion (6) actualizados  / Total de riezgos y mecanismos de prevencion (8))*100",6,8,"Mensual","Porcentaje",0.75," Portal Web del Municipio página de transparencia","Se dispone de personal y recursos ",{"v":396003.65,"d":"396,003.7"},{"v":57050,"d":"57,050.0"},{"v":16800,"d":"16,800.0"},{"v":0,"d":"0.0"},{"v":5250,"d":"5,250.0"},{"v":0,"d":"0.0"},{"v":0,"d":"0.0"},{"v":0,"d":"0.0"},{"v":0,"d":"0.0"},{"v":475103.65,"d":"475,103.7"},35]
[null,"H Ayuntamiento (Regidores)","Componente 5","Confianza en la administración municipal incrementada","ÍNDICE de confianza en la administración municipal. (V2-CAM )","Mide el nivel de confianza de la ciudadania en el trabajo de las diferentes comisiónes del ayuntamiento municipal","Eficacia","Gestión","(valor resultante de sumar los valores individuales  de  los cosientes entre sus denominadores por su ponderacion asignada, que miden las  variables de:  aplicacion de normatividad, contar con normatividad, comisiónes instaladas y asuntos dictaminados,  con sus correspondientes ponderaciones de .2, .4, .1, y .3 / la suma de los valores del denominador de las mismas variables)",297.9,260.7,"Bimestral","Índice",1.14," Portal Web del Municipio página de transparencia","Se dispone de personal y recursos ",{"v":3231045,"d":"3,231,045.0"},{"v":39000,"d":"39,000.0"},{"v":3000,"d":"3,000.0"},{"v":0,"d":"0.0"},{"v":0,"d":"0.0"},{"v":0,"d":"0.0"},{"v":0,"d":"0.0"},{"v":0,"d":"0.0"},{"v":0,"d":"0.0"},{"v":3273045,"d":"3,273,045.0"}]
[null,null,"Actividad 5.1","Seguimiento a la aplicación y funcionamiento de la legislación local por comisiones, así como el desahogo de los asuntos propios del Ayuntamiento.","PORCENTAJE de actividades de las direcciones de la administracion municipal en seguimiento por comisiones para verificar su apego a la normatividad local. (P12-ADAMSCVA)","Mide el porcentaje de la aplicación de la normatividad local por las direcciones de la administracion municipal por las comisiones del ayuntamiento  ","Eficacia","Gestión","(Cantidad de actividades 25 realizadas durante el año en las 46  direcciónes apegadas a su reglamento municipal / Total de artciulos 1150 que integran las atribuciones y responsabilidades de las dirección de la administracion municipal en sus reglamentos locales)*100",1150,1150,"Mensual","Porcentaje",{"v":1,"d":"1.00"}," Portal Web del Municipio página de transparencia","Se dispone de personal y recursos ",{"v":807761.25,"d":"807,761.3"},{"v":9750,"d":"9,750.0"},{"v":750,"d":"750.0"},{"v":0,"d":"0.0"},{"v":0,"d":"0.0"},{"v":0,"d":"0.0"},{"v":0,"d":"0.0"},{"v":0,"d":"0.0"},{"v":0,"d":"0.0"},{"v":818261.25,"d":"818,261.3"},{"v":25,"d":"25.0"}]
[null,null,"Actividad 5.2","Actualizar y proponer los ordenamientos necesarios para las dependencias del Ayuntamiento que brindan servicios públicos.","PORCENTAJE de dependencias municipales con ordenamiento. (P13-DMO)","Mide el porcentaje de direcciones de la administración municipal que cuentan con una normatividad local","Eficacia","Gestión","(Cantidad de direcciones 46 que cuentan con su reglamento municipal / Total de direcciones 46 que tienen normada  en su reglamento sus atribuciones y responsabilidades)*100",46,46,"Mensual","Porcentaje",{"v":1,"d":"100%"}," Portal Web del Municipio página de transparencia","Se dispone de personal y recursos ",{"v":807761.25,"d":"807,761.3"},{"v":9750,"d":"9,750.0"},{"v":750,"d":"750.0"},{"v":0,"d":"0.0"},{"v":0,"d":"0.0"},{"v":0,"d":"0.0"},{"v":0,"d":"0.0"},{"v":0,"d":"0.0"},{"v":0,"d":"0.0"},{"v":818261.25,"d":"818,261.3"},{"v":25,"d":"25.0"}]
[null,null,"Actividad 5.3","Presentar los dictámenes correspondientes para su análisis y en su caso solicitar su aprobación, y aplicación en el municipio.","PORCENTAJE de instalacion y operación de comisiones. (P14-IOC)","Mide el porcentaje de comisiones instaladas y en fucnionamiento para revisar los temas desahogados en Ayuntamiento","Eficacia","Gestión","(Cantidad de 30 comisiones que deberan ser instaladas para la dicatminación de los asuntos del ayuntamiento y  publicados en transparencia / Total  de 30 comisiones instaladas y en funcionamiento)*100",30,30,"Mensual","Porcentaje",{"v":1,"d":"1.00"}," Portal Web del Municipio página de transparencia","Se dispone de personal y recursos ",{"v":807761.25,"d":"807,761.3"},{"v":9750,"d":"9,750.0"},{"v":750,"d":"750.0"},{"v":0,"d":"0.0"},{"v":0,"d":"0.0"},{"v":0,"d":"0.0"},{"v":0,"d":"0.0"},{"v":0,"d":"0.0"},{"v":0,"d":"0.0"},{"v":818261.25,"d":"818,261.3"},{"v":25,"d":"25.0"}]
[null,null,"Actividad 5.4","Seguimiento y resguardo de expedientes de asuntos encomendados y propios de las comisiones y su incorporación en las páginas de transparencia del municipio.","TASA de dictaminación por cada 5 asuntos asignados a comisiones su seguimiento y resguardo. (P15-EDSR)","Mide la Tasa de asuntos dictaminados por comisiones y posteriormente en ayuntamiento y publicados en transparencia","Eficacia","Gestión","(Cantidad de asuntos dictaminados de los 155 asuntos asignados por cada una de las 31 comisiones mismos que deberan ser posteriormente dicatminados en reunion de ayuntamiento y publicados en transparencia / Total  de comisiones instaladas y en funcionamiento (31))",155,31,"Mensual","Tasa ","5:31"," Portal Web del Municipio página de transparencia","Se dispone de personal y recursos ",{"v":807761.25,"d":"807,761.3"},{"v":9750,"d":"9,750.0"},{"v":750,"d":"750.0"},{"v":0,"d":"0.0"},{"v":0,"d":"0.0"},{"v":0,"d":"0.0"},{"v":0,"d":"0.0"},{"v":0,"d":"0.0"},{"v":0,"d":"0.0"},{"v":818261.25,"d":"818,261.3"},{"v":25,"d":"25.0"}]
[null,"Presidencia Municipal","Componente 6","Eficiencia municipal incrementada","INDICE de eficiencia municipal. (V3-EM )","Mide los niveles de eficacia del titular de la administracion para desahogar los temas municipales y ciudadanos","Eficacia","Gestión","(valor resultante de sumar los valores individuales  de  los cosientes entre sus denominadores por su ponderacion asignada, que miden las  variables de sesiones de cabildo, eventos civicos, Ley de ingresos y gestion de recursos con las correspondientes ponderaciones de .3, .2, .2, y .3 / la suma de los valores del denominador de las mismas variables)",19.8,40.5,"Bimestral","Índice",0.48," Portal Web del Municipio página de transparencia","Se dispone de personal y recursos ",{"v":996009,"d":"996,009.0"},{"v":138000,"d":"138,000.0"},{"v":202000,"d":"202,000.0"},{"v":0,"d":"0.0"},{"v":0,"d":"0.0"},{"v":0,"d":"0.0"},{"v":0,"d":"0.0"},{"v":0,"d":"0.0"},{"v":0,"d":"0.0"},{"v":1336009,"d":"1,336,009.0"}]
[null,null,"Actividad 6.1","Revisar y actualizar el reglamentos de sesiones en el que se incorpore la clasificación de los puntos de acuerdo así como el formato para su desahogo y publicación.","PORCENTAJE  desarrollo y aplicación del reglamento de sesiones de cabildo. (P16-DARSC)","Mide el porcentaje de sesiones realizadas con apego al reglamento municipal de sesiones","Eficacia","Gestión","(Cantidad de 15 sesiones de cabildo llevadas a cabo con apego al reglamento municipal aplicado con eficiencia dentro del programa 2020 de sesiones de cabildo ordinarias, especiales y plenarias/ Total  15 sesiones de cabildo llevadas a cabo con apego al reglamento municipal aplicado con eficiencia dentro del programa 2020 de sesiones de cabildo ordinarias, especiales y plenarias)*100",15,15,"Mensual","Porcentaje",{"v":1,"d":"1.00"}," Portal Web del Municipio página de transparencia","Se dispone de personal y recursos ",{"v":249002.25,"d":"249,002.3"},{"v":34500,"d":"34,500.0"},{"v":50500,"d":"50,500.0"},{"v":0,"d":"0.0"},{"v":0,"d":"0.0"},{"v":0,"d":"0.0"},{"v":0,"d":"0.0"},{"v":0,"d":"0.0"},{"v":0,"d":"0.0"},{"v":334002.25,"d":"334,002.3"},{"v":25,"d":"25.0"}]
[null,null,"Actividad 6.2","Programa de actividades Cívicas obligatorias en el año, día de la bandera, 5 de mayo batalla de puebla, grito de independencia y desfile del 16 de septiembre","PORCENTAJE  de reglamentacion y participación en eventos civicos y especiales. (P17-RPECE)","Mide el porcentaje de eficacia para desarrollar y aplicar el reglamento y programa de actividades civicas","Eficacia","Gestión","(Cantidad de 20 artículos del reglamento aplicados con eficiencia al organizar el programa 2020 de eventos civicos y especiales / Total  de 20 artículos del reglamento necesarios de revisar para organizar con eficiencia al organizar el programa 2020 de eventos civicos y especiales)*100",20,20,"Mensual","Porcentaje",{"v":1,"d":"100%"}," Portal Web del Municipio página de transparencia","Se dispone de personal y recursos ",{"v":149401.35,"d":"149,401.4"},{"v":20700,"d":"20,700.0"},{"v":30300,"d":"30,300.0"},{"v":0,"d":"0.0"},{"v":0,"d":"0.0"},{"v":0,"d":"0.0"},{"v":0,"d":"0.0"},{"v":0,"d":"0.0"},{"v":0,"d":"0.0"},{"v":200401.35,"d":"200,401.4"},{"v":15,"d":"15.0"}]
[null,null,"Actividad 6.3","Programa de revisión, actualización y propuesta para su aprobación de ley de ingresos y egresos antes del 15 de diciembre ante cabildo","PORCENTAJE de aplicación de normatividad para elaborar Ley de ingresos y egresos. (P18-ANELIE)","Mide el porcentaje de aplicación de la normatividad estatal y federal para elaborar la ley de ingresos y egresos","Eficacia","Gestión","(Cantidad de leyes federales (1), estatales (1) y municipales (2) que se aplican en la elaboracion de la Ley de Ingresos Municipal 2020  / Total de (10)  leyes federales (5), estatales (3) y municipales (2) que se aplican en la elaboracion de la Ley de Ingresos Municipal 2020)*100",4,10,"Mensual","Porcentaje",{"v":0.4,"d":"0.40"}," Portal Web del Municipio página de transparencia","Se dispone de personal y recursos ",{"v":298802.7,"d":"298,802.7"},{"v":41400,"d":"41,400.0"},{"v":60600,"d":"60,600.0"},{"v":0,"d":"0.0"},{"v":0,"d":"0.0"},{"v":0,"d":"0.0"},{"v":0,"d":"0.0"},{"v":0,"d":"0.0"},{"v":0,"d":"0.0"},{"v":400802.7,"d":"400,802.7"},{"v":30,"d":"30.0"}]
[null,null,"Actividad 6.4","Programa de gestión de recursos ante el Estado como la Federación para el logro del programa de obra municipal.","PORCENTAJE de aplicación de proceso de gestion de recursos federales y estatales. (P19-APGRFE)","Mide el porcentaje de incremento de recursos gestionados ante el estado y la federación","Eficacia","Gestión","(Cantidad de recursos economicos gestionados 35% adicionalmente a lo programado en el presupuesto de egresos municipal 2020  / Total de recursos economicos programados en el presupuesto de egresos municipal 2020 (100%))*100",35,100,"Mensual","Porcentaje",{"v":0.35,"d":"35%"}," Portal Web del Municipio página de transparencia","Se dispone de personal y recursos ",{"v":298802.7,"d":"298,802.7"},{"v":41400,"d":"41,400.0"},{"v":60600,"d":"60,600.0"},{"v":0,"d":"0.0"},{"v":0,"d":"0.0"},{"v":0,"d":"0.0"},{"v":0,"d":"0.0"},{"v":0,"d":"0.0"},{"v":0,"d":"0.0"},{"v":400802.7,"d":"400,802.7"},{"v":30,"d":"30.0"}]
[null,"Hacienda Municipal (Tesorería)","Componente 7","Gasto público eficientado","ÍNDICE de eficiencia del gasto público. (V4-EGM)","Mide el nivel de gasto programado en el municipio de acuerdo al ciclo presupuestrio para la implementacion del PbR/SED desde su asignacion por capitulo respecto a los años anteriores","Eficacia","Gestión","(valor resultante de sumar los valores individuales  de  los cosientes entre sus denominadores por su ponderacion asignada, que miden las  variables de sistemas de cobro, ampliacion de horario, morosidad en pagos, reduccion del gasto, modernizacion de equipos y cumplimiento de atribuciones con las correspondientes ponderaciones de .2, .2, .2, .2, .1 y .1 / la suma de los valores del denominador de las mismas variables)",155.9,151,"Bimestral","Índice",1.03," Portal Web del Municipio página de transparencia","Se dispone de personal y recursos ",{"v":1238434,"d":"1,238,434.0"},{"v":221000,"d":"221,000.0"},{"v":400000,"d":"400,000.0"},{"v":0,"d":"0.0"},{"v":0,"d":"0.0"},{"v":0,"d":"0.0"},{"v":0,"d":"0.0"},{"v":0,"d":"0.0"},{"v":3376752,"d":"3,376,752.0"},{"v":5236186,"d":"5,236,186.0"}]
[null,null,"Actividad 7.1","Modernizar y actualizar los sistemas de cobro, asi como de capacitación constante del personal de caja","PORCENTAJE de sistemas de cobro actualizado y personal capacitado. (P20-SCAPC)","Mide el porcentaje de modernizacion de las computadoras, sistemas operativos y paqueteria especializada","Eficacia","Gestión","(Cantidad de equipos de computo 15 (50%) del total de las diferentes direcciones que son modernizados en sistemas operativos y paqueteria especializada / Total de 30 (100%) equipos de computo en las diferentes direcciones municipales)*100",15,30,"Mensual","Porcentaje",{"v":0.5,"d":"0.50"}," Portal Web del Municipio página de transparencia","Se dispone de personal y recursos ",{"v":371530.2,"d":"371,530.2"},{"v":66300,"d":"66,300.0"},{"v":120000,"d":"120,000.0"},{"v":0,"d":"0.0"},{"v":0,"d":"0.0"},{"v":0,"d":"0.0"},{"v":0,"d":"0.0"},{"v":0,"d":"0.0"},{"v":1013025.6,"d":"1,013,025.6"},{"v":1570855.8,"d":"1,570,855.8"},30]
[null,null,"Actividad 7.2","Programa de ampliación de horario de Servicio en los tres primeros meses del Ejercicio fiscal y tener red común con los demás departamentos.","PORCENTAJE de ampliación de horario de servicio en el año y de departamentos en red. (P21-AHSADR)","Mide el porcentaje de horas adicionales que se ofrecio el servicio y se mantuvo en red","Eficacia","Gestión","(Cantidad de horas adicionales (152 hrs mensuales) de servicio a las 160 normales para la atencion ciudadana para reducir en 50% el tiempo en realizar sus trámites en las oficinas del ayuntamiento / Total historico de horas disponibles para la atencion de la ciudadania por mes (160))*100",312,160,"Mensual","Porcentaje",{"v":1.95,"d":"195%"}," Portal Web del Municipio página de transparencia","Se dispone de personal y recursos ",{"v":61921.7,"d":"61,921.7"},{"v":11050,"d":"11,050.0"},{"v":20000,"d":"20,000.0"},{"v":0,"d":"0.0"},{"v":0,"d":"0.0"},{"v":0,"d":"0.0"},{"v":0,"d":"0.0"},{"v":0,"d":"0.0"},{"v":168837.6,"d":"168,837.6"},{"v":261809.3,"d":"261,809.3"},{"v":5,"d":"5.0"}]
[null,null,"Actividad 7.3","Aprovechar las herramientas del Catastro Municipal y los padrones actualizados por dirección para elaborar el programa de apremios por vertiente ","PORCENTAJE de morosidad de contribuyentes en programa de apremios con las herramientas de catastro y padrones. (P22-MCPACP)","Mide el porcentaje de reduccion de contibuyentes morosos incluidos en los programas de apremio","Eficacia","Gestión","(Cantidad de aumento (20%) en los ingresos municipales que provienen de captacion directa al reducir en (20%) el porcentaje de contribuyentes en morosidad del 2019 / Total historico 2019 (100%) de ingresos municipales que provienen de captacion directa ))*100",120,100,"Mensual","Porcentaje",{"v":1.2,"d":"1.20"}," Portal Web del Municipio página de transparencia","Se dispone de personal y recursos ",{"v":185765.1,"d":"185,765.1"},{"v":33150,"d":"33,150.0"},{"v":60000,"d":"60,000.0"},{"v":0,"d":"0.0"},{"v":0,"d":"0.0"},{"v":0,"d":"0.0"},{"v":0,"d":"0.0"},{"v":0,"d":"0.0"},{"v":506512.8,"d":"506,512.8"},{"v":785427.9,"d":"785,427.9"},15]
[null,null,"Actividad 7.4","Establecer control individualizado por cada unidad de transporte para la gasolina, Cancelar todas la líneas telefónicas para funcionarios públicos, Se otorgaran los gastos para viáticos organizados y planeados bajo reglas estrictas con eventualidad solamente en caso necesario.","PORCENTAJE de reducción del gasto en gasolina, telefonía y viáticos. (P23-RGGTV)","Mide el porcentaje de reduccion de gasto por los conceptos señalados","Eficacia","Gestión","(Cantidad de gasto reducido en gasolina (20%), gasto reducido en telefonía (90%) y gasto reducido en víaticos (95%) / Total historico de gasto mensual en gasolina (100%), gasto mensual en telefonía (100%) y gasto mensual en víaticos (100%))*100",205,300,"Mensual","Porcentaje",{"v":0.6833,"d":"68.33%"}," Portal Web del Municipio página de transparencia","Se dispone de personal y recursos ",{"v":185765.1,"d":"185,765.1"},{"v":33150,"d":"33,150.0"},{"v":60000,"d":"60,000.0"},{"v":0,"d":"0.0"},{"v":0,"d":"0.0"},{"v":0,"d":"0.0"},{"v":0,"d":"0.0"},{"v":0,"d":"0.0"},{"v":506512.8,"d":"506,512.8"},{"v":785427.9,"d":"785,427.9"},{"v":15,"d":"15.0"}]
[null,null,"Actividad 7.5","Adquisición de equipos de cómputos modernos y adecuados a las necesidades de las direcciones y departamentos.","PORCENTAJE de modernización del equipamiento de computo. (P24-MEC)","Mide el porcentaje de direcciones de la administracion municipal que fueron sujetas de renovacion de sus equipos de computo","Eficacia","Gestión","(Cantidad de equipos de computo (5) de las diferentes direcciones que son modernizados / Total de 30 equipos de computo en las diferentes direcciones municipales)*100",5,30,"Mensual","Porcentaje",{"v":0.166,"d":"0.17"}," Portal Web del Municipio página de transparencia","Se dispone de personal y recursos ",{"v":247686.8,"d":"247,686.8"},{"v":44200,"d":"44,200.0"},{"v":80000,"d":"80,000.0"},{"v":0,"d":"0.0"},{"v":0,"d":"0.0"},{"v":0,"d":"0.0"},{"v":0,"d":"0.0"},{"v":0,"d":"0.0"},{"v":675350.4,"d":"675,350.4"},{"v":1047237.2,"d":"1,047,237.2"},20]
[null,null,"Actividad 7.6","Programa de revisión y cumplimiento de las atribuciones y obligaciones del personal de cada dirección,  conjuntamente con la dirección de Oficialía Mayor Administrativa.","PORCENTAJE de cumplimiento de atribuciones y obligaciones en normatividad aplicable. (P25-CAONA)","Mide el porcentaje de actividades individuales de cada direccion apegadas al manual de organización","Eficacia","Gestión","(Cantidad de actividades 250 individuales ejecutadas como suma de las 46 direcciones de la administracion municipal / Total de actividades realizadas y evaluadas por las 46 direcciones municipales )*100",250,300,"Mensual","Porcentaje",{"v":0.8333,"d":"83.33%"}," Portal Web del Municipio página de transparencia","Se dispone de personal y recursos ",{"v":185765.1,"d":"185,765.1"},{"v":33150,"d":"33,150.0"},{"v":60000,"d":"60,000.0"},{"v":0,"d":"0.0"},{"v":0,"d":"0.0"},{"v":0,"d":"0.0"},{"v":0,"d":"0.0"},{"v":0,"d":"0.0"},{"v":506512.8,"d":"506,512.8"},{"v":785427.9,"d":"785,427.9"},15]
[null,"Apremios","Componente 8","Tasa de contribuyentes incumplidos disminuida","TASA de contribuyetes incumplidos. (T1-CI )","Mide la reduccion de la relacion de contribuyentes incumplidos","Eficacia","Gestión","Tasa de contribuyentes  cumplidos por cada 990 licencias, permisos, concesiones o dictamenes municipales otorgados",750,990,"Bimestral","Tasa",{"v":75.75,"d":"76"}," Portal Web del Municipio página de transparencia","Se dispone de personal y recursos ",{"v":310712,"d":"310,712.0"},{"v":48000,"d":"48,000.0"},{"v":6000,"d":"6,000.0"},{"v":0,"d":"0.0"},{"v":0,"d":"0.0"},{"v":0,"d":"0.0"},{"v":0,"d":"0.0"},{"v":0,"d":"0.0"},{"v":0,"d":"0.0"},{"v":364712,"d":"364,712.0"}]
[null,null,"Actividad 8.1","Programa de visitas y cumplimiento de las obligaciones ciudadanas con la hacienda municipal por tipo de permiso, licencia, concesión o servicios del ayuntamiento por padrón  y dirección.","PORCENTAJE de cumplimiento de obligaciones hacendarias por la ciudadania. (P26-COHC)","Mide el porcentaje de licencias vigentes y al corriente en su contribución","Eficacia","Gestión","(Cantidad de licencias 800, permisos 50, concesiones 40, y dictamenes 100 municipales renovados (990) / Total de  licencias 800, permisos 50, concesiones 40, y dictamenes 100 municipales renovados (990))*100",990,990,"Mensual","Porcentaje",{"v":1,"d":"1.00"}," Portal Web del Municipio página de transparencia","Se dispone de personal y recursos ",{"v":310712,"d":"310,712.0"},{"v":48000,"d":"48,000.0"},{"v":6000,"d":"6,000.0"},{"v":0,"d":"0.0"},{"v":0,"d":"0.0"},{"v":0,"d":"0.0"},{"v":0,"d":"0.0"},{"v":0,"d":"0.0"},{"v":0,"d":"0.0"},{"v":364712,"d":"364,712.0"},{"v":100,"d":"100.0"}]
[null,"Oficial Mayor","Componente 9","Cumplimiento de servidores públicos incrementado","RAZÓN de cumplimiento de servidores públicos. (T2-CSP)","Mide la relacion de cumplimiento de las obligaciones y atribuciones de cada direccion de acuerdo al manual de organización y su reglamento","Eficacia","Gestión","(Razón de 450 de los 600 empleados en las 46 direcciones municipales agrupadas en 4 programas presupuestarios para dar cumplimiento al Plan Municipal de Desarrollo y Gobernanza que han actualizado su reglamento y cumplen con sus obligaciones y atribuciones de acuerdo al manual de organización y reglamento)",450,600,"Bimestral","Razón",75," Portal Web del Municipio página de transparencia","Se dispone de personal y recursos ",{"v":1118484,"d":"1,118,484.0"},{"v":216334,"d":"216,334.0"},{"v":5095000,"d":"5,095,000.0"},{"v":100000,"d":"100,000.0"},{"v":0,"d":"0.0"},{"v":0,"d":"0.0"},{"v":0,"d":"0.0"},{"v":0,"d":"0.0"},{"v":0,"d":"0.0"},{"v":6529818,"d":"6,529,818.0"}]
[null,null,"Actividad 9.1","Diagnóstico de necesidades y programa anual de capacitación por dirección.","PORCENTAJE de cumplimiento del programa municipal de capacitacion. (P27-CPMC)","Mide el porcentaje de servidores públicos que participan en el programa anual de capacitacion apegado al diagnostico de necesidades de las 46 direcciones de la administracion municipal","Eficacia","Gestión","(Cantidad de servidores públicos 300 que participan en el programa anual de capacitacion apegado al diagnostico de necesidades de las 46 direcciones de la administracion municipal / Total de servidores públicos 600 que integran las 46 direcciones de la administracion pública municipal)*100",300,600,"Mensual","Porcentaje",{"v":0.5,"d":"0.50"}," Portal Web del Municipio página de transparencia","Se dispone de personal y recursos ",{"v":447393.6000000001,"d":"447,393.6"},{"v":86533.60000000002,"d":"86,533.6"},{"v":2038000.0000000002,"d":"2,038,000.0"},{"v":40000.00000000001,"d":"40,000.0"},{"v":0,"d":"0.0"},{"v":0,"d":"0.0"},{"v":0,"d":"0.0"},{"v":0,"d":"0.0"},{"v":0,"d":"0.0"},{"v":2611927.2000000007,"d":"2,611,927.2"},{"v":40.00000000000001,"d":"40.0"}]
[null,null,"Actividad 9.2","Actualización del reglamento interno de trabajo para los empleados del ayuntamiento incorporando las adecuaciones a los reglamentos individuales de los servicios municipales","PORCENTAJE de actualización del reglamento interno por dirección. (P28-ARID)","Mide el porcentaje de actualizacion del reglamento interno cruzado con los reglamentos por direccion y vinculados al manual de organización","Eficacia","Gestión","(Cantidad de articulos del reglamento interior de trabajo de la administracion municipal actualizados 46 vinculados a las diferentes direcciones / Total de direcciones 46 con reglamento actualizado para vincular al reglamento interior de trabajo de la administracion pública municipal)*100",46,46,"Mensual","Porcentaje",{"v":1,"d":"100%"}," Portal Web del Municipio página de transparencia","Se dispone de personal y recursos ",{"v":671090.4,"d":"671,090.4"},{"v":129800.4,"d":"129,800.4"},{"v":3057000,"d":"3,057,000.0"},{"v":60000,"d":"60,000.0"},{"v":0,"d":"0.0"},{"v":0,"d":"0.0"},{"v":0,"d":"0.0"},{"v":0,"d":"0.0"},{"v":0,"d":"0.0"},{"v":3917890.8,"d":"3,917,890.8"},{"v":60,"d":"60.0"}]
[null,"Asuntos Internos","Componente 10","Confianza en el cuerpo de seguridad pública incrementada","INDICE de confianza en el cuerpo de seguridad pública. (ICCSP)","Mide el nivel de confianza de la ciudadania en el actuar de los cuerpos de seguridad y sus integrantes","Eficacia","Gestión","(valor resultante de sumar los valores individuales  de  los cosientes entre sus denominadores por su ponderacion asignada, que miden las  variables de corrupción, practicas y capacitación con las correspondientes ponderaciones de .5, .2 y .3 / la suma de los valores del denominador de las mismas variables)",20.4,22.4,"Bimestral","Índice",0.91," Portal Web del Municipio página de transparencia","Se dispone de personal y recursos ",{"v":138877,"d":"138,877.0"},{"v":23000,"d":"23,000.0"},{"v":4000,"d":"4,000.0"},{"v":0,"d":"0.0"},{"v":0,"d":"0.0"},{"v":0,"d":"0.0"},{"v":0,"d":"0.0"},{"v":0,"d":"0.0"},{"v":0,"d":"0.0"},{"v":165877,"d":"165,877.0"}]
[null,null,"Actividad 10.1","Exámenes de detección de actos de Corrupción.            ","PORCENTAJE de examenes y encuestas aplicados para prevenir actos y la percepción de corrupción. (P29-EAPAC)","Mide el porcentaje de examenes a que son sometidos los inetgrantes del cuerpo de seguridad pública municipal y encuestas que se aplican a la ciudadania sobre la percepción de ministerios públicos y procuradurias como corruptas.","Eficacia","Gestión","(Cantidad de 10 examenes de integridad para detectar actos de corrupción y 4 encuestas de percepción de corrupción de ministerios públicos y procuraduria, aplicados a la ciudadania / Total de examenes y encuestas aplicados)*100",14,14,"Mensual","Porcentaje",{"v":1,"d":"1.00"}," Portal Web del Municipio página de transparencia","Se dispone de personal y recursos ",{"v":48606.95,"d":"48,607.0"},{"v":8050,"d":"8,050.0"},{"v":1400,"d":"1,400.0"},{"v":0,"d":"0.0"},{"v":0,"d":"0.0"},{"v":0,"d":"0.0"},{"v":0,"d":"0.0"},{"v":0,"d":"0.0"},{"v":0,"d":"0.0"},{"v":58056.95,"d":"58,057.0"},{"v":35,"d":"35.0"}]
[null,null,"Actividad 10.2","Exámenes de detección de Malas Prácticas.","PORCENTAJE de examenes para prevenir malas prácticas. (P30-EPMP)","Mide el porcentaje de examenes realizados para detectar malas prácticas por los integrantes del cuerpo de seguridad","Eficacia","Gestión","(Cantidad de 10 examenes para detectar malas prácticas aplicados a los integrantes del cuerpo de seguridad / Total de integrantes 20 del cuerpo de seguridad)*100",10,20,"Mensual","Porcentaje",{"v":1,"d":"1.00"}," Portal Web del Municipio página de transparencia","Se dispone de personal y recursos ",{"v":34719.25,"d":"34,719.3"},{"v":5750,"d":"5,750.0"},{"v":1000,"d":"1,000.0"},{"v":0,"d":"0.0"},{"v":0,"d":"0.0"},{"v":0,"d":"0.0"},{"v":0,"d":"0.0"},{"v":0,"d":"0.0"},{"v":0,"d":"0.0"},{"v":41469.25,"d":"41,469.3"},{"v":25,"d":"25.0"}]
[null,null,"Actividad 10.3","Programa anual de capacitación en temas relacionados a la función como derechos humanos, llenado de IPH. faltas administrativas y delitos cometidos por policías municipales.","PORCENTAJE de cumplimieto del programa de capacitacion sobre derechos humanos. (P31-CPCDH)","Mide el porcentaje de participacion y cumplimiento del programa anual de capacitacion en respeto a derechos humanos por los integrantes de seguridad pública","Eficacia","Gestión","(Cantidad de criterios 4 (derechos humanos, llenado de IPH. faltas administrativas y delitos cometidos por  20 policías municipales) a verificar y capacitar en su aplicacion correcta / Total de criterios verificados con correcta aplicación)*100",38,38,"Mensual","Porcentaje",{"v":1,"d":"1.00"}," Portal Web del Municipio página de transparencia","Se dispone de personal y recursos ",{"v":55550.8,"d":"55,550.8"},{"v":9200,"d":"9,200.0"},{"v":1600,"d":"1,600.0"},{"v":0,"d":"0.0"},{"v":0,"d":"0.0"},{"v":0,"d":"0.0"},{"v":0,"d":"0.0"},{"v":0,"d":"0.0"},{"v":0,"d":"0.0"},{"v":66350.8,"d":"66,350.8"},{"v":40,"d":"40.0"}]
[null,"Sindicatura","Componente 11","Ordenamientos y lineamientos actualizados","RAZÓN de ordenamientos y lineamientos actualizados. (T3-OLA)","Mide la relacion de actualizacion de la normatividad local respecto a la estatal y federal incluyendo la imcorporación del PbR/SED","Eficacia","Gestión","(Razón de las 16 de 46 direcciones municipales agrupadas en 4 programas presupuestarios para dar cumplimiento al Plan Municipal de Desarrollo y Gobernanza que cuentan con su  reglamento actualizado incorporando el PbR/SED )",16,46,"Bimestral","Razón",0.34," Portal Web del Municipio página de transparencia","Se dispone de personal y recursos ",{"v":946129,"d":"946,129.0"},{"v":38000,"d":"38,000.0"},{"v":8000,"d":"8,000.0"},{"v":0,"d":"0.0"},{"v":0,"d":"0.0"},{"v":0,"d":"0.0"},{"v":0,"d":"0.0"},{"v":0,"d":"0.0"},{"v":0,"d":"0.0"},{"v":992129,"d":"992,129.0"}]
[null,null,"Actividad 11.1","Programa de actualización de la normatividad local, encaminado a mejorar y regular la función administrativa; dando cumplimiento a las leyes estatales y federales","PORCENTAJE de actualización de la normatividad local a la federal y estatal. (P32-PANLFE)","Mide el porcentaje de apego de las actualizaciones de la normatividad local a las disposiciones federales y estatales","Eficacia","Gestión","(Cantidad de reglamentos por actualizar 46 el correspondiente a cada dirección / Total de direcciones 46)*100",30,46,"Mensual","Porcentaje",{"v":1,"d":"1.00"}," Portal Web del Municipio página de transparencia","Se dispone de personal y recursos ",{"v":283838.7,"d":"283,838.7"},{"v":11400,"d":"11,400.0"},{"v":2400,"d":"2,400.0"},{"v":0,"d":"0.0"},{"v":0,"d":"0.0"},{"v":0,"d":"0.0"},{"v":0,"d":"0.0"},{"v":0,"d":"0.0"},{"v":0,"d":"0.0"},{"v":297638.7,"d":"297,638.7"},{"v":30,"d":"30.0"}]
[null,null,"Actividad 11.2","Programa de revisión,  aplicación y capacitación sobre la reglamentación municipal que le aplica en la responsabilidad de cada dirección.","PORCENTAJE de revision y capacitacion sobre aplicación de reglamentos municipales. (P33-RCARM)","Mide el porcentaje de entendimiento y aplicación correcta de la normatividad local en cada direccion municipal","Eficacia","Gestión","(Cantidad de criterios 4 (conocimiento del reglamento, correcta aplicación, actualizacion y resultados en la dirección e incorporacion del PbR/SED en su reglamento de la dirección) a verificar y capacitar en su aplicacion correcta / Total de criterios verificados con correcta aplicación)*100",4,4,"Mensual","Porcentaje",{"v":1,"d":"100%"}," Portal Web del Municipio página de transparencia","Se dispone de personal y recursos ",{"v":236532.25,"d":"236,532.3"},{"v":9500,"d":"9,500.0"},{"v":2000,"d":"2,000.0"},{"v":0,"d":"0.0"},{"v":0,"d":"0.0"},{"v":0,"d":"0.0"},{"v":0,"d":"0.0"},{"v":0,"d":"0.0"},{"v":0,"d":"0.0"},{"v":248032.25,"d":"248,032.3"},{"v":25,"d":"25.0"}]
[null,null,"Actividad 11.3","Programa de evaluación y seguimiento al desempeño de las direcciones para el cumplimiento del presupuesto base resultados, asi como de la hacienda municipal. ","PORCENTAJE de cumplimiento de actividades para la incorporacion del PbR/SED a las actividades de cada dirección municipal. (P34-CAPbR)","Mide el porcentaje de cumplimiento de actualizacion de datos, indicadores y metas para cumplir con el PbR/SED","Eficacia","Gestión","(Cantidad de actividades  desarrolladas (4 POA, PAC, Indicadores y Actualizar reglamento) para incorporar el PbR/SED a la evaluación y seguimiento de resultados de la dirección / total de  actividades  desarrolladas (4 POA, PAC, Indicadores y Actualizar reglamento) para incorporar el PbR/SED a la evaluación y seguimiento de resultados de la dirección)*100",4,4,"Mensual","Porcentaje",{"v":1,"d":"1.00"}," Portal Web del Municipio página de transparencia","Se dispone de personal y recursos ",{"v":425758.05,"d":"425,758.1"},{"v":17100,"d":"17,100.0"},{"v":3600,"d":"3,600.0"},{"v":0,"d":"0.0"},{"v":0,"d":"0.0"},{"v":0,"d":"0.0"},{"v":0,"d":"0.0"},{"v":0,"d":"0.0"},{"v":0,"d":"0.0"},{"v":446458.05,"d":"446,458.1"},{"v":45,"d":"45.0"}]
[null,"Contraloria","Componente 12","Apego a la normatividad para el ejercicio de recursos públicos","ÍNDICE de cumplimiento a la normatividad para el ejercicio de recursos públicos municipales. (T4-ANERP)","Mide la relación de recursos programados y ejercidos evitando la reasignación de recursos de una actividad a otra","Eficacia","Gestión","(valor resultante de sumar los valores individuales  de  los cosientes entre sus denominadores por su ponderacion asignada, que miden las  variables de auditorias, inspecciones y seguimiento con su respectivas ponderaciones de .6, .3 y .1 / la suma de los valores del denominador de las mismas variables)",12.7,23.5,"Bimestral","Índice",0.54," Portal Web del Municipio página de transparencia","Se dispone de personal y recursos ",{"v":446303,"d":"446,303.0"},{"v":16000,"d":"16,000.0"},{"v":4000,"d":"4,000.0"},{"v":0,"d":"0.0"},{"v":0,"d":"0.0"},{"v":0,"d":"0.0"},{"v":0,"d":"0.0"},{"v":0,"d":"0.0"},{"v":0,"d":"0.0"},{"v":466303,"d":"466,303.0"}]
[null,null,"Actividad 12.1","Programa para auditar la cuenta pública de hacienda municipal en tiempo y forma","PORCENTAJE de cumplimiento del programa de auditoria a cuenta pública municipal. (P35-CPACP)","Mide el porcentaje de cumplimiento del programa de auditorias internas a cuenta publica municipal","Eficacia","Gestión","(Cantidad de revisiones a cuenta publica ejecutadas de las 12 programadas dentro del Programa de auditoria interna a la cuenta pública municipal / total de auditorias 12 ejecutadas y programadas dentro de auditoria interna municipal)*100",12,12,"Mensual","Porcentaje",{"v":1,"d":"1.00"}," Portal Web del Municipio página de transparencia","Se dispone de personal y recursos ",{"v":133890.9,"d":"133,890.9"},{"v":4800,"d":"4,800.0"},{"v":1200,"d":"1,200.0"},{"v":0,"d":"0.0"},{"v":0,"d":"0.0"},{"v":0,"d":"0.0"},{"v":0,"d":"0.0"},{"v":0,"d":"0.0"},{"v":0,"d":"0.0"},{"v":139890.9,"d":"139,890.9"},{"v":30,"d":"30.0"}]
[null,null,"Actividad 12.2","Programa de visitas de inspección a las diferentes dependencias del ayuntamiento","PORCENTAJE de cumplimiento del programa de visitas e inspección. (P36-CPVI)","Mide el porcentaje de cumplimiento del programa de visitas para verificar el cumplimiento de sus actividades","Eficacia","Gestión","(Cantidad de visitas 10 programadas dentro del Programa de inspección a las diferentes dependencias del ayuntamiento / total de visitas 10 programadas dentro del Programa de inspección a las 46 diferentes dependencias del ayuntamiento)*100",10,46,"Mensual","Porcentaje",{"v":0.2173,"d":"21.73%"}," Portal Web del Municipio página de transparencia","Se dispone de personal y recursos ",{"v":200836.35,"d":"200,836.4"},{"v":7200,"d":"7,200.0"},{"v":1800,"d":"1,800.0"},{"v":0,"d":"0.0"},{"v":0,"d":"0.0"},{"v":0,"d":"0.0"},{"v":0,"d":"0.0"},{"v":0,"d":"0.0"},{"v":0,"d":"0.0"},{"v":209836.35,"d":"209,836.4"},{"v":45,"d":"45.0"}]
[null,null,"Actividad 12.3","Programa de seguimiento al manual de organización y obligaciones con el Estado.","PORCENTAJE de cumplimiento al manual de organización y obligaciones con el estado. (P37-CMOOE)","Mide el porcentaje de cumplimiento del manual de organización y que este apegado a la normatividad estatal","Eficacia","Gestión","(Cantidad de 25 articulos del manual de organización y obligaciones con el estado  a los que es obligatorio dar seguimiento  y cumplimiento por parte de la direccion municipal de contraloria/ total de 25 articulos del manual de organización y obligaciones con el estado  a los que es obligatorio dar seguimiento  y cumplimiento por parte de la direccion municipal de contraloria)*100",25,25,"Mensual","Porcentaje",{"v":1,"d":"1.00"}," Portal Web del Municipio página de transparencia","Se dispone de personal y recursos ",{"v":111575.75,"d":"111,575.8"},{"v":4000,"d":"4,000.0"},{"v":1000,"d":"1,000.0"},{"v":0,"d":"0.0"},{"v":0,"d":"0.0"},{"v":0,"d":"0.0"},{"v":0,"d":"0.0"},{"v":0,"d":"0.0"},{"v":0,"d":"0.0"},{"v":116575.75,"d":"116,575.8"},{"v":25,"d":"25.0"}]
[null,"Registro Civil","Componente 13","Registro civil eficientado","ÍNDICE de eficiencia en Registro Civil. (V5-ERC)","Mide el nivel de cumplimiento y satisfacción de la ciudadania","Eficacia","Gestión","(valor resultante de sumar los valores individuales  de  los cosientes entre sus denominadores por su ponderacion asignada, que miden las  variables de informes, apoyos y capacitación con sus respectivas ponderaciones de .4, .4 y .2 / la suma de los valores del denominador de las mismas variables)",17.2,17.6,"Bimestral","Índice",0.97," Portal Web del Municipio página de transparencia","Se dispone de personal y recursos ",{"v":318146,"d":"318,146.0"},{"v":93000,"d":"93,000.0"},{"v":5000,"d":"5,000.0"},{"v":0,"d":"0.0"},{"v":0,"d":"0.0"},{"v":0,"d":"0.0"},{"v":0,"d":"0.0"},{"v":0,"d":"0.0"},{"v":0,"d":"0.0"},{"v":416146,"d":"416,146.0"}]
[null,null,"Actividad 13.1","Informe digital mensual  a la Dirección General del Registro Civil del Estado y al Sistema Nacional de Registro.","PORCENTAJE de cumplimiento de informes a DGRCE. (P38-CIRCE)","Mide el porcentaje de cumplimiento de los informes mensuales ","Eficacia","Gestión","(Cantidad de informes acumulados enviados a la direccion general del registro civil del estado 12 y al sistema nacional de registros  12 responsabilidad delRegistro Civil/total acumulado mensual de informes enviados a la DGRCE  12 y al SNR 12 responsabilidad del registro Civil)*100",24,24,"Mensual","Porcentaje",{"v":1,"d":"1.00"}," Portal Web del Municipio página de transparencia","Se dispone de personal y recursos ",{"v":111351.1,"d":"111,351.1"},{"v":32550,"d":"32,550.0"},{"v":1750,"d":"1,750.0"},{"v":0,"d":"0.0"},{"v":0,"d":"0.0"},{"v":0,"d":"0.0"},{"v":0,"d":"0.0"},{"v":0,"d":"0.0"},{"v":0,"d":"0.0"},{"v":145651.1,"d":"145,651.1"},{"v":35,"d":"35.0"}]
[null,null,"Actividad 13.2","Programa de registro y seguimiento de solicitudes de actos para el apoyo de la población de inicio a la culminación del caso.","PORCENTAJE de conclusion de solicitudes de apoyo. (P39-CSA)","Mide el porcentaje de conclusion de las solicitudes de apoyo de la ciudadania ","Eficacia","Gestión","(Cantidad de solicitudes de apoyo 15 para resolver actos relativos al Registro Civil/total de solicitudes recibidas 15 registradas y dado seguimiento hasta su solucion en registro Civil)*100",15,15,"Mensual","Porcentaje",{"v":1,"d":"100%"}," Portal Web del Municipio página de transparencia","Se dispone de personal y recursos ",{"v":127258.4,"d":"127,258.4"},{"v":37200,"d":"37,200.0"},{"v":2000,"d":"2,000.0"},{"v":0,"d":"0.0"},{"v":0,"d":"0.0"},{"v":0,"d":"0.0"},{"v":0,"d":"0.0"},{"v":0,"d":"0.0"},{"v":0,"d":"0.0"},{"v":166458.4,"d":"166,458.4"},{"v":40,"d":"40.0"}]
[null,null,"Actividad 13.3","Programa cuatrimestral de capacitación o actualización al personal","PORCENTAJE de cumplimiento del programa de capacitación y actualización. (P40-CPCA)","Mide el porcentaje de cumplimiento y registro de asistentes al programa de capacitación","Eficacia","Gestión","(Cantidad de personal inscrito 8 para participar en el programa de capacitacion sobre Registro Civil/total de personal 10 de registro Civil)*100",8,10,"Mensual","Porcentaje",{"v":0.8,"d":"0.80"}," Portal Web del Municipio página de transparencia","Se dispone de personal y recursos ",{"v":79536.5,"d":"79,536.5"},{"v":23250,"d":"23,250.0"},{"v":1250,"d":"1,250.0"},{"v":0,"d":"0.0"},{"v":0,"d":"0.0"},{"v":0,"d":"0.0"},{"v":0,"d":"0.0"},{"v":0,"d":"0.0"},{"v":0,"d":"0.0"},{"v":104036.5,"d":"104,036.5"},{"v":25,"d":"25.0"}]
[null,"Catastro","Componente 14","Catastro eficientado","ÍNDICE de eficiencia en Catastro. (V6-EC)","Mide el nivel de eficiencia del personal del catastro en el cobro del impuesto predial apoyados en todas sus actividades buscando su incremento sostenido anual","Eficacia","Gestión","(valor resultante de sumar los valores individuales  de  los cosientes entre sus denominadores por su ponderacion asignada, que miden las  variables dedigitalización y emplados capacitados  con la correspondiente ponderacion de .4 y .6)",12004.2,36004.2,"Bimestral","Índice",0.33," Portal Web del Municipio página de transparencia","Se dispone de personal y recursos ",{"v":672388,"d":"672,388.0"},{"v":138000,"d":"138,000.0"},{"v":88000,"d":"88,000.0"},{"v":0,"d":"0.0"},{"v":0,"d":"0.0"},{"v":0,"d":"0.0"},{"v":0,"d":"0.0"},{"v":0,"d":"0.0"},{"v":0,"d":"0.0"},{"v":898388,"d":"898,388.0"}]
[null,null,"Actividad 14.1","Programa de digitalización de actas y capacitación del personal 4 empleados.","PORCENTAJE de digitalización y programa de capacitación. (P41-DPC)","Mide el porcentaje de digitalización de actas apartir del programa de capacitación","Eficacia","Gestión","(Cantidad de actas de catastro digitalizadas (30000) / total de actas por digitalizar en direccion de Catastro (90000) )*100",30000,90000,"Mensual","Porcentaje",33.33," Portal Web del Municipio página de transparencia","Se dispone de personal y recursos ",{"v":437052.19999999995,"d":"437,052.2"},{"v":89699.99999999999,"d":"89,700.0"},{"v":57199.99999999999,"d":"57,200.0"},{"v":0,"d":"0.0"},{"v":0,"d":"0.0"},{"v":0,"d":"0.0"},{"v":0,"d":"0.0"},{"v":0,"d":"0.0"},{"v":0,"d":"0.0"},{"v":583952.1999999998,"d":"583,952.2"},{"v":64.99999999999999,"d":"65.0"}]
[null,null,"Actividad 14.2","Atención y mejora continua en los servicios al ciudadano, manteniendo la capacitación a 7 empleados del catastro.","PORCENTAJE de servicios mejorados en atención y capacitación. (P42-SMAC)","Mide el porcentaje de emplados capacitados de los diferentes servicios de catastro","Eficacia","Gestión","(Cantidad de personal inscrito para participar en el programa de capacitacion sobre servicios en catastro 7 / total de personal en direccion de Catastro 7 )*100",7,7,"Mensual","Porcentaje",100," Portal Web del Municipio página de transparencia","Se dispone de personal y recursos ",{"v":111351.1,"d":"111,351.1"},{"v":32550,"d":"32,550.0"},{"v":1750,"d":"1,750.0"},{"v":0,"d":"0.0"},{"v":0,"d":"0.0"},{"v":0,"d":"0.0"},{"v":0,"d":"0.0"},{"v":0,"d":"0.0"},{"v":0,"d":"0.0"},{"v":145651.1,"d":"145,651.1"},{"v":35,"d":"35.0"}]
[null,"Parque Vehícular","Componente 15","Vehículos en operación incrementados","ÍNDICE de eficiencia del mantenimiento preventivo al parque vehicular. (T5-IEMPV)","Mide la reduccion del monto de inverion en mantenimiento preventivo por vehiculo que se mantiene en operación","Eficacia","Gestión","(valor resultante de sumar los valores individuales  de  los cosientes entre sus denominadores por su ponderacion asignada, que miden las  variables de kilometros por litro, inversion por vehiculo con mantenimiento y vehiculos con mantenimiento preventivo en operación  con la correspondiente ponderacion de .2, .5 y .3)",13324,2961.4,"Bimestral","Índice",4.49," Portal Web del Municipio página de transparencia","Se dispone de personal y recursos ",{"v":222359,"d":"222,359.0"},{"v":163850,"d":"163,850.0"},{"v":33000,"d":"33,000.0"},{"v":0,"d":"0.0"},{"v":0,"d":"0.0"},{"v":0,"d":"0.0"},{"v":0,"d":"0.0"},{"v":0,"d":"0.0"},{"v":0,"d":"0.0"},{"v":419209,"d":"419,209.0"}]
[null,null,"Actividad 15.1","Programa de revisión diaria a los vehículos en operación asignados a diferentes direcciones del ayuntamiento.","PORCENTAJE de vehiculos en operación revisados. (P43-VOR)","Mide el porcentaje de vehiculos revisados y en operación por semana","Eficacia","Gestión","(Cantidad de vehiculos con mantenimiento preventivo por semana y en operación (10)) / Total de vehiculos con mantenimiento preventivo por semana (12))*100",10,12,"Mensual","Porcentaje",0.83," Portal Web del Municipio página de transparencia","Se dispone de personal y recursos ",{"v":133415.4,"d":"133,415.4"},{"v":98310,"d":"98,310.0"},{"v":19800,"d":"19,800.0"},{"v":0,"d":"0.0"},{"v":0,"d":"0.0"},{"v":0,"d":"0.0"},{"v":0,"d":"0.0"},{"v":0,"d":"0.0"},{"v":0,"d":"0.0"},{"v":251525.4,"d":"251,525.4"},{"v":60,"d":"60.0"}]
[null,null,"Actividad 15.2","Generar programa de mantenimiento preventivo con bitácora  de gastos por vehículo","TASA de inversión al programa de mantenimiento. (P44-TIPM)","Mide la Tasa de inversion mensual por vehiculo incorporado al programa de mantenimiento preventivo orientado a reducir el monto mensual","Eficacia","Gestión","(Monto de recursos economicos en pesos  invertido mensualmente en el programa de mantenimiento preventivo al parque vehicular municipal (10000 pesos) por el total de vehiculos del servicio municipal incorporados al programa de mantenimiento preventivo (14) )",10000,14,"Mensual","Tasa",714," Portal Web del Municipio página de transparencia","Se dispone de personal y recursos ",{"v":33353.85,"d":"33,353.9"},{"v":24577.5,"d":"24,577.5"},{"v":4950,"d":"4,950.0"},{"v":0,"d":"0.0"},{"v":0,"d":"0.0"},{"v":0,"d":"0.0"},{"v":0,"d":"0.0"},{"v":0,"d":"0.0"},{"v":0,"d":"0.0"},{"v":62881.35,"d":"62,881.4"},{"v":25,"d":"25.0"}]
[null,null,"Actividad 15.3","Elaborar una bitácora de seguimiento paralelo al consumo de gasolina y kilometraje por vehículo","TASA de registro en bitacoras por vehiculo, de kilometros recorrdios por litro de Gasolina y/o diesel cargado (P45-RBV)","Mide la tasa de kilometros recorridos por litro de gasolina o diesel consumido ","Eficacia","Gestión","( Total de kilometros recorridos por los vehiculos oficiales (2800), camiones de basura (2240) y patrullas ( 22400) a las que se les cargo gasolina y diesel)) por  la (Cantidad de litros de gasolina y disel cargados  a los vehiculos (4 camiones de basura  2240 litros disesel por mes) y patrullas municipales (5 patrullas 5600 litros de gasolina por mes) (5 vehiculos oficiales  2000 litros gasolina al mes)",27740,9840,"Mensual","Tasa",2.81," Portal Web del Municipio página de transparencia","Se dispone de personal y recursos ",{"v":20012.31,"d":"20,012.3"},{"v":14746.5,"d":"14,746.5"},{"v":2970,"d":"2,970.0"},{"v":0,"d":"0.0"},{"v":0,"d":"0.0"},{"v":0,"d":"0.0"},{"v":0,"d":"0.0"},{"v":0,"d":"0.0"},{"v":0,"d":"0.0"},{"v":37728.81,"d":"37,728.8"},{"v":15,"d":"15.0"}]
[null,"Secretaría General","Componente 16","Satisfacción gubernamental incrementada","INDICE de satisfacción Gubernamental. (V7-SG)","Mide el nivel de satisfaccion de la ciudadania por la atencion recibida","Eficacia","Gestión","(valor resultante de sumar los valores individuales  de  los cosientes entre sus denominadores por su ponderacion asignada, que miden las  variables de instrucciones cumplidas y colaboraciones legales  correspondientes ponderaciones de .7  y .3)",65.1,95.4,"Bimestral","Índice",0.68," Portal Web del Municipio página de transparencia","Se dispone de personal y recursos ",{"v":724675,"d":"724,675.0"},{"v":80000,"d":"80,000.0"},{"v":8000,"d":"8,000.0"},{"v":0,"d":"0.0"},{"v":0,"d":"0.0"},{"v":0,"d":"0.0"},{"v":0,"d":"0.0"},{"v":0,"d":"0.0"},{"v":0,"d":"0.0"},{"v":812675,"d":"812,675.0"}]
[null,null,"Actividad 16.1","Coordinar, supervisar y evaluar a las direcciones y dependencias del Ayuntamiento, para garantizar el adecuado servicio a la ciudadanía","PORCENTAJE de instrucciones cumplidas para mejorar  el servicio a la ciudadania. (P46-ICMSC)","Mide el porcentaje de cumplimiento de las instrucciones de coordinación,  supervision y evaluación","Eficacia","Gestión","(Cantidad de instrucciones dadas a las diferentes direcciones municipales 48 / Total de quejas, solicitudes recibidas en atencion ciudadana y participacion social y seguimiento a actividades propias de las direcciones 72 ) * 100",48,72,"Mensual","Porcentaje",0.67," Portal Web del Municipio página de transparencia","Se dispone de personal y recursos ",{"v":507272.5,"d":"507,272.5"},{"v":56000,"d":"56,000.0"},{"v":5600,"d":"5,600.0"},{"v":0,"d":"0.0"},{"v":0,"d":"0.0"},{"v":0,"d":"0.0"},{"v":0,"d":"0.0"},{"v":0,"d":"0.0"},{"v":0,"d":"0.0"},{"v":568872.5,"d":"568,872.5"},{"v":70,"d":"70.0"}]
[null,null,"Actividad 16.2","Colaborar en las acciones y funciones relativas al aspecto legal y jurídico del municipio.","PORCENTAJE de colaboraciones legales y juridicas. (P47-CLJ)","Mide el porcentaje de colaboraciones para resolver temas legales y juridicos","Eficacia","Gestión","(Cantidad de convenios 15, obras 40 y solicitudes 50 necesarias de respaldar con el aspecto legal y juridico / total de documentos firmados con la fe publica del secretario general ) * 100",105,150,"Mensual","Porcentaje",{"v":0.7,"d":"70%"}," Portal Web del Municipio página de transparencia","Se dispone de personal y recursos ",{"v":217402.5,"d":"217,402.5"},{"v":24000,"d":"24,000.0"},{"v":2400,"d":"2,400.0"},{"v":0,"d":"0.0"},{"v":0,"d":"0.0"},{"v":0,"d":"0.0"},{"v":0,"d":"0.0"},{"v":0,"d":"0.0"},{"v":0,"d":"0.0"},{"v":243802.5,"d":"243,802.5"},{"v":30,"d":"30.0"}]
[null,"Transparencia ","Componente 17","Transparencia municipal incrementada","ÍNDICE de transparencia. (T6-TT)","Mide la relación de participacion, atencion y cumplimiento de los involucrados en atender las obligaciones de transparencia ","Eficacia","Gestión","(valor resultante de sumar los valores individuales  de  los cosientes entre sus denominadores por su ponderacion asignada, que miden las  variables de servidores públicos, recurrencia y participacion con las correspondientes ponderaciones de .5, .3 y .2)",226.6,353,"Bimestral","Índice",0.65," Portal Web del Municipio página de transparencia","Se dispone de personal y recursos ",{"v":413607,"d":"413,607.0"},{"v":41000,"d":"41,000.0"},{"v":7000,"d":"7,000.0"},{"v":0,"d":"0.0"},{"v":0,"d":"0.0"},{"v":0,"d":"0.0"},{"v":0,"d":"0.0"},{"v":0,"d":"0.0"},{"v":0,"d":"0.0"},{"v":461607,"d":"461,607.0"}]
[null,null,"Actividad 17.1","Programa de actualización, seguimiento y verificación de información pública disponible en los formatos de PNT. Y en la LTAIPJ en los art. 8 y 15","PORCENTAJE de servidores públicos que cumplen con sus obligaciones de rendición de cuentas en tiempo y forma, cumplimiento a la PNT y LTAIPEJ. (P48-CTNE)","Mide el porcentaje de cumplimiento de las obligaciones de publicar información en la PNT y LTAIPEJM","Eficacia","Gestión","(Cantidad de incisos con informacion actualizada en los articulos 8 y 15 de la LTAIPEJ mas los formatos de la PNT asignados y actualizados subidos a las plataformas/Total de insicios que solicitan informacion en los articulos 8 y 15 de la LTAIPJ mas el total de formatos de la PNT asignados)*100        (98 de LTAIPEJ + 270 Fts de la PNT = 368)  (102 de LTAIPEJ + 319 Fts de la PNT = 421)",368,421,"Mensual","Porcentaje",0.87," Portal Web del Municipio página de transparencia","Se dispone de personal y recursos ",{"v":206803.5,"d":"206,803.5"},{"v":20500,"d":"20,500.0"},{"v":3500,"d":"3,500.0"},{"v":0,"d":"0.0"},{"v":0,"d":"0.0"},{"v":0,"d":"0.0"},{"v":0,"d":"0.0"},{"v":0,"d":"0.0"},{"v":0,"d":"0.0"},{"v":230803.5,"d":"230,803.5"},{"v":50,"d":"50.0"}]
[null,null,"Actividad 17.2","Revisar la plataforma INFOMEX y el correo municipal de transparencia para atender solicitudes que recibe el ayuntamiento, darles respuesta y con ello mantener actualizado el portal del SIRES.","PORCENTAJE de recurrencia  en materia de acceso a la información del poder Ejecutivo Municipal. (P49-RMAIEM)","Mide el porcentaje de atención y respuesta positiva a las solicitudes de información recibidas por los diferentes medios de solicitud","Eficacia","Gestión","(Cantidad de solicitudes de informacion recibidas y atendidas positivamente/ Total de solicitudes recibidas)*100",50,75,"Mensual","Porcentaje",{"v":0.8,"d":"80%"}," Portal Web del Municipio página de transparencia","Se dispone de personal y recursos ",{"v":82721.4,"d":"82,721.4"},{"v":8200,"d":"8,200.0"},{"v":1400,"d":"1,400.0"},{"v":0,"d":"0.0"},{"v":0,"d":"0.0"},{"v":0,"d":"0.0"},{"v":0,"d":"0.0"},{"v":0,"d":"0.0"},{"v":0,"d":"0.0"},{"v":92321.4,"d":"92,321.4"},{"v":20,"d":"20.0"}]
[null,null,"Actividad 17.3","Programa de capacitación en materia de transparencia, formatos y reportes de actividades.","PORCENTAJE de participación en el cumplimiento del programa de capacitacion en transparencia. (P50-CPCT)","Mide el porcentaje de participación en el cumplimiento del programa de capacitacion en transparencia","Eficacia","Gestión","(Cantidad de personal inscrito para participar en el programa de capacitacion sobre transparencia/total de personal en el ayutamiento)*100",138,600,"Mensual","Porcentaje",0.25," Portal Web del Municipio página de transparencia","Se dispone de personal y recursos ",{"v":124082.1,"d":"124,082.1"},{"v":12300,"d":"12,300.0"},{"v":2100,"d":"2,100.0"},{"v":0,"d":"0.0"},{"v":0,"d":"0.0"},{"v":0,"d":"0.0"},{"v":0,"d":"0.0"},{"v":0,"d":"0.0"},{"v":0,"d":"0.0"},{"v":138482.1,"d":"138,482.1"},{"v":30,"d":"30.0"}]
[]
[null,"Sistema de Agua Potable y Alcantarillado (SAMAPA)","Componente 1","Cobertura de Agua Potable y Alcantarillado Ampliada","ÍNDICE de cobertura agua potable y alcantarillado (T1-CAPyA)","Mide la ampliacion en la cobertura de suministro de agua potable y alcantarillado ","Eficacia","Gestión","(valor resultante de sumar los valores individuales  de  los cosientes entre sus denominadores por su ponderacion asignada, que miden las  variables de: aguas subterraneas, macromedidores, cultura agua, colector principal, construccion pozos, desazolve carcamos, construccion humedal y rahabilitacion plantas con su correspondientes ponderaciones de .1, .2, .1, .1, .2, .1, .1, y .1)",12.7,15.9,"Bimestral","Índice","0.798"," Portal Web del Municipio página de transparencia","Se dispone de personal y recursos",{"v":0,"d":"$0.0"},{"v":0,"d":"$0.0"},{"v":0,"d":"$0.0"},{"v":2000000,"d":"$2,000,000.0"},{"v":0,"d":"$0.0"},{"v":0,"d":"$0.0"},{"v":0,"d":"$0.0"},{"v":0,"d":"$0.0"},{"v":0,"d":"$0.0"},{"v":2000000,"d":"$2,000,000.0"}]
[null,null,"Actividad 1.1","Gestionar un estudio de aguas subterráneas","PORCENTAJE de avance del estudio de aguas subterráneas (P51-AEAS)","Mide los avances en tener un estudio ","Eficacia","Gestión","(Cantidad de  actividades (10) desarrolladas para la gestion de un estudio de aguas subterráneas / Total de  actividades (15) a desarrollar para la gestion de un estudio de aguas subterráneas)*100",10,15,"Mensual","Porcentaje",{"v":0.66,"d":"66%"}," Portal Web del Municipio página de transparencia","Se dispone de personal y recursos",{"v":0,"d":"0.0"},{"v":0,"d":"0.0"},{"v":0,"d":"0.0"},{"v":100000,"d":"100,000.0"},{"v":0,"d":"0.0"},{"v":0,"d":"0.0"},{"v":0,"d":"0.0"},{"v":0,"d":"0.0"},{"v":0,"d":"0.0"},{"v":100000,"d":"$100,000.0"},{"v":5,"d":"$5.0"}]
[null,null,"Actividad 1.2","Instalación de macro medidores en pozos municipales","PORCENTAJE de pozos municipales con macro medidores (P52-PMMM)","Mide los avances en poner macromedidores en los pozos municipales","Eficacia","Gestión","(Cantidad de  actividades (20) desarrolladas para  colocar 5 macro medidores en las lineas de conducción del agua / Total de actividades (25) desarrolladas para  colocar 5 macro medidores en las lineas de conducción del agua de los pozos municipales a la red de agua potable )*100",20,25,"Mensual","Porcentaje",{"v":0.8,"d":"80%"}," Portal Web del Municipio página de transparencia","Se dispone de personal y recursos",{"v":0,"d":"0.0"},{"v":0,"d":"0.0"},{"v":0,"d":"0.0"},{"v":400000,"d":"400,000.0"},{"v":0,"d":"0.0"},{"v":0,"d":"0.0"},{"v":0,"d":"0.0"},{"v":0,"d":"0.0"},{"v":0,"d":"0.0"},{"v":400000,"d":"$400,000.0"},{"v":20,"d":"$20.0"}]
[null,null,"Actividad 1.3","Programa de cultura del agua","PORCENTAJE de cumplimiento del programa de cultura del agua (P53-CPCA)","Mide el avance en el cumplimiento del programa ","Eficacia","Gestión","(Cantidad de  actividades (20) desarrolladas dentro del programa de cultura del agua / Total de  actividades (20) a desarrollar dentro del programa de cultura del agua)*100",20,20,"Mensual","Porcentaje",{"v":1,"d":"100%"}," Portal Web del Municipio página de transparencia","Se dispone de personal y recursos",{"v":0,"d":"0.0"},{"v":0,"d":"0.0"},{"v":0,"d":"0.0"},{"v":300000,"d":"300,000.0"},{"v":0,"d":"0.0"},{"v":0,"d":"0.0"},{"v":0,"d":"0.0"},{"v":0,"d":"0.0"},{"v":0,"d":"0.0"},{"v":300000,"d":"$300,000.0"},{"v":15,"d":"$15.0"}]
[null,null,"Actividad 1.4","Reemplazar el colector principal de la línea de drenaje ","PORCENTAJE colector principal remplazado (P54-CPR)","Mide los avances en el reemplazo del colector principal","Eficacia","Gestión","(Cantidad de  actividades (10) desarrolladas para  reemplazar 100 ml del colector principal de la línea de drenaje  en cabecera municipal / Total de actividades (10) programadas para  reemplazar 100 ml del colector principal de la línea de drenaje de la cabecera municipal )*100",10,10,"Mensual","Porcentaje",{"v":1,"d":"100%"}," Portal Web del Municipio página de transparencia","Se dispone de personal y recursos",{"v":0,"d":"0.0"},{"v":0,"d":"0.0"},{"v":0,"d":"0.0"},{"v":400000,"d":"400,000.0"},{"v":0,"d":"0.0"},{"v":0,"d":"0.0"},{"v":0,"d":"0.0"},{"v":0,"d":"0.0"},{"v":0,"d":"0.0"},{"v":400000,"d":"$400,000.0"},{"v":20,"d":"$20.0"}]
[null,null,"Actividad 1.5","Construcción de 2 pozos profundos","PORCENTAJE de avance en perforación de pozos (P55-AP2P)","Mide los avances en la perforación de dos nuevos pozos profundos","Eficacia","Gestión","(Cantidad de  actividades (10) desarrolladas para la construcción de 2 nuevos pozos profundos / Total de  actividades (15) a desarrollar para la construcción de 2 nuevos pozos profundos en el territorio municipal)*100",10,15,"Mensual","Porcentaje",{"v":0.66,"d":"66%"}," Portal Web del Municipio página de transparencia","Se dispone de personal y recursos",{"v":0,"d":"0.0"},{"v":0,"d":"0.0"},{"v":0,"d":"0.0"},{"v":500000,"d":"500,000.0"},{"v":0,"d":"0.0"},{"v":0,"d":"0.0"},{"v":0,"d":"0.0"},{"v":0,"d":"0.0"},{"v":0,"d":"0.0"},{"v":500000,"d":"$500,000.0"},{"v":25,"d":"$25.0"}]
[null,null,"Actividad 1.6","Desazolve de cárcamos","PORCENTAJE de cárcamos con desazolve (P56-CCD)","Mide el avance en el desasolve de carcamos","Eficacia","Gestión","(Cantidad de  actividades (8) desarrolladas para  el desazolve  de 100 cárcamos construidos en el territorio municipal / Total de actividades (8) programas a desarrollar para  el desazolve  de 100 cárcamos construidos en el territorio municipal )*100",8,8,"Mensual","Porcentaje",{"v":1,"d":"100%"}," Portal Web del Municipio página de transparencia","Se dispone de personal y recursos",{"v":0,"d":"0.0"},{"v":0,"d":"0.0"},{"v":0,"d":"0.0"},{"v":300000,"d":"300,000.0"},{"v":0,"d":"0.0"},{"v":0,"d":"0.0"},{"v":0,"d":"0.0"},{"v":0,"d":"0.0"},{"v":0,"d":"0.0"},{"v":300000,"d":"$300,000.0"},{"v":15,"d":"$15.0"}]
[null,null,"Actividad 1.7","Construcción del humedal arroyo de los sabinos","PORCENTAJE de avance en la construcción del humedal (P57-ACH)","Mide el avance en la costrucción del humedal","Eficacia","Gestión","(Cantidad de  actividades (15) desarrolladas para la Construcción del humedal arroyo de los sabinos / Total de  actividades (20) a desarrollar para la Construcción del humedal arroyo de los sabinos)*100",15,20,"Mensual","Porcentaje",{"v":0.75,"d":"75%"}," Portal Web del Municipio página de transparencia","Se dispone de personal y recursos",{"v":0,"d":"0.0"},{"v":0,"d":"0.0"},{"v":0,"d":"0.0"},{"v":200000,"d":"200,000.0"},{"v":0,"d":"0.0"},{"v":0,"d":"0.0"},{"v":0,"d":"0.0"},{"v":0,"d":"0.0"},{"v":0,"d":"0.0"},{"v":200000,"d":"$200,000.0"},{"v":10,"d":"$10.0"}]
[null,null,"Actividad 1.8","Rehabilitación de 4 plantas de tratamiento","PORCENTAJE de Plantas de tratamiento de aguas residuales en operación dentro de norma (P58-PPTARDN)","Mide el avance en la rehabilitación de plantas de tratamiento de aguas residuales y puestas en operación dentro de norma","Eficacia","Gestión","(Cantidad de plantas de tratamiento de aguas residuales (4) a las que se les dio mantenimiento y rehabilitación  / Total plantas de tratamiento de aguas residuales (6) existentes en el municipio)*100",4,6,"Mensual","Porcentaje",{"v":0.66,"d":"66%"},"10:10",null,{"v":0,"d":"0.0"},{"v":0,"d":"0.0"},{"v":0,"d":"0.0"},{"v":400000,"d":"400,000.0"},{"v":0,"d":"0.0"},{"v":0,"d":"0.0"},{"v":0,"d":"0.0"},{"v":0,"d":"0.0"},{"v":0,"d":"0.0"},{"v":400000,"d":"$400,000.0"},{"v":20,"d":"$20.0"}]
[null,"Alumbrado público","Componente 2","Cobertura de Alumbrado Público Ampliada","TASA de modernizacion y eficiencia en alumbrado público municipal (T2-CAP)","Mide la modernizacion y la eficiencia del alumbrado público municipal con el cambio de luminarias existentes a luminarias de LEDs","Eficacia","Gestión","(Tasa de modernizacion de luminarias a LEDs por cada 1000 de las existentes ",100,4513,"Bimestral","Tasa","22 . 1000"," Portal Web del Municipio página de transparencia","Se dispone de personal y recursos",{"v":722682,"d":"$722,682.0"},{"v":338000,"d":"$338,000.0"},{"v":18000,"d":"$18,000.0"},{"v":0,"d":"$0.0"},{"v":0,"d":"$0.0"},{"v":0,"d":"$0.0"},{"v":0,"d":"$0.0"},{"v":0,"d":"$0.0"},{"v":0,"d":"$0.0"},{"v":1078682,"d":"$1,078,682.0"}]
[null,null,"Actividad 2.1","Instalación de luminarias led","PORCENTAJE de luminarias led instaladas (P59-LLI)","Mide el avance en la instalacion de luminarias","Eficacia","Gestión","(Cantidad de luminarias de los circuitos de alumbrado publico municipales que se han sustituido (100) por luminarias de LEDs / Total de  luminarias de los circuitos de alumbrado publico municipales que se han programado (100) para ser sustituidas por luminarias de LEDs)*100",100,100,"Mensual","Porcentaje",{"v":1,"d":"100%"}," Portal Web del Municipio página de transparencia","Se dispone de personal y recursos",{"v":289072.8,"d":"289,072.8"},{"v":135200,"d":"135,200.0"},{"v":7200,"d":"7,200.0"},{"v":0,"d":"0.0"},{"v":0,"d":"0.0"},{"v":0,"d":"0.0"},{"v":0,"d":"0.0"},{"v":0,"d":"0.0"},{"v":0,"d":"0.0"},{"v":431472.8,"d":"$431,472.8"},{"v":40,"d":"$40.0"}]
[null,null,"Actividad 2.2","Instalación de equipos de medición en igual número de circuitos municipales","PORCENTAJE de instalación de equipos de medición por circuito (P60-IEMC)","Mide el avance en la instalacion de euipos de medicion","Eficacia","Gestión","(Cantidad de circuitos (54) de alumbrado público municipal a los que se instalo equipo de medicion / Total decircuitos (54) de alumbrado público municipal a los que se instalara equipo de medicion)*100",54,54,"Mensual","Porcentaje",{"v":1,"d":"100%"}," Portal Web del Municipio página de transparencia","Se dispone de personal y recursos",{"v":180670.5,"d":"180,670.5"},{"v":84500,"d":"84,500.0"},{"v":4500,"d":"4,500.0"},{"v":0,"d":"0.0"},{"v":0,"d":"0.0"},{"v":0,"d":"0.0"},{"v":0,"d":"0.0"},{"v":0,"d":"0.0"},{"v":0,"d":"0.0"},{"v":269670.5,"d":"$269,670.5"},{"v":25,"d":"$25.0"}]
[null,null,"Actividad 2.3","Mantenimiento y preservación de luminarias","PORCENTAJE de luminarias incluidas en el programa de mantenimiento y preservación (P61-LIPMP)","Mide el avance en el mantenimiento de luminarias","Eficacia","Gestión","(Cantidad de luminarias instaladas (4513)  con mantenimiento trimestral incluidas en el programa de mantenimiento municipal / Total de luminarias proyectadas al cierre de año (4600) para completar el programa de mantenimiento municipal)*100",4513,4600,"Mensual","Porcentaje",{"v":0.98,"d":"98%"}," Portal Web del Municipio página de transparencia","Se dispone de personal y recursos",{"v":252938.7,"d":"252,938.7"},{"v":118300,"d":"118,300.0"},{"v":6300,"d":"6,300.0"},{"v":0,"d":"0.0"},{"v":0,"d":"0.0"},{"v":0,"d":"0.0"},{"v":0,"d":"0.0"},{"v":0,"d":"0.0"},{"v":0,"d":"0.0"},{"v":377538.7,"d":"$377,538.7"},{"v":35,"d":"$35.0"}]
[null,"Parques y jardines","Componente 3","Cobertura de Áreas Verdes y Espacios Públicos Ampliada","TASA de cobertura de áreas verdes y espacios públicos (T3-CAVyEP)","Mide la ampliacion de la cobertura en atención a areas verdes y espcios públicos en 10 de cada diez","Eficacia","Gestión","(Tasa de metros cuadrados de área verde y plazas públicas por cada 1000 habitantes    ",20600,11,"Bimestral","Tasa","21 : 0.011"," Portal Web del Municipio página de transparencia","Se dispone de personal y recursos",{"v":1420995,"d":"$1,420,995.0"},{"v":448000,"d":"$448,000.0"},{"v":18000,"d":"$18,000.0"},{"v":0,"d":"$0.0"},{"v":0,"d":"$0.0"},{"v":0,"d":"$0.0"},{"v":0,"d":"$0.0"},{"v":0,"d":"$0.0"},{"v":0,"d":"$0.0"},{"v":1886995,"d":"$1,886,995.0"}]
[null,null,"Actividad 3.1","Programa de Arreglo, mantenimiento y preservación  de plazas publicas, Av. Principal de Cabecera municipal y de camellones.","PORCENTAJE cumplimiento del programa de arreglo, mantenimiento y preservación (P62-CPAMP)","Mide el cumplimiento del programa","Eficacia","Gestión","(Cantidad de  actividades (22) realizadas para ejecutar el  Programa de Arreglo, a 11 plazas públicas, mantenimiento a 20,600 m2 de camellon como área verde y plantación de 5000 arboles / Total de actividades (25) programadas para ejecutar el  Programa de Arreglo, a 11 plazas públicas, mantenimiento a 20,600 m2 de camellon y plantación de 5000 arboles)*100",22,25,"Mensual","Porcentaje",{"v":0.88,"d":"88%"}," Portal Web del Municipio página de transparencia","Se dispone de personal y recursos",{"v":1420995,"d":"1,420,995.0"},{"v":448000,"d":"448,000.0"},{"v":18000,"d":"18,000.0"},{"v":0,"d":"0.0"},{"v":0,"d":"0.0"},{"v":0,"d":"0.0"},{"v":0,"d":"0.0"},{"v":0,"d":"0.0"},{"v":0,"d":"0.0"},{"v":1886995,"d":"$1,886,995.0"},{"v":100,"d":"$100.0"}]
[null,"Aseo público","Componente 4","Cobertura de Servicio de Limpia y Aseo Público Ampliada","ÍNDICE de cobertura de servicio  de limpia y aseo público (T4-SLyAP)","Mide el mantenimiento y la  ampliacion en la cobertura de limpia y aseo público ","Eficacia","Gestión","(valor resultante de sumar los valores individuales  de  los cosientes entre sus denominadores por su ponderacion asignada, que miden las  variables de: gestion camión, mantenimiento a camiones y recolección basura con su correspondientes ponderaciones de .2, .4  y .4)",198,167.6,"Bimestral","Índice","1.18"," Portal Web del Municipio página de transparencia","Se dispone de personal y recursos",{"v":2648481,"d":"$2,648,481.0"},{"v":2365000,"d":"$2,365,000.0"},{"v":227000,"d":"$227,000.0"},{"v":0,"d":"$0.0"},{"v":0,"d":"$0.0"},{"v":0,"d":"$0.0"},{"v":0,"d":"$0.0"},{"v":0,"d":"$0.0"},{"v":0,"d":"$0.0"},{"v":5240481,"d":"$5,240,481.0"}]
[null,null,"Actividad 4.1","Gestión de la adquisición de equipo y vehículos de recolección","PORCENTAJE avance en la gestión de equipo para la recolección (P63-AGER)","Mide los avances en la gestion para adquirir equipo de recolección","Eficacia","Gestión","(Cantidad de  gestiones y actividades a realizar (10) para la gestión de un camion compactador para la recoleccion de basúra / Total de gestiones y actividades a realizar (10) para la gestión de un camion compactador para la recoleccion de basúra )*100",10,10,"Mensual","Porcentaje",{"v":1,"d":"100%"}," Portal Web del Municipio página de transparencia","Se dispone de personal y recursos",{"v":1456664.55,"d":"1,456,664.6"},{"v":1300750,"d":"1,300,750.0"},{"v":124850,"d":"124,850.0"},{"v":0,"d":"0.0"},{"v":0,"d":"0.0"},{"v":0,"d":"0.0"},{"v":0,"d":"0.0"},{"v":0,"d":"0.0"},{"v":0,"d":"0.0"},{"v":2882264.55,"d":"$2,882,264.6"},{"v":55,"d":"$55.0"}]
[null,null,"Actividad 4.2","Instalación de contenedores de basura en colonias, fraccionamientos y comunidades rurales y mantenimiento preventivo a camiones recolectores de basura","PORCENTAJE de avance en la instalación de contenedores para recolección de basura (P64-AICRB)","Mide el avance en la instalacion de contenedores y las toneladas recolectadas","Eficacia","Gestión","(Cantidad de contenedores instalados en el mes (0) y camiones con mantenimiento preventivo en el mes (12) / Total de contenedores instalados en colonias y fraccionamientos en el mes (0) y camiones recolectores con mantenimiento preventivo durante el mes (12)  como actividades del programa de limpia y recolección de basura )*100",144,144,"Mensual","Porcentaje",{"v":1,"d":"100%"}," Portal Web del Municipio página de transparencia","Se dispone de personal y recursos",{"v":926968.35,"d":"926,968.4"},{"v":827750,"d":"827,750.0"},{"v":79450,"d":"79,450.0"},{"v":0,"d":"0.0"},{"v":0,"d":"0.0"},{"v":0,"d":"0.0"},{"v":0,"d":"0.0"},{"v":0,"d":"0.0"},{"v":0,"d":"0.0"},{"v":1834168.35,"d":"$1,834,168.4"},{"v":35,"d":"$35.0"}]
[null,null,"Actividad 4.3","Creación de nuevas rutas de recolección de basura, impulsando la separación de basura ","PORCENTAJE de incremento en la recoleccion de basura (P65-ACNRRB)","Mide el incremento en la recolección de basura como consecuencia del crecimiento poblacional y la precaria cultura del reciclaje de desechos solidos ","Eficacia","Gestión","((Cantidad de  toneladas de basura proyectada a recolectar por crecimiento urbano  por mes (346) en las rutas municipales existentes / Total de toneladas de basura recolectada actualmente por mes (270) en las rutas municipales existentes)*100)-100",346,270,"Mensual","Porcentaje",{"v":0.28,"d":"28%"}," Portal Web del Municipio página de transparencia","Se dispone de personal y recursos",{"v":264848.1,"d":"264,848.1"},{"v":236500,"d":"236,500.0"},{"v":22700,"d":"22,700.0"},{"v":0,"d":"0.0"},{"v":0,"d":"0.0"},{"v":0,"d":"0.0"},{"v":0,"d":"0.0"},{"v":0,"d":"0.0"},{"v":0,"d":"0.0"},{"v":524048.1,"d":"$524,048.1"},{"v":10,"d":"$10.0"}]
[null,"Desarrollo social","Componente 5","Familias en Pobreza Disminuidas","PORCENTAJE de reducción de familias en situación de pobreza multidimensional extrema(T5-TSP)","Mide la reducción de familias en situación de pobreza multidimensional extrema","Eficacia","Gestión","(Cantidad de población (911)  que se mantiene en situación de pobreza multidimensional extrema en el municipio de acuerdo a INEGI, Censo de Población y Vivienda, 2010/ Total de Población en situación de pobreza multidimensional (15,133) INEGI, Censo de Población y Vivienda, 2010  que necesitanser incorporados a programas de apoyo que ayuden a superar esta condicion en el municipio )*100",911,15133,"Bimestral","Porcentaje","6% "," Portal Web del Municipio página de transparencia","Se dispone de personal y recursos",{"v":863363,"d":"$863,363.0"},{"v":41000,"d":"$41,000.0"},{"v":9000,"d":"$9,000.0"},{"v":1500000,"d":"$1,500,000.0"},{"v":0,"d":"$0.0"},{"v":0,"d":"$0.0"},{"v":0,"d":"$0.0"},{"v":0,"d":"$0.0"},{"v":0,"d":"$0.0"},{"v":2413363,"d":"$2,413,363.0"}]
[null,null,"Actividad 5.1","Desarrollar un plan estratégico de colaboración entre  Gobierno Federal, Estatal y Municipal, orientado  al empleo, capacitación, y desarrollo económico de la sociedad, familiar e individual.","PORCENTAJE de avance en el desarrollo del Plan económico estratégico (P66-ADPE)","Mide los avances en el cumplimiento del plan económico estratégico a traves de beneficiar a los adultos mayores","Eficacia","Gestión","(Cantidad de población (4,256)  que se mantiene como vulnerable por ingresos en el municipio de acuerdo a INEGI, Censo de Población y Vivienda, 2010/ Total de Población vulnerable por carencias sociales  (16,399) INEGI, Censo de Población y Vivienda, 2010  que necesitanser incorporados a programas de apoyo economico en el municipio )*100",4256,16399,"Mensual","Porcentaje",{"v":0.26,"d":"26%"}," Portal Web del Municipio página de transparencia","Se dispone de personal y recursos",{"v":129504.45,"d":"129,504.5"},{"v":6150,"d":"6,150.0"},{"v":1350,"d":"1,350.0"},{"v":225000,"d":"225,000.0"},{"v":0,"d":"0.0"},{"v":0,"d":"0.0"},{"v":0,"d":"0.0"},{"v":0,"d":"0.0"},{"v":0,"d":"0.0"},{"v":362004.45,"d":"$362,004.5"},{"v":15,"d":"$15.0"}]
[null,null,"Actividad 5.2","Promover  y difundir  la incorporación  de todos los beneficiarios de los diferentes Programas Federales, Estatales y Municipales al Seguro Popular, manteniendo activas sus pólizas de coberturas.","PORCENTAJE de ciudadanos apoyados en mantener activas sus pólizas de cobertura (P67-CAMAPC)","Mide el numero de ciudadanos que se mantienen como beneficiarios con cobertura de servicios de salud","Eficacia","Gestión","(Cantidad de población (2278) atendida que se mantiene con cobertura y poliza activa de  seguridad pública de salud en el municipio de acuerdo a INEGI, Censo de Población y Vivienda, 2010/ Total de población (9,847) INEGI, Censo de Población y Vivienda, 2010  que necesita incorporar a cobertura y poliza activa de  seguridad pública de salud en el municipio )*100",4500,12125,"Mensual","Porcentaje",{"v":0.3711,"d":"37.11%"}," Portal Web del Municipio página de transparencia","Se dispone de personal y recursos",{"v":215840.75,"d":"215,840.8"},{"v":10250,"d":"10,250.0"},{"v":2250,"d":"2,250.0"},{"v":375000,"d":"375,000.0"},{"v":0,"d":"0.0"},{"v":0,"d":"0.0"},{"v":0,"d":"0.0"},{"v":0,"d":"0.0"},{"v":0,"d":"0.0"},{"v":603340.75,"d":"$603,340.8"},{"v":25,"d":"$25.0"}]
[null,null,"Actividad 5.3","Atender las zonas de atención prioritaria, para que accedan a los servicios básicos","PORCENTAJE de cobertura en servicios básicos a Zonas Prioritarias con carencias sociales (P68-CSBZP)","Mide los habitante con carencias sociales que cuentan con servcios básicos dentro de los poligonos de zonas prioritarias","Eficacia","Gestión","(Cantidad de población (11,480) atendida que vive en las zonas de atencion prioritaria con carencias sociales en el municipio de acuerdo a CONAPOJ 2015/ Total de población (16,399) que vive en las zonas de atencion prioritaria con carencias sociales (Rezago educativo 8,669, Acceso a los servicios de salud 9,847, Acceso a la seguridad social 22,255, Calidad y espacios de la vivienda 5,400, Acceso a los servicios básicos en la vivienda 1,700  y Acceso a la alimentación 7,194) en el municipio)*100",11480,16399,"Mensual","Porcentaje",{"v":0.7,"d":"70%"}," Portal Web del Municipio página de transparencia","Se dispone de personal y recursos",{"v":518017.8,"d":"518,017.8"},{"v":24600,"d":"24,600.0"},{"v":5400,"d":"5,400.0"},{"v":900000,"d":"900,000.0"},{"v":0,"d":"0.0"},{"v":0,"d":"0.0"},{"v":0,"d":"0.0"},{"v":0,"d":"0.0"},{"v":0,"d":"0.0"},{"v":1448017.8,"d":"$1,448,017.8"},{"v":60,"d":"$60.0"}]
[null,"Instituto de la mujer","Componente 6","Maltrato y Desigualdad de Género Disminuidos","ÍNDICE de maltrato y desigualdad de género (T6-MyDG)","Mide la reducción del maltrato mediante la prevencion, ocupación y su reglamento","Eficacia","Gestión","(valor resultante de sumar los valores individuales  de  los cosientes entre sus denominadores por su ponderacion asignada, que miden las  variables de: prevención de violencia, femeninas ocupadas y actualizacion reglamento  con su correspondientes ponderaciones de .3, .3,  y .4)",20.1,21.9,"Bimestral","Índice","0.92"," Portal Web del Municipio página de transparencia","Se dispone de personal y recursos",{"v":0,"d":"$0.0"},{"v":0,"d":"$0.0"},{"v":0,"d":"$0.0"},{"v":480000,"d":"$480,000.0"},{"v":0,"d":"$0.0"},{"v":0,"d":"$0.0"},{"v":0,"d":"$0.0"},{"v":0,"d":"$0.0"},{"v":0,"d":"$0.0"},{"v":480000,"d":"$480,000.0"}]
[null,null,"Actividad 6.1","Desarrollar dos programas para prevenir y erradicar la violencia de genero.  1 .- Proyecto quiérete Mujer   2.-Proyecto Junto a ti","PORCENTAJE de avance del programa de prevención de la violencia de genero que disminuya la presencia de feminicidios (P69-APPVG)","Mide le disminución y denuncia del abuso de mujeres violentadas que pueden terminar en feminicidios","Eficacia","Gestión","(Cantidad de actividades  (27) concluidas para la implementación de los programas para prevenir y erradicar la violencia de genero.  1 .- Proyecto quiérete Mujer (12) y  2.-Proyecto Junto a ti (15)\".  / Total de actividades  (31) para la implementación de los programas para prevenir y erradicar la violencia de genero.  1 .- Proyecto quiérete Mujer (14) y  2.-Proyecto Junto a ti (17)\". )*100",27,31,"Mensual","Porcentaje",{"v":0.87,"d":"87%"}," Portal Web del Municipio página de transparencia","Se dispone de personal y recursos",{"v":0,"d":"0.0"},{"v":0,"d":"0.0"},{"v":0,"d":"0.0"},{"v":96000,"d":"96,000.0"},{"v":0,"d":"0.0"},{"v":0,"d":"0.0"},{"v":0,"d":"0.0"},{"v":0,"d":"0.0"},{"v":0,"d":"0.0"},{"v":96000,"d":"$96,000.0"},{"v":20,"d":"$20.0"}]
[null,null,"Actividad 6.2","Implementar dos programas  \"Mujer es poder\"  y \"Mujeres en acción\"  ","PORCENTAJE de implementación de los dos programas con población femenina ocupada (P70-IDP)","Mide el numero de población femenina ocupada y activas en el empoderamiento y activación de la mujer","Eficacia","Gestión","(Cantidad de actividades  (24) concluidas para la implementación de los programas  \"Mujer es poder (11)\"  y \"Mujeres en acción (13)\" manteniendo a poblacion femenina ocupada en ellos / Total de de actividades  (26) para la implementación de los programas  \"Mujer es poder (12)\"  y \"Mujeres en acción (14)\" manteniendo a poblacion femenina ocupada en ellos )*100",24,26,"Mensual","Porcentaje",{"v":0.923,"d":"92.30%"}," Portal Web del Municipio página de transparencia","Se dispone de personal y recursos",{"v":0,"d":"0.0"},{"v":0,"d":"0.0"},{"v":0,"d":"0.0"},{"v":312000,"d":"312,000.0"},{"v":0,"d":"0.0"},{"v":0,"d":"0.0"},{"v":0,"d":"0.0"},{"v":0,"d":"0.0"},{"v":0,"d":"0.0"},{"v":312000,"d":"$312,000.0"},{"v":65,"d":"$65.0"}]
[null,null,"Actividad 6.3","Actualizar Reglamento a Ley de Acceso a una Vida Libre de Violencia. Elaboración del Reglamento a la Ley de Igualdad  para Mujeres y Hombres. Ambos reglamentos adaptados  de  acuerdo a lo observado por la secretaria de igualdad sustantiva.","PORCENTAJE de actualización del reglamento (P71-ARLA)","Mide los avances en la elaboracion del reglamento ","Eficacia","Gestión","(Cantidad de actividades  (12) concluidas para la elaboración del reglamento  homologado a la  Ley de Acceso a una Vida Libre de Violencia y a la Ley de Igualdad  para Mujeres y Hombres / Total de  actividades  (12) para la elaboración del reglamento  homologado a la  Ley de Acceso a una Vida Libre de Violencia y a la Ley de Igualdad  para Mujeres y Hombres )*100",12,12,"Mensual","Porcentaje",{"v":1,"d":"100%"}," Portal Web del Municipio página de transparencia","Se dispone de personal y recursos",{"v":0,"d":"0.0"},{"v":0,"d":"0.0"},{"v":0,"d":"0.0"},{"v":72000,"d":"72,000.0"},{"v":0,"d":"0.0"},{"v":0,"d":"0.0"},{"v":0,"d":"0.0"},{"v":0,"d":"0.0"},{"v":0,"d":"0.0"},{"v":72000,"d":"$72,000.0"},{"v":15,"d":"$15.0"}]
[null,"Deportes","Componente 7","Actividad Física y Deportiva Incrementada","ÍNDICE de actividad física y deportiva  (T7-AFyD)","Mide la relación de ciudadanos que hacen ejercicio o actividad fisica respecto a los que no lo hacen","Eficacia","Gestión","(valor resultante de sumar los valores individuales  de  los cosientes entre sus denominadores por su ponderacion asignada, que miden las  variables de: mantenimiento áreas, torneos relampagos, ligas deportivas y talleres deportivos  con su correspondientes ponderaciones de .3, .2, .2 y .3)",1325.7,1472,"Bimestral","Índice","0.22"," Portal Web del Municipio página de transparencia","Se dispone de personal y recursos",{"v":671689,"d":"$671,689.0"},{"v":191000,"d":"$191,000.0"},{"v":15000,"d":"$15,000.0"},{"v":0,"d":"$0.0"},{"v":0,"d":"$0.0"},{"v":0,"d":"$0.0"},{"v":0,"d":"$0.0"},{"v":0,"d":"$0.0"},{"v":0,"d":"$0.0"},{"v":877689,"d":"$877,689.0"}]
[null,null,"Actividad 7.1","Programa de mantenimiento  preventivo de unidades y áreas deportivas","PORCENTAJE de cumplimiento al programa de mantenimiento de áreas deportivas (P72-CPMAD)","Mide los avances en la ejecución del programa de mantenimiento","Eficacia","Gestión","(Cantidad de áreas y espacios establecidos para la practica del deporte y la cultura física (15) con actividades y trabajos incluidos en el programa de mantenimiento / Total de áreas y espacios establecidos para la practica del deporte y la cultura física (20) con las actividades y trabajos establecidos en el programa de mantenimiento)*100",15,20,"Mensual","Porcentaje",{"v":0.75,"d":"75%"}," Portal Web del Municipio página de transparencia","Se dispone de personal y recursos",{"v":134337.8,"d":"134,337.8"},{"v":38200,"d":"38,200.0"},{"v":3000,"d":"3,000.0"},{"v":0,"d":"0.0"},{"v":0,"d":"0.0"},{"v":0,"d":"0.0"},{"v":0,"d":"0.0"},{"v":0,"d":"0.0"},{"v":0,"d":"0.0"},{"v":175537.8,"d":"$175,537.8"},{"v":20,"d":"$20.0"}]
[null,null,"Actividad 7.2","Realizar torneos relámpago en cada comité vecinal deportivo","PORCENTAJE de cumplimiento del programa de torneos relámpago (P73-CPTR)","Mide los avances en la ejecución del programa de torneos","Eficacia","Gestión","(Cantidad de población (3000) que participa en torneos relampago -10 equipos en 15 ligas deportivas- en el municipio / Total de población (3600) que participa en torneos relampago -10 equipos en 15 ligas deportivas- en el municipio)*100",3000,3600,"Mensual","Porcentaje",{"v":0.8333,"d":"83.33%"}," Portal Web del Municipio página de transparencia","Se dispone de personal y recursos",{"v":100753.35,"d":"100,753.4"},{"v":28650,"d":"28,650.0"},{"v":2250,"d":"2,250.0"},{"v":0,"d":"0.0"},{"v":0,"d":"0.0"},{"v":0,"d":"0.0"},{"v":0,"d":"0.0"},{"v":0,"d":"0.0"},{"v":0,"d":"0.0"},{"v":131653.35,"d":"$131,653.4"},{"v":15,"d":"$15.0"}]
[null,null,"Actividad 7.3","Organizar una liga deportiva en cada comité vecinal","PORCENTAJE de avance en la organización de  ligas deportivas (P74-AOLD)","Mide el avance en la organización y funcionamiento de las ligas deportivas que incorporan población que participa en los proyectos de cultura física en el  municipio (estado).","Eficacia","Gestión","(Cantidad de población (3600) que participa en proyectos de cultura fisica -100 jovenes- y deporte -15 ligas deportivas- en el municipio / Total de población (3700) que participa en proyectos de cultura fisica y deporte en el municipio)*100",3600,3700,"Mensual","Porcentaje",{"v":0.9727,"d":"97.27%"}," Portal Web del Municipio página de transparencia","Se dispone de personal y recursos",{"v":235091.15000000002,"d":"235,091.2"},{"v":66850.00000000001,"d":"66,850.0"},{"v":5250.000000000001,"d":"5,250.0"},{"v":0,"d":"0.0"},{"v":0,"d":"0.0"},{"v":0,"d":"0.0"},{"v":0,"d":"0.0"},{"v":0,"d":"0.0"},{"v":0,"d":"0.0"},{"v":307191.1500000001,"d":"$307,191.2"},{"v":35.00000000000001,"d":"$35.0"}]
[null,null,"Actividad 7.4","Desarrollar talleres de capacitación y entrenamiento para atletas a la olimpiada nacional","PORCENTAJE de cumplimiento de talleres deportivos a atletas (P75-ATDA)","Mide los avances de ejecución de los talleres deportivos con el número de atletas jaliscienses que se integran a la selección nacional.","Eficacia","Gestión","(Cantidad de atletas y deportistas (4) que calificaron en los talleres de capacitación y entrenamiento para competir en la olimpiada nacional / Total de atletas y deportistas (20) que participan en los talleres de capacitación y entrenamiento para competir en la olimpiada nacional)*100",4,20,"Mensual","Porcentaje",{"v":0.2,"d":"20%"}," Portal Web del Municipio página de transparencia","Se dispone de personal y recursos",{"v":201506.7,"d":"201,506.7"},{"v":57300,"d":"57,300.0"},{"v":4500,"d":"4,500.0"},{"v":0,"d":"0.0"},{"v":0,"d":"0.0"},{"v":0,"d":"0.0"},{"v":0,"d":"0.0"},{"v":0,"d":"0.0"},{"v":0,"d":"0.0"},{"v":263306.7,"d":"$263,306.7"},{"v":30,"d":"$30.0"}]
[null,"Educación","Componente 8","Cobertura Educativa Ampliada","TASA de Cobertura Educativa (T8-CE)","Mide la relación de coberura educativa reflejado en el grado municipal promedio de escolaridad","Eficacia","Gestión","(Tasa de cobertura educativa básica, media y superior municipal por cada uno de los 452 alumnos que se inscriben en educacion superior en los planteles educativos en el municipio   ",452,15262,"Bimestral","Tasa","30 : 1000"," Portal Web del Municipio página de transparencia","Se dispone de personal y recursos",{"v":503225,"d":"$503,225.0"},{"v":19000,"d":"$19,000.0"},{"v":4000,"d":"$4,000.0"},{"v":0,"d":"$0.0"},{"v":0,"d":"$0.0"},{"v":0,"d":"$0.0"},{"v":0,"d":"$0.0"},{"v":0,"d":"$0.0"},{"v":0,"d":"$0.0"},{"v":526225,"d":"$526,225.0"}]
[null,null,"Actividad 8.1","Tramitar a través de la Dirección de Atención a la Infraestructura Escolar, equipamiento de escuelas.","PORCENTAJE de planteles de educación básica que participaron en el programa de infraestructura escolar (P76-CTIE)","Mide el avance en los tramites para que los planteles de educación básica sean beneficiados  en el programa de infraestructura escolar","Eficacia","Gestión","(Cantidad de planteles de educación básica  (32) -Preescolar 15, escuelas primarias 17, escuela secundaria 0- beneficiadas  con el programa de infraestructura escolar / Total planteles de educación básica (68) -Preescolar 29, escuelas primarias 31, escuelas secundaria 8- que necesitan ser beneficiadas  con el programa de infraestructura escolar)*100",32,68,"Mensual","Porcentaje",{"v":0.4705,"d":"47.05%"}," Portal Web del Municipio página de transparencia","Se dispone de personal y recursos",{"v":125806.25,"d":"125,806.3"},{"v":4750,"d":"4,750.0"},{"v":1000,"d":"1,000.0"},{"v":0,"d":"0.0"},{"v":0,"d":"0.0"},{"v":0,"d":"0.0"},{"v":0,"d":"0.0"},{"v":0,"d":"0.0"},{"v":0,"d":"0.0"},{"v":131556.25,"d":"$131,556.3"},{"v":25,"d":"$25.0"}]
[null,null,"Actividad 8.2","Llevar a todas las escuelas de nivel Superior y medio superior, programas de valores y autoestima. SEP y ORG. Part. Programa de becas.  Llevar a cabo conferencias motivacionales. Caja de herramientas contra la deserción escolar, SEMS","PORCENTAJE de cumplimiento del programa de valores, becas y disminución de la deserción escolar (P77-CPVBDDE)","Mide el cumplimiento del programa y planteles participando","Eficacia","Gestión","(Cantidad de estudiantes (1200) que participaron en los 5 programas de capacitacion y seguimiento de las escuelas de nivel Superior (1) y medio superior (6), de afiliacion federal, estatal o particular.  / Total de estudiantes (1800) que participaron en los 5 programas de capacitacion y seguimiento de las escuelas de nivel Superior (3) y medio superior (3), 1-programas de valores y autoestima. 2-Programa de becas.  3-Llevar a cabo conferencias motivacionales. 4-Caja de herramientas contra la deserción escolar. 5- SEMS. de afiliacion federal, estatal o particular)*100",1000,1400,"Mensual","Porcentaje",{"v":0.7142,"d":"71.42%"}," Portal Web del Municipio página de transparencia","Se dispone de personal y recursos",{"v":377418.75,"d":"377,418.8"},{"v":14250,"d":"14,250.0"},{"v":3000,"d":"3,000.0"},{"v":0,"d":"0.0"},{"v":0,"d":"0.0"},{"v":0,"d":"0.0"},{"v":0,"d":"0.0"},{"v":0,"d":"0.0"},{"v":0,"d":"0.0"},{"v":394668.75,"d":"$394,668.8"},{"v":75,"d":"$75.0"}]
[null,"Cultura y recreación","Componente 9","Participación en Actividades Culturales y Recreativas Incrementada","TASA de participación ciudadana en actividades culturales, recreativas y festivales  (T9-PACyD)","Mide el aumento en la participación de la ciudadania en las actividades culturales y recreativas","Eficacia","Gestión","(Tasa de participación ciudadana en actividades culturales, recreativas y festivales  por cada 1000 habitantes    ",6800,75000,"Bimestral","Tasa","90 : 1000"," Portal Web del Municipio página de transparencia","Se dispone de personal y recursos",{"v":543539,"d":"$543,539.0"},{"v":45000,"d":"$45,000.0"},{"v":4000,"d":"$4,000.0"},{"v":0,"d":"$0.0"},{"v":0,"d":"$0.0"},{"v":0,"d":"$0.0"},{"v":0,"d":"$0.0"},{"v":0,"d":"$0.0"},{"v":0,"d":"$0.0"},{"v":592539,"d":"$592,539.0"}]
[null,null,"Actividad 9.1","Desarrollar talleres de arte y danza en plazas y espacios públicos","PORCENTAJE de cumplimiento de talleres culturales (P78-CTC)","Mide los avances en la ejecución de los talleres en plazas y espacios públicos","Eficacia","Gestión","(Cantidad de talleres (6) realizados dentro del programa de arte y danza en las diferentes plazas y espacios destinados para ello en el municipio con 25 participantes en cada uno / Total  talleres (6) realizados dentro del programa de arte y danza en las diferentes plazas y espacios destinados para ello en el municipio)*100",6,6,"Mensual","Porcentaje",{"v":1,"d":"100.00%"}," Portal Web del Municipio página de transparencia","Se dispone de personal y recursos",{"v":135884.75,"d":"135,884.8"},{"v":11250,"d":"11,250.0"},{"v":1000,"d":"1,000.0"},{"v":0,"d":"0.0"},{"v":0,"d":"0.0"},{"v":0,"d":"0.0"},{"v":0,"d":"0.0"},{"v":0,"d":"0.0"},{"v":0,"d":"0.0"},{"v":148134.75,"d":"$148,134.8"},{"v":25,"d":"$25.0"}]
[null,null,"Actividad 9.2","Impartir cursos en materia de canto, música, pintura, danza etc..","PORCENTAJE de cumplimiento de cursos culturales (P79-CCC)","Mide el cumplimiento de los cursos artisticos y el capital humano artístico ocupado y empleado","Eficacia","Gestión","(Cantidad de cursos  (6) realizados dentro del programa de canto, musica, pintura y danza  en las diferentes plazas y espacios destinados para ello en el municipio con 25 participantes en cada uno  / Total cursos  (6) programados dentro del programa de canto, musica, pintura y danza  en las diferentes plazas y espacios destinados para ello en el municipio)*100",6,6,"Mensual","Porcentaje",{"v":1,"d":"100%"}," Portal Web del Municipio página de transparencia","Se dispone de personal y recursos",{"v":163061.7,"d":"163,061.7"},{"v":13500,"d":"13,500.0"},{"v":1200,"d":"1,200.0"},{"v":0,"d":"0.0"},{"v":0,"d":"0.0"},{"v":0,"d":"0.0"},{"v":0,"d":"0.0"},{"v":0,"d":"0.0"},{"v":0,"d":"0.0"},{"v":177761.7,"d":"$177,761.7"},{"v":30,"d":"$30.0"}]
[null,null,"Actividad 9.3","Realizar festivales, eventos culturales y tradiciones","PORCENTAJE de cumplimiento del programa de festivales, eventos y tradiciones (P80-CPFET)","Mide la proporción de eventos y adiestramientos culturales dirigidos a grupos prioritarios","Eficacia","Gestión","(Cantidad de eventos (13) realizados dentro del programa de festivales, culturales y tradicionales en las diferentes plazas y espacios destinados para ello en el municipio con 500 participantes en cada uno  / Total de eventos (13) realizados dentro del programa de festivales, culturales y tradicionales en las diferentes plazas y espacios destinados para ello en el municipio)*100",13,13,"Mensual","Porcentaje",{"v":1,"d":"100.00%"}," Portal Web del Municipio página de transparencia","Se dispone de personal y recursos",{"v":244592.55,"d":"244,592.6"},{"v":20250,"d":"20,250.0"},{"v":1800,"d":"1,800.0"},{"v":0,"d":"0.0"},{"v":0,"d":"0.0"},{"v":0,"d":"0.0"},{"v":0,"d":"0.0"},{"v":0,"d":"0.0"},{"v":0,"d":"0.0"},{"v":266642.55,"d":"$266,642.6"},{"v":45,"d":"$45.0"}]
[null,"Servicios públicos","Componente 10","Tasa de Urbanización Incrementada","TASA de urbanización (T10-U)","Mide la relación de ideal minima de equipamiento en centros de población","Eficacia","Gestión","(Tasa de servicios e infraestructura atendidos en los fracionamientos por cada 10 esteblecidos en los respectivos programas   ",13,18,"Bimestral","Tasa","7 : 10"," Portal Web del Municipio página de transparencia","Se dispone de personal y recursos",{"v":1691200,"d":"$1,691,200.0"},{"v":1345993,"d":"$1,345,993.0"},{"v":173000,"d":"$173,000.0"},{"v":0,"d":"$0.0"},{"v":0,"d":"$0.0"},{"v":0,"d":"$0.0"},{"v":0,"d":"$0.0"},{"v":0,"d":"$0.0"},{"v":6000000,"d":"$6,000,000.0"},{"v":9210193,"d":"$9,210,193.0"}]
[null,null,"Actividad 10.1","Elaborar el programa de servicios básicos necesarios por fraccionamiento","PORCENTAJE de avance del programa de servicios básicos por fraccionamiento (P81-APSBF)","Mide el avance en el programa de servicios básicos necesarios en fraccionamientos","Eficacia","Gestión","(Cantidad de variables (5) a atendidas dentro del programa de servicios básicos necesarios en fraccionamientos / Total de variables (8) a considerar dentro del programa de servicios básicos necesarios en fraccionamientos)*100",5,8,"Mensual","Porcentaje",{"v":0.625,"d":"62.50%"}," Portal Web del Municipio página de transparencia","Se dispone de personal y recursos",{"v":1014720,"d":"1,014,720.0"},{"v":807595.8,"d":"807,595.8"},{"v":103800,"d":"103,800.0"},{"v":0,"d":"0.0"},{"v":0,"d":"0.0"},{"v":0,"d":"0.0"},{"v":0,"d":"0.0"},{"v":0,"d":"0.0"},{"v":3600000,"d":"3,600,000.0"},{"v":5526115.8,"d":"$5,526,115.8"},{"v":60,"d":"$60.0"}]
[null,null,"Actividad 10.2","Elaborar el programa de infraestructura necesaria por fraccionamiento","PORCENTAJE de avance del programa de infraestructura por fraccionamiento (P82-APIF)","Mide el avance en el programa de infraestructura básica necesaria en fraccionamientos","Eficacia","Gestión","(Cantidad de variables (8) a atendidas dentro del programa de infraestructura en fraccionamientos / Total de variables (10) a considerar dentro del programa de infraestructura en fraccionamientos)*100",8,10,"Mensual","Porcentaje",{"v":0.8,"d":"80%"}," Portal Web del Municipio página de transparencia","Se dispone de personal y recursos",{"v":676480,"d":"676,480.0"},{"v":538397.2,"d":"538,397.2"},{"v":69200,"d":"69,200.0"},{"v":0,"d":"0.0"},{"v":0,"d":"0.0"},{"v":0,"d":"0.0"},{"v":0,"d":"0.0"},{"v":0,"d":"0.0"},{"v":2400000,"d":"2,400,000.0"},{"v":3684077.2,"d":"$3,684,077.2"},{"v":40,"d":"$40.0"}]
[null,"Cementerios","Componente 11","Satisfacción en Servicios de Cementerios Incrementada","INDICE de satisfacción en el servicios de cementerios (V1-SSC)","Mide el nivel de satisfaccion de la ciudadania que acude a los cementerios ","Eficacia","Gestión","(valor resultante de sumar los valores individuales  de  los cosientes entre sus denominadores por su ponderacion asignada, que miden las  variables de: actividades y reorganización, ampliacion servicios y difusión reglamento con su correspondientes ponderaciones de .3, .4, y .3)",883,2813.6,"Bimestral","Índice",0.31," Portal Web del Municipio página de transparencia","Se dispone de personal y recursos",{"v":189494,"d":"$189,494.0"},{"v":32000,"d":"$32,000.0"},{"v":6000,"d":"$6,000.0"},{"v":0,"d":"$0.0"},{"v":0,"d":"$0.0"},{"v":0,"d":"$0.0"},{"v":0,"d":"$0.0"},{"v":0,"d":"$0.0"},{"v":0,"d":"$0.0"},{"v":227494,"d":"$227,494.0"}]
[null,null,"Actividad 11.1","Programa de actividades y reorganización administrativa de los cementerios","PORCENTAJE de avance del programa administrativo de cementerios (P83-APAC)","Mide el avance en el programa de actividades para el cementerio","Eficacia","Gestión","(Cantidad de actividades administrativas y organizacionales a desarrolladas dentro del programa anual de trabajo (8) / Total de actividades administrativas y organizacionales a desarrollar dentro del programa anual de trabajo (12) )*100",10,12,"Mensual","Porcentaje",{"v":0.8333,"d":"83.33%"}," Portal Web del Municipio página de transparencia","Se dispone de personal y recursos",{"v":37898.8,"d":"37,898.8"},{"v":6400.000000000001,"d":"6,400.0"},{"v":1200.0000000000002,"d":"1,200.0"},{"v":0,"d":"0.0"},{"v":0,"d":"0.0"},{"v":0,"d":"0.0"},{"v":0,"d":"0.0"},{"v":0,"d":"0.0"},{"v":0,"d":"0.0"},{"v":45498.80000000001,"d":"$45,498.8"},{"v":20.000000000000004,"d":"$20.0"}]
[null,null,"Actividad 11.2","Programa de ampliación de red de alumbrado y agua potable en los panteones municipales","PORCENTAJE de implementación del programa de alumbrado y agua potable en cementerios (P84-IPAAPC)","Mide el cumplimiento del programa de servicios en los cementerios","Eficacia","Gestión","(Cantidad de metros lineales ampliados en la red de alumbrado publico (300) y agua potable (400) dentro del programa de ampliación de las instalaciones de los panteones municipales  / Total de metros lineales necesarios de ampliar en la red de alumbrado publico (600) y agua potable (800) dentro de las instalaciones de los panteones municipales)*100",700,1400,"Mensual","Porcentaje",{"v":0.5,"d":"50%"}," Portal Web del Municipio página de transparencia","Se dispone de personal y recursos",{"v":132645.8,"d":"132,645.8"},{"v":22400,"d":"22,400.0"},{"v":4200,"d":"4,200.0"},{"v":0,"d":"0.0"},{"v":0,"d":"0.0"},{"v":0,"d":"0.0"},{"v":0,"d":"0.0"},{"v":0,"d":"0.0"},{"v":0,"d":"0.0"},{"v":159245.8,"d":"$159,245.8"},{"v":70,"d":"$70.0"}]
[null,null,"Actividad 11.3","Programa de difusión del reglamento municipal a los propietarios y ciudadanía en general.","PORCENTAJE de cumplimiento del programa de difusión del reglamento de cementerios (P85-CPDRC)","Mide el nivel de conocimiento por la ciudadania del reglamento de cementerios","Eficacia","Gestión","(Cantidad de familias (2000) que cuentan con espacios ocupados en los cementerios municipales y familias de la pobalcion municipal que pueden participar en el programa de difusion del reglamento de cementerios y que les  puede interesar conocer  el uso y aplicación / Total de familias (7500) que radican en el territorio municipal que pueden ocupar espcios en los cementerios municipales  que les puede interesar conocer el reglamento de cementerios municipal  sobre el uso y aplicación )*100",2000,7500,"Mensual","Porcentaje",{"v":0.2666,"d":"26.66%"}," Portal Web del Municipio página de transparencia","Se dispone de personal y recursos",{"v":18949.4,"d":"18,949.4"},{"v":3200.0000000000005,"d":"3,200.0"},{"v":600.0000000000001,"d":"600.0"},{"v":0,"d":"0.0"},{"v":0,"d":"0.0"},{"v":0,"d":"0.0"},{"v":0,"d":"0.0"},{"v":0,"d":"0.0"},{"v":0,"d":"0.0"},{"v":22749.400000000005,"d":"$22,749.4"},{"v":10.000000000000002,"d":"$10.0"}]
[null,"DIF","Componente 12","Atención en el Dif Incrementada","ÍNDICE de atención en el DIF municipal (T11-ADIFM)","Mide la relación en la atención a la ciudadania que solicita apoyo","Eficacia","Gestión","(valor resultante de sumar los valores individuales  de  los cosientes entre sus denominadores por su ponderacion asignada, que miden las  variables de: transparencia de información, ampliacion horario, atencion familiar y capacitación laboral con su correspondientes ponderaciones de .2, .2, .3,  y .3)",216.6,241,"Bimestral","Índice","0.898"," Portal Web del Municipio página de transparencia","Se dispone de personal y recursos",{"v":0,"d":"$0.0"},{"v":0,"d":"$0.0"},{"v":0,"d":"$0.0"},{"v":4520000,"d":"$4,520,000.0"},{"v":0,"d":"$0.0"},{"v":0,"d":"$0.0"},{"v":0,"d":"$0.0"},{"v":0,"d":"$0.0"},{"v":0,"d":"$0.0"},{"v":4520000,"d":"$4,520,000.0"}]
[null,null,"Actividad 12.1","Mantener y actualizado el portal web de transparencia con la información pública fundamental, Atender las solicitudes de información solicitadas por transparencia ","PORCENTAJE de actualización del portal Web de transparencia DIF (P86-APWTD)","Mide el cumplimiento en la actualizacion de la información en las plataformas de transparencia","Eficacia","Gestión","(Cantidad de solicitudes de informacion (432) que se reciben en la direccion municipal de transparencia a traves de los diferentes mecanismos para atender a la ciudadania y que se dictaminen positivamente/ Total de solicitudes de informacion (450) que se reciben en la direccion municipal de transparencia a traves de los diferentes mecanismos para atender a la ciudadania)*100",432,450,"Mensual","Porcentaje",{"v":0.96,"d":"96.00%"}," Portal Web del Municipio página de transparencia","Se dispone de personal y recursos",{"v":0,"d":"0.0"},{"v":0,"d":"0.0"},{"v":0,"d":"0.0"},{"v":452000,"d":"452,000.0"},{"v":0,"d":"0.0"},{"v":0,"d":"0.0"},{"v":0,"d":"0.0"},{"v":0,"d":"0.0"},{"v":0,"d":"0.0"},{"v":452000,"d":"$452,000.0"},{"v":10,"d":"$10.0"}]
[null,null,"Actividad 12.2","Mejorar la atención a las familias mediante la ampliación de horario de atención y talleres de prevención ","PORCENTAJE de ampliación de horario y talleres realizados (P87-AHTR)","Mide el incremento en la atención a las familias con el incremento de horario y talleres de capacitación","Eficacia","Gestión","(Cantidad de familias (444) que se han podido atender con las (56) horas adicionales mensuales para mejorar la atencion mediante la ampliación de horario de atención y capacitación / Total de  familias (500) que se espera atender con la ampliación de horario de atención y capacitación)*100",444,500,"Mensual","Porcentaje",{"v":0.888,"d":"88.80%"}," Portal Web del Municipio página de transparencia","Se dispone de personal y recursos",{"v":0,"d":"0.0"},{"v":0,"d":"0.0"},{"v":0,"d":"0.0"},{"v":678000,"d":"678,000.0"},{"v":0,"d":"0.0"},{"v":0,"d":"0.0"},{"v":0,"d":"0.0"},{"v":0,"d":"0.0"},{"v":0,"d":"0.0"},{"v":678000,"d":"$678,000.0"},{"v":15,"d":"$15.0"}]
[null,null,"Actividad 12.3","Programa de atención de solicitudes de apoyo a familias y personas con algún tipo de vulnerabilidad  relacionadas a la salud, discapacidad, medidas de protección, atención jurídica y/o psicológica, etc.","PORCENTAJE de atención a solicitudes recibidas (P88-ASR)","Mide el incremento en la atención a la ciudadania y familias en situacion  vulnerable","Eficacia","Gestión","(Cantidad de ciudadanos, familias y personas con algún tipo de vulnerabilidad  relacionadas a la salud, discapacidad, medidas de protección, atención jurídica y/o psicológica (130) que solicitan apoyo mensualmente y se les puede otorgar / Total de de ciudadanos, familias y personas con algún tipo de vulnerabilidad  relacionadas a la salud, discapacidad, medidas de protección, atención jurídica y/o psicológica (160) que solicitan apoyo mensualmente)*100",130,160,"Mensual","Porcentaje",{"v":0.8125,"d":"81.25%"}," Portal Web del Municipio página de transparencia","Se dispone de personal y recursos",{"v":0,"d":"0.0"},{"v":0,"d":"0.0"},{"v":0,"d":"0.0"},{"v":2486000,"d":"2,486,000.0"},{"v":0,"d":"0.0"},{"v":0,"d":"0.0"},{"v":0,"d":"0.0"},{"v":0,"d":"0.0"},{"v":0,"d":"0.0"},{"v":2486000,"d":"$2,486,000.0"},{"v":55,"d":"$55.0"}]
[null,null,"Actividad 12.4","Apoyo en la gestión de ofertas laborales, capacitación laboral, fomentar cultura de emprendimiento y procesos que les ayuden a mejorar su condición.","PORCENTAJE de gestiones exitosas (P89-GE)","Mide el incremento en la solicitud de apoyo para encontrar una actividad laboral","Eficacia","Gestión","(Cantidad de ciudadanos (8) que logra colocar el DIF mensualmente en un empleo despues de recibir una capacitacion para encontrar un empleo personal / Total de ciudadanos (10) que acuden mensualmente al DIF a solicitar apoyo para conseguir una capacitacion para encontrar un empleo personal)*100",8,10,"Mensual","Porcentaje",{"v":0.8,"d":"80%"}," Portal Web del Municipio página de transparencia","Se dispone de personal y recursos",{"v":0,"d":"0.0"},{"v":0,"d":"0.0"},{"v":0,"d":"0.0"},{"v":904000,"d":"904,000.0"},{"v":0,"d":"0.0"},{"v":0,"d":"0.0"},{"v":0,"d":"0.0"},{"v":0,"d":"0.0"},{"v":0,"d":"0.0"},{"v":904000,"d":"$904,000.0"},{"v":20,"d":"$20.0"}]
[null,"Atención ciudadana","Componente 13","Atención Ciudadana Incrementada","TASA de atención ciudadana (T12-AC)","Mide el aumento en la relación de solicitudes de atencion a la ciudadania","Eficacia","Gestión","(Tasa de solicitudes recibidas y dirigidas a la direccion que atienede el tema relacionado y resueltas satisfactoriamente por cada 100 solicitudes     ",144,180,"Bimestral","Tasa","80 : 100"," Portal Web del Municipio página de transparencia","Se dispone de personal y recursos",{"v":188295,"d":"$188,295.0"},{"v":26000,"d":"$26,000.0"},{"v":4000,"d":"$4,000.0"},{"v":0,"d":"$0.0"},{"v":0,"d":"$0.0"},{"v":0,"d":"$0.0"},{"v":0,"d":"$0.0"},{"v":0,"d":"$0.0"},{"v":0,"d":"$0.0"},{"v":218295,"d":"$218,295.0"}]
[null,null,"Actividad 13.1","Eficientizar el programa adaptado en la nube para la pronta atención de los reportes recibidos.","PORCENTAJE de atención concluida a reportes recibidos (P90-ACRR)","Mide el incremento en la conclusion exitosa de solicitudes de apoyo ","Eficacia","Gestión","(Cantidad de solicitudes y reportes de apoyo  (15) recibidas en la direccion de atencion a la ciudadania por mes y colocadas en el programa adaptado en la nube para su seguimiento y resolución por la direccion directamente involucrada en el transcurso de dicho mes / Total de solicitudes y reportes de apoyo  (15) recibidas en la direccion de atencion a la ciudadania por mes y que se a dado puntual seguimiento a su solución por la direccion directamente involucrada)*100",15,15,"Mensual","Porcentaje",{"v":1,"d":"100.00%"}," Portal Web del Municipio página de transparencia","Se dispone de personal y recursos",{"v":188295,"d":"188,295.0"},{"v":26000,"d":"26,000.0"},{"v":4000,"d":"4,000.0"},{"v":0,"d":"0.0"},{"v":0,"d":"0.0"},{"v":0,"d":"0.0"},{"v":0,"d":"0.0"},{"v":0,"d":"0.0"},{"v":0,"d":"0.0"},{"v":218295,"d":"$218,295.0"},{"v":100,"d":"$100.0"}]
[null,"Participación ciudadana","Componente 14","Participación Ciudadana Incrementada","TASA de participación ciudadana (T13-PC)","Mide la relacion de participación de la ciudadania en lo que se quiere comunicar","Eficacia","Gestión","(Tasa de ciudadanos que participan en las sesiones de los comites vecinales para atender el plan anual de sesiones  por cada consejero    ",300,35,"Bimestral","Tasa","8.5 : 1"," Portal Web del Municipio página de transparencia","Se dispone de personal y recursos",{"v":223412,"d":"$223,412.0"},{"v":14000,"d":"$14,000.0"},{"v":4000,"d":"$4,000.0"},{"v":0,"d":"$0.0"},{"v":0,"d":"$0.0"},{"v":0,"d":"$0.0"},{"v":0,"d":"$0.0"},{"v":0,"d":"$0.0"},{"v":0,"d":"$0.0"},{"v":241412,"d":"$241,412.0"}]
[null,null,"Actividad 14.1","Coordinar el programa anual de sesiones del Consejo de Participación Ciudadana.","PORCENTAJE de cumplimiento del programa anual de sesiones del CPC (P91-CPASC)","Mide la participación de los integrantes de los consejo de participación ciudadana en el programa anual de sesiones","Eficacia","Gestión","(Cantidad de sesiones (20) entre los (5) consejos vecinales ciudadanos en los que se aborda plan  anual de visitas trimestrales respecto a temas de importancia  y capacitación sobre los beneficios de la participación ciudadana / Total de sesiones (20) entre los (5) consejos vecinales ciudadanos en los que se aborda plan  anual de visitas bimestral respecto a temas de importancia  y capacitación sobre los beneficios de la participación ciudadana)*100",20,20,"Mensual","Porcentaje",{"v":1,"d":"100.00%"}," Portal Web del Municipio página de transparencia","Se dispone de personal y recursos",{"v":89364.8,"d":"89,364.8"},{"v":5600,"d":"5,600.0"},{"v":1600,"d":"1,600.0"},{"v":0,"d":"0.0"},{"v":0,"d":"0.0"},{"v":0,"d":"0.0"},{"v":0,"d":"0.0"},{"v":0,"d":"0.0"},{"v":0,"d":"0.0"},{"v":96564.8,"d":"$96,564.8"},{"v":40,"d":"$40.0"}]
[null,null,"Actividad 14.2","Plan de visitas a las localidades para impartir cursos de orientación y los beneficios de la participación ciudadana.","PORCENTAJE de cumplimiento del plan de visitas (P92-CPV)","Mide el nivel de participación en el plan de visitas","Eficacia","Gestión","(Cantidad de ciudadanos (270) del municipio que atienden el plan  anual de visitas trimestral en los 5  comites vecinales para capacitación sobre los beneficios de la participación ciudadana / Total de ciudadanos (300) del municipio que atienden el plan  anual de visitas bimestral para capacitación sobre los beneficios de la participación ciudadana)*100",270,300,"Mensual","Porcentaje",{"v":0.9,"d":"90%"}," Portal Web del Municipio página de transparencia","Se dispone de personal y recursos",{"v":134047.2,"d":"134,047.2"},{"v":8400.000000000002,"d":"8,400.0"},{"v":2400.0000000000005,"d":"2,400.0"},{"v":0,"d":"0.0"},{"v":0,"d":"0.0"},{"v":0,"d":"0.0"},{"v":0,"d":"0.0"},{"v":0,"d":"0.0"},{"v":0,"d":"0.0"},{"v":144847.2,"d":"$144,847.2"},{"v":60.00000000000001,"d":"$60.0"}]
[null,"Servicios médicos","Componente 15","Calidad en Servicios de Salud Incrementada","INDICE de atención y calidad en los servicios de salud (T14-ASS) (T14-ASS)","Mide el nivel de satisfacción en los servicios de salud ofrecidos en el municipio por los SS","Eficacia","Gestión","(valor resultante de sumar los valores individuales  de  los cosientes entre sus denominadores por su ponderacion asignada, que miden las  variables de: participacion trabajadores, gestiones médicas, satisfaccion beneficiarios, personal y paramédicos con su correspondientes ponderaciones de .2, .3, .2,  y .3)",98.7,143.6,"Bimestral","Índice",0.68," Portal Web del Municipio página de transparencia","Se dispone de personal y recursos",{"v":1909015,"d":"$1,909,015.0"},{"v":1488500,"d":"$1,488,500.0"},{"v":63000,"d":"$63,000.0"},{"v":0,"d":"$0.0"},{"v":0,"d":"$0.0"},{"v":0,"d":"$0.0"},{"v":0,"d":"$0.0"},{"v":0,"d":"$0.0"},{"v":0,"d":"$0.0"},{"v":3460515,"d":"$3,460,515.0"}]
[null,null,"Actividad 15.1","Coordinar la participación de los  trabajadores del Ayuntamiento en la seguridad social.","PORCENTAJE de participación de trabajadores en SS (P93-PTSS)","Mide la participación de los empleados de la administración municipal en los servicios de SS","Eficacia","Gestión","(Cantidad de emplados del ayuntamiento municipal (400) que hacen uso y participan de los servicios de seguridad social / Total de  emplados  (600) del ayuntamiento municipal que hacen uso y participan de los servicios de seguridad social)*100",400,600,"Mensual","Porcentaje",{"v":0.75,"d":"75.00%"}," Portal Web del Municipio página de transparencia","Se dispone de personal y recursos",{"v":763606,"d":"763,606.0"},{"v":595400,"d":"595,400.0"},{"v":25200,"d":"25,200.0"},{"v":0,"d":"0.0"},{"v":0,"d":"0.0"},{"v":0,"d":"0.0"},{"v":0,"d":"0.0"},{"v":0,"d":"0.0"},{"v":0,"d":"0.0"},{"v":1384206,"d":"$1,384,206.0"},{"v":40,"d":"$40.0"}]
[null,null,"Actividad 15.2","Gestionar la creación de área de hemodiálisis,  cubículo de choque y programa de capacitación  a 5 médicos y 5 enfermeras ","PORCENTAJE de cumplimiento de las gestiones médicas (P94-CGM)","Mide los avances en las gestiones para mejorar la atención médica municipal","Eficacia","Gestión","(Cantidad de gestiones (3) necesarias para mejorar la infraestructura de atención y capacidades del personal que labora en ellos / Total de proyectos (3) que nececitan gestiones y financiamiento para mejorar los servicios de salud )*100",3,3,"Mensual","Porcentaje",{"v":1,"d":"100%"}," Portal Web del Municipio página de transparencia","Se dispone de personal y recursos",{"v":477253.75,"d":"477,253.8"},{"v":372125,"d":"372,125.0"},{"v":15750,"d":"15,750.0"},{"v":0,"d":"0.0"},{"v":0,"d":"0.0"},{"v":0,"d":"0.0"},{"v":0,"d":"0.0"},{"v":0,"d":"0.0"},{"v":0,"d":"0.0"},{"v":865128.75,"d":"$865,128.8"},{"v":25,"d":"$25.0"}]
[null,null,"Actividad 15.3","Elaborar mecanismos que permitan medir la satisfacción de los beneficiarios y la proporción de la reducción de costos por el servicio","PORCENTAJE de desarrollo y medición de satisfacción de beneficiarios (P95-DMSB)","Mide la satisfaccion de los beneficiarios en los servicios de SS","Eficacia","Gestión","(Cantidad de ciudadanos encuestados (80) durante el mes y resueltos como satisfechos del servicio recibido / Total de  ciudadanos (100) que solicitaron los servicios de salud por mes )*100",80,100,"Mensual","Porcentaje",{"v":0.8,"d":"80.00%"}," Portal Web del Municipio página de transparencia","Se dispone de personal y recursos",{"v":286352.25,"d":"286,352.3"},{"v":223275,"d":"223,275.0"},{"v":9450,"d":"9,450.0"},{"v":0,"d":"0.0"},{"v":0,"d":"0.0"},{"v":0,"d":"0.0"},{"v":0,"d":"0.0"},{"v":0,"d":"0.0"},{"v":0,"d":"0.0"},{"v":519077.25,"d":"$519,077.3"},{"v":15,"d":"$15.0"}]
[null,null,"Actividad 15.4","Ampliar el personal y la atención de paramédicos en los centros de salud","PORCENTAJE de ampliación de personal en centros de salud (P96-APCS)","Mide el incremento de personal para la atencion a la ciudadania en los Centros de Salud","Eficacia","Gestión","(Cantidad de personal (6) nuevo que se integra para fortalecer los servicios municipales de salud  / Total de  personal (9) que ya labora en los  servicios municipales de salud)*100",6,9,"Mensual","Porcentaje",{"v":0.6666,"d":"66.66%"}," Portal Web del Municipio página de transparencia","Se dispone de personal y recursos",{"v":381803,"d":"381,803.0"},{"v":297700,"d":"297,700.0"},{"v":12600,"d":"12,600.0"},{"v":0,"d":"0.0"},{"v":0,"d":"0.0"},{"v":0,"d":"0.0"},{"v":0,"d":"0.0"},{"v":0,"d":"0.0"},{"v":0,"d":"0.0"},{"v":692103,"d":"$692,103.0"},{"v":20,"d":"$20.0"}]
[null,"Agencias municipales","Componente 16","Atención en Agencias Incrementada","TASA de atención en Agencias (T15-AA)","Mide el incremento en la atencion a la ciudadania en las agencias municipales","Eficacia","Gestión","(Tasa de ciudadanos atendidos y/o consultados respecto a los servicios en supervicion de los delegados municipales por  cada 100 habitantes    ",60,100,"Bimestral","Tasa","60:100"," Portal Web del Municipio página de transparencia","Se dispone de personal y recursos",{"v":2917484,"d":"$2,917,484.0"},{"v":43000,"d":"$43,000.0"},{"v":7702818,"d":"$7,702,818.0"},{"v":300000,"d":"$300,000.0"},{"v":0,"d":"$0.0"},{"v":0,"d":"$0.0"},{"v":0,"d":"$0.0"},{"v":0,"d":"$0.0"},{"v":0,"d":"$0.0"},{"v":10963302,"d":"$10,963,302.0"}]
[null,null,"Actividad 16.1","Programa de atención a la normatividad local y actividades asignadas en agencias.","PORCENTAJE de cumplimiento del programa de agencias (P97-CPA)","Mide el cumplimiento de las atribuciones de los agentes para atender a la ciudadania","Eficacia","Gestión","(Cantidad de articulos (6) del reglamento de gobierno y la administracion pública municipal que deberan atender los delegados municipales  / Total de  articulos (14) que deberan atender en el capitulo VII del raglamento de gobierno y la administración pública municipal)*100",6,14,"Mensual","Porcentaje",{"v":0.43,"d":"43.00%"}," Portal Web del Municipio página de transparencia","Se dispone de personal y recursos",{"v":2917484,"d":"2,917,484.0"},{"v":43000,"d":"43,000.0"},{"v":7702818,"d":"7,702,818.0"},{"v":300000,"d":"300,000.0"},{"v":0,"d":"0.0"},{"v":0,"d":"0.0"},{"v":0,"d":"0.0"},{"v":0,"d":"0.0"},{"v":0,"d":"0.0"},{"v":10963302,"d":"$10,963,302.0"},{"v":100,"d":"$100.0"}]
[null,"Delegaciones municipales","Componente 17","Atención en Delegaciones Incrementada","TASA de atención en Delegaciones (T16-AD)","Mide el incremento en la atencion a la ciudadania en las delegaciones municipales","Eficacia","Gestión","(Tasa de ciudadanos atendidos y/o consultados respecto a los servicios en supervicion de los delegados municipales por  cada 100 habitantes    ",60,100,"Bimestral","Tasa","60:100"," Portal Web del Municipio página de transparencia","Se dispone de personal y recursos",{"v":2023784,"d":"$2,023,784.0"},{"v":73000,"d":"$73,000.0"},{"v":7702827,"d":"$7,702,827.0"},{"v":200000,"d":"$200,000.0"},{"v":0,"d":"$0.0"},{"v":0,"d":"$0.0"},{"v":0,"d":"$0.0"},{"v":0,"d":"$0.0"},{"v":0,"d":"$0.0"},{"v":9999611,"d":"$9,999,611.0"}]
[null,null,"Actividad 17.1","Programa de atención a la normatividad local y actividades asignadas en delegaciones.","PORCENTAJE de cumplimiento del programa de delegaciones (P98-CPD)","Mide el cumplimiento de las atribuciones de los delegados para atender a la ciudadania","Eficacia","Gestión","(Cantidad de articulos (8) del reglamento de gobierno y la administracion pública municipal que deberan atender los delegados municipales  / Total de  articulos (14) que deberan atender en el capitulo VII del raglamento de gobierno y la administración pública municipal)*100",8,14,"Mensual","Porcentaje",{"v":0.57,"d":"57.00%"}," Portal Web del Municipio página de transparencia","Se dispone de personal y recursos",{"v":2023784,"d":"2,023,784.0"},{"v":73000,"d":"73,000.0"},{"v":7702827,"d":"7,702,827.0"},{"v":200000,"d":"200,000.0"},{"v":0,"d":"0.0"},{"v":0,"d":"0.0"},{"v":0,"d":"0.0"},{"v":0,"d":"0.0"},{"v":0,"d":"0.0"},{"v":9999611,"d":"$9,999,611.0"},{"v":100,"d":"$100.0"}]
[null,"Comunicación social","Componente 18","Cobertura en Comunicación Social Incrementada","TASA de cobertura en materia de comunicación social (T17-CMCS)","Mide la relacion de ciudadanos informados de los temas que el ayuntamiento quiere comunicar ","Eficacia","Gestión","(Tasa de ciudadanos informados de los diferentes eventos y acciones del gobierno municipal  como resultado del programa de estrategias de comunicación esteblecido por  cada 100 habitantes    ",225,250,"Bimestral","Tasa","90:100"," Portal Web del Municipio página de transparencia","Se dispone de personal y recursos",{"v":535459,"d":"$535,459.0"},{"v":210000,"d":"$210,000.0"},{"v":9000,"d":"$9,000.0"},{"v":0,"d":"$0.0"},{"v":0,"d":"$0.0"},{"v":0,"d":"$0.0"},{"v":0,"d":"$0.0"},{"v":0,"d":"$0.0"},{"v":0,"d":"$0.0"},{"v":754459,"d":"$754,459.0"}]
[null,null,"Actividad 17.1","Generar un programa de estrategias de comunicación masiva en diferentes canales informativos.","PORCENTAJE de cumplimiento del programa de comunicación social (P99-CPCS)","Mide los avances en la implementacion del programa de estrategias de comunicación masiva a la ciudadania","Eficacia","Gestión","(Cantidad de eventos (200) publicitados en las 5 estrategias (5, Periodico (25), periodico mural(50), Sítio Web del Municipio(25), Facebook(50), páguina de transparencia (50)) establecidas en el programa de comunicacion social / Total de  eventos (200) publicitados a traves de los diferentes espacios y estratgias de comunicación social)*100",200,200,"Mensual","Porcentaje",{"v":1,"d":"100.00%"}," Portal Web del Municipio página de transparencia","Se dispone de personal y recursos",{"v":321275.4,"d":"321,275.4"},{"v":126000,"d":"126,000.0"},{"v":5400,"d":"5,400.0"},{"v":0,"d":"0.0"},{"v":0,"d":"0.0"},{"v":0,"d":"0.0"},{"v":0,"d":"0.0"},{"v":0,"d":"0.0"},{"v":0,"d":"0.0"},{"v":452675.4,"d":"$452,675.4"},{"v":60,"d":"$60.0"}]
[null,null,"Actividad 17.2","Asistir y apoyar en cada uno de los eventos a realizar.","PORCENTAJE de cumplimiento del programa de eventos (P100-CPE)","Mide el nivel de participación de la direccion en los eventos realizados ","Eficacia","Gestión","(Cantidad de eventos (25) organizados con la participación de comunicacion social  / Total de  eventos (50) organizados por las diferentes direcciones de la administración municipal)*100",25,50,"Mensual","Porcentaje",{"v":0.5,"d":"50%"}," Portal Web del Municipio página de transparencia","Se dispone de personal y recursos",{"v":214183.59999999998,"d":"214,183.6"},{"v":83999.99999999999,"d":"84,000.0"},{"v":3599.9999999999995,"d":"3,600.0"},{"v":0,"d":"0.0"},{"v":0,"d":"0.0"},{"v":0,"d":"0.0"},{"v":0,"d":"0.0"},{"v":0,"d":"0.0"},{"v":0,"d":"0.0"},{"v":301783.6,"d":"$301,783.6"},{"v":39.99999999999999,"d":"$40.0"}]
[]
[null,"Economía (padrón y licencias)","Componente 1","Recaudación Municipal Incrementada","ÍNDICE de ingresos por licencias municipales (I1-IILM)","Mide el incremento en la recaudación municipal por contribuciones cumplidos por la expedixion de licencias ","Eficacia","Gestión","(valor resultante de sumar los valores individuales  de  los cosientes entre sus denominadores por su ponderacion asignada, que miden las  variables de: dictamen ejecutivo, deteccion de capacidades, organizacion de padron, plan de empadronamiento e impulso la economia  con su correspondientes ponderaciones de .2, .1, .2, .2,  y .3)",54.1,142.6,"Bimestral","Índice","0.38"," Portal Web del Municipio página de transparencia","Se dispone de personal y recursos",{"v":326061,"d":"$326,061.0"},{"v":36000,"d":"$36,000.0"},{"v":6000,"d":"$6,000.0"},{"v":0,"d":"$0.0"},{"v":0,"d":"$0.0"},{"v":0,"d":"$0.0"},{"v":0,"d":"$0.0"},{"v":0,"d":"$0.0"},{"v":0,"d":"$0.0"},{"v":368061,"d":"$368,061.0"}]
[null,null,"Actividad 1.1","Acelerar el análisis y dictamen para la expedición de licencias municipales que impulsen el empleo","PORCENTAJE de licencias municipales que impulsan el empleo (P101-LMIE)","Mide la cantidad de licencias municipales que fomentan el empleo permamente","Eficacia","Gestión","(Cantidad de actividades a desarrollar para establecer el procedimiento ejecutivo de revision, autorizacion o renovación de licencias municipales que fomentan el empleo formal  (10) y las que se encuentran en el empleo informal  (8) / Total de  actividades a desarrollar para establecer el procedimiento ejecutivo de revision, autorizacion o renovación de licencias municipales que fomentan el empleo formal  (10) y las que se encuentran en el empleo informal  (8) )*100",18,18,"Mensual","Porcentaje",1," Portal Web del Municipio página de transparencia","Se dispone de personal y recursos",{"v":65212.2,"d":"65,212.2"},{"v":7200,"d":"7,200.0"},{"v":1200,"d":"1,200.0"},{"v":0,"d":"0.0"},{"v":0,"d":"0.0"},{"v":0,"d":"0.0"},{"v":0,"d":"0.0"},{"v":0,"d":"0.0"},{"v":0,"d":"0.0"},{"v":73612.2,"d":"$73,612.2"},{"v":20,"d":"$20.0"}]
[null,null,"Actividad 1.2","Apoyar la detección de necesidades de capacidades desde la solicitud de licencias para enriquecer la gestión financiera del centro economico","PORCENTAJE de cumplimiento del programa de detección de necesidades (P102-CPDN)","Mide el avance en el diagnostico para detectar necesidades de capacitación","Eficacia","Gestión","(Cantidad de actividades (15) a desarrollar para detectar necesidades y elaborar  un programa de capacitacion desde la solicitud de licencia municipal por giro y de esta manera enriquecer la gestión financiera del centro economico/ Total de    actividades (15) a desarrollar para detectar necesidades de capacitacion desde la solicitud de licencia municipal por giro y de esta manera enriquecer la gestión financiera del centro economico )*100",15,15,"Mensual","Porcentaje",{"v":1,"d":"100%"}," Portal Web del Municipio página de transparencia","Se dispone de personal y recursos",{"v":48909.15,"d":"48,909.2"},{"v":5400,"d":"5,400.0"},{"v":900,"d":"900.0"},{"v":0,"d":"0.0"},{"v":0,"d":"0.0"},{"v":0,"d":"0.0"},{"v":0,"d":"0.0"},{"v":0,"d":"0.0"},{"v":0,"d":"0.0"},{"v":55209.15,"d":"$55,209.2"},{"v":15,"d":"$15.0"}]
[null,null,"Actividad 1.3","Organizar el padrón de licencias municipales otorgados por giro, calles y tipo de establecimiento ","PORCENTAJE de avance en el padrón de licencias (P103-APL)","Mide el avance en organizar el padron","Eficacia","Gestión","(Cantidad de actividades (10) a desarrollar para organizar el padrón de licencias municipales otorgados por giro, calles y tipo de establecimiento  / Total de   actividades (10) a desarrollar para organizar el padrón de licencias municipales otorgados por giro, calles y tipo de establecimiento )*100",10,10,"Mensual","Porcentaje",1," Portal Web del Municipio página de transparencia","Se dispone de personal y recursos",{"v":48909.15,"d":"48,909.2"},{"v":5400,"d":"5,400.0"},{"v":900,"d":"900.0"},{"v":0,"d":"0.0"},{"v":0,"d":"0.0"},{"v":0,"d":"0.0"},{"v":0,"d":"0.0"},{"v":0,"d":"0.0"},{"v":0,"d":"0.0"},{"v":55209.15,"d":"$55,209.2"},{"v":15,"d":"$15.0"}]
[null,null,"Actividad 1.4","Plan de empadronamiento, atención, seguimiento e impulso al comercio ambulante y locatario en mercados.","PORCENTAJE de avance en el plan de empadronamiento (104-APE)","Mide el avance en el empadronamiento ordenado y diferenciado","Eficacia","Gestión","(Cantidad de actividades (10) a desarrollar para elaborar plan de empadronamiento, atención, seguimiento e impulso al comercio ambulante y locatario en mercados / Total de   actividades (10) a desarrollar para elaborar plan de empadronamiento, atención, seguimiento e impulso al comercio ambulante y locatario en mercados )*100",10,10,"Mensual","Porcentaje",{"v":1,"d":"100%"}," Portal Web del Municipio página de transparencia","Se dispone de personal y recursos",{"v":65212.2,"d":"65,212.2"},{"v":7200,"d":"7,200.0"},{"v":1200,"d":"1,200.0"},{"v":0,"d":"0.0"},{"v":0,"d":"0.0"},{"v":0,"d":"0.0"},{"v":0,"d":"0.0"},{"v":0,"d":"0.0"},{"v":0,"d":"0.0"},{"v":73612.2,"d":"$73,612.2"},{"v":20,"d":"$20.0"}]
[null,null,"Actividad 1.5","Programa de actividades municipales que impulsen el comercio y la actividad económica en el municipio","PORCENTAJE de cumplimiento del programa para impulsar el comercio (P105-CPIC)","Mide el cumplimiento de actividades del programa que fomenten el comercio y la economía","Eficacia","Gestión","(Cantidad de centros económicos (150) que impulsan el comercio y la economia familiar en el municipio que pueden ser incorporados al programa de fortalecimiento economico / Total de  centros económicos (400) que impulsan el comercio y la economia familiar en el municipio )*100",150,400,"Mensual","Porcentaje",1," Portal Web del Municipio página de transparencia","Se dispone de personal y recursos",{"v":97818.3,"d":"97,818.3"},{"v":10800,"d":"10,800.0"},{"v":1800,"d":"1,800.0"},{"v":0,"d":"0.0"},{"v":0,"d":"0.0"},{"v":0,"d":"0.0"},{"v":0,"d":"0.0"},{"v":0,"d":"0.0"},{"v":0,"d":"0.0"},{"v":110418.3,"d":"$110,418.3"},{"v":30,"d":"$30.0"}]
[null,"Turismo","Componente 2","Turistas y Visitantes Incrementados","ÍNDICE de afluencia e incremento de turistas y visitantes al municipio (T2-ITyVM)","Mide la afluencia y el incremento de turistas y visitantes al municipio ","Eficacia","Gestión","(valor resultante de sumar los valores individuales  de  los cosientes entre sus denominadores por su ponderacion asignada, que miden las  variables de: Servicios, Convenio, Padron y Comité, con su correspondientes ponderaciones de .2, .2, .3,  y .3)",39,39,"Bimestral","Índice","1"," Portal Web del Municipio página de transparencia","Se dispone de personal y recursos",{"v":85327,"d":"$85,327.0"},{"v":11000,"d":"$11,000.0"},{"v":4000,"d":"$4,000.0"},{"v":0,"d":"$0.0"},{"v":0,"d":"$0.0"},{"v":0,"d":"$0.0"},{"v":0,"d":"$0.0"},{"v":0,"d":"$0.0"},{"v":0,"d":"$0.0"},{"v":100327,"d":"$100,327.0"}]
[null,null,"Actividad 2.1","Impulsar programas de apoyo a establecimientos y giros gastronómico, ecológico y culturales.","PORCENTAJE de elaboracion y gestión del programa de apoyo a giros económicos (P106-PAGE)","Mide la cantidad de establecimientos que son beneficiados con el programa","Eficacia","Gestión","(Cantidad de centros económicos con giro de atención y servicio al turismo (50) que pueden ser susceptibles de participar en el finaciamiento para mejorar y fortalecer los servicios que ofrecen al turismo / Total de centros económicos con giro de atención y servicio al turismo (50) que pueden ser susceptibles de participar en el finaciamiento para mejorar y fortalecer los servicios que ofrecen al turismo)*100",50,50,"Mensual","Porcentaje",1," Portal Web del Municipio página de transparencia","Se dispone de personal y recursos",{"v":25598.1,"d":"25,598.1"},{"v":3300,"d":"3,300.0"},{"v":1200,"d":"1,200.0"},{"v":0,"d":"0.0"},{"v":0,"d":"0.0"},{"v":0,"d":"0.0"},{"v":0,"d":"0.0"},{"v":0,"d":"0.0"},{"v":0,"d":"0.0"},{"v":30098.1,"d":"$30,098.1"},{"v":30,"d":"$30.0"}]
[null,null,"Actividad 2.2","Gestionar convenios y esquemas de servicios turísticos y de hospedaje en casas particulares","PORCENTAJE de cumplimiento del programa de servicios turísticos (P107-CPST)","Mide la cantidad de convenios de servicios turisticos ofertados por los habitantes del municipio ","Eficacia","Gestión","(Cantidad de ciudadanos (100) a los que se les ha ofertado la participación en servicios al turismo bajo un esquema de convenio y servicio de hospedaje, alimentación y trayectos turisticos  / Total de ciudadanos (100) a los que se les ha ofertado la participación en servicios al turismo bajo un esquema de convenio y servicio de hospedaje, alimentación y trayectos turisticos)*100",100,100,"Mensual","Porcentaje",{"v":1,"d":"100%"}," Portal Web del Municipio página de transparencia","Se dispone de personal y recursos",{"v":17065.4,"d":"17,065.4"},{"v":2200.0000000000005,"d":"2,200.0"},{"v":800.0000000000001,"d":"800.0"},{"v":0,"d":"0.0"},{"v":0,"d":"0.0"},{"v":0,"d":"0.0"},{"v":0,"d":"0.0"},{"v":0,"d":"0.0"},{"v":0,"d":"0.0"},{"v":20065.400000000005,"d":"$20,065.4"},{"v":20.000000000000004,"d":"$20.0"}]
[null,null,"Actividad 2.3","Elaborar el padrón de prestadores de servicios turísticos y gestionar la declaración de zonas de desarrollo turístico vinculadas a un programa de actividades","PORCENTAJE de avance en el padrón y declaratoria (P108-APD)","Mide el avance en la gestión de las etapas para integrar un padrón de prestadores de servicios turísticos y la gestion de la declaración de zonas de desarrollo turístico vinculadas a un programa de actividades","Eficacia","Gestión","(Cantidad de etapas (20) de trabajo para integrar un padrón de prestadores de servicios turísticos y la gestion de la declaración de zonas de desarrollo turístico vinculadas a un programa de actividades / Total de etapas (20) de trabajo para integrar un padrón de prestadores de servicios turísticos y la gestion de la declaración de zonas de desarrollo turístico vinculadas a un programa de actividades )*100",20,20,"Mensual","Porcentaje",1," Portal Web del Municipio página de transparencia","Se dispone de personal y recursos",{"v":21331.75,"d":"21,331.8"},{"v":2750,"d":"2,750.0"},{"v":1000,"d":"1,000.0"},{"v":0,"d":"0.0"},{"v":0,"d":"0.0"},{"v":0,"d":"0.0"},{"v":0,"d":"0.0"},{"v":0,"d":"0.0"},{"v":0,"d":"0.0"},{"v":25081.75,"d":"$25,081.8"},{"v":25,"d":"$25.0"}]
[null,null,"Actividad 2.4","Creación del comité de turismo y su programa de actividades para la promoción turística","PORCENTAJE de avance en la creación del comité de turismo y su programa (P109-ACCTP)","Mide los avances en las etapas para conformar el comité municipal y las actividades del programa de promocion turistica municipal","Eficacia","Gestión","(Cantidad de etapas (10) de trabajo para conformar el comité municipal y las actividades del programa de promocion turistica municipal  / Total de etapas (10) de trabajo para conformar el comité municipal y las actividades del programa de promocion turistica municipal )*100",10,10,"Mensual","Porcentaje",{"v":1,"d":"100%"}," Portal Web del Municipio página de transparencia","Se dispone de personal y recursos",{"v":21331.75,"d":"21,331.8"},{"v":2750,"d":"2,750.0"},{"v":1000,"d":"1,000.0"},{"v":0,"d":"0.0"},{"v":0,"d":"0.0"},{"v":0,"d":"0.0"},{"v":0,"d":"0.0"},{"v":0,"d":"0.0"},{"v":0,"d":"0.0"},{"v":25081.75,"d":"$25,081.8"},{"v":25,"d":"$25.0"}]
[null,"Desarrollo agropecuario","Componente 3","Productividad Agropecuaria Incrementada","ÍNDICE de incremento productividad agropecuaria (T3-IPA)","Mide la relación de ejidatarios que participan en los programas de fortalecimiento agropecuario","Eficacia","Gestión","(valor resultante de sumar los valores individuales  de  los cosientes entre sus denominadores por su ponderacion asignada, que miden las  variables de: paquetes económicos, paquetes tecnológicos, transferencia tecnología, área produccion organica, consumo abono, buenas prácticas  con su correspondientes ponderaciones de .1, .1, .2, .2, .2,  y .2)",130,130,"Bimestral","Índice","1"," Portal Web del Municipio página de transparencia","Se dispone de personal y recursos",{"v":260210,"d":"$260,210.0"},{"v":21000,"d":"$21,000.0"},{"v":4000,"d":"$4,000.0"},{"v":0,"d":"$0.0"},{"v":0,"d":"$0.0"},{"v":0,"d":"$0.0"},{"v":0,"d":"$0.0"},{"v":0,"d":"$0.0"},{"v":0,"d":"$0.0"},{"v":285210,"d":"$285,210.0"}]
[null,null,"Actividad 3.1","Gestionar 100 paquetes económicos a productos agrícolas","PORCENTAJE de avance en la gestión de paquetes económicos agrícolas (P110-AGPEA)","Mide los avances en la gestión de paquetes económicos que mejoren la productividad con su aplicación ","Eficacia","Gestión","(Cantidad de paquetes económicos agricolas (300) gestionados para mejorar la productividad  / Total de paquetes económicos agricolas (300) gestionados para mejorar la productividad  )*100",100,100,"Mensual","Porcentaje",1," Portal Web del Municipio página de transparencia","Se dispone de personal y recursos",{"v":39031.5,"d":"39,031.5"},{"v":3150,"d":"3,150.0"},{"v":600,"d":"600.0"},{"v":0,"d":"0.0"},{"v":0,"d":"0.0"},{"v":0,"d":"0.0"},{"v":0,"d":"0.0"},{"v":0,"d":"0.0"},{"v":0,"d":"0.0"},{"v":42781.5,"d":"$42,781.5"},{"v":15,"d":"$15.0"}]
[null,null,"Actividad 3.2","Gestionar 100 paquetes tecnológicos a productores agrícolas","PORCENTAJE de avance en la gestión de paquetes tecnológicos agrícolas (P111-AGPTA)","Mide los avances en la gestión, asignación y la aplicación de los paquetes tecnológicos","Eficacia","Gestión","(Cantidad de paquetes tecnólogicos (100) asignados a productores agricolas  / Total de  paquetes tecnólogicos (100) asignados a productores agricolas)*100",100,100,"Mensual","Porcentaje",{"v":1,"d":"100%"}," Portal Web del Municipio página de transparencia","Se dispone de personal y recursos",{"v":39031.5,"d":"39,031.5"},{"v":3150,"d":"3,150.0"},{"v":600,"d":"600.0"},{"v":0,"d":"0.0"},{"v":0,"d":"0.0"},{"v":0,"d":"0.0"},{"v":0,"d":"0.0"},{"v":0,"d":"0.0"},{"v":0,"d":"0.0"},{"v":42781.5,"d":"$42,781.5"},{"v":15,"d":"$15.0"}]
[null,null,"Actividad 3.3","Desarrollar 9 talleres de transferencia de tecnología, capacitación y extensión, de acuerdo a los diferentes modelos de producción, que permitan una mayor competitividad","PORCENTAJE de desarrollo de talleres de transferencia de tecnología y capacitación (P112-DTTTC)","Mide la participación de los ciudadanos en los talleres","Eficacia","Gestión","(Cantidad de productores (300) que participan en los 9 talleres de transferencia de tecnología / Total de productores (300) que participan en los 9 talleres de transferencia de tecnología )*100",300,300,"Mensual","Porcentaje",1," Portal Web del Municipio página de transparencia","Se dispone de personal y recursos",{"v":65052.5,"d":"65,052.5"},{"v":5250,"d":"5,250.0"},{"v":1000,"d":"1,000.0"},{"v":0,"d":"0.0"},{"v":0,"d":"0.0"},{"v":0,"d":"0.0"},{"v":0,"d":"0.0"},{"v":0,"d":"0.0"},{"v":0,"d":"0.0"},{"v":71302.5,"d":"$71,302.5"},{"v":25,"d":"$25.0"}]
[null,null,"Actividad 3.4","Incremento de áreas de producción orgánica.","PORCENTAJE de incremento de áreas de producción orgánica (P113-IAPO)","Mide el incremento de área destinada a producción orgánica","Eficacia","Gestión","(Cantidad de héctareas (50) incrementadas para la producción orgánica / Total de  héctareas (50) incrementadas para la producción orgánica)*100",50,50,"Mensual","Porcentaje",{"v":1,"d":"100%"}," Portal Web del Municipio página de transparencia","Se dispone de personal y recursos",{"v":52042,"d":"52,042.0"},{"v":4200,"d":"4,200.0"},{"v":800,"d":"800.0"},{"v":0,"d":"0.0"},{"v":0,"d":"0.0"},{"v":0,"d":"0.0"},{"v":0,"d":"0.0"},{"v":0,"d":"0.0"},{"v":0,"d":"0.0"},{"v":57042,"d":"$57,042.0"},{"v":20,"d":"$20.0"}]
[null,null,"Actividad 3.5","Promover uso de abonos orgánicos","PORCENTAJE de aumento del consumo de abonos orgánicos (P114-ACAO)","Mide el incremento del uso de abonos orgánicos","Eficacia","Gestión","(Cantidad de héctareas (100) que usan abono organico para enriquecer sus cultivos / Total de héctareas (100) que usan abono organico para enriquecer sus cultivos)*100",100,100,"Mensual","Porcentaje",1," Portal Web del Municipio página de transparencia","Se dispone de personal y recursos",{"v":39031.5,"d":"39,031.5"},{"v":3150,"d":"3,150.0"},{"v":600,"d":"600.0"},{"v":0,"d":"0.0"},{"v":0,"d":"0.0"},{"v":0,"d":"0.0"},{"v":0,"d":"0.0"},{"v":0,"d":"0.0"},{"v":0,"d":"0.0"},{"v":42781.5,"d":"$42,781.5"},{"v":15,"d":"$15.0"}]
[null,null,"Actividad 3.6","Productores (as) y jóvenes rurales desarrollando buenas prácticas productivas en sus sistemas productivos, que posicionen su inserción en los mercados.   ","PORCENTAJE de aumento de productores aplicando buenas prácticas productivas (P115-APABPP)","Mide el incremento de familias productoras rurales que tienen buenas prácticas productivas","Eficacia","Gestión","(Cantidad de familias de productores y jovenes (100) que desarrollan buenas prácticas productivas en sus sistemas de producción  / Total de familias de productores y jovenes (100) que desarrollan buenas prácticas productivas en sus sistemas de producción)*100",100,100,"Mensual","Porcentaje",{"v":1,"d":"100%"}," Portal Web del Municipio página de transparencia","Se dispone de personal y recursos",{"v":26021,"d":"26,021.0"},{"v":2100,"d":"2,100.0"},{"v":400,"d":"400.0"},{"v":0,"d":"0.0"},{"v":0,"d":"0.0"},{"v":0,"d":"0.0"},{"v":0,"d":"0.0"},{"v":0,"d":"0.0"},{"v":0,"d":"0.0"},{"v":28521,"d":"$28,521.0"},{"v":10,"d":"$10.0"}]
[null,"Inspección ganadera","Componente 4","Sacrificios Inspeccionados Incrementados","ÍNDICE de sacrificios inspeccionados (T4-SI)","Mide la relación de animales para sacrifico que son inspeccionados contra los que no lo son","Eficacia","Gestión","(valor resultante de sumar los valores individuales  de  los cosientes entre sus denominadores por su ponderacion asignada, que miden las  variables de: personal de inspección, inspecciónes con su correspondientes ponderaciones de .4,  y .6)",1042.4,1563.6,"Bimestral","Índice","0.66"," Portal Web del Municipio página de transparencia","Se dispone de personal y recursos",{"v":108029,"d":"$108,029.0"},{"v":30000,"d":"$30,000.0"},{"v":6000,"d":"$6,000.0"},{"v":0,"d":"$0.0"},{"v":0,"d":"$0.0"},{"v":0,"d":"$0.0"},{"v":0,"d":"$0.0"},{"v":0,"d":"$0.0"},{"v":0,"d":"$0.0"},{"v":144029,"d":"$144,029.0"}]
[null,null,"Actividad 4.1","Contar con un  MVZ capacitado para diagnosticar el estado físico y organoléptico de los productos cárnicos ","PORCENTAJE de avance en el programa de capacitación para dictamen organoléptico (P116-APCDO)","Mide el cumplimiento del programa de capacitación","Eficacia","Gestión","(Cantidad de gestiones realizadas (5) por la direccion de Rastro Municipal ante las instancias correspondientes para contar con un MVZ con la experiencia y capacidad de desempeñar las actividades  establecidas en el reglamento municipal de inpector de diagnostico para la autorizacion del sacrificio de ganado y (1) programa de capacitacion del MVZ / Total de gestiones y programa de capacitacion del MVZ (6) realizadas por la direccion de  Rastro Municipal)*100",6,6,"Mensual","Porcentaje",1," Portal Web del Municipio página de transparencia","Se dispone de personal y recursos",{"v":70218.85,"d":"70,218.9"},{"v":19500,"d":"19,500.0"},{"v":3900,"d":"3,900.0"},{"v":0,"d":"0.0"},{"v":0,"d":"0.0"},{"v":0,"d":"0.0"},{"v":0,"d":"0.0"},{"v":0,"d":"0.0"},{"v":0,"d":"0.0"},{"v":93618.85,"d":"$93,618.9"},{"v":65,"d":"$65.0"}]
[null,null,"Actividad 4.2","Inspectores con la capacidad de diagnosticar la carne que no es apta para el consumo Humano, y en su caso el decomiso ","PORCENTAJE diagnósticos positivos para consumo y MVZ capacitados (P117-DPCMC)","Mide la cantidad de diagnosticos documentados de carne para venta en el municipio","Eficacia","Gestión","(Cantidad de cabezas de ganado inspeccionadas en píe y en sacrificio mediante diagnostico (2600) por año en el rastro municipal / Total de cabezas de ganado registrado en el rastro municipal (2600) inspeccionado y sacrificado con diagnostico de visto bueno para venta al menudeo como carne en los establecimientos comerciales en territorio municipal)*100",2600,2600,"Mensual","Porcentaje",{"v":1,"d":"100%"}," Portal Web del Municipio página de transparencia","Se dispone de personal y recursos",{"v":37810.15,"d":"37,810.2"},{"v":10500,"d":"10,500.0"},{"v":2100,"d":"2,100.0"},{"v":0,"d":"0.0"},{"v":0,"d":"0.0"},{"v":0,"d":"0.0"},{"v":0,"d":"0.0"},{"v":0,"d":"0.0"},{"v":0,"d":"0.0"},{"v":50410.15,"d":"$50,410.2"},{"v":35,"d":"$35.0"}]
[null,"Rastro municipal","Componente 5","Proveeduría de Carnes Incrementada","ÍNDICE de mejora del servicio del rastro municipal para el aprovicionamiento de carne a la población de Ixtlahuacán de los Membrillos a traves de los tablajeros del municipio (T5-PRM)","Mide la relación de kilos de carne que se consumen en el municipio  de ixtlaHucán de procedencia de productores locales","Eficacia","Gestión","(valor resultante de sumar los valores individuales  de  los cosientes entre sus denominadores por su ponderacion asignada, que miden las  variables de: inspección, sacrificio  e instalaciones con su correspondientes ponderaciones de .3, .3,  y .4)",1567,1723,"Bimestral","Índice","0.90"," Portal Web del Municipio página de transparencia","Se dispone de personal y recursos",{"v":305058,"d":"$305,058.0"},{"v":44000,"d":"$44,000.0"},{"v":4000,"d":"$4,000.0"},{"v":0,"d":"$0.0"},{"v":0,"d":"$0.0"},{"v":0,"d":"$0.0"},{"v":0,"d":"$0.0"},{"v":0,"d":"$0.0"},{"v":0,"d":"$0.0"},{"v":353058,"d":"$353,058.0"}]
[null,null,"Actividad 5.1","Plan de inspección a los tablajeros la documentación de la legitima propiedad de los animales sacrificados y Contar con personal capacitado para la inspección en carnicerías  ","PORCENTAJE de cumplimiento del plan de inspección de propiedad y en carnicería (P118-CPIPC)","Mide el cumplimiento del plan de inspección en rastro y carnicerias","Eficacia","Gestión","(Cantidad de actividades contenidas en el plan de supervición (5) a realizar para inspeccionar a los tablajeros respecto a la propiedad de las cebazas de ganado a sacrificar y del cumplimiento de los requisitos (5) para tener canales de carne expuestas a la venta en los locales comerciales de atencion a la ciudadania / Total de actividades (10) de inspección y verificación contenidas en el reglamento de sacrificio y venta de ganado en espacios comerciales particulares dentro del territorio municipal)*100",10,10,"Mensual","Porcentaje",1," Portal Web del Municipio página de transparencia","Se dispone de personal y recursos",{"v":76264.5,"d":"76,264.5"},{"v":11000,"d":"11,000.0"},{"v":1000,"d":"1,000.0"},{"v":0,"d":"0.0"},{"v":0,"d":"0.0"},{"v":0,"d":"0.0"},{"v":0,"d":"0.0"},{"v":0,"d":"0.0"},{"v":0,"d":"0.0"},{"v":88264.5,"d":"$88,264.5"},{"v":25,"d":"$25.0"}]
[null,null,"Actividad 5.2","Fortalecer el sacrificio, producción y venta de ganado local","PORCENTAJE de sacrificio, producción y venta de ganado local (P119-VSGL)","Mide el incremento de consumo de ganado local","Eficacia","Gestión","(Cantidad de sacrificios (2600), producción de canal por trabajador (520) y venta de ganado de productores locales (2080) por año en el rastro municipal / Total de cabezas de ganado registrado en el rastro municipal (2600), producción de canal por trabajador (520) y venta de ganado de productores locales (2600) por año en el rastro municipal para venta al menudeo como carne en los establecimientos comerciales en territorio municipal)*100",5200,5720,"Mensual","Porcentaje",{"v":0.909,"d":"90.90%"}," Portal Web del Municipio página de transparencia","Se dispone de personal y recursos",{"v":106770.3,"d":"106,770.3"},{"v":15400,"d":"15,400.0"},{"v":1400,"d":"1,400.0"},{"v":0,"d":"0.0"},{"v":0,"d":"0.0"},{"v":0,"d":"0.0"},{"v":0,"d":"0.0"},{"v":0,"d":"0.0"},{"v":0,"d":"0.0"},{"v":123570.3,"d":"$123,570.3"},{"v":35,"d":"$35.0"}]
[null,null,"Actividad 5.3","Mejorar las instalaciones con equipamiento ","PORCENTAJE de avance en el diagnostico (P120-AD)","Mide el avance en el diagnóstico y su aplicación en mejorar las instalaciónes del rastro municipal","Eficacia","Gestión","(Cantidad de actividades (10) a realizar para mejorar las instalaciones y servicio con equipamiento del rastro municipal  / Total de actividades (10) concluidas para mejorar las instalaciones y servicio con equipamiento del rastro municipal )*100",10,10,"Mensual","Porcentaje",1," Portal Web del Municipio página de transparencia","Se dispone de personal y recursos",{"v":122023.20000000001,"d":"122,023.2"},{"v":17600.000000000004,"d":"17,600.0"},{"v":1600.0000000000002,"d":"1,600.0"},{"v":0,"d":"0.0"},{"v":0,"d":"0.0"},{"v":0,"d":"0.0"},{"v":0,"d":"0.0"},{"v":0,"d":"0.0"},{"v":0,"d":"0.0"},{"v":141223.2,"d":"$141,223.2"},{"v":40.00000000000001,"d":"$40.0"}]
[null,"Promoción económica","Componente 6","Promoción Económica Incrementada","ÍNDICE de atención a la promociona de la economía (T6-APE)","Mide la relación de centros económicos municipales que reciben orientacion o apoyo economico para su fortalecimiento","Eficacia","Gestión","(valor resultante de sumar los valores individuales  de  los cosientes entre sus denominadores por su ponderacion asignada, que miden las  variables de: espacio de atención, adecuacion de modulo y plan de vinculación con su correspondientes ponderaciones de .3, .4,  y .3)",15.9,17.7,"Bimestral","Índice","0.898"," Portal Web del Municipio página de transparencia","Se dispone de personal y recursos",{"v":328764,"d":"$328,764.0"},{"v":10000,"d":"$10,000.0"},{"v":4000,"d":"$4,000.0"},{"v":0,"d":"$0.0"},{"v":0,"d":"$0.0"},{"v":0,"d":"$0.0"},{"v":0,"d":"$0.0"},{"v":0,"d":"$0.0"},{"v":0,"d":"$0.0"},{"v":342764,"d":"$342,764.0"}]
[null,null,"Actividad 6.1","Establecer un espacio para la atención de los comerciantes y/o empresarios.","PORCENTAJE de avance en las gestiones para la atención de comerciantes y empresarios (P121-AGACE)","Mide el avance en las gestiones para tener instalaciones para la atencion de los comerciantes y empresarios","Eficacia","Gestión","(Cantidad de actividades (15) a realizar para gestionar un espacio para la atención de comerciantes y empresarios por parte de la Dirección de promoción Económica  / Total de actividades (15) concluidas para la para gestionar un espacio para la atención de comerciantes y empresarios por parte de la Dirección de promoción Económica)*100",15,15,"Mensual","Porcentaje",1," Portal Web del Municipio página de transparencia","Se dispone de personal y recursos",{"v":65752.8,"d":"65,752.8"},{"v":2000,"d":"2,000.0"},{"v":800,"d":"800.0"},{"v":0,"d":"0.0"},{"v":0,"d":"0.0"},{"v":0,"d":"0.0"},{"v":0,"d":"0.0"},{"v":0,"d":"0.0"},{"v":0,"d":"0.0"},{"v":68552.8,"d":"$68,552.8"},{"v":20,"d":"$20.0"}]
[null,null,"Actividad 6.2","Adecuación del módulo (SARE) sistema de apertura rápida de empresas, ante la Dirección de Mejora Regulatoria y ante la COFEMER Consejo Federal de Mejora Regulatoria.","PORCENTAJE de adecuación del módulo SARE ante la Dirección de Mejora Regulatoria y su inclusion en el índice de facilidad para abrir una empresa (P122-AMSDMR)","Mide los avances en la adecuación del SARE ante la dirección de mejora regulatoria y su inclusion en el índice de facilidad para abrir una empresa ","Eficacia","Gestión","(Cantidad de actividades (15) a realizar para adecuar el módulo SARE municipal ante la Dirección de Mejora Regulatoria y su inclusion en el índice de facilidad para abrir una empresa  / Total de actividades (15) concluidas para la adecuación del módulo SARE municipal ante la Dirección de Mejora Regulatoria y su inclusion en el índice de facilidad para abrir una empresa)*100",15,15,"Mensual","Porcentaje",{"v":1,"d":"100%"}," Portal Web del Municipio página de transparencia","Se dispone de personal y recursos",{"v":147943.8,"d":"147,943.8"},{"v":4499.999999999999,"d":"4,500.0"},{"v":1799.9999999999998,"d":"1,800.0"},{"v":0,"d":"0.0"},{"v":0,"d":"0.0"},{"v":0,"d":"0.0"},{"v":0,"d":"0.0"},{"v":0,"d":"0.0"},{"v":0,"d":"0.0"},{"v":154243.8,"d":"$154,243.8"},{"v":44.99999999999999,"d":"$45.0"}]
[null,null,"Actividad 6.3","Plan de vinculación ante  las cámaras industriales, sector empresarial de Jalisco y organismos empresariales para promover al Municipio en proyectos estratégicos.","PORCENTAJE de avance del plan de vinculación (P123-APV)","Mide los resultados del plan de vinculación del municipio y sus comerciantes y empresarios con las camaras de comercio y organismos empresariales","Eficacia","Gestión","(Cantidad de gestiones exitosas (18) realizadas por la direccion de promocion economica  establecidas en el Plan de vinculación ante  las cámaras industriales, sector empresarial de Jalisco y organismos empresariales  / Total de gestiones (24) realizadas por la direccion de promocion economica  dentro del Plan de vinculación ante  las cámaras industriales, sector empresarial de Jalisco y organismos empresariales  )*100",18,24,"Mensual","Porcentaje",0.75," Portal Web del Municipio página de transparencia","Se dispone de personal y recursos",{"v":115067.4,"d":"115,067.4"},{"v":3500,"d":"3,500.0"},{"v":1400,"d":"1,400.0"},{"v":0,"d":"0.0"},{"v":0,"d":"0.0"},{"v":0,"d":"0.0"},{"v":0,"d":"0.0"},{"v":0,"d":"0.0"},{"v":0,"d":"0.0"},{"v":119967.4,"d":"$119,967.4"},{"v":35,"d":"$35.0"}]
[null,"Informática","Componente 7","Calidad Informática Mejorada","INDICE de calidad informática (V1-CI)","Mide el nivel de atencion y solucion de los problemas a los usuarios de los equipos informaticos de la administración municipal","Eficacia","Gestión","(valor resultante de sumar los valores individuales  de  los cosientes entre sus denominadores por su ponderacion asignada, que miden las  variables de: acttualizacion de red, reglamento y mantenimiento con su correspondientes ponderaciones de .4, .2,  y .4)",38.8,39.4,"Bimestral","Índice",0.98," Portal Web del Municipio página de transparencia","Se dispone de personal y recursos",{"v":114780,"d":"$114,780.0"},{"v":17000,"d":"$17,000.0"},{"v":34000,"d":"$34,000.0"},{"v":0,"d":"$0.0"},{"v":0,"d":"$0.0"},{"v":0,"d":"$0.0"},{"v":0,"d":"$0.0"},{"v":0,"d":"$0.0"},{"v":0,"d":"$0.0"},{"v":165780,"d":"$165,780.0"}]
[null,null,"Actividad 7.1","Levantamiento del estado actual de la red y dados los resultados adquirir nuevo equipo que atienda las necesidades.","PORCENTAJE de actualización de la red, adquisición de nuevos equipos y colocacion de puntos de acceso a internet (P124-ARANE)","Mide el avance en la actualización de los equipos, licencias y redes, que permitan la instalacion de sitios de gobierno con servicio de acceso a internet","Eficacia","Gestión","(Cantidad de redes de  computacion actualizadas (3), de computadoras adquiridas nuevas (8) y mantenimiento o colocacion de puntos nuevos de acceso a internet  (33) /total de redes, computadoras y puntos de acceso a internet (44))*100",44,44,"Mensual","Porcentaje",1," Portal Web del Municipio página de transparencia","Se dispone de personal y recursos",{"v":17217,"d":"17,217.0"},{"v":2550,"d":"2,550.0"},{"v":5100,"d":"5,100.0"},{"v":0,"d":"0.0"},{"v":0,"d":"0.0"},{"v":0,"d":"0.0"},{"v":0,"d":"0.0"},{"v":0,"d":"0.0"},{"v":0,"d":"0.0"},{"v":24867,"d":"$24,867.0"},{"v":15,"d":"$15.0"}]
[null,null,"Actividad 7.2","Elaboración de un reglamento que se adecue a las nuevas necesidades de este ayuntamiento.","PORCENTAJE de elaboración del reglamento de informática (P125-ERI)","Mide el avance en la elaboración el reglamento de informatica y sistemas","Eficacia","Gestión","(Cantidad de articulos (20) desarrollados para el reglamento de resguardo, uso y manipulacion de equipos de computacion de la administracion municipal asignadas a las direcciones establecidas / Total de direcciones 23 con equipos de computacion de la administracion municipal asignadas y con aportaciones y conocimiento)*100",20,23,"Mensual","Porcentaje",{"v":0.8695,"d":"86.95%"}," Portal Web del Municipio página de transparencia","Se dispone de personal y recursos",{"v":22956,"d":"22,956.0"},{"v":3400,"d":"3,400.0"},{"v":6800,"d":"6,800.0"},{"v":0,"d":"0.0"},{"v":0,"d":"0.0"},{"v":0,"d":"0.0"},{"v":0,"d":"0.0"},{"v":0,"d":"0.0"},{"v":0,"d":"0.0"},{"v":33156,"d":"$33,156.0"},{"v":20,"d":"$20.0"}]
[null,null,"Actividad 7.3","Programa de mantenimiento, atención y solución de problemas que se presentes en las áreas de este ayuntamiento.","PORCENTAJE de avance del programa de mantenimiento y atención a sistemas computacionales (P126-APMASC)","Mide los avances en el cumplimiento del programa de mantenimiento y atención","Eficacia","Gestión","(Cantidad de computadoras (23) incluidas en el programa de mantenimiento y actividades relacionadas a las tecnologías de la informacion (20) que atiende el personal asignado a esta dirección administrativa del ayuntamiento  /total de computadoras y actividades por atender  en la dirección de Informática (43))*100",43,43,"Mensual","Porcentaje",1," Portal Web del Municipio página de transparencia","Se dispone de personal y recursos",{"v":74607,"d":"74,607.0"},{"v":11050,"d":"11,050.0"},{"v":22100,"d":"22,100.0"},{"v":0,"d":"0.0"},{"v":0,"d":"0.0"},{"v":0,"d":"0.0"},{"v":0,"d":"0.0"},{"v":0,"d":"0.0"},{"v":0,"d":"0.0"},{"v":107757,"d":"$107,757.0"},{"v":65,"d":"$65.0"}]
[]
[null,"Ordenamiento Territorial (sustentabilidad)","Componente 1","Instrumentos de Planeación y Ordenamiento Territorial Actualizados","ÍNDICE de actualización de instrumentos de planeación y ordenamiento territorial (T1-IPyOTa)","Mide el índice de actualización de los Instrumentos de Planeación y Ordenamiento Territorial","Eficacia","Gestión","(valor resultante de sumar los valores individuales  de  los cosientes entre sus denominadores por su ponderacion asignada, que miden las  variables de: diagnostico saneamiento rios, saneamiento presas, reforestación,  regularización, explotación, crecimiento y turismo con su correspondientes ponderaciones de .1, .1, .2, .1, .1, .2, y .2)",676.6,1726.6,"Bimestral","Índice",0.39," Portal Web del Municipio página de transparencia","Se dispone de personal y recursos ",{"v":333342,"d":"$333,342.00"},{"v":9000,"d":"$9,000.00"},{"v":4000,"d":"$4,000.00"},{"v":0,"d":"$0.00"},{"v":0,"d":"$0.00"},{"v":0,"d":"$0.00"},{"v":0,"d":"$0.00"},{"v":0,"d":"$0.00"},{"v":0,"d":"$0.00"},{"v":346342,"d":"$346,342.00"}]
[null,null,"Actividad 1.1","Diagnostico y Programa de Saneamiento Rio Los Sabinos, arroyos y riachuelos","PORCENTAJE de avance en el diagnóstico de saneamiento (P127-ADS)","Mide los avances en la elaboración del diagnostico y su programa de saneamiento","Eficacia","Gestión","(Cantidad de temas a desarrollar (10) dentro del Diagnostico y Programa de Saneamiento Rio Los Sabinos, arroyos y riachuelos / Total de temas (10) desarrollados dentro del  Diagnostico y Programa de Saneamiento Rio Los Sabinos, arroyos y riachuelos )*100",10,10,"Mensual","Porcentaje",{"v":1,"d":"1.00"}," Portal Web del Municipio página de transparencia","Se dispone de personal y recursos ",{"v":33334.2,"d":"33,334.2"},{"v":899.9999999999999,"d":"900.0"},{"v":399.99999999999994,"d":"400.0"},{"v":0,"d":"0.0"},{"v":0,"d":"0.0"},{"v":0,"d":"0.0"},{"v":0,"d":"0.0"},{"v":0,"d":"0.0"},{"v":0,"d":"0.0"},{"v":34634.2,"d":"$34,634.20"},{"v":9.999999999999998,"d":"$10.00"}]
[null,null,"Actividad 1.2","Diagnostico y Programa de Saneamiento de la Presa El Llano","PORCENTAJE de avance en el diagnóstico de saneamiento Presa el Llano (P128-ADSPL)","Mide los avances en la elaboración del diagnostico y su programa de saneamiento de la Presa","Eficacia","Gestión","(Cantidad de temas a desarrollar (10) dentro del Diagnostico y Programa de Saneamiento de la Presa El Llano / Total de temas (10) desarrollados dentro del  Diagnostico y Programa de Saneamiento de la Presa El Llano )*100",10,10,"Mensual","Porcentaje",{"v":1,"d":"100%"}," Portal Web del Municipio página de transparencia","Se dispone de personal y recursos ",{"v":33334.2,"d":"33,334.2"},{"v":899.9999999999999,"d":"900.0"},{"v":399.99999999999994,"d":"400.0"},{"v":0,"d":"0.0"},{"v":0,"d":"0.0"},{"v":0,"d":"0.0"},{"v":0,"d":"0.0"},{"v":0,"d":"0.0"},{"v":0,"d":"0.0"},{"v":34634.2,"d":"$34,634.20"},{"v":9.999999999999998,"d":"$10.00"}]
[null,null,"Actividad 1.3","Impartición de 12 talleres de promoción y fomento de reforestación y conservación del medio ambiente","PORCENTAJE de avance en programa de campañas de reforestación  (P129-APCR)","Mide los avances en la imparticion de los talleres  que integran las campañas","Eficacia","Gestión","(Cantidad de ciudadanos inscritos (350) para participar en el programa de 12 talleres de capacitacion sobre promoción, fomento y participación en 12 campañas de reforestación y conservación del medio ambiente/total de ciudadanos ejidatarios (5000) o pequeña propiedad (600) que participan en el programa)*100",350,5600,"Mensual","Porcentaje",{"v":1,"d":"1.00"}," Portal Web del Municipio página de transparencia","Se dispone de personal y recursos ",{"v":50001.3,"d":"50,001.3"},{"v":1350,"d":"1,350.0"},{"v":600,"d":"600.0"},{"v":0,"d":"0.0"},{"v":0,"d":"0.0"},{"v":0,"d":"0.0"},{"v":0,"d":"0.0"},{"v":0,"d":"0.0"},{"v":0,"d":"0.0"},{"v":51951.3,"d":"$51,951.30"},{"v":15,"d":"$15.00"}]
[null,null,"Actividad 1.4","Programa de regularización de predios en las localidades de Santa Rosa y Los Cedros","PORCENTAJE de avance en el programa de regularización de predios (P130-APRP)","Mide los avances en la implementación del programa de regularización","Eficacia","Gestión","(Cantidad de etapas (10) completas en la elaboracion de cada uno de los expedientes del programa de regularizacion de predios en Santa Rosa y Cedros  / total de etapas (6000) completadas en cada uno de los 600 predios por regularizar en  el programa de regularizacion de predios en Santa Rosa y Cedros)*100",6000,6000,"Mensual","Porcentaje",{"v":1,"d":"100%"}," Portal Web del Municipio página de transparencia","Se dispone de personal y recursos ",{"v":50001.3,"d":"50,001.3"},{"v":1350,"d":"1,350.0"},{"v":600,"d":"600.0"},{"v":0,"d":"0.0"},{"v":0,"d":"0.0"},{"v":0,"d":"0.0"},{"v":0,"d":"0.0"},{"v":0,"d":"0.0"},{"v":0,"d":"0.0"},{"v":51951.3,"d":"$51,951.30"},{"v":15,"d":"$15.00"}]
[null,null,"Actividad 1.5","Elaborar un diagnostico de los niveles de sobre explotación del territorio","PORCENTAJE de avance en el diagnóstico de explotación territorial (P131-ADET )l","Mide los avances en la elaboración del diagnostico sobre la explotación del territorio","Eficacia","Gestión","(Cantidad de temas a desarrollar (10) dentro del diagnóstico de explotación territorial / Total de temas (10) desarrollados dentro del  diagnóstico de explotación territorial )*100",10,10,"Mensual","Porcentaje",{"v":1,"d":"1.00"}," Portal Web del Municipio página de transparencia","Se dispone de personal y recursos ",{"v":66668.4,"d":"66,668.4"},{"v":1799.9999999999998,"d":"1,800.0"},{"v":799.9999999999999,"d":"800.0"},{"v":0,"d":"0.0"},{"v":0,"d":"0.0"},{"v":0,"d":"0.0"},{"v":0,"d":"0.0"},{"v":0,"d":"0.0"},{"v":0,"d":"0.0"},{"v":69268.4,"d":"$69,268.40"},{"v":19.999999999999996,"d":"$20.00"}]
[null,null,"Actividad 1.6","Alternativas de crecimiento urbano sin el cambio de uso de suelo agrícola a urbano","PORCENTAJE  de avance en el programa de alternativas de crecimiento urbano (P132-APACU)","Mide los avances en el programa de crecimiento urbano sin el cambio de uso de suelos","Eficacia","Gestión","(Cantidad de temas a desarrollar (9) dentro del Programa Municipal de alternativas de crecimiento urbano  sin el cambio de uso de suelos / Total de temas desarrollados dentro del  Programa Municipal de alternativas de crecimiento urbano  sin el cambio de uso de suelos (9) )*100",9,9,"Mensual","Porcentaje",{"v":1,"d":"100%"}," Portal Web del Municipio página de transparencia","Se dispone de personal y recursos ",{"v":50001.3,"d":"50,001.3"},{"v":1350,"d":"1,350.0"},{"v":600,"d":"600.0"},{"v":0,"d":"0.0"},{"v":0,"d":"0.0"},{"v":0,"d":"0.0"},{"v":0,"d":"0.0"},{"v":0,"d":"0.0"},{"v":0,"d":"0.0"},{"v":51951.3,"d":"$51,951.30"},{"v":15,"d":"$15.00"}]
[null,null,"Actividad 1.7","Desarrollar un programa de impulso al turismo ecológico y su ordenamiento","PORCENTAJE de avance del programa de impulso turístico ecológico (P133-APITE)","Mide el avance en la elaboración de programa de impulso al turismo ecológico","Eficacia","Gestión","(Cantidad de temas a desarrollar (9) dentro del programa de impulso al turismo ecológico a nivel municipal / Total de temas desarrollados dentro del  programa de impulso al turismo ecológico a nivel municipal (9) )*100",9,9,"Mensual","Porcentaje",{"v":1,"d":"1.00"}," Portal Web del Municipio página de transparencia","Se dispone de personal y recursos ",{"v":50001.3,"d":"50,001.3"},{"v":1350,"d":"1,350.0"},{"v":600,"d":"600.0"},{"v":0,"d":"0.0"},{"v":0,"d":"0.0"},{"v":0,"d":"0.0"},{"v":0,"d":"0.0"},{"v":0,"d":"0.0"},{"v":0,"d":"0.0"},{"v":51951.3,"d":"$51,951.30"},{"v":15,"d":"$15.00"}]
[null,"Desarrollo Urbano","Componente 2","Instrumentos de Planeación Urbana Actualizados","ÍNDICE de actualizacion de los instrumentos de planeación urbana. (Í2-IAIPU)","Mide el índice de adtualización de los Instrumentos de planeación urbana ","Eficacia","Gestión","(valor resultante de sumar los valores individuales  de  los cosientes entre sus denominadores por su ponderacion asignada, que miden las  variables de: consolidación habitacional en fraccionamientos, consolidacion urbana en localidades, planes de centros, desarrollo urbano, imagen urbana, equipamiento y regularización con su correspondientes ponderaciones de .1, .1, .1, .2, .2, .2, y .1)",655.5,671.5,"Bimestral","Índice",0.97," Portal Web del Municipio página de transparencia","Se dispone de personal y recursos ",{"v":282066,"d":"$282,066.00"},{"v":30000,"d":"$30,000.00"},{"v":88000,"d":"$88,000.00"},{"v":0,"d":"$0.00"},{"v":0,"d":"$0.00"},{"v":0,"d":"$0.00"},{"v":0,"d":"$0.00"},{"v":0,"d":"$0.00"},{"v":0,"d":"$0.00"},{"v":400066,"d":"$400,066.00"}]
[null,null,"Actividad 2.1","Consolidar los fraccionamientos existentes antes de abrir nuevas áreas de uso habitacional.","PORCENTAJE de consolidación urbana de fraccionamiento existentes (P134-CUFE)","Mide el porcentaje de consolidación habitacional de cada fraccionamiento","Eficacia","Gestión","(Cantidad de temas (5) que determinan la consolidación habitacional de los 10 fraccionamiento urbanos existentes  dentro del Programa Municipal de consolidación habitacional de fraccionamientos urbanos  / Total de temas 50 necesarios de cubrir para considararlos como consolidados dentro del Programa Municipal de consolidación habitacional )*100",50,50,"Mensual","Porcentaje",{"v":1,"d":"1.00"}," Portal Web del Municipio página de transparencia","Se dispone de personal y recursos ",{"v":28206.6,"d":"28,206.6"},{"v":3000,"d":"3,000.0"},{"v":8800,"d":"8,800.0"},{"v":0,"d":"0.0"},{"v":0,"d":"0.0"},{"v":0,"d":"0.0"},{"v":0,"d":"0.0"},{"v":0,"d":"0.0"},{"v":0,"d":"0.0"},{"v":40006.6,"d":"$40,006.60"},{"v":10,"d":"$10.00"}]
[null,null,"Actividad 2.2","Consolidar las localidades tradicionales que cuentan con suelo disponible dentro de sus límites","PORCENTAJE de consolidación urbana de localidades tradicionales (P135-CULT)","Mide el porcentaje de consolidación habitacional de las localidades tradicionales","Eficacia","Gestión","(Cantidad de temas que determinan la consolidación de las localidaes tradicionales (5) dentro del Programa Municipal de consolidación de localidades tradicionales (4) que cuentan con suelo disponible dentro de sus límites / Total de temas 20 necesarios de cubrir para considararlos como consolidados dentro del Programa Municipal de consolidación de localidades tradicionales (4) que cuentan con suelo disponible dentro de sus límites )*100",20,20,"Mensual","Porcentaje",{"v":1,"d":"100%"}," Portal Web del Municipio página de transparencia","Se dispone de personal y recursos ",{"v":28206.6,"d":"28,206.6"},{"v":3000,"d":"3,000.0"},{"v":8800,"d":"8,800.0"},{"v":0,"d":"0.0"},{"v":0,"d":"0.0"},{"v":0,"d":"0.0"},{"v":0,"d":"0.0"},{"v":0,"d":"0.0"},{"v":0,"d":"0.0"},{"v":40006.6,"d":"$40,006.60"},{"v":10,"d":"$10.00"}]
[null,null,"Actividad 2.3","Elaboración de Planes de Centro de Población. ","PORCENTAJE de avance de elaboración de planes de centros de población (P136-AEPCP)","Mide los avances en la elaboración de los planes de desarrollo urbano de centros de población municipal","Eficacia","Gestión","(Cantidad de planes (7) a desarrollar dentro del Programa de Planes de Centro de Población en el municipio / Total de planes (7) a desarrollar dentro del  Programa de Planes de Centro de Población en el municipio )*100",7,7,"Mensual","Porcentaje",{"v":1,"d":"1.00"}," Portal Web del Municipio página de transparencia","Se dispone de personal y recursos ",{"v":28206.6,"d":"28,206.6"},{"v":3000,"d":"3,000.0"},{"v":8800,"d":"8,800.0"},{"v":0,"d":"0.0"},{"v":0,"d":"0.0"},{"v":0,"d":"0.0"},{"v":0,"d":"0.0"},{"v":0,"d":"0.0"},{"v":0,"d":"0.0"},{"v":40006.6,"d":"$40,006.60"},{"v":10,"d":"$10.00"}]
[null,null,"Actividad 2.4","Elaboración del Programa Municipal de Desarrollo Urbano","PORCENTAJE de avance del programa de desarrollo urbano para ser considerado en los municipios que cuentan con instrumentos de planeación urbana, y ordenamiento ecológico y territorial congruentes con los instrumentos superiores (P137-APDU)","Mide el avance en la elaboración del programa de desarrollo urbano municipal","Eficacia","Gestión","(Cantidad de temas a desarrollar (9) dentro del Programa Municipal de Desarrollo Urbano a nivel municipal / Total de temas desarrollados dentro del  Programa Municipal de Desarrollo Urbano a nivel municipal (9) )*100",9,9,"Mensual","Porcentaje",{"v":1,"d":"100%"}," Portal Web del Municipio página de transparencia","Se dispone de personal y recursos ",{"v":28206.6,"d":"28,206.6"},{"v":3000,"d":"3,000.0"},{"v":8800,"d":"8,800.0"},{"v":0,"d":"0.0"},{"v":0,"d":"0.0"},{"v":0,"d":"0.0"},{"v":0,"d":"0.0"},{"v":0,"d":"0.0"},{"v":0,"d":"0.0"},{"v":40006.6,"d":"$40,006.60"},{"v":10,"d":"$10.00"}]
[null,null,"Actividad 2.5","Mejorar la imagen urbana en ingresos y primer cuadro de las localidades tradicionales","PORCENTAJE de avance del plan de imagen urbana (P138-APIU)","Mide los avances de los planes de mejora de imagen urbana ","Eficacia","Gestión","(Cantidad de puntos(10) a considerar como ingresos a la ciudad (6) y primer cuadro  en cabecera y localidades tradicionales (4) dentro del programa de imagen urbana considerando las variables (fachadas, estacionamiento en calles, banquetas, puestos ambualentes, letreros, colores, paradas de transporte público, señaletica vial y de calles, contenedores o tiradesros de basura, cableados de luz pública, arbotantes, areas verdes, carcamos y tapas de drenaje (16) / Total de puntos 160 a revisar dentro del programa de imagen urbana con las variable mencionadas)*100",130,160,"Mensual","Porcentaje",{"v":1,"d":"1.00"}," Portal Web del Municipio página de transparencia","Se dispone de personal y recursos ",{"v":70516.5,"d":"70,516.5"},{"v":7500,"d":"7,500.0"},{"v":22000,"d":"22,000.0"},{"v":0,"d":"0.0"},{"v":0,"d":"0.0"},{"v":0,"d":"0.0"},{"v":0,"d":"0.0"},{"v":0,"d":"0.0"},{"v":0,"d":"0.0"},{"v":100016.5,"d":"$100,016.50"},{"v":25,"d":"$25.00"}]
[null,null,"Actividad 2.6","Elaborar estudio de requerimiento en términos de equipamiento en localidades y fraccionamientos","PORCENTAJE de avance en el estudio de equipamiento urbano (P139-AEEU)","Mide los avances en la elaboracion del estudio de equipamiento en localidades y fraccionamientos","Eficacia","Gestión","(Cantidad de localidades  (10) y fraccionamientos (5) que se incluiran en el estudio de necesidades de equipamiento urbano respecto a (10) variables (Agua, luz, drenaje, pavimento, alumbrado público, transporte público, señaletica vial, banquetas, espacios deportivos, espacios culturales)  100 necesidades / Total de necesidades 150 consideradas como variable en el estudio de equipamiento )*100",100,150,"Mensual","Porcentaje",{"v":0.66,"d":"66%"}," Portal Web del Municipio página de transparencia","Se dispone de personal y recursos ",{"v":56413.2,"d":"56,413.2"},{"v":6000,"d":"6,000.0"},{"v":17600,"d":"17,600.0"},{"v":0,"d":"0.0"},{"v":0,"d":"0.0"},{"v":0,"d":"0.0"},{"v":0,"d":"0.0"},{"v":0,"d":"0.0"},{"v":0,"d":"0.0"},{"v":80013.2,"d":"$80,013.20"},{"v":20,"d":"$20.00"}]
[null,null,"Actividad 2.7","Regularizar predios en Santa Rosa y Cedros (expedición de títulos de propiedad)","PORCENTAJE de regularización de predios (P140-RP)","Mide los avances en la elaboración del programa de regularización de predios rusticos","Eficacia","Gestión","(Cantidad de etapas (10) completas en la elaboracion de cada uno de los expedientes del programa de regularizacion de predios en Santa Rosa y Cedros  / total de etapas (6000) completadas en cada uno de los 600 predios por regularizar en  el programa de regularizacion de predios en Santa Rosa y Cedros)*100",6000,6000,"Mensual","Porcentaje",{"v":1,"d":"1.00"}," Portal Web del Municipio página de transparencia","Se dispone de personal y recursos ",{"v":42309.9,"d":"42,309.9"},{"v":4500,"d":"4,500.0"},{"v":13200,"d":"13,200.0"},{"v":0,"d":"0.0"},{"v":0,"d":"0.0"},{"v":0,"d":"0.0"},{"v":0,"d":"0.0"},{"v":0,"d":"0.0"},{"v":0,"d":"0.0"},{"v":60009.9,"d":"$60,009.90"},{"v":15,"d":"$15.00"}]
[null,"Obras públicas","Componente 3","Cumplimiento en Obra Pública Incrementado","ÍNDICE de cumplimiento del Programa de Obra Pública Anual (Í3-CPOPA)","Mide la cantidad de Proyectos de obra concluidos exitosamente de los que integran el programa anual infraestructura municipal","Eficacia","Gestión","(valor resultante de sumar los valores individuales  de  los cosientes entre sus denominadores por su ponderacion asignada, que miden las  variables de: rezago de infraestructura, evaluacion normatividad y cumplimiento PAO con su correspondientes ponderaciones de .4, .4,  y .2)",266.4,294.4,"Bimestral","Índice",{"v":0.9,"d":"0.90"}," Portal Web del Municipio página de transparencia","Se dispone de personal y recursos ",{"v":2244472,"d":"$2,244,472.0"},{"v":3960000,"d":"$3,960,000.0"},{"v":1903000,"d":"$1,903,000.0"},{"v":0,"d":"$0.0"},{"v":550000,"d":"$550,000.0"},{"v":18604745,"d":"$18,604,745.0"},{"v":0,"d":"$0.0"},{"v":0,"d":"$0.0"},{"v":0,"d":"$0.0"},{"v":27262217,"d":"$27,262,217.0"}]
[null,null,"Actividad 3.1","Abatir en un alto porcentaje el rezago de infraestructura que presenta las localidades que conforma el Municipio de Ixtlahuacán de los Membrillos, Jalisco","PORCENTAJE de reduccion del rezago de infraestructura (P145-RRI)","Mide el avance en la disminución del rezago en infraestructura en localidades del municipio","Eficacia","Gestión","(Cantidad de obras concluidas ( 5 nuevas, 10 de manetnimiento y 8 rehabilitadas) como nuevas, de mantenimiento y rehabilitadas para dar cumplimiento al programa anual de obra en educacion, vialidades, agua potable, cultura y deporte/ Total de obras  (23) que integran el programa anual de obra)*100",64,64,"Mensual","Porcentaje",{"v":1,"d":"1.00"}," Portal Web del Municipio página de transparencia","Se dispone de personal y recursos ",{"v":1122236,"d":"1,122,236.0"},{"v":1980000,"d":"1,980,000.0"},{"v":951500,"d":"951,500.0"},{"v":0,"d":"0.0"},{"v":275000,"d":"275,000.0"},{"v":9302372.5,"d":"9,302,372.5"},{"v":0,"d":"0.0"},{"v":0,"d":"0.0"},{"v":0,"d":"0.0"},{"v":13631108.5,"d":"$13,631,108.50"},{"v":50,"d":"$50.0"}]
[null,null,"Actividad 3.2","Ejercer el recurso en tiempo con las modalidades establecidas en la Ley  de Obra Publica, de acuerdo al monto del recurso.","PORCENTAJE de ejercicio de recursos apegados a ley de obra pública y normatividad aplicable que cumpla con la evaluación de la calidad del marco jurídico estatal (P146-ERALOP)","Mide el cumplimiento del programa de obra separado por fuente de financiamiento y normatividad aplicable en cumplimiento de la evaluación de la calidad del marco jurídico estatal","Eficacia","Gestión","(Cantidad de etapas (10) completas en la elaboracion de cada uno de los expedientes del programa anual de obra pública  / total de etapas (640) completadas en cada uno de los 64 expedientes del programa anual de obra pública 2020)*100",570,640,"Mensual","Porcentaje",{"v":1,"d":"100%"}," Portal Web del Municipio página de transparencia","Se dispone de personal y recursos ",{"v":112223.59999999998,"d":"112,223.6"},{"v":197999.99999999997,"d":"198,000.0"},{"v":95149.99999999999,"d":"95,150.0"},{"v":0,"d":"0.0"},{"v":27499.999999999996,"d":"27,500.0"},{"v":930237.2499999999,"d":"930,237.3"},{"v":0,"d":"0.0"},{"v":0,"d":"0.0"},{"v":0,"d":"0.0"},{"v":1363110.8499999996,"d":"$1,363,110.85"},{"v":4.999999999999999,"d":"$5.0"}]
[null,null,"Actividad 3.3","Programas de mantenimiento e instalaciones en planteles de preescolares y primarias, mantenimiento y construcción de casa de la cultura y teatro, rehabilitación de pavimentos en vialidades, sustitución de líneas de agua potable y cajas de valvulas,perforacion de pozos para la extracción de agua potable y sustitución de lineas de drenaje y construcción de pozos de visita.  ","PORCENTAJE de cumplimiento y avance en el programa de obra anual, mantenimiento y rehabilitacion de infraestructura (P147-CAPOAMR)","Mide el cumplimiento y avance en el programa de obra anual, de mantenimiento y rehabilitación a escuelas, instalaciones deportivas, vialidades, instalaciones de agua potable y lineas de drenaje","Eficacia","Gestión","(Cantidad de obras concluidas ( 44 nuevas, 14 de manetnimiento y 10 rehabilitadas) como nuevas, de mantenimiento y rehabilitadas para dar cumplimiento al programa anual de obra en educacion, vialidades, agua potable, cultura y deporte/ Total de obras  (64) que integran el programa anual de obra)*100",64,64,"Mensual","Porcentaje",{"v":1,"d":"1.00"}," Portal Web del Municipio página de transparencia","Se dispone de personal y recursos ",{"v":1010012.4,"d":"1,010,012.4"},{"v":1782000,"d":"1,782,000.0"},{"v":856350,"d":"856,350.0"},{"v":0,"d":"0.0"},{"v":247500,"d":"247,500.0"},{"v":8372135.25,"d":"8,372,135.3"},{"v":0,"d":"0.0"},{"v":0,"d":"0.0"},{"v":0,"d":"0.0"},{"v":12267997.65,"d":"$12,267,997.65"},{"v":45,"d":"$45.0"}]
[null,"Ecología","Componente 4","Condiciones Ecológicas Mejoradas","ÍNDICE de  mejora en las condiciones ecológicas del territorio municipal (T4-MCEtm)","Mide la cantidad de Direcciones municipales que hacen actividades para mejorar las condiciones ecológicas","Eficacia","Gestión","(valor resultante de sumar los valores individuales  de  los cosientes entre sus denominadores por su ponderacion asignada, que miden las  variables de: regularizacion de empresas, diagnostico y programa capacitación con su correspondientes ponderaciones de .5, .2,  y .3)",46.4,185,"Bimestral","Índice","0.25"," Portal Web del Municipio página de transparencia","Se dispone de personal y recursos ",{"v":1157263,"d":"$1,157,263.0"},{"v":17000,"d":"$17,000.0"},{"v":46000,"d":"$46,000.0"},{"v":0,"d":"$0.0"},{"v":0,"d":"$0.0"},{"v":0,"d":"$0.0"},{"v":0,"d":"$0.0"},{"v":0,"d":"$0.0"},{"v":0,"d":"$0.0"},{"v":1220263,"d":"$1,220,263.0"}]
[null,null,"Actividad 4.1","Regular las empresas y establecimientos que operan en el territorio municipal que emiten algún tipo de contaminante que afecte al medio ambiente, así como reforzar en la población civil la concientización del cuidado del medio ambiente a través de talleres","PORCENTAJE de avance en el programas regularización de empresas y establecimientos en el territorio (P148-APREET)","Mide los avance de cumplimiento en los dictamenes y talleres ","Eficacia","Gestión","(Cantidad de actividades 6 (2 dictamines sobre contaminación y 4 talleres sobre medio ambientales) para mejorar la regulación de establecimientos que emiten algun tipo de contaminante al medioambiente / total de actividades (6) para mejorar la regulación de establecimientos que emiten algun tipo de contaminante al medioambiente)*100",6,6,"Mensual","Porcentaje",{"v":1,"d":"1.00"}," Portal Web del Municipio página de transparencia","Se dispone de personal y recursos ",{"v":347178.9,"d":"347,178.9"},{"v":5100,"d":"5,100.0"},{"v":13800,"d":"13,800.0"},{"v":0,"d":"0.0"},{"v":0,"d":"0.0"},{"v":0,"d":"0.0"},{"v":0,"d":"0.0"},{"v":0,"d":"0.0"},{"v":0,"d":"0.0"},{"v":366078.9,"d":"$366,078.90"},{"v":30,"d":"$30.0"}]
[null,null,"Actividad 4.2","Elaboración de Diagnostico para determinar la superficie de la Área Natural Protegida","PORCENTAJE de elaboración de diagnóstico de área natural protegida  municipal para sumar a la superficie estatal bajo esquemas de Área Natural Protegida  (P149-EDANP)","Mide los avances en la propuesta de área natural protegida","Eficacia","Gestión","(Cantidad de etapas (10) necesarias para terminar el diagnostico para determinar el área natural protegida municipal / Total de etapas cubiertas para  terminar el diagnostico para determinar el área natural protegida municipal (10))*100",10,10,"Mensual","Porcentaje",{"v":1,"d":"100%"}," Portal Web del Municipio página de transparencia","Se dispone de personal y recursos ",{"v":520768.35,"d":"520,768.4"},{"v":7650,"d":"7,650.0"},{"v":20700,"d":"20,700.0"},{"v":0,"d":"0.0"},{"v":0,"d":"0.0"},{"v":0,"d":"0.0"},{"v":0,"d":"0.0"},{"v":0,"d":"0.0"},{"v":0,"d":"0.0"},{"v":549118.35,"d":"$549,118.35"},{"v":45,"d":"$45.0"}]
[null,null,"Actividad 4.3","Impartir un taller sobre la Importancia del Medio Ambiente y del Cambio Climático, dirigido al personal del H. Ayuntamiento.","PORCENTAJE de cumplimiento del programa sobre medioambiente y cambio climático (P150-CPSMCC)","Mide el cumplimiento y participación en el programa de capacitacion ambiental","Eficacia","Gestión","(Cantidad de personal inscrito (3) para participar en el programa de capacitacion sobre  la Importancia del Medio Ambiente y del Cambio Climático por cada una de las (46) direcciones del Ayuntamiento/total de personal en el ayutamiento (600))*100",138,600,"Mensual","Porcentaje",0.23," Portal Web del Municipio página de transparencia","Se dispone de personal y recursos ",{"v":289315.75,"d":"289,315.8"},{"v":4250,"d":"4,250.0"},{"v":11500,"d":"11,500.0"},{"v":0,"d":"0.0"},{"v":0,"d":"0.0"},{"v":0,"d":"0.0"},{"v":0,"d":"0.0"},{"v":0,"d":"0.0"},{"v":0,"d":"0.0"},{"v":305065.75,"d":"$305,065.75"},{"v":25,"d":"$25.0"}]

{"sheet":"Pp2 MIR DS","index":2,"n_rows":88,"n_cols":28,"rows_kept":88,"merged":[[2,2,2,3],[3,2,3,3],[4,2,4,3],[5,2,5,3],[6,2,6,3],[7,2,7,3],[8,2,8,3],[9,1,10,1],[9,2,9,3],[10,2,10,3],[11,1,12,1],[11,2,11,3],[12,2,12,3],[13,1,14,1],[13,2,13,3],[14,2,14,3],[16,4,16,16],[16,17,16,25],[20,1,28,1],[29,1,32,1],[33,1,34,1],[35,1,38,1],[39,1,42,1],[43,1,46,1],[47,1,51,1],[52,1,54,1],[55,1,58,1],[59,1,61,1],[62,1,65,1],[66,1,70,1],[71,1,72,1],[73,1,75,1],[76,1,80,1],[81,1,82,1],[83,1,84,1],[85,1,87,1]]}
[]
[{"$nulls":11},"  MATRIZ DE INDICADORES PARA RESULTADOS POR PROGRAMA "]
[null,null,"Municipio",null,"Ixtlahuacán de los Membrillos"]
[null,null,"Denominación del Programa",null,"Desarrollo Social"]
[null,null,"Categoría programática",null,"Prestación de servicios públicos"]
[null,null,"Unidad Responsable/OPD",null,"Dirección de desarrollo social municipal"]
[null,null,"Finalidad",null,"Desarrollo_Social"]
[null,null,"Función",null,"Vivienda_y_Servicios_a_la_Comunidad"]
[null,null,"Sub-función",null,"2.2.2 Desarrollo Comunitario"]
[null,"Plan Nacional de Desarrollo","Alineación con objetivos superiores del PND",null,"IV.II  Bienestar :  Garantizar el ejercicio efectivo de los derechos económicos, sociales, culturales y ambientales, con énfasis en la reducción de brechas de desigualdad y condiciones de vulnerabilidad y discriminación en poblaciones y territorios."]
[null,null,"Alineación con objetivos secundarios del PND",null,"Objetivo 2.1  Brindar atención prioritaria a grupos históricamente discriminados mediante acciones que permitan reducir las brechas de desigualdad sociales y territoriales."]
[null,"Plan Estatal de Desarrollo","Alineación con objetivos superiores del PED",null,"6.4  Desarrollo social"]
[null,null,"Alineación con objetivos secundarios del PED",null,"Pobreza y desigualdad"]
[null,"Plan Municipal de Desarrollo","Alineación con objetivos superiores del PMD",null,"2  Desarrollo social municipal"]
[null,null,"Alineación con objetivos secundarios del PMD",null,"2.1  Incrementar el Índice de Desarrollo Social en el Municipio"]
[]
[{"$nulls":4},"I N D I C A D O R E S",{"$nulls":12},"P R E S U P U E S T O"]
[{"$nulls":4},"Resumen Narrativo","Nombre del indicador","Definición","Dimensión","Tipo","Método de cálculo","Valor programado 1 (Numerador)","Valor programado 2 (Denominador)","Frecuencia de medición","Unidad de medida","Metas","Medios de verificación","Supuestos","Capítulo 1000","Capítulo 2000","Capítulo 3000","Capítulo 4000","Capítulo 5000","Capítulo 6000","Capítulo 7000","Capítulo 8000","Capítulo 9000",null,100]
[null,null,"Fin",null,"La población que reside en Ixtlhuacán de los Membreillos disponen de un estado de bienestar en cuatro dimensiónes; Estado de Derecho, Desarrollo Social, Desarrollo Económico y Gestión del Territorio.","INDICE Integral de Cumplimiento del Plan Municipal de Desarrollo y Gobernanza 2018-2021 (IICPMDG 1821)","Mide en el cumplimiento en cada uno de los programas presupuestarios establecidos en cada eje del PMDyG para su segumiento al cumplimiento de las metas definidas para cada unidad administrativa municipal","Eficiencia","Estratégico","IIDMt = [(IIEDSmt + IIDSmt + IIDEmt + IAGTmt) /4]",2.21,4,"Trimestral","Índice",0.55," Portal Web del Municipio página de transparencia","Se dispone de personal y recursos",{"v":17052117,"d":"$17,052,117.0"},{"v":6679493,"d":"$6,679,493.0"},{"v":15959645,"d":"$15,959,645.0"},{"v":9000000,"d":"$9,000,000.0"},{"v":0,"d":"$0.0"},{"v":0,"d":"$0.0"},{"v":0,"d":"$0.0"},{"v":0,"d":"$0.0"},{"v":6000000,"d":"$6,000,000.0"},{"v":54691255,"d":"$54,691,255.0"},"37.7%"]
[null,null,"Propósito",null,"Continuar mejorando las condiciones y la calidad de vida de los habitantes de Ixtlahuacán de los Membrillos","Índice de avance en el combate a la marginación municipal (IMNM)","Mide el progreso del municipio en la dimensiones del desarrollo: social","Eficiencia","Estratégico","(valor resultante de sumar los valores individuales  de  los cosientes entre sus denominadores por su ponderacion asignada, que miden las  variables de:  cobertura agua potable, eficiencia alumbrado público, cobertura áreas verdes, cobertura servicio limpia,  reducción situación de pobreza, maltrato desigualdad de género, actividad física deportiva, Cobertura Educativa, participación actividades culturales, urbanización, servicios de cementerios, atención DIF, atención ciudadana, participación ciudadana, calidad servicios de salud,  atención Agencias, atención Delegaciones, cobertura comunicación social, con su correspondientes ponderaciones de .1, .06, .04, .07, .08, .05, .05, .06, .05, .06, .04, .06, .04, .05, .07, .04, .04 y .04)",{"v":1442.9850000000004,"d":"1442.99"},{"v":6400.682999999999,"d":"6400.68"},"Trimestral","Índice",0.23," Portal Web del Municipio página de transparencia","Se dispone de personal y recursos",{"v":17052117,"d":"$17,052,117.0"},{"v":6679493,"d":"$6,679,493.0"},{"v":15959645,"d":"$15,959,645.0"},{"v":9000000,"d":"$9,000,000.0"},{"v":0,"d":"$0.0"},{"v":0,"d":"$0.0"},{"v":0,"d":"$0.0"},{"v":0,"d":"$0.0"},{"v":6000000,"d":"$6,000,000.0"},{"v":54691255,"d":"$54,691,255.0"}]
[null,"Sistema de Agua Potable y Alcantarillado (SAMAPA)","Componente 1",null,"Cobertura de Agua Potable y Alcantarillado Ampliada","Índice de cobertura agua potable y alcantarillado (Í1-CAPyA)","Mide la ampliacion en la cobertura de suministro de agua potable y alcantarillado ","Eficacia","Gestión","(valor resultante de sumar los valores individuales  de  los cosientes entre sus denominadores por su ponderacion asignada, que miden las  variables de: aguas subterraneas, macromedidores, cultura agua, colector principal, construccion pozos, desazolve carcamos, construccion humedal y rahabilitacion plantas con su correspondientes ponderaciones de .1, .2, .1, .1, .2, .1, .1, y .1)",12.7,15.9,"Bimestral","Índice","0.798"," Portal Web del Municipio página de transparencia","Se dispone de personal y recursos",{"v":0,"d":"$0.0"},{"v":0,"d":"$0.0"},{"v":0,"d":"$0.0"},{"v":2000000,"d":"$2,000,000.0"},{"v":0,"d":"$0.0"},{"v":0,"d":"$0.0"},{"v":0,"d":"$0.0"},{"v":0,"d":"$0.0"},{"v":0,"d":"$0.0"},{"v":2000000,"d":"$2,000,000.0"}]
[null,null,"Actividad 1.1",null,"Gestionar un estudio de aguas subterráneas","PORCENTAJE de avance del estudio de aguas subterráneas (P51-AEAS)","Mide los avances en tener un estudio ","Eficacia","Gestión","(Cantidad de  actividades (10) desarrolladas para la gestion de un estudio de aguas subterráneas / Total de  actividades (15) a desarrollar para la gestion de un estudio de aguas subterráneas)*100",10,15,"Mensual","Porcentaje",{"v":0.66,"d":"66%"}," Portal Web del Municipio página de transparencia","Se dispone de personal y recursos",{"v":0,"d":"0.0"},{"v":0,"d":"0.0"},{"v":0,"d":"0.0"},{"v":100000,"d":"100,000.0"},{"v":0,"d":"0.0"},{"v":0,"d":"0.0"},{"v":0,"d":"0.0"},{"v":0,"d":"0.0"},{"v":0,"d":"0.0"},{"v":100000,"d":"$100,000.0"},{"v":5,"d":"$5.0"}]
[null,null,"Actividad 1.2",null,"Instalación de macro medidores en pozos municipales","PORCENTAJE de pozos municipales con macro medidores (P52-PMMM)","Mide los avances en poner macromedidores en los pozos municipales","Eficacia","Gestión","(Cantidad de  actividades (80) desarrolladas para  colocar 5 macro medidores en las lineas de conducción del agua / Total de actividades (80) desarrolladas para  colocar 5 macro medidores en las lineas de conducción del agua de los pozos municipales a la red de agua potable )*100",80,80,"Mensual","Porcentaje",{"v":0.8,"d":"80%"}," Portal Web del Municipio página de transparencia","Se dispone de personal y recursos",{"v":0,"d":"0.0"},{"v":0,"d":"0.0"},{"v":0,"d":"0.0"},{"v":400000,"d":"400,000.0"},{"v":0,"d":"0.0"},{"v":0,"d":"0.0"},{"v":0,"d":"0.0"},{"v":0,"d":"0.0"},{"v":0,"d":"0.0"},{"v":400000,"d":"$400,000.0"},{"v":20,"d":"$20.0"}]
[null,null,"Actividad 1.3",null,"Programa de cultura del agua","PORCENTAJE de cumplimiento del programa de cultura del agua (P53-CPCA)","Mide el avance en el cumplimiento del programa ","Eficacia","Gestión","(Cantidad de  actividades (10) desarrolladas dentro del programa de cultura del agua / Total de  actividades (10) a desarrollar dentro del programa de cultura del agua)*100",10,10,"Mensual","Porcentaje",{"v":1,"d":"100%"}," Portal Web del Municipio página de transparencia","Se dispone de personal y recursos",{"v":0,"d":"0.0"},{"v":0,"d":"0.0"},{"v":0,"d":"0.0"},{"v":300000,"d":"300,000.0"},{"v":0,"d":"0.0"},{"v":0,"d":"0.0"},{"v":0,"d":"0.0"},{"v":0,"d":"0.0"},{"v":0,"d":"0.0"},{"v":300000,"d":"$300,000.0"},{"v":15,"d":"$15.0"}]
[null,null,"Actividad 1.4",null,"Reemplazar el colector principal de la línea de drenaje ","PORCENTAJE colector principal remplazado (P54-CPR)","Mide los avances en el reemplazo del colector principal","Eficacia","Gestión","(Cantidad de  actividades (10) desarrolladas para  reemplazar 100 ml del colector principal de la línea de drenaje  en cabecera municipal / Total de actividades (10) programadas para  reemplazar 100 ml del colector principal de la línea de drenaje de la cabecera municipal )*100",10,10,"Mensual","Porcentaje",{"v":1,"d":"100%"}," Portal Web del Municipio página de transparencia","Se dispone de personal y recursos",{"v":0,"d":"0.0"},{"v":0,"d":"0.0"},{"v":0,"d":"0.0"},{"v":400000,"d":"400,000.0"},{"v":0,"d":"0.0"},{"v":0,"d":"0.0"},{"v":0,"d":"0.0"},{"v":0,"d":"0.0"},{"v":0,"d":"0.0"},{"v":400000,"d":"$400,000.0"},{"v":20,"d":"$20.0"}]
[null,null,"Actividad 1.5",null,"Construcción de 2 pozos profundos","PORCENTAJE de avance en perforación de pozos (P55-AP2P)","Mide los avances en la perforación de dos nuevos pozos profundos","Eficacia","Gestión","(Cantidad de  actividades (10) desarrolladas para la construcción de 2 nuevos pozos profundos / Total de  actividades (15) a desarrollar para la construcción de 2 nuevos pozos profundos en el territorio municipal)*100",10,10,"Mensual","Porcentaje",{"v":0.66,"d":"66%"}," Portal Web del Municipio página de transparencia","Se dispone de personal y recursos",{"v":0,"d":"0.0"},{"v":0,"d":"0.0"},{"v":0,"d":"0.0"},{"v":500000,"d":"500,000.0"},{"v":0,"d":"0.0"},{"v":0,"d":"0.0"},{"v":0,"d":"0.0"},{"v":0,"d":"0.0"},{"v":0,"d":"0.0"},{"v":500000,"d":"$500,000.0"},{"v":25,"d":"$25.0"}]
[null,null,"Actividad 1.6",null,"Desazolve de cárcamos","PORCENTAJE de cárcamos con desazolve (P56-CCD)","Mide el avance en el desasolve de carcamos","Eficacia","Gestión","(Cantidad de  actividades (8) desarrolladas para  el desazolve  de 100 cárcamos construidos en el territorio municipal / Total de actividades (8) programas a desarrollar para  el desazolve  de 100 cárcamos construidos en el territorio municipal )*100",8,8,"Mensual","Porcentaje",{"v":1,"d":"100%"}," Portal Web del Municipio página de transparencia","Se dispone de personal y recursos",{"v":0,"d":"0.0"},{"v":0,"d":"0.0"},{"v":0,"d":"0.0"},{"v":300000,"d":"300,000.0"},{"v":0,"d":"0.0"},{"v":0,"d":"0.0"},{"v":0,"d":"0.0"},{"v":0,"d":"0.0"},{"v":0,"d":"0.0"},{"v":300000,"d":"$300,000.0"},{"v":15,"d":"$15.0"}]
[null,null,"Actividad 1.7",null,"Construcción del humedal arroyo de los sabinos","PORCENTAJE de avance en la construcción del humedal (P57-ACH)","Mide el avance en la costrucción del humedal","Eficacia","Gestión","(Cantidad de  actividades (10) desarrolladas para la Construcción del humedal arroyo de los sabinos / Total de  actividades (10) a desarrollar para la Construcción del humedal arroyo de los sabinos)*100",10,10,"Mensual","Porcentaje",{"v":0.75,"d":"75%"}," Portal Web del Municipio página de transparencia","Se dispone de personal y recursos",{"v":0,"d":"0.0"},{"v":0,"d":"0.0"},{"v":0,"d":"0.0"},{"v":200000,"d":"200,000.0"},{"v":0,"d":"0.0"},{"v":0,"d":"0.0"},{"v":0,"d":"0.0"},{"v":0,"d":"0.0"},{"v":0,"d":"0.0"},{"v":200000,"d":"$200,000.0"},{"v":10,"d":"$10.0"}]
[null,null,"Actividad 1.8",null,"Rehabilitación de 4 plantas de tratamiento","PORCENTAJE de Plantas de tratamiento de aguas residuales en operación dentro de norma (P58-PPTARDN)","Mide el avance en la rehabilitación de plantas de tratamiento de aguas residuales y puestas en operación dentro de norma","Eficacia","Gestión","(Cantidad de plantas de tratamiento de aguas residuales (4) a las que se les dio mantenimiento y rehabilitación  / Total plantas de tratamiento de aguas residuales (6) existentes en el municipio)*100",4,6,"Mensual","Porcentaje",{"v":0.66,"d":"66%"},"10:10",null,{"v":0,"d":"0.0"},{"v":0,"d":"0.0"},{"v":0,"d":"0.0"},{"v":400000,"d":"400,000.0"},{"v":0,"d":"0.0"},{"v":0,"d":"0.0"},{"v":0,"d":"0.0"},{"v":0,"d":"0.0"},{"v":0,"d":"0.0"},{"v":400000,"d":"$400,000.0"},{"v":20,"d":"$20.0"}]
[null,"Alumbrado público","Componente 2",null,"Cobertura de Alumbrado Público Ampliada","TASA de modernizacion y eficiencia en alumbrado público municipal (T2-CAP)","Mide la modernizacion y la eficiencia del alumbrado público municipal con el cambio de luminarias existentes a luminarias de LEDs","Eficacia","Gestión","(Tasa de modernizacion de luminarias a LEDs por cada 1000 de las existentes ",100,4513,"Bimestral","Tasa","22 . 1000"," Portal Web del Municipio página de transparencia","Se dispone de personal y recursos",{"v":722682,"d":"$722,682.0"},{"v":338000,"d":"$338,000.0"},{"v":18000,"d":"$18,000.0"},{"v":0,"d":"$0.0"},{"v":0,"d":"$0.0"},{"v":0,"d":"$0.0"},{"v":0,"d":"$0.0"},{"v":0,"d":"$0.0"},{"v":0,"d":"$0.0"},{"v":1078682,"d":"$1,078,682.0"}]
[null,null,"Actividad 2.1",null,"Instalación de luminarias led","PORCENTAJE de luminarias led instaladas (P59-LLI)","Mide el avance en la instalacion de luminarias","Eficacia","Gestión","(Cantidad de luminarias de los circuitos de alumbrado publico municipales que se han sustituido (100) por luminarias de LEDs / Total de  luminarias de los circuitos de alumbrado publico municipales que se han programado (100) para ser sustituidas por luminarias de LEDs)*100",100,100,"Mensual","Porcentaje",{"v":1,"d":"100%"}," Portal Web del Municipio página de transparencia","Se dispone de personal y recursos",{"v":289072.8,"d":"289,072.8"},{"v":135200,"d":"135,200.0"},{"v":7200,"d":"7,200.0"},{"v":0,"d":"0.0"},{"v":0,"d":"0.0"},{"v":0,"d":"0.0"},{"v":0,"d":"0.0"},{"v":0,"d":"0.0"},{"v":0,"d":"0.0"},{"v":431472.8,"d":"$431,472.8"},{"v":40,"d":"$40.0"}]
[null,null,"Actividad 2.2",null,"Instalación de equipos de medición en igual número de circuitos municipales","PORCENTAJE de instalación de equipos de medición por circuito (P60-IEMC)","Mide el avance en la instalacion de euipos de medicion","Eficacia","Gestión","(Cantidad de circuitos (54) de alumbrado público municipal a los que se instalo equipo de medicion / Total decircuitos (54) de alumbrado público municipal a los que se instalara equipo de medicion)*100",54,54,"Mensual","Porcentaje",{"v":1,"d":"100%"}," Portal Web del Municipio página de transparencia","Se dispone de personal y recursos",{"v":180670.5,"d":"180,670.5"},{"v":84500,"d":"84,500.0"},{"v":4500,"d":"4,500.0"},{"v":0,"d":"0.0"},{"v":0,"d":"0.0"},{"v":0,"d":"0.0"},{"v":0,"d":"0.0"},{"v":0,"d":"0.0"},{"v":0,"d":"0.0"},{"v":269670.5,"d":"$269,670.5"},{"v":25,"d":"$25.0"}]
[null,null,"Actividad 2.3",null,"Mantenimiento y preservación de luminarias","PORCENTAJE de luminarias incluidas en el programa de mantenimiento y preservación (P61-LIPMP)","Mide el avance en el mantenimiento de luminarias","Eficacia","Gestión","(Cantidad de luminarias instaladas (4513)  con mantenimiento trimestral incluidas en el programa de mantenimiento municipal / Total de luminarias proyectadas al cierre de año (4600) para completar el programa de mantenimiento municipal)*100",4513,4600,"Mensual","Porcentaje",{"v":0.98,"d":"98%"}," Portal Web del Municipio página de transparencia","Se dispone de personal y recursos",{"v":252938.7,"d":"252,938.7"},{"v":118300,"d":"118,300.0"},{"v":6300,"d":"6,300.0"},{"v":0,"d":"0.0"},{"v":0,"d":"0.0"},{"v":0,"d":"0.0"},{"v":0,"d":"0.0"},{"v":0,"d":"0.0"},{"v":0,"d":"0.0"},{"v":377538.7,"d":"$377,538.7"},{"v":35,"d":"$35.0"}]
[null,"Parques y jardines","Componente 3",null,"Cobertura de Áreas Verdes y Espacios Públicos Ampliada","TASA de cobertura de áreas verdes y espacios públicos (T3-CAVyEP)","Mide la ampliacion de la cobertura en atención a areas verdes y espcios públicos en 10 de cada diez","Eficacia","Gestión","(Tasa de metros cuadrados de área verde y plazas públicas por cada 1000 habitantes    ",20600,11,"Bimestral","Tasa","21 : 0.011"," Portal Web del Municipio página de transparencia","Se dispone de personal y recursos",{"v":1420995,"d":"$1,420,995.0"},{"v":448000,"d":"$448,000.0"},{"v":18000,"d":"$18,000.0"},{"v":0,"d":"$0.0"},{"v":0,"d":"$0.0"},{"v":0,"d":"$0.0"},{"v":0,"d":"$0.0"},{"v":0,"d":"$0.0"},{"v":0,"d":"$0.0"},{"v":1886995,"d":"$1,886,995.0"}]
[null,null,"Actividad 3.1",null,"Programa de Arreglo, mantenimiento y preservación  de plazas publicas, Av. Principal de Cabecera municipal y de camellones.","PORCENTAJE cumplimiento del programa de arreglo, mantenimiento y preservación (P62-CPAMP)","Mide el cumplimiento del programa","Eficacia","Gestión","(Cantidad de  actividades (22) realizadas para ejecutar el  Programa de Arreglo, a 11 plazas públicas, mantenimiento a 20,600 m2 de camellon como área verde y plantación de 5000 arboles / Total de actividades (25) programadas para ejecutar el  Programa de Arreglo, a 11 plazas públicas, mantenimiento a 20,600 m2 de camellon y plantación de 5000 arboles)*100",22,25,"Mensual","Porcentaje",{"v":0.88,"d":"88%"}," Portal Web del Municipio página de transparencia","Se dispone de personal y recursos",{"v":1420995,"d":"1,420,995.0"},{"v":448000,"d":"448,000.0"},{"v":18000,"d":"18,000.0"},{"v":0,"d":"0.0"},{"v":0,"d":"0.0"},{"v":0,"d":"0.0"},{"v":0,"d":"0.0"},{"v":0,"d":"0.0"},{"v":0,"d":"0.0"},{"v":1886995,"d":"$1,886,995.0"},{"v":100,"d":"$100.0"}]
[null,"Aseo público","Componente 4",null,"Cobertura de Servicio de Limpia y Aseo Público Ampliada","Índice de cobertura de servicio  de limpia y aseo público (T4-SLyAP)","Mide el mantenimiento y la  ampliacion en la cobertura de limpia y aseo público ","Eficacia","Gestión","(valor resultante de sumar los valores individuales  de  los cosientes entre sus denominadores por su ponderacion asignada, que miden las  variables de: gestion camión, mantenimiento a camiones y recolección basura con su correspondientes ponderaciones de .2, .4  y .4)",198,167.6,"Bimestral","Índice","1.18"," Portal Web del Municipio página de transparencia","Se dispone de personal y recursos",{"v":2648481,"d":"$2,648,481.0"},{"v":2365000,"d":"$2,365,000.0"},{"v":227000,"d":"$227,000.0"},{"v":0,"d":"$0.0"},{"v":0,"d":"$0.0"},{"v":0,"d":"$0.0"},{"v":0,"d":"$0.0"},{"v":0,"d":"$0.0"},{"v":0,"d":"$0.0"},{"v":5240481,"d":"$5,240,481.0"}]
[null,null,"Actividad 4.1",null,"Gestión de la adquisición de equipo y vehículos de recolección","PORCENTAJE avance en la gestión de equipo para la recolección (P63-AGER)","Mide los avances en la gestion para adquirir equipo de recolección","Eficacia","Gestión","(Cantidad de  gestiones y actividades a realizar (10) para la gestión de un camion compactador para la recoleccion de basúra / Total de gestiones y actividades a realizar (10) para la gestión de un camion compactador para la recoleccion de basúra )*100",10,10,"Mensual","Porcentaje",{"v":1,"d":"100%"}," Portal Web del Municipio página de transparencia","Se dispone de personal y recursos",{"v":1456664.55,"d":"1,456,664.6"},{"v":1300750,"d":"1,300,750.0"},{"v":124850,"d":"124,850.0"},{"v":0,"d":"0.0"},{"v":0,"d":"0.0"},{"v":0,"d":"0.0"},{"v":0,"d":"0.0"},{"v":0,"d":"0.0"},{"v":0,"d":"0.0"},{"v":2882264.55,"d":"$2,882,264.6"},{"v":55,"d":"$55.0"}]
[null,null,"Actividad 4.2",null,"Instalación de contenedores de basura en colonias, fraccionamientos y comunidades rurales y mantenimiento preventivo a camiones recolectores de basura","PORCENTAJE de avance en la instalación de contenedores para recolección de basura (P64-AICRB)","Mide el avance en la instalacion de contenedores y las toneladas recolectadas","Eficacia","Gestión","(Cantidad de contenedores instalados en el mes (0) y camiones con mantenimiento preventivo en el mes (12) / Total de contenedores instalados en colonias y fraccionamientos en el mes (0) y camiones recolectores con mantenimiento preventivo durante el mes (12)  como actividades del programa de limpia y recolección de basura )*100",144,144,"Mensual","Porcentaje",{"v":1,"d":"100%"}," Portal Web del Municipio página de transparencia","Se dispone de personal y recursos",{"v":926968.35,"d":"926,968.4"},{"v":827750,"d":"827,750.0"},{"v":79450,"d":"79,450.0"},{"v":0,"d":"0.0"},{"v":0,"d":"0.0"},{"v":0,"d":"0.0"},{"v":0,"d":"0.0"},{"v":0,"d":"0.0"},{"v":0,"d":"0.0"},{"v":1834168.35,"d":"$1,834,168.4"},{"v":35,"d":"$35.0"}]
[null,null,"Actividad 4.3",null,"Creación de nuevas rutas de recolección de basura, impulsando la separación de basura ","PORCENTAJE de incremento en la recoleccion de basura (P65-ACNRRB)","Mide el incremento en la recolección de basura como consecuencia del crecimiento poblacional y la precaria cultura del reciclaje de desechos solidos ","Eficacia","Gestión","((Cantidad de  toneladas de basura proyectada a recolectar por crecimiento urbano  por mes (346) en las rutas municipales existentes / Total de toneladas de basura recolectada actualmente por mes (270) en las rutas municipales existentes)*100)-100",346,270,"Mensual","Porcentaje",{"v":0.28,"d":"28%"}," Portal Web del Municipio página de transparencia","Se dispone de personal y recursos",{"v":264848.1,"d":"264,848.1"},{"v":236500,"d":"236,500.0"},{"v":22700,"d":"22,700.0"},{"v":0,"d":"0.0"},{"v":0,"d":"0.0"},{"v":0,"d":"0.0"},{"v":0,"d":"0.0"},{"v":0,"d":"0.0"},{"v":0,"d":"0.0"},{"v":524048.1,"d":"$524,048.1"},{"v":10,"d":"$10.0"}]
[null,"Desarrollo social","Componente 5",null,"Familias en Pobreza Disminuidas","Porcentaje de reducción de familias en situación de pobreza multidimensional extrema(T5-TSP)","Mide la reducción de familias en situación de pobreza multidimensional extrema","Eficacia","Gestión","(Cantidad de población (911)  que se mantiene en situación de pobreza multidimensional extrema en el municipio de acuerdo a INEGI, Censo de Población y Vivienda, 2010/ Total de Población en situación de pobreza multidimensional (15,133) INEGI, Censo de Población y Vivienda, 2010  que necesitanser incorporados a programas de apoyo que ayuden a superar esta condicion en el municipio )*100",911,15133,"Bimestral","Porcentaje","6% "," Portal Web del Municipio página de transparencia","Se dispone de personal y recursos",{"v":863363,"d":"$863,363.0"},{"v":41000,"d":"$41,000.0"},{"v":9000,"d":"$9,000.0"},{"v":1500000,"d":"$1,500,000.0"},{"v":0,"d":"$0.0"},{"v":0,"d":"$0.0"},{"v":0,"d":"$0.0"},{"v":0,"d":"$0.0"},{"v":0,"d":"$0.0"},{"v":2413363,"d":"$2,413,363.0"}]
[null,null,"Actividad 5.1",null,"Desarrollar un plan estratégico de colaboración entre  Gobierno Federal, Estatal y Municipal, orientado  al empleo, capacitación, y desarrollo económico de la sociedad, familiar e individual.","PORCENTAJE de avance en el desarrollo del Plan económico estratégico (P66-ADPE)","Mide los avances en el cumplimiento del plan económico estratégico a traves de beneficiar a los adultos mayores","Eficacia","Gestión","(Cantidad de población (4,256)  que se mantiene como vulnerable por ingresos en el municipio de acuerdo a INEGI, Censo de Población y Vivienda, 2010/ Total de Población vulnerable por carencias sociales  (16,399) INEGI, Censo de Población y Vivienda, 2010  que necesitanser incorporados a programas de apoyo economico en el municipio )*100",4256,16399,"Mensual","Porcentaje",{"v":0.26,"d":"26%"}," Portal Web del Municipio página de transparencia","Se dispone de personal y recursos",{"v":129504.45,"d":"129,504.5"},{"v":6150,"d":"6,150.0"},{"v":1350,"d":"1,350.0"},{"v":225000,"d":"225,000.0"},{"v":0,"d":"0.0"},{"v":0,"d":"0.0"},{"v":0,"d":"0.0"},{"v":0,"d":"0.0"},{"v":0,"d":"0.0"},{"v":362004.45,"d":"$362,004.5"},{"v":15,"d":"$15.0"}]
[null,null,"Actividad 5.2",null,"Promover  y difundir  la incorporación  de todos los beneficiarios de los diferentes Programas Federales, Estatales y Municipales al Seguro Popular, manteniendo activas sus pólizas de coberturas.","PORCENTAJE de ciudadanos apoyados en mantener activas sus pólizas de cobertura (P67-CAMAPC)","Mide el numero de ciudadanos que se mantienen como beneficiarios con cobertura de servicios de salud","Eficacia","Gestión","(Cantidad de población (2278) atendida que se mantiene con cobertura y poliza activa de  seguridad pública de salud en el municipio de acuerdo a INEGI, Censo de Población y Vivienda, 2010/ Total de población (9,847) INEGI, Censo de Población y Vivienda, 2010  que necesita incorporar a cobertura y poliza activa de  seguridad pública de salud en el municipio )*100",4500,12125,"Mensual","Porcentaje",{"v":0.3711,"d":"37.11%"}," Portal Web del Municipio página de transparencia","Se dispone de personal y recursos",{"v":215840.75,"d":"215,840.8"},{"v":10250,"d":"10,250.0"},{"v":2250,"d":"2,250.0"},{"v":375000,"d":"375,000.0"},{"v":0,"d":"0.0"},{"v":0,"d":"0.0"},{"v":0,"d":"0.0"},{"v":0,"d":"0.0"},{"v":0,"d":"0.0"},{"v":603340.75,"d":"$603,340.8"},{"v":25,"d":"$25.0"}]
[null,null,"Actividad 5.3",null,"Atender las zonas de atención prioritaria, para que accedan a los servicios básicos","PORCENTAJE de cobertura en servicios básicos a Zonas Prioritarias con carencias sociales (P68-CSBZP)","Mide los habitante con carencias sociales que cuentan con servcios básicos dentro de los poligonos de zonas prioritarias","Eficacia","Gestión","(Cantidad de población (11,480) atendida que vive en las zonas de atencion prioritaria con carencias sociales en el municipio de acuerdo a CONAPOJ 2015/ Total de población (16,399) que vive en las zonas de atencion prioritaria con carencias sociales (Rezago educativo 8,669, Acceso a los servicios de salud 9,847, Acceso a la seguridad social 22,255, Calidad y espacios de la vivienda 5,400, Acceso a los servicios básicos en la vivienda 1,700  y Acceso a la alimentación 7,194) en el municipio)*100",11480,16399,"Mensual","Porcentaje",{"v":0.7,"d":"70%"}," Portal Web del Municipio página de transparencia","Se dispone de personal y recursos",{"v":518017.8,"d":"518,017.8"},{"v":24600,"d":"24,600.0"},{"v":5400,"d":"5,400.0"},{"v":900000,"d":"900,000.0"},{"v":0,"d":"0.0"},{"v":0,"d":"0.0"},{"v":0,"d":"0.0"},{"v":0,"d":"0.0"},{"v":0,"d":"0.0"},{"v":1448017.8,"d":"$1,448,017.8"},{"v":60,"d":"$60.0"}]
[null,"Instituto de la mujer","Componente 6",null,"Maltrato y Desigualdad de Género Disminuidos","Índice de maltrato y desigualdad de género (T6-MyDG)","Mide la reducción del maltrato mediante la prevencion, ocupación y su reglamento","Eficacia","Gestión","(valor resultante de sumar los valores individuales  de  los cosientes entre sus denominadores por su ponderacion asignada, que miden las  variables de: prevención de violencia, femeninas ocupadas y actualizacion reglamento  con su correspondientes ponderaciones de .3, .3,  y .4)",20.1,21.9,"Bimestral","Índice","0.92"," Portal Web del Municipio página de transparencia","Se dispone de personal y recursos",{"v":0,"d":"$0.0"},{"v":0,"d":"$0.0"},{"v":0,"d":"$0.0"},{"v":480000,"d":"$480,000.0"},{"v":0,"d":"$0.0"},{"v":0,"d":"$0.0"},{"v":0,"d":"$0.0"},{"v":0,"d":"$0.0"},{"v":0,"d":"$0.0"},{"v":480000,"d":"$480,000.0"}]
[null,null,"Actividad 6.1",null,"Desarrollar dos programas para prevenir y erradicar la violencia de genero.  1 .- Proyecto quiérete Mujer   2.-Proyecto Junto a ti","PORCENTAJE de avance del programa de prevención de la violencia de genero que disminuya la presencia de feminicidios (P69-APPVG)","Mide le disminución y denuncia del abuso de mujeres violentadas que pueden terminar en feminicidios","Eficacia","Gestión","(Cantidad de actividades  (27) concluidas para la implementación de los programas para prevenir y erradicar la violencia de genero.  1 .- Proyecto quiérete Mujer (12) y  2.-Proyecto Junto a ti (15)\".  / Total de actividades  (31) para la implementación de los programas para prevenir y erradicar la violencia de genero.  1 .- Proyecto quiérete Mujer (14) y  2.-Proyecto Junto a ti (17)\". )*100",27,31,"Mensual","Porcentaje",{"v":0.87,"d":"87%"}," Portal Web del Municipio página de transparencia","Se dispone de personal y recursos",{"v":0,"d":"0.0"},{"v":0,"d":"0.0"},{"v":0,"d":"0.0"},{"v":96000,"d":"96,000.0"},{"v":0,"d":"0.0"},{"v":0,"d":"0.0"},{"v":0,"d":"0.0"},{"v":0,"d":"0.0"},{"v":0,"d":"0.0"},{"v":96000,"d":"$96,000.0"},{"v":20,"d":"$20.0"}]
[null,null,"Actividad 6.2",null,"Implementar dos programas  \"Mujer es poder\"  y \"Mujeres en acción\"  ","PORCENTAJE de implementación de los dos programas con población femenina ocupada (P70-IDP)","Mide el numero de población femenina ocupada y activas en el empoderamiento y activación de la mujer","Eficacia","Gestión","(Cantidad de actividades  (24) concluidas para la implementación de los programas  \"Mujer es poder (11)\"  y \"Mujeres en acción (13)\" manteniendo a poblacion femenina ocupada en ellos / Total de de actividades  (26) para la implementación de los programas  \"Mujer es poder (12)\"  y \"Mujeres en acción (14)\" manteniendo a poblacion femenina ocupada en ellos )*100",24,26,"Mensual","Porcentaje",{"v":0.923,"d":"92.30%"}," Portal Web del Municipio página de transparencia","Se dispone de personal y recursos",{"v":0,"d":"0.0"},{"v":0,"d":"0.0"},{"v":0,"d":"0.0"},{"v":312000,"d":"312,000.0"},{"v":0,"d":"0.0"},{"v":0,"d":"0.0"},{"v":0,"d":"0.0"},{"v":0,"d":"0.0"},{"v":0,"d":"0.0"},{"v":312000,"d":"$312,000.0"},{"v":65,"d":"$65.0"}]
[null,null,"Actividad 6.3",null,"Actualizar Reglamento a Ley de Acceso a una Vida Libre de Violencia. Elaboración del Reglamento a la Ley de Igualdad  para Mujeres y Hombres. Ambos reglamentos adaptados  de  acuerdo a lo observado por la secretaria de igualdad sustantiva.","PORCENTAJE de actualización del reglamento (P71-ARLA)","Mide los avances en la elaboracion del reglamento ","Eficacia","Gestión","(Cantidad de actividades  (12) concluidas para la elaboración del reglamento  homologado a la  Ley de Acceso a una Vida Libre de Violencia y a la Ley de Igualdad  para Mujeres y Hombres / Total de  actividades  (12) para la elaboración del reglamento  homologado a la  Ley de Acceso a una Vida Libre de Violencia y a la Ley de Igualdad  para Mujeres y Hombres )*100",12,12,"Mensual","Porcentaje",{"v":1,"d":"100%"}," Portal Web del Municipio página de transparencia","Se dispone de personal y recursos",{"v":0,"d":"0.0"},{"v":0,"d":"0.0"},{"v":0,"d":"0.0"},{"v":72000,"d":"72,000.0"},{"v":0,"d":"0.0"},{"v":0,"d":"0.0"},{"v":0,"d":"0.0"},{"v":0,"d":"0.0"},{"v":0,"d":"0.0"},{"v":72000,"d":"$72,000.0"},{"v":15,"d":"$15.0"}]
[null,"Deportes","Componente 7",null,"Actividad Física y Deportiva Incrementada","Índice de actividad física y deportiva  (T7-AFyD)","Mide la relación de ciudadanos que hacen ejercicio o actividad fisica respecto a los que no lo hacen","Eficacia","Gestión","(valor resultante de sumar los valores individuales  de  los cosientes entre sus denominadores por su ponderacion asignada, que miden las  variables de: mantenimiento áreas, torneos relampagos, ligas deportivas y talleres deportivos  con su correspondientes ponderaciones de .3, .2, .2 y .3)",1325.7,1472,"Bimestral","Índice","0.22"," Portal Web del Municipio página de transparencia","Se dispone de personal y recursos",{"v":671689,"d":"$671,689.0"},{"v":191000,"d":"$191,000.0"},{"v":15000,"d":"$15,000.0"},{"v":0,"d":"$0.0"},{"v":0,"d":"$0.0"},{"v":0,"d":"$0.0"},{"v":0,"d":"$0.0"},{"v":0,"d":"$0.0"},{"v":0,"d":"$0.0"},{"v":877689,"d":"$877,689.0"}]
[null,null,"Actividad 7.1",null,"Programa de mantenimiento  preventivo de unidades y áreas deportivas","PORCENTAJE de cumplimiento al programa de mantenimiento de áreas deportivas (P72-CPMAD)","Mide los avances en la ejecución del programa de mantenimiento","Eficacia","Gestión","(Cantidad de áreas y espacios establecidos para la practica del deporte y la cultura física (15) con actividades y trabajos incluidos en el programa de mantenimiento / Total de áreas y espacios establecidos para la practica del deporte y la cultura física (20) con las actividades y trabajos establecidos en el programa de mantenimiento)*100",15,20,"Mensual","Porcentaje",{"v":0.75,"d":"75%"}," Portal Web del Municipio página de transparencia","Se dispone de personal y recursos",{"v":134337.8,"d":"134,337.8"},{"v":38200,"d":"38,200.0"},{"v":3000,"d":"3,000.0"},{"v":0,"d":"0.0"},{"v":0,"d":"0.0"},{"v":0,"d":"0.0"},{"v":0,"d":"0.0"},{"v":0,"d":"0.0"},{"v":0,"d":"0.0"},{"v":175537.8,"d":"$175,537.8"},{"v":20,"d":"$20.0"}]
[null,null,"Actividad 7.2",null,"Realizar torneos relámpago en cada comité vecinal deportivo","PORCENTAJE de cumplimiento del programa de torneos relámpago (P73-CPTR)","Mide los avances en la ejecución del programa de torneos","Eficacia","Gestión","(Cantidad de población (3000) que participa en torneos relampago -10 equipos en 15 ligas deportivas- en el municipio / Total de población (3600) que participa en torneos relampago -10 equipos en 15 ligas deportivas- en el municipio)*100",3000,3600,"Mensual","Porcentaje",{"v":0.8333,"d":"83.33%"}," Portal Web del Municipio página de transparencia","Se dispone de personal y recursos",{"v":100753.35,"d":"100,753.4"},{"v":28650,"d":"28,650.0"},{"v":2250,"d":"2,250.0"},{"v":0,"d":"0.0"},{"v":0,"d":"0.0"},{"v":0,"d":"0.0"},{"v":0,"d":"0.0"},{"v":0,"d":"0.0"},{"v":0,"d":"0.0"},{"v":131653.35,"d":"$131,653.4"},{"v":15,"d":"$15.0"}]
[null,null,"Actividad 7.3",null,"Organizar una liga deportiva en cada comité vecinal","PORCENTAJE de avance en la organización de  ligas deportivas (P74-AOLD)","Mide el avance en la organización y funcionamiento de las ligas deportivas que incorporan población que participa en los proyectos de cultura física en el  municipio (estado).","Eficacia","Gestión","(Cantidad de población (3600) que participa en proyectos de cultura fisica -100 jovenes- y deporte -15 ligas deportivas- en el municipio / Total de población (3700) que participa en proyectos de cultura fisica y deporte en el municipio)*100",3600,3700,"Mensual","Porcentaje",{"v":0.9727,"d":"97.27%"}," Portal Web del Municipio página de transparencia","Se dispone de personal y recursos",{"v":235091.15000000002,"d":"235,091.2"},{"v":66850.00000000001,"d":"66,850.0"},{"v":5250.000000000001,"d":"5,250.0"},{"v":0,"d":"0.0"},{"v":0,"d":"0.0"},{"v":0,"d":"0.0"},{"v":0,"d":"0.0"},{"v":0,"d":"0.0"},{"v":0,"d":"0.0"},{"v":307191.1500000001,"d":"$307,191.2"},{"v":35.00000000000001,"d":"$35.0"}]
[null,null,"Actividad 7.4",null,"Desarrollar talleres de capacitación y entrenamiento para atletas a la olimpiada nacional","PORCENTAJE de cumplimiento de talleres deportivos a atletas (P75-ATDA)","Mide los avances de ejecución de los talleres deportivos con el número de atletas jaliscienses que se integran a la selección nacional.","Eficacia","Gestión","(Cantidad de atletas y deportistas (4) que calificaron en los talleres de capacitación y entrenamiento para competir en la olimpiada nacional / Total de atletas y deportistas (20) que participan en los talleres de capacitación y entrenamiento para competir en la olimpiada nacional)*100",4,20,"Mensual","Porcentaje",{"v":0.2,"d":"20%"}," Portal Web del Municipio página de transparencia","Se dispone de personal y recursos",{"v":201506.7,"d":"201,506.7"},{"v":57300,"d":"57,300.0"},{"v":4500,"d":"4,500.0"},{"v":0,"d":"0.0"},{"v":0,"d":"0.0"},{"v":0,"d":"0.0"},{"v":0,"d":"0.0"},{"v":0,"d":"0.0"},{"v":0,"d":"0.0"},{"v":263306.7,"d":"$263,306.7"},{"v":30,"d":"$30.0"}]
[null,"Educación","Componente 8",null,"Cobertura Educativa Ampliada","Tasa de Cobertura Educativa (T8-CE)","Mide la relación de coberura educativa reflejado en el grado municipal promedio de escolaridad","Eficacia","Gestión","(Tasa de cobertura educativa básica, media y superior municipal por cada uno de los 452 alumnos que se inscriben en educacion superior en los planteles educativos en el municipio   ",452,15262,"Bimestral","Tasa","30 : 1000"," Portal Web del Municipio página de transparencia","Se dispone de personal y recursos",{"v":503225,"d":"$503,225.0"},{"v":19000,"d":"$19,000.0"},{"v":4000,"d":"$4,000.0"},{"v":0,"d":"$0.0"},{"v":0,"d":"$0.0"},{"v":0,"d":"$0.0"},{"v":0,"d":"$0.0"},{"v":0,"d":"$0.0"},{"v":0,"d":"$0.0"},{"v":526225,"d":"$526,225.0"}]
[null,null,"Actividad 8.1",null,"Tramitar a través de la Dirección de Atención a la Infraestructura Escolar, equipamiento de escuelas.","PORCENTAJE de planteles de educación básica que participaron en el programa de infraestructura escolar (P76-CTIE)","Mide el avance en los tramites para que los planteles de educación básica sean beneficiados  en el programa de infraestructura escolar","Eficacia","Gestión","(Cantidad de planteles de educación básica  (32) -Preescolar 15, escuelas primarias 17, escuela secundaria 0- beneficiadas  con el programa de infraestructura escolar / Total planteles de educación básica (68) -Preescolar 29, escuelas primarias 31, escuelas secundaria 8- que necesitan ser beneficiadas  con el programa de infraestructura escolar)*100",32,68,"Mensual","Porcentaje",{"v":0.4705,"d":"47.05%"}," Portal Web del Municipio página de transparencia","Se dispone de personal y recursos",{"v":125806.25,"d":"125,806.3"},{"v":4750,"d":"4,750.0"},{"v":1000,"d":"1,000.0"},{"v":0,"d":"0.0"},{"v":0,"d":"0.0"},{"v":0,"d":"0.0"},{"v":0,"d":"0.0"},{"v":0,"d":"0.0"},{"v":0,"d":"0.0"},{"v":131556.25,"d":"$131,556.3"},{"v":25,"d":"$25.0"}]
[null,null,"Actividad 8.2",null,"Llevar a todas las escuelas de nivel Superior y medio superior, programas de valores y autoestima. SEP y ORG. Part. Programa de becas.  Llevar a cabo conferencias motivacionales. Caja de herramientas contra la deserción escolar, SEMS","PORCENTAJE de cumplimiento del programa de valores, becas y disminución de la deserción escolar (P77-CPVBDDE)","Mide el cumplimiento del programa y planteles participando","Eficacia","Gestión","(Cantidad de estudiantes (1200) que participaron en los 5 programas de capacitacion y seguimiento de las escuelas de nivel Superior (1) y medio superior (6), de afiliacion federal, estatal o particular.  / Total de estudiantes (1800) que participaron en los 5 programas de capacitacion y seguimiento de las escuelas de nivel Superior (3) y medio superior (3), 1-programas de valores y autoestima. 2-Programa de becas.  3-Llevar a cabo conferencias motivacionales. 4-Caja de herramientas contra la deserción escolar. 5- SEMS. de afiliacion federal, estatal o particular)*100",1000,1400,"Mensual","Porcentaje",{"v":0.7142,"d":"71.42%"}," Portal Web del Municipio página de transparencia","Se dispone de personal y recursos",{"v":377418.75,"d":"377,418.8"},{"v":14250,"d":"14,250.0"},{"v":3000,"d":"3,000.0"},{"v":0,"d":"0.0"},{"v":0,"d":"0.0"},{"v":0,"d":"0.0"},{"v":0,"d":"0.0"},{"v":0,"d":"0.0"},{"v":0,"d":"0.0"},{"v":394668.75,"d":"$394,668.8"},{"v":75,"d":"$75.0"}]
[null,"Cultura y recreación","Componente 9",null,"Participación en Actividades Culturales y Recreativas Incrementada","TASA de participación ciudadana en actividades culturales, recreativas y festivales  (T9-PACyD)","Mide el aumento en la participación de la ciudadania en las actividades culturales y recreativas","Eficacia","Gestión","(Tasa de participación ciudadana en actividades culturales, recreativas y festivales  por cada 1000 habitantes    ",6800,75000,"Bimestral","Tasa","90 : 1000"," Portal Web del Municipio página de transparencia","Se dispone de personal y recursos",{"v":543539,"d":"$543,539.0"},{"v":45000,"d":"$45,000.0"},{"v":4000,"d":"$4,000.0"},{"v":0,"d":"$0.0"},{"v":0,"d":"$0.0"},{"v":0,"d":"$0.0"},{"v":0,"d":"$0.0"},{"v":0,"d":"$0.0"},{"v":0,"d":"$0.0"},{"v":592539,"d":"$592,539.0"}]
[null,null,"Actividad 9.1",null,"Desarrollar talleres de arte y danza en plazas y espacios públicos","PORCENTAJE de cumplimiento de talleres culturales (P78-CTC)","Mide los avances en la ejecución de los talleres en plazas y espacios públicos","Eficacia","Gestión","(Cantidad de talleres (6) realizados dentro del programa de arte y danza en las diferentes plazas y espacios destinados para ello en el municipio con 25 participantes en cada uno / Total  talleres (6) realizados dentro del programa de arte y danza en las diferentes plazas y espacios destinados para ello en el municipio)*100",6,6,"Mensual","Porcentaje",{"v":1,"d":"100%"}," Portal Web del Municipio página de transparencia","Se dispone de personal y recursos",{"v":135884.75,"d":"135,884.8"},{"v":11250,"d":"11,250.0"},{"v":1000,"d":"1,000.0"},{"v":0,"d":"0.0"},{"v":0,"d":"0.0"},{"v":0,"d":"0.0"},{"v":0,"d":"0.0"},{"v":0,"d":"0.0"},{"v":0,"d":"0.0"},{"v":148134.75,"d":"$148,134.8"},{"v":25,"d":"$25.0"}]
[null,null,"Actividad 9.2",null,"Impartir cursos en materia de canto, música, pintura, danza etc..","PORCENTAJE de cumplimiento de cursos culturales (P79-CCC)","Mide el cumplimiento de los cursos artisticos y el capital humano artístico ocupado y empleado","Eficacia","Gestión","(Cantidad de cursos  (6) realizados dentro del programa de canto, musica, pintura y danza  en las diferentes plazas y espacios destinados para ello en el municipio con 25 participantes en cada uno  / Total cursos  (6) programados dentro del programa de canto, musica, pintura y danza  en las diferentes plazas y espacios destinados para ello en el municipio)*100",6,6,"Mensual","Porcentaje",{"v":1,"d":"100%"}," Portal Web del Municipio página de transparencia","Se dispone de personal y recursos",{"v":163061.7,"d":"163,061.7"},{"v":13500,"d":"13,500.0"},{"v":1200,"d":"1,200.0"},{"v":0,"d":"0.0"},{"v":0,"d":"0.0"},{"v":0,"d":"0.0"},{"v":0,"d":"0.0"},{"v":0,"d":"0.0"},{"v":0,"d":"0.0"},{"v":177761.7,"d":"$177,761.7"},{"v":30,"d":"$30.0"}]
[null,null,"Actividad 9.3",null,"Realizar festivales, eventos culturales y tradiciones","PORCENTAJE de cumplimiento del programa de festivales, eventos y tradiciones (P80-CPFET)","Mide la proporción de eventos y adiestramientos culturales dirigidos a grupos prioritarios","Eficacia","Gestión","(Cantidad de eventos (13) realizados dentro del programa de festivales, culturales y tradicionales en las diferentes plazas y espacios destinados para ello en el municipio con 500 participantes en cada uno  / Total de eventos (13) realizados dentro del programa de festivales, culturales y tradicionales en las diferentes plazas y espacios destinados para ello en el municipio)*100",13,13,"Mensual","Porcentaje",{"v":1,"d":"100%"}," Portal Web del Municipio página de transparencia","Se dispone de personal y recursos",{"v":244592.55,"d":"244,592.6"},{"v":20250,"d":"20,250.0"},{"v":1800,"d":"1,800.0"},{"v":0,"d":"0.0"},{"v":0,"d":"0.0"},{"v":0,"d":"0.0"},{"v":0,"d":"0.0"},{"v":0,"d":"0.0"},{"v":0,"d":"0.0"},{"v":266642.55,"d":"$266,642.6"},{"v":45,"d":"$45.0"}]
[null,"Servicios públicos","Componente 10",null,"Tasa de Urbanización Incrementada","TASA de urbanización (T10-U)","Mide la relación de ideal minima de equipamiento en centros de población","Eficacia","Gestión","(Tasa de servicios e infraestructura atendidos en los fracionamientos por cada 10 esteblecidos en los respectivos programas   ",13,18,"Bimestral","Tasa","7 : 10"," Portal Web del Municipio página de transparencia","Se dispone de personal y recursos",{"v":1691200,"d":"$1,691,200.0"},{"v":1345993,"d":"$1,345,993.0"},{"v":173000,"d":"$173,000.0"},{"v":0,"d":"$0.0"},{"v":0,"d":"$0.0"},{"v":0,"d":"$0.0"},{"v":0,"d":"$0.0"},{"v":0,"d":"$0.0"},{"v":6000000,"d":"$6,000,000.0"},{"v":9210193,"d":"$9,210,193.0"}]
[null,null,"Actividad 10.1",null,"Elaborar el programa de servicios básicos necesarios por fraccionamiento","PORCENTAJE de avance del programa de servicios básicos por fraccionamiento (P81-APSBF)","Mide el avance en el programa de servicios básicos necesarios en fraccionamientos","Eficacia","Gestión","(Cantidad de variables (5) a atendidas dentro del programa de servicios básicos necesarios en fraccionamientos / Total de variables (8) a considerar dentro del programa de servicios básicos necesarios en fraccionamientos)*100",5,8,"Mensual","Porcentaje",{"v":0.625,"d":"62.50%"}," Portal Web del Municipio página de transparencia","Se dispone de personal y recursos",{"v":1014720,"d":"1,014,720.0"},{"v":807595.8,"d":"807,595.8"},{"v":103800,"d":"103,800.0"},{"v":0,"d":"0.0"},{"v":0,"d":"0.0"},{"v":0,"d":"0.0"},{"v":0,"d":"0.0"},{"v":0,"d":"0.0"},{"v":3600000,"d":"3,600,000.0"},{"v":5526115.8,"d":"$5,526,115.8"},{"v":60,"d":"$60.0"}]
[null,null,"Actividad 10.2",null,"Elaborar el programa de infraestructura necesaria por fraccionamiento","PORCENTAJE de avance del programa de infraestructura por fraccionamiento (P82-APIF)","Mide el avance en el programa de infraestructura básica necesaria en fraccionamientos","Eficacia","Gestión","(Cantidad de variables (8) a atendidas dentro del programa de infraestructura en fraccionamientos / Total de variables (10) a considerar dentro del programa de infraestructura en fraccionamientos)*100",8,10,"Mensual","Porcentaje",{"v":0.8,"d":"80%"}," Portal Web del Municipio página de transparencia","Se dispone de personal y recursos",{"v":676480,"d":"676,480.0"},{"v":538397.2,"d":"538,397.2"},{"v":69200,"d":"69,200.0"},{"v":0,"d":"0.0"},{"v":0,"d":"0.0"},{"v":0,"d":"0.0"},{"v":0,"d":"0.0"},{"v":0,"d":"0.0"},{"v":2400000,"d":"2,400,000.0"},{"v":3684077.2,"d":"$3,684,077.2"},{"v":40,"d":"$40.0"}]
[null,"Cementerios","Componente 11",null,"Satisfacción en Servicios de Cementerios Incrementada","INDICE de satisfacción en el servicios de cementerios (V1-SSC)","Mide el nivel de satisfaccion de la ciudadania que acude a los cementerios ","Eficacia","Gestión","(valor resultante de sumar los valores individuales  de  los cosientes entre sus denominadores por su ponderacion asignada, que miden las  variables de: actividades y reorganización, ampliacion servicios y difusión reglamento con su correspondientes ponderaciones de .3, .4, y .3)",883,2813.6,"Bimestral","Índice",0.31," Portal Web del Municipio página de transparencia","Se dispone de personal y recursos",{"v":189494,"d":"$189,494.0"},{"v":32000,"d":"$32,000.0"},{"v":6000,"d":"$6,000.0"},{"v":0,"d":"$0.0"},{"v":0,"d":"$0.0"},{"v":0,"d":"$0.0"},{"v":0,"d":"$0.0"},{"v":0,"d":"$0.0"},{"v":0,"d":"$0.0"},{"v":227494,"d":"$227,494.0"}]
[null,null,"Actividad 11.1",null,"Programa de actividades y reorganización administrativa de los cementerios","PORCENTAJE de avance del programa administrativo de cementerios (P83-APAC)","Mide el avance en el programa de actividades para el cementerio","Eficacia","Gestión","(Cantidad de actividades administrativas y organizacionales a desarrolladas dentro del programa anual de trabajo (8) / Total de actividades administrativas y organizacionales a desarrollar dentro del programa anual de trabajo (12) )*100",10,12,"Mensual","Porcentaje",{"v":0.8333,"d":"83.33%"}," Portal Web del Municipio página de transparencia","Se dispone de personal y recursos",{"v":37898.8,"d":"37,898.8"},{"v":6400.000000000001,"d":"6,400.0"},{"v":1200.0000000000002,"d":"1,200.0"},{"v":0,"d":"0.0"},{"v":0,"d":"0.0"},{"v":0,"d":"0.0"},{"v":0,"d":"0.0"},{"v":0,"d":"0.0"},{"v":0,"d":"0.0"},{"v":45498.80000000001,"d":"$45,498.8"},{"v":20.000000000000004,"d":"$20.0"}]
[null,null,"Actividad 11.2",null,"Programa de ampliación de red de alumbrado y agua potable en los panteones municipales","PORCENTAJE de implementación del programa de alumbrado y agua potable en cementerios (P84-IPAAPC)","Mide el cumplimiento del programa de servicios en los cementerios","Eficacia","Gestión","(Cantidad de metros lineales ampliados en la red de alumbrado publico (300) y agua potable (400) dentro del programa de ampliación de las instalaciones de los panteones municipales  / Total de metros lineales necesarios de ampliar en la red de alumbrado publico (600) y agua potable (800) dentro de las instalaciones de los panteones municipales)*100",700,1400,"Mensual","Porcentaje",{"v":0.5,"d":"50%"}," Portal Web del Municipio página de transparencia","Se dispone de personal y recursos",{"v":132645.8,"d":"132,645.8"},{"v":22400,"d":"22,400.0"},{"v":4200,"d":"4,200.0"},{"v":0,"d":"0.0"},{"v":0,"d":"0.0"},{"v":0,"d":"0.0"},{"v":0,"d":"0.0"},{"v":0,"d":"0.0"},{"v":0,"d":"0.0"},{"v":159245.8,"d":"$159,245.8"},{"v":70,"d":"$70.0"}]
[null,null,"Actividad 11.3",null,"Programa de difusión del reglamento municipal a los propietarios y ciudadanía en general.","PORCENTAJE de cumplimiento del programa de difusión del reglamento de cementerios (P85-CPDRC)","Mide el nivel de conocimiento por la ciudadania del reglamento de cementerios","Eficacia","Gestión","(Cantidad de familias (2000) que cuentan con espacios ocupados en los cementerios municipales y familias de la pobalcion municipal que pueden participar en el programa de difusion del reglamento de cementerios y que les  puede interesar conocer  el uso y aplicación / Total de familias (7500) que radican en el territorio municipal que pueden ocupar espcios en los cementerios municipales  que les puede interesar conocer el reglamento de cementerios municipal  sobre el uso y aplicación )*100",2000,7500,"Mensual","Porcentaje",{"v":0.2666,"d":"26.66%"}," Portal Web del Municipio página de transparencia","Se dispone de personal y recursos",{"v":18949.4,"d":"18,949.4"},{"v":3200.0000000000005,"d":"3,200.0"},{"v":600.0000000000001,"d":"600.0"},{"v":0,"d":"0.0"},{"v":0,"d":"0.0"},{"v":0,"d":"0.0"},{"v":0,"d":"0.0"},{"v":0,"d":"0.0"},{"v":0,"d":"0.0"},{"v":22749.400000000005,"d":"$22,749.4"},{"v":10.000000000000002,"d":"$10.0"}]
[null,"DIF","Componente 12",null,"Atención en el Dif Incrementada","Índice de atención en el DIF municipal (T11-ADIFM)","Mide la relación en la atención a la ciudadania que solicita apoyo","Eficacia","Gestión","(valor resultante de sumar los valores individuales  de  los cosientes entre sus denominadores por su ponderacion asignada, que miden las  variables de: transparencia de información, ampliacion horario, atencion familiar y capacitación laboral con su correspondientes ponderaciones de .2, .2, .3,  y .3)",216.6,241,"Bimestral","Índice","0.898"," Portal Web del Municipio página de transparencia","Se dispone de personal y recursos",{"v":0,"d":"$0.0"},{"v":0,"d":"$0.0"},{"v":0,"d":"$0.0"},{"v":4520000,"d":"$4,520,000.0"},{"v":0,"d":"$0.0"},{"v":0,"d":"$0.0"},{"v":0,"d":"$0.0"},{"v":0,"d":"$0.0"},{"v":0,"d":"$0.0"},{"v":4520000,"d":"$4,520,000.0"}]
[null,null,"Actividad 12.1",null,"Mantener y actualizado el portal web de transparencia con la información pública fundamental, Atender las solicitudes de información solicitadas por transparencia ","PORCENTAJE de actualización del portal Web de transparencia DIF (P86-APWTD)","Mide el cumplimiento en la actualizacion de la información en las plataformas de transparencia","Eficacia","Gestión","(Cantidad de solicitudes de informacion (432) que se reciben en la direccion municipal de transparencia a traves de los diferentes mecanismos para atender a la ciudadania y que se dictaminen positivamente/ Total de solicitudes de informacion (450) que se reciben en la direccion municipal de transparencia a traves de los diferentes mecanismos para atender a la ciudadania)*100",432,450,"Mensual","Porcentaje",{"v":0.96,"d":"96%"}," Portal Web del Municipio página de transparencia","Se dispone de personal y recursos",{"v":0,"d":"0.0"},{"v":0,"d":"0.0"},{"v":0,"d":"0.0"},{"v":452000,"d":"452,000.0"},{"v":0,"d":"0.0"},{"v":0,"d":"0.0"},{"v":0,"d":"0.0"},{"v":0,"d":"0.0"},{"v":0,"d":"0.0"},{"v":452000,"d":"$452,000.0"},{"v":10,"d":"$10.0"}]
[null,null,"Actividad 12.2",null,"Mejorar la atención a las familias mediante la ampliación de horario de atención y talleres de prevención ","PORCENTAJE de ampliación de horario y talleres realizados (P87-AHTR)","Mide el incremento en la atención a las familias con el incremento de horario y talleres de capacitación","Eficacia","Gestión","(Cantidad de familias (444) que se han podido atender con las (56) horas adicionales mensuales para mejorar la atencion mediante la ampliación de horario de atención y capacitación / Total de  familias (500) que se espera atender con la ampliación de horario de atención y capacitación)*100",444,500,"Mensual","Porcentaje",{"v":0.888,"d":"88.80%"}," Portal Web del Municipio página de transparencia","Se dispone de personal y recursos",{"v":0,"d":"0.0"},{"v":0,"d":"0.0"},{"v":0,"d":"0.0"},{"v":678000,"d":"678,000.0"},{"v":0,"d":"0.0"},{"v":0,"d":"0.0"},{"v":0,"d":"0.0"},{"v":0,"d":"0.0"},{"v":0,"d":"0.0"},{"v":678000,"d":"$678,000.0"},{"v":15,"d":"$15.0"}]
[null,null,"Actividad 12.3",null,"Programa de atención de solicitudes de apoyo a familias y personas con algún tipo de vulnerabilidad  relacionadas a la salud, discapacidad, medidas de protección, atención jurídica y/o psicológica, etc.","PORCENTAJE de atención a solicitudes recibidas (P88-ASR)","Mide el incremento en la atención a la ciudadania y familias en situacion  vulnerable","Eficacia","Gestión","(Cantidad de ciudadanos, familias y personas con algún tipo de vulnerabilidad  relacionadas a la salud, discapacidad, medidas de protección, atención jurídica y/o psicológica (130) que solicitan apoyo mensualmente y se les puede otorgar / Total de de ciudadanos, familias y personas con algún tipo de vulnerabilidad  relacionadas a la salud, discapacidad, medidas de protección, atención jurídica y/o psicológica (160) que solicitan apoyo mensualmente)*100",130,160,"Mensual","Porcentaje",{"v":0.8125,"d":"81.25%"}," Portal Web del Municipio página de transparencia","Se dispone de personal y recursos",{"v":0,"d":"0.0"},{"v":0,"d":"0.0"},{"v":0,"d":"0.0"},{"v":2486000,"d":"2,486,000.0"},{"v":0,"d":"0.0"},{"v":0,"d":"0.0"},{"v":0,"d":"0.0"},{"v":0,"d":"0.0"},{"v":0,"d":"0.0"},{"v":2486000,"d":"$2,486,000.0"},{"v":55,"d":"$55.0"}]
[null,null,"Actividad 12.4",null,"Apoyo en la gestión de ofertas laborales, capacitación laboral, fomentar cultura de emprendimiento y procesos que les ayuden a mejorar su condición.","PORCENTAJE de gestiones exitosas (P89-GE)","Mide el incremento en la solicitud de apoyo para encontrar una actividad laboral","Eficacia","Gestión","(Cantidad de ciudadanos (8) que logra colocar el DIF mensualmente en un empleo despues de recibir una capacitacion para encontrar un empleo personal / Total de ciudadanos (10) que acuden mensualmente al DIF a solicitar apoyo para conseguir una capacitacion para encontrar un empleo personal)*100",8,10,"Mensual","Porcentaje",{"v":0.8,"d":"80%"}," Portal Web del Municipio página de transparencia","Se dispone de personal y recursos",{"v":0,"d":"0.0"},{"v":0,"d":"0.0"},{"v":0,"d":"0.0"},{"v":904000,"d":"904,000.0"},{"v":0,"d":"0.0"},{"v":0,"d":"0.0"},{"v":0,"d":"0.0"},{"v":0,"d":"0.0"},{"v":0,"d":"0.0"},{"v":904000,"d":"$904,000.0"},{"v":20,"d":"$20.0"}]
[null,"Atención ciudadana","Componente 13",null,"Atención Ciudadana Incrementada","TASA de atención ciudadana (T12-AC)","Mide el aumento en la relación de solicitudes de atencion a la ciudadania","Eficacia","Gestión","(Tasa de solicitudes recibidas y dirigidas a la direccion que atienede el tema relacionado y resueltas satisfactoriamente por cada 100 solicitudes     ",144,180,"Bimestral","Tasa","80 : 100"," Portal Web del Municipio página de transparencia","Se dispone de personal y recursos",{"v":188295,"d":"$188,295.0"},{"v":26000,"d":"$26,000.0"},{"v":4000,"d":"$4,000.0"},{"v":0,"d":"$0.0"},{"v":0,"d":"$0.0"},{"v":0,"d":"$0.0"},{"v":0,"d":"$0.0"},{"v":0,"d":"$0.0"},{"v":0,"d":"$0.0"},{"v":218295,"d":"$218,295.0"}]
[null,null,"Actividad 13.1",null,"Eficientizar el programa adaptado en la nube para la pronta atención de los reportes recibidos.","PORCENTAJE de atención concluida a reportes recibidos (P90-ACRR)","Mide el incremento en la conclusion exitosa de solicitudes de apoyo ","Eficacia","Gestión","(Cantidad de solicitudes y reportes de apoyo  (15) recibidas en la direccion de atencion a la ciudadania por mes y colocadas en el programa adaptado en la nube para su seguimiento y resolución por la direccion directamente involucrada en el transcurso de dicho mes / Total de solicitudes y reportes de apoyo  (15) recibidas en la direccion de atencion a la ciudadania por mes y que se a dado puntual seguimiento a su solución por la direccion directamente involucrada)*100",15,15,"Mensual","Porcentaje",{"v":1,"d":"100%"}," Portal Web del Municipio página de transparencia","Se dispone de personal y recursos",{"v":188295,"d":"188,295.0"},{"v":26000,"d":"26,000.0"},{"v":4000,"d":"4,000.0"},{"v":0,"d":"0.0"},{"v":0,"d":"0.0"},{"v":0,"d":"0.0"},{"v":0,"d":"0.0"},{"v":0,"d":"0.0"},{"v":0,"d":"0.0"},{"v":218295,"d":"$218,295.0"},{"v":100,"d":"$100.0"}]
[null,"Participación ciudadana","Componente 14",null,"Participación Ciudadana Incrementada","TASA de participación ciudadana (T13-PC)","Mide la relacion de participación de la ciudadania en lo que se quiere comunicar","Eficacia","Gestión","(Tasa de ciudadanos que participan en las sesiones de los comites vecinales para atender el plan anual de sesiones  por cada consejero    ",300,35,"Bimestral","Tasa","8.5 : 1"," Portal Web del Municipio página de transparencia","Se dispone de personal y recursos",{"v":223412,"d":"$223,412.0"},{"v":14000,"d":"$14,000.0"},{"v":4000,"d":"$4,000.0"},{"v":0,"d":"$0.0"},{"v":0,"d":"$0.0"},{"v":0,"d":"$0.0"},{"v":0,"d":"$0.0"},{"v":0,"d":"$0.0"},{"v":0,"d":"$0.0"},{"v":241412,"d":"$241,412.0"}]
[null,null,"Actividad 14.1",null,"Coordinar el programa anual de sesiones del Consejo de Participación Ciudadana.","PORCENTAJE de cumplimiento del programa anual de sesiones del CPC (P91-CPASC)","Mide la participación de los integrantes de los consejo de participación ciudadana en el programa anual de sesiones","Eficacia","Gestión","(Cantidad de sesiones (20) entre los (5) consejos vecinales ciudadanos en los que se aborda plan  anual de visitas trimestrales respecto a temas de importancia  y capacitación sobre los beneficios de la participación ciudadana / Total de sesiones (20) entre los (5) consejos vecinales ciudadanos en los que se aborda plan  anual de visitas bimestral respecto a temas de importancia  y capacitación sobre los beneficios de la participación ciudadana)*100",20,20,"Mensual","Porcentaje",{"v":1,"d":"100%"}," Portal Web del Municipio página de transparencia","Se dispone de personal y recursos",{"v":89364.8,"d":"89,364.8"},{"v":5600,"d":"5,600.0"},{"v":1600,"d":"1,600.0"},{"v":0,"d":"0.0"},{"v":0,"d":"0.0"},{"v":0,"d":"0.0"},{"v":0,"d":"0.0"},{"v":0,"d":"0.0"},{"v":0,"d":"0.0"},{"v":96564.8,"d":"$96,564.8"},{"v":40,"d":"$40.0"}]
[null,null,"Actividad 14.2",null,"Plan de visitas a las localidades para impartir cursos de orientación y los beneficios de la participación ciudadana.","PORCENTAJE de cumplimiento del plan de visitas (P92-CPV)","Mide el nivel de participación en el plan de visitas","Eficacia","Gestión","(Cantidad de ciudadanos (270) del municipio que atienden el plan  anual de visitas trimestral en los 5  comites vecinales para capacitación sobre los beneficios de la participación ciudadana / Total de ciudadanos (300) del municipio que atienden el plan  anual de visitas bimestral para capacitación sobre los beneficios de la participación ciudadana)*100",270,300,"Mensual","Porcentaje",{"v":0.9,"d":"90%"}," Portal Web del Municipio página de transparencia","Se dispone de personal y recursos",{"v":134047.2,"d":"134,047.2"},{"v":8400.000000000002,"d":"8,400.0"},{"v":2400.0000000000005,"d":"2,400.0"},{"v":0,"d":"0.0"},{"v":0,"d":"0.0"},{"v":0,"d":"0.0"},{"v":0,"d":"0.0"},{"v":0,"d":"0.0"},{"v":0,"d":"0.0"},{"v":144847.2,"d":"$144,847.2"},{"v":60.00000000000001,"d":"$60.0"}]
[null,"Servicios médicos","Componente 15",null,"Calidad en Servicios de Salud Incrementada","INDICE de atención y calidad en los servicios de salud (T14-ASS) (T14-ASS)","Mide el nivel de satisfacción en los servicios de salud ofrecidos en el municipio por los SS","Eficacia","Gestión","(valor resultante de sumar los valores individuales  de  los cosientes entre sus denominadores por su ponderacion asignada, que miden las  variables de: participacion trabajadores, gestiones médicas, satisfaccion beneficiarios, personal y paramédicos con su correspondientes ponderaciones de .2, .3, .2,  y .3)",98.7,143.6,"Bimestral","Índice",0.68," Portal Web del Municipio página de transparencia","Se dispone de personal y recursos",{"v":1909015,"d":"$1,909,015.0"},{"v":1488500,"d":"$1,488,500.0"},{"v":63000,"d":"$63,000.0"},{"v":0,"d":"$0.0"},{"v":0,"d":"$0.0"},{"v":0,"d":"$0.0"},{"v":0,"d":"$0.0"},{"v":0,"d":"$0.0"},{"v":0,"d":"$0.0"},{"v":3460515,"d":"$3,460,515.0"}]
[null,null,"Actividad 15.1",null,"Coordinar la participación de los  trabajadores del Ayuntamiento en la seguridad social.","PORCENTAJE de participación de trabajadores en SS (P93-PTSS)","Mide la participación de los empleados de la administración municipal en los servicios de SS","Eficacia","Gestión","(Cantidad de emplados del ayuntamiento municipal (400) que hacen uso y participan de los servicios de seguridad social / Total de  emplados  (600) del ayuntamiento municipal que hacen uso y participan de los servicios de seguridad social)*100",400,600,"Mensual","Porcentaje",{"v":0.75,"d":"75%"}," Portal Web del Municipio página de transparencia","Se dispone de personal y recursos",{"v":763606,"d":"763,606.0"},{"v":595400,"d":"595,400.0"},{"v":25200,"d":"25,200.0"},{"v":0,"d":"0.0"},{"v":0,"d":"0.0"},{"v":0,"d":"0.0"},{"v":0,"d":"0.0"},{"v":0,"d":"0.0"},{"v":0,"d":"0.0"},{"v":1384206,"d":"$1,384,206.0"},{"v":40,"d":"$40.0"}]
[null,null,"Actividad 15.2",null,"Gestionar la creación de área de hemodiálisis,  cubículo de choque y programa de capacitación  a 5 médicos y 5 enfermeras ","PORCENTAJE de cumplimiento de las gestiones médicas (P94-CGM)","Mide los avances en las gestiones para mejorar la atención médica municipal","Eficacia","Gestión","(Cantidad de gestiones (3) necesarias para mejorar la infraestructura de atención y capacidades del personal que labora en ellos / Total de proyectos (3) que nececitan gestiones y financiamiento para mejorar los servicios de salud )*100",3,3,"Mensual","Porcentaje",{"v":1,"d":"100%"}," Portal Web del Municipio página de transparencia","Se dispone de personal y recursos",{"v":477253.75,"d":"477,253.8"},{"v":372125,"d":"372,125.0"},{"v":15750,"d":"15,750.0"},{"v":0,"d":"0.0"},{"v":0,"d":"0.0"},{"v":0,"d":"0.0"},{"v":0,"d":"0.0"},{"v":0,"d":"0.0"},{"v":0,"d":"0.0"},{"v":865128.75,"d":"$865,128.8"},{"v":25,"d":"$25.0"}]
[null,null,"Actividad 15.3",null,"Elaborar mecanismos que permitan medir la satisfacción de los beneficiarios y la proporción de la reducción de costos por el servicio","PORCENTAJE de desarrollo y medición de satisfacción de beneficiarios (P95-DMSB)","Mide la satisfaccion de los beneficiarios en los servicios de SS","Eficacia","Gestión","(Cantidad de ciudadanos encuestados (80) durante el mes y resueltos como satisfechos del servicio recibido / Total de  ciudadanos (100) que solicitaron los servicios de salud por mes )*100",80,100,"Mensual","Porcentaje",{"v":0.8,"d":"80%"}," Portal Web del Municipio página de transparencia","Se dispone de personal y recursos",{"v":286352.25,"d":"286,352.3"},{"v":223275,"d":"223,275.0"},{"v":9450,"d":"9,450.0"},{"v":0,"d":"0.0"},{"v":0,"d":"0.0"},{"v":0,"d":"0.0"},{"v":0,"d":"0.0"},{"v":0,"d":"0.0"},{"v":0,"d":"0.0"},{"v":519077.25,"d":"$519,077.3"},{"v":15,"d":"$15.0"}]
[null,null,"Actividad 15.4",null,"Ampliar el personal y la atención de paramédicos en los centros de salud","PORCENTAJE de ampliación de personal en centros de salud (P96-APCS)","Mide el incremento de personal para la atencion a la ciudadania en los Centros de Salud","Eficacia","Gestión","(Cantidad de personal (6) nuevo que se integra para fortalecer los servicios municipales de salud  / Total de  personal (9) que ya labora en los  servicios municipales de salud)*100",6,9,"Mensual","Porcentaje",{"v":0.6666,"d":"66.66%"}," Portal Web del Municipio página de transparencia","Se dispone de personal y recursos",{"v":381803,"d":"381,803.0"},{"v":297700,"d":"297,700.0"},{"v":12600,"d":"12,600.0"},{"v":0,"d":"0.0"},{"v":0,"d":"0.0"},{"v":0,"d":"0.0"},{"v":0,"d":"0.0"},{"v":0,"d":"0.0"},{"v":0,"d":"0.0"},{"v":692103,"d":"$692,103.0"},{"v":20,"d":"$20.0"}]
[null,"Agencias municipales","Componente 16",null,"Atención en Agencias Incrementada","TASA de atención en Agencias (T15-AA)","Mide el incremento en la atencion a la ciudadania en las agencias municipales","Eficacia","Gestión","(Tasa de ciudadanos atendidos y/o consultados respecto a los servicios en supervicion de los delegados municipales por  cada 100 habitantes    ",60,100,"Bimestral","Tasa","60:100"," Portal Web del Municipio página de transparencia","Se dispone de personal y recursos",{"v":2917484,"d":"$2,917,484.0"},{"v":43000,"d":"$43,000.0"},{"v":7702818,"d":"$7,702,818.0"},{"v":300000,"d":"$300,000.0"},{"v":0,"d":"$0.0"},{"v":0,"d":"$0.0"},{"v":0,"d":"$0.0"},{"v":0,"d":"$0.0"},{"v":0,"d":"$0.0"},{"v":10963302,"d":"$10,963,302.0"}]
[null,null,"Actividad 16.1",null,"Programa de atención a la normatividad local y actividades asignadas en agencias.","PORCENTAJE de cumplimiento del programa de agencias (P97-CPA)","Mide el cumplimiento de las atribuciones de los agentes para atender a la ciudadania","Eficacia","Gestión","(Cantidad de articulos (6) del reglamento de gobierno y la administracion pública municipal que deberan atender los delegados municipales  / Total de  articulos (14) que deberan atender en el capitulo VII del raglamento de gobierno y la administración pública municipal)*100",6,14,"Mensual","Porcentaje",{"v":0.43,"d":"43%"}," Portal Web del Municipio página de transparencia","Se dispone de personal y recursos",{"v":2917484,"d":"2,917,484.0"},{"v":43000,"d":"43,000.0"},{"v":7702818,"d":"7,702,818.0"},{"v":300000,"d":"300,000.0"},{"v":0,"d":"0.0"},{"v":0,"d":"0.0"},{"v":0,"d":"0.0"},{"v":0,"d":"0.0"},{"v":0,"d":"0.0"},{"v":10963302,"d":"$10,963,302.0"},{"v":100,"d":"$100.0"}]
[null,"Delegaciones municipales","Componente 17",null,"Atención en Delegaciones Incrementada","TASA de atención en Delegaciones (T16-AD)","Mide el incremento en la atencion a la ciudadania en las delegaciones municipales","Eficacia","Gestión","(Tasa de ciudadanos atendidos y/o consultados respecto a los servicios en supervicion de los delegados municipales por  cada 100 habitantes    ",60,100,"Bimestral","Tasa","60:100"," Portal Web del Municipio página de transparencia","Se dispone de personal y recursos",{"v":2023784,"d":"$2,023,784.0"},{"v":73000,"d":"$73,000.0"},{"v":7702827,"d":"$7,702,827.0"},{"v":200000,"d":"$200,000.0"},{"v":0,"d":"$0.0"},{"v":0,"d":"$0.0"},{"v":0,"d":"$0.0"},{"v":0,"d":"$0.0"},{"v":0,"d":"$0.0"},{"v":9999611,"d":"$9,999,611.0"}]
[null,null,"Actividad 17.1",null,"Programa de atención a la normatividad local y actividades asignadas en delegaciones.","PORCENTAJE de cumplimiento del programa de delegaciones (P98-CPD)","Mide el cumplimiento de las atribuciones de los delegados para atender a la ciudadania","Eficacia","Gestión","(Cantidad de articulos (8) del reglamento de gobierno y la administracion pública municipal que deberan atender los delegados municipales  / Total de  articulos (14) que deberan atender en el capitulo VII del raglamento de gobierno y la administración pública municipal)*100",8,14,"Mensual","Porcentaje",{"v":0.57,"d":"57%"}," Portal Web del Municipio página de transparencia","Se dispone de personal y recursos",{"v":2023784,"d":"2,023,784.0"},{"v":73000,"d":"73,000.0"},{"v":7702827,"d":"7,702,827.0"},{"v":200000,"d":"200,000.0"},{"v":0,"d":"0.0"},{"v":0,"d":"0.0"},{"v":0,"d":"0.0"},{"v":0,"d":"0.0"},{"v":0,"d":"0.0"},{"v":9999611,"d":"$9,999,611.0"},{"v":100,"d":"$100.0"}]
[null,"Comunicación social","Componente 18",null,"Cobertura en Comunicación Social Incrementada","TASA de cobertura en materia de comunicación social (T17-CMCS)","Mide la relacion de ciudadanos informados de los temas que el ayuntamiento quiere comunicar ","Eficacia","Gestión","(Tasa de ciudadanos informados de los diferentes eventos y acciones del gobierno municipal  como resultado del programa de estrategias de comunicación esteblecido por  cada 100 habitantes    ",225,250,"Bimestral","Tasa","90:100"," Portal Web del Municipio página de transparencia","Se dispone de personal y recursos",{"v":535459,"d":"$535,459.0"},{"v":210000,"d":"$210,000.0"},{"v":9000,"d":"$9,000.0"},{"v":0,"d":"$0.0"},{"v":0,"d":"$0.0"},{"v":0,"d":"$0.0"},{"v":0,"d":"$0.0"},{"v":0,"d":"$0.0"},{"v":0,"d":"$0.0"},{"v":754459,"d":"$754,459.0"}]
[null,null,"Actividad 17.1",null,"Generar un programa de estrategias de comunicación masiva en diferentes canales informativos.","PORCENTAJE de cumplimiento del programa de comunicación social (P99-CPCS)","Mide los avances en la implementacion del programa de estrategias de comunicación masiva a la ciudadania","Eficacia","Gestión","(Cantidad de eventos (200) publicitados en las 5 estrategias (5, Periodico (25), periodico mural(50), Sítio Web del Municipio(25), Facebook(50), páguina de transparencia (50)) establecidas en el programa de comunicacion social / Total de  eventos (200) publicitados a traves de los diferentes espacios y estratgias de comunicación social)*100",200,200,"Mensual","Porcentaje",{"v":1,"d":"100%"}," Portal Web del Municipio página de transparencia","Se dispone de personal y recursos",{"v":321275.4,"d":"321,275.4"},{"v":126000,"d":"126,000.0"},{"v":5400,"d":"5,400.0"},{"v":0,"d":"0.0"},{"v":0,"d":"0.0"},{"v":0,"d":"0.0"},{"v":0,"d":"0.0"},{"v":0,"d":"0.0"},{"v":0,"d":"0.0"},{"v":452675.4,"d":"$452,675.4"},{"v":60,"d":"$60.0"}]
[null,null,"Actividad 17.2",null,"Asistir y apoyar en cada uno de los eventos a realizar.","PORCENTAJE de cumplimiento del programa de eventos (P100-CPE)","Mide el nivel de participación de la direccion en los eventos realizados ","Eficacia","Gestión","(Cantidad de eventos (25) organizados con la participación de comunicacion social  / Total de  eventos (50) organizados por las diferentes direcciones de la administración municipal)*100",25,50,"Mensual","Porcentaje",{"v":0.5,"d":"50%"}," Portal Web del Municipio página de transparencia","Se dispone de personal y recursos",{"v":214183.59999999998,"d":"214,183.6"},{"v":83999.99999999999,"d":"84,000.0"},{"v":3599.9999999999995,"d":"3,600.0"},{"v":0,"d":"0.0"},{"v":0,"d":"0.0"},{"v":0,"d":"0.0"},{"v":0,"d":"0.0"},{"v":0,"d":"0.0"},{"v":0,"d":"0.0"},{"v":301783.6,"d":"$301,783.6"},{"v":39.99999999999999,"d":"$40.0"}]

{"sheet":"Listas","index":3,"n_rows":174,"n_cols":33,"rows_kept":174,"hidden":true}
[]
[null,"Municipio","Denominación del Programa","Categoría programática","Unidad responsable","Fin","Función","Sub-función","Alineación con objetivos superiores del PND","Alineación con objetivos secundarios del PND","Alineación con objetivos superiores del PED","Alineación con objetivos secundarios del PED","Alineación con objetivos superior del PMD","Alineación con objetivos secundario del PMD","Nivel MIR","Resumen del nivel MIR","Resumen Narrativo (objetivos)","Cantidad de Gasto","Nombre","Definición","Dimensión","Tipo","Variables","Método de Cálculo","Frecuencia de Medición","Unidad de Medida","Valores Programados","Metas","Medios de Verificación","Supuestos"]
[null,"Acatic",null,"Subsidios sujetos a reglas de operación",null,"Gobierno","Legislación","1.1.1 Legislación","México_en_Paz","1.1. Promover y fortalecer la gobernabilidad democrática","O1_Incrementar_la_sostenibilidad_del_medio_ambiente_y_la_vulnerabilidad_del_cambio_climático","O1E1 Detener y revertir la degradación del medio ambiente",null,null,"Fin","F",{"$nulls":4},"Eficacia","Estratégico",null,null,"Mensual",{"$nulls":7},"Primer semestre"]
[null,"Acatlán de Juárez",null,"Otros subsidios",null,"Desarrollo_Social","Justicia","1.1.2 Fiscalización","México_Incluyente","1.2. Garantizar la seguridad nacional","O2_Impulsar_el_desarrollo_sostenible_de_las_regiones_del_estado","O1E2 Efectuar una ordenación y manejo sostenible de los bosques",null,null,"Propósito","P",{"$nulls":4},"Eficiencia","Gestión",null,null,"Bimestral",{"$nulls":7},"Segundo semestre"]
[null,"Ahualulco de Mercado",null,"Prestación de servicios públicos",null,"Desarrollo_Económico","Coordinación_Política_de_Gobierno","1.2.1 Impartición de Justicia","México_con_Educación_de_Calidad","1.3. Mejorar las condiciones de seguridad pública","O3_Promover_un_desarrollo_urbano_sostenible_equitativo_y_ordenado","O1E3 Frenar la pérdida de diversidad biológica",null,null,"Componentes","C1",{"$nulls":4},"Economía",{"$nulls":3},"Trimestral"]
[null,"Amacueca",null,"Provisión de bienes públicos",null,"Otros","Relaciones_Exteriores","1.2.2 Procuración de Justicia","México_Próspero","1.4. Garantizar un sistema de Justicia Penal eficaz, expedito, imparcial y transparente","O4_Garantizar_el_suministro_del_agua_para_población_y_actividades_productivas","O1E4 Incrementar el manejo sustentable de los residuos",null,null,"Actividades","C2",{"$nulls":4},"Calidad",{"$nulls":3},"Semestral"]
[null,"Amatitán",null,"Planeación, Seguimiento y Evaluación de políticas Públicas",null,null,"Asuntos_Financieros_y_Hacendarios","1.2.3 Reclusión y Readaptación Social","México_Con_Responsabilidad_Global","1.5. Garantizar el respeto y protección de los derechos humanos y la erradicación de la discriminación","O5_Mejorar_la_calidad_seguridad_y_sostenibilidad_de_la_movilidad_urbana","O1E5 Incrementar la producción y uso de fuentes de energía limpias",{"$nulls":3},"C3",{"$nulls":8},"Anual"]
[null,"Ameca",null,"Promoción y fomento",null,null,"Asuntos_de_Orden_Público_y_Seguridad_Interior","1.2.4 Derechos Humanos",null,"1.6. Salvaguardar a la población, a sus bienes y a su entorno ante un desastre de origen natural o humano","O6_Disminuir_los_factores_de_riesgo_y_mejorar_la_atención_ante_desastres","O1E6 Mitigar las emisiones de gases de efecto invernadero",{"$nulls":3},"C1A1",{"$nulls":8},"Bianual"]
[null,"San Juanito de Escobedo",null,"Regulación y Supervisión",null,null,"Otros_Servicios_Generales","1.3.1 Presidencia / Gubernatura",null,"2.1. Garantizar el ejercicio efectivo de los derechos sociales para toda la población","O7_Incrementar_la_formalidad_del_empleo_la_seguridad_social_y_estabilidad_laboral","O1E7 Ordenar y proteger de manera sostenible los ecosistemas lacustres y costeros",{"$nulls":3},"C1A2",{"$nulls":8},"Bienal"]
[null,"Arandas",null,"Específicos",null,null,"Protección_Ambiental","1.3.2 Política Interior",null,"2.2. Transitar hacia una sociedad equitativa e incluyente","O8_Mejorar_la_competitividad_y_el_crecimiento_inclusivo_y_sostenible_de_los_sectores_económicos","O1E8 Reducir la contaminación de acuíferos y aguas superficiales",{"$nulls":3},"C1A3",{"$nulls":8},"Periodo"]
[null,"El Arenal",null,"Proyectos de Inversión",null,null,"Vivienda_y_Servicios_a_la_Comunidad","1.3.3 Preservación y Cuidado del Patrimonio Público",null,"2.3. Asegurar el acceso a los servicios de salud","O9_Incrementar_de_forma_sostenible_la_productividad_y_rentabilidad_de_las_actividades_del_sector_primario","O1E9 Reducir la vulnerabilidad y aumentar la resiliencia de la sociedad, las cuencas hidrológicas y los ecosistemas naturales, urbanos y agropecuarios frente a los efectos adversos del cambio climático",{"$nulls":3},"C1A4"]
[null,"Atemajac de Brizuela",null,"Apoyo al Proceso Presupuestario y para Mejorar la Eficiencia Institucional",null,null,"Salud","1.3.4 Función Pública",null,"2.4. Ampliar el acceso a la seguridad social","O10_Incrementar_la_afluencia_y_la_derrama_económica_proveniente_del_turismo","O1E10 Revertir el deterioro de la calidad del aire",{"$nulls":3},"C2A1"]
[null,"Atengo",null,"Apoyo a la Función Pública y al Mejoramiento de la Gestión",null,null,"Recreación_Cultura_y_Otras_Manifestaciones_Sociales","1.3.5 Asuntos Jurídicos",null,"2.5. Proveer un entorno adecuado para el desarrollo de una vida digna","O11_Mejorar_la_conectividad_de_Jalisco_sus_regiones_y_municipios","O2E1 Actualizar los ordenamientos ecológicos territoriales y su aplicación efectiva",{"$nulls":3},"C2A2"]
[null,"Atenguillo",null,"Operaciones Ajenas",null,null,"Educación","1.3.6 Organización de Procesos Electorales",null,"3.1. Desarrollar el potencial humano de los mexicanos con educación de calidad","O12_Reducir_la_pobreza_y_la_desigualdad","O2E2 Desarrollar el potencial humano de las regiones con acceso a una educación de calidad",{"$nulls":3},"C2A3"]
[null,"Atotonilco el Alto",null,"Obligaciones de Cumplimiento de Resolución Jurisdiccional",null,null,"Protección_Social","1.3.7 Población",null,"3.2. Garantizar la inclusión y la equidad en el Sistema Educativo","O13_Proteger_los_derechos_y_ampliar_las_oportunidades_de_desarrollo_de_los_grupos_prioritarios","O2E3 Generar oportunidades de empleos dignos aprovechando de forma sustentable las potencialidades regionales",{"$nulls":3},"C2A4"]
[null,"Atoyac",null,"Desastres Naturales",null,null,"Otros_Asuntos_Sociales","1.3.8 Territorio",null,"3.3. Ampliar el acceso a la cultura como un medio para la formación integral\n de los ciudadanos","O14_Mejorar_la_salud_de_la_población","O2E4 Incrementar y mejorar la infraestructura productiva  y social",{"$nulls":3},"C3A1"]
[null,"Autlán de Navarro",null,"Pensiones y Jubilaciones.",null,null,"Asuntos_Económicos_Comerciales_y_Laborales_Generales","1.3.9 Otros Asuntos de Orden Público y Seguridad Interior",null,"3.4. Promover el deporte de manera incluyente para fomentar una cultura\n de salud","O15_Aumentar_el_acceso_de_la_población_a_una_vivienda_digna","O2E5 Mejorar la capacidad de gestión de los funcionarios y autoridades municipales",{"$nulls":3},"C3A2"]
[null,"Ayotlán",null,"Aportaciones a la Seguiridad Social",null,null,"Agropecuaria_Silvicultura_Pesca_y_Caza","1.4.1 Relaciones Exteriores",null,"3.5.Hacer del desarrollo científico, tecnológico y la innovación pilares para el progreso económico y social sostenible","O16_Incrementar_el_acceso_la_equidad_y_la_calidad_de_la_educación","O2E6 Reducir la pobreza y la desigualdad",{"$nulls":3},"C3A3"]
[null,"Ayutla",{"$nulls":4},"Combustibles_y_Energía","1.5.1 Asuntos Financieros",null,"4.1. Mantener la estabilidad macroeconómica del país","O17_Incrementar_el_desarrollo_tecnológico_la_investigación_científica_y_la_innovación","O3E1 Conservar los suelos, incrementar las áreas verdes y las reservas territoriales",{"$nulls":3},"C4A4"]
[null,"La Barca",{"$nulls":4},"Minería_Manufacturas_y_Construcción","1.5.2 Asuntos Hacendarios",null,"4.2. Democratizar el acceso al financiamiento de proyectos con potencial de crecimiento","O18_Garantizar_el_acceso_de_toda_la_población_a_la_cultura_y_las_diferentes_expresiones_artísticas","O3E2 Impulsar un desarrollo urbano orientado al transporte sustentable"]
[null,"Bolaños",{"$nulls":4},"Transporte","1.7.1 Policía",null,"4.3. Promover el empleo de calidad","O19_Aumentar_la_práctica_del_deporte_y_actividades_físicas_de_la_población","O3E3 Incrementar y mejorar los servicios y espacios públicos"]
[null,"Cabo Corrientes",{"$nulls":4},"Comunicaciones","1.7.2 Protección Civil",null,"4.4. Impulsar y orientar un crecimiento verde incluyente y facilitador que preserve nuestro atrimonio natural al mismo tiempo que genere riqueza, competitividad y empleo","O20_Reducir_la_incidencia_delictiva_y_mejorar_la_percepción_de_seguridad","O3E4 Mejorar la conectividad y articulación de las principales ciudades con una perspectiva regional e interestatal"]
[null,"Casimiro Castillo",{"$nulls":4},"Turismo","1.7.3 Otros Asuntos de Orden Público y Seguridad",null,"4.5. Democratizar el acceso a servicios de telecomunicaciones","O21_Mejorar_la_impartición_de_justicia_con_un_sistema_eficaz_expedito_imparcial_y_transparente","O3E5 Ordenar el crecimiento de las áreas urbanas y asegurar el cumplimiento de la normatividad inherente"]
[null,"Cihuatlán",{"$nulls":4},"Ciencia_Tecnología_e_Innovación","1.7.4 Sistema Nacional de Seguridad Pública",null,"4.6. Abastecer de energía al país con precios competitivos, calidad y eficiencia a lo largo de la cadena productiva","O22_Reducir_la_impunidad_mejorando_la_imparcialidad_transparencia_y_eficiencia_en_la_procuración_de_justicia","O3E6 Promover un crecimiento urbano equitativo mediante la oferta de suelo accesible y de calidad a los sectores de menores ingresos"]
[null,"Zapotlán el Grande",{"$nulls":4},"Otras_Industrias_y_Otros_Asuntos_Económicos","1.8.1 Servicios Registrales, Administrativos y Patrimoniales",null,"4.7. Garantizar reglas claras que incentiven el desarrollo de un mercado interno competitivo","O23_Garantizar_el_respeto_y_la_protección_de_los_derechos_humanos_y_eliminar_la_discriminación","O3E7 Reducir la contaminación del agua y aire, así como la visual y auditiva"]
[null,"Cocula",{"$nulls":4},"Transacciones_de_la_Deuda_Financiera_y_Costo_Financiero_Deuda","1.8.2 Servicios Estadísticos",null,"4.8. Desarrollar los sectores estratégicos del país","O24_Mejorar_la_estabilidad_y_funcionalidad_del_sistema_democrático","O3E8 Reducir la fragmentación territorial y política en las áreas metropolitanas mediante la aplicación de un modelo de gobernanza metropolitana"]
[null,"Colotlán",{"$nulls":4},"Transferencias_Participaciones_y_Aportaciones","1.8.3 Servicios de Comunicación y Medios",null,"4.9. Contar con una infraestructura de transporte que se refleje en menores costos para realizar la actividad económica","O25_Mejorar_la_efectividad_de_las_instituciones_públicas_y_gubernamentales","O4E1 Fortalecer el desarrollo y la capacidad técnica y financiera de los organismos operadores del agua"]
[null,"Concepción de Buenos Aires",{"$nulls":4},"Saneamiento_del_Sistema_Financiero","1.8.4 Acceso a la Información Pública Gubernamental",null,"4.10. Construir un sector agropecuario y pesquero productivo que garantice la seguridad alimentaria del país","O26_Mejorar_la_igualdad_entre_los_géneros_y_empoderar_a_las_mujeres","O4E2 Incrementar los niveles de tratamiento de aguas residuales y su reutilización"]
[null,"Cuautitlán de García Barragán",{"$nulls":4},"Adeudos_Anteriores","1.8.5 Otros",null,"4.11. Aprovechar el potencial turístico de México para generar una mayor derrama económica en el país","O27_Incrementar_la_capacidad_innovadora_en_los_sectores_social_privado_y_público","O4E3 Incrementar y diversificar las fuentes de abastecimiento y captación de agua"]
[null,"Cuautla",{"$nulls":5},"2.1.1 Ordenación de Desechos",null,"5.1. Ampliar y fortalecer la presencia de México en el mundo",null,"O4E4 Mejorar la potabilización de las aguas para el consumo humano"]
[null,"Cuquío",{"$nulls":5},"2.1.2 Administración del Agua",null,"5.2. Promover el valor de México en el mundo mediante la difusión económica, turística y cultural",null,"O4E5 Modernizar y ampliar la infraestructura hidroagrícola"]
[null,"Chapala",{"$nulls":5},"2.1.3 Ordenación de Aguas Residuales, Drenaje y Alcantarillado",null,"5.3. Reafirmar el compromiso del país con el libre comercio, la movilidad de capitales y la integración productiva",null,"O4E6 Ordenar el uso y aprovechamiento del agua en cuencas y acuíferos"]
[null,"Chimaltitán",{"$nulls":5},"2.1.4 Reducción de la Contaminación",null,"5.4. Velar por los intereses de los mexicanos en el extranjero y proteger los derechos de los extranjeros en el territorio nacional",null,"O4E7 Proteger y recuperar los bosques, humedales y ríos"]
[null,"Chiquilistlán",{"$nulls":5},"2.1.5 Protección de la Diversidad Biológica y del Paisaje",{"$nulls":3},"O4E8 Reducir el desperdicio del agua y racionalizar su uso"]
[null,"Degollado",{"$nulls":5},"2.1.6 Otros de Protección Ambiental",{"$nulls":3},"O5E1 Ampliar y articular la red de transporte público masivo incentivando la multimodalidad"]
[null,"Ejutla",{"$nulls":5},"2.2.1 Urbanización",{"$nulls":3},"O5E2 Incrementar el uso de medios alternativos de traslado, desincentivando el uso del automóvil"]
[null,"Encarnación de Díaz",{"$nulls":5},"2.2.2 Desarrollo Comunitario",{"$nulls":3},"O5E3 Mejorar la infraestructura y equipamiento para la movilidad motorizada y no motorizada"]
[null,"Etzatlán",{"$nulls":5},"2.2.3 Abastecimiento de Agua",{"$nulls":3},"O5E4 Mejorar la seguridad y la cultura vial"]
[null,"El Grullo",{"$nulls":5},"2.2.4 Alumbrado Público",{"$nulls":3},"O5E5 Modernizar los sistemas de transporte público en las ciudades"]
[null,"Guachinango",{"$nulls":5},"2.2.5 Vivienda",{"$nulls":3},"O6E1 Incrementar la capacitación y profesionalización del personal de protección civil"]
[null,"Guadalajara",{"$nulls":5},"2.2.6 Servicios Comunales",{"$nulls":3},"O6E2 Incrementar la cultura de protección civil en la sociedad, el gobierno y la empresa"]
[null,"Hostotipaquillo",{"$nulls":5},"2.2.7 Desarrollo Regional",{"$nulls":3},"O6E3 Mejorar los procedimientos para disminuir los riesgos y la atención de emergencias"]
[null,"Huejúcar",{"$nulls":5},"2.3.1 Prestación de Servicios de Salud a la Comunidad",{"$nulls":3},"O6E4 Mejorar los sistemas de información de los riesgos a los que está expuesta la población y su entorno"]
[null,"Huejuquilla el Alto",{"$nulls":5},"2.3.2 Prestación de Servicios de Salud a la Persona",{"$nulls":3},"O6E5 Mejorar y establecer sistemas de alerta temprana multirriesgos"]
[null,"La Huerta",{"$nulls":5},"2.3.3 Generación de Recursos para la Salud",{"$nulls":3},"O7E1 Aumentar la disponibilidad de capital humano mejor calificado adecuado a la demanda del mercado laboral"]
[null,"Ixtlahuacán de los Membrillos",{"$nulls":5},"2.3.4 Rectoría del Sistema de Salud",{"$nulls":3},"O7E2 Erradicar el trabajo infantil"]
[null,"Ixtlahuacán del Río",{"$nulls":5},"2.3.5 Protección Social en Salud",{"$nulls":3},"O7E3 Incrementar la certificación de competencias laborales y profesionales"]
[null,"Jalostotitlán",{"$nulls":5},"2.4.1 Deporte y Recreación",{"$nulls":3},"O7E4 Incrementar la cultura empresarial de la responsabilidad social"]
[null,"Jamay",{"$nulls":5},"2.4.2 Cultura",{"$nulls":3},"O7E5 Incrementar la productividad con beneficios compartidos, la empleabilidad y la capacitación en el trabajo"]
[null,"Jesús María",{"$nulls":5},"2.4.3 Radio, Televisión y Editoriales",{"$nulls":3},"O7E6 Mejorar la protección de los derechos del trabajador"]
[null,"Jilotlán de los Dolores",{"$nulls":5},"2.4.4 Asuntos Religiosos y Otras Manifestaciones Sociales",{"$nulls":3},"O7E7 Mejorar la remuneración y las condiciones laborales de la población ocupada"]
[null,"Jocotepec",{"$nulls":5},"2.5.1 Educación Básica",{"$nulls":3},"O7E8 Propiciar el equilibrio entre empleadores y trabajadores para preservar la paz laboral"]
[null,"Juanacatlán",{"$nulls":5},"2.5.2 Educación Media Superior",{"$nulls":3},"O8E1 Aumentar las exportaciones de las unidades productivas"]
[null,"Juchitlán",{"$nulls":5},"2.5.3 Educación Superior",{"$nulls":3},"O8E2 Aumentar los niveles de innovación tecnológica, empresarial y social"]
[null,"Lagos de Moreno",{"$nulls":5},"2.5.4 Posgrado",{"$nulls":3},"O8E3 Estimular el espíritu empresarial y el desarrollo de emprendedores"]
[null,"El Limón",{"$nulls":5},"2.5.5 Educación para Adultos",{"$nulls":3},"O8E4 Facilitar el acceso al financiamiento y la asistencia técnica, especialmente a la micro y pequeña empresa"]
[null,"Magdalena",{"$nulls":5},"2.5.6 Otros Servicios Educativos y Actividades Inherentes",{"$nulls":3},"O8E5 Incrementar el desarrollo y la integración de las cadenas productivas, de proveeduría y los clústeres"]
[null,"Santa María del Oro",{"$nulls":5},"2.6.1 Enfermedad e Incapacidad",{"$nulls":3},"O8E6 Incrementar la inversión extranjera directa"]
[null,"La Manzanilla de la Paz",{"$nulls":5},"2.6.2 Edad Avanzada",{"$nulls":3},"O8E7 Mejorar e incrementar la infraestructura productiva"]
[null,"Mascota",{"$nulls":5},"2.6.3 Familia e Hijos",{"$nulls":3},"O8E8 Mejorar la calidad y la productividad de las unidades económicas"]
[null,"Mazamitla",{"$nulls":5},"2.6.4 Desempleo",{"$nulls":3},"O8E9 Simplificar los trámites y agilizar los procesos de apertura de empresas"]
[null,"Mexticacán",{"$nulls":5},"2.6.5 Alimentación y Nutrición",{"$nulls":3},"O9E1 Ampliar y modernizar la infraestructura rural productiva"]
[null,"Mezquitic",{"$nulls":5},"2.6.6 Apoyo Social para la Vivienda",{"$nulls":3},"O9E2 Aumentar la comercialización de los productos del sector primario dentro y fuera del país"]
[null,"Mixtlán",{"$nulls":5},"2.6.7 Indígenas",{"$nulls":3},"O9E3 Aumentar la industrialización y el valor agregado a la producción del sector primario"]
[null,"Ocotlán",{"$nulls":5},"2.6.8 Otros Grupos Vulnerables",{"$nulls":3},"O9E4 Incrementar el financiamiento, la capacitación y asistencia técnica a los productores rurales"]
[null,"Ojuelos de Jalisco",{"$nulls":5},"2.6.9 Otros de Seguridad Social y Asistencia Social",{"$nulls":3},"O9E5 Incrementar la producción sustentable y comercialización de la madera y sus derivados"]
[null,"Pihuamo",{"$nulls":5},"2.7.1 Otros Asuntos Sociales",{"$nulls":3},"O9E6 Mejorar la sanidad e inocuidad de los productos agropecuarios"]
[null,"Poncitlán",{"$nulls":5},"3.1.1 Asuntos Económicos y Comerciales en General",{"$nulls":3},"O10E1 Aumentar la atracción y captación de inversión en el sector"]
[null,"Puerto Vallarta",{"$nulls":5},"3.1.2 Asuntos Laborales Generales",{"$nulls":3},"O10E2 Incrementar la promoción integral de destinos y rutas turísticas"]
[null,"Villa Purificación",{"$nulls":5},"3.2.1 Agropecuaria",{"$nulls":3},"O10E3 Innovar y diversificar la oferta turística por región y destino de forma sostenible"]
[null,"Quitupan",{"$nulls":5},"3.2.2 Silvicultura",{"$nulls":3},"O10E4 Mejorar el entorno, la infraestructura y equipamiento en centros turísticos"]
[null,"El Salto",{"$nulls":5},"3.2.3 Acuacultura, Pesca y Caza",{"$nulls":3},"O10E5 Mejorar las capacidades turísticas locales y promover el emprendurismo en el sector"]
[null,"San Cristóbal de la Barranca",{"$nulls":5},"3.2.4 Agroindustrial",{"$nulls":3},"O11E1 Ampliar y modernizar la red de ferrocarriles"]
[null,"San Diego de Alejandría",{"$nulls":5},"3.2.5 Hidroagrícola",{"$nulls":3},"O11E2 Incrementar la accesibilidad a las telecomunicaciones"]
[null,"San Juan de los Lagos",{"$nulls":5},"3.2.6 Apoyo Financiero a la Banca y Seguro Agropecuario",{"$nulls":3},"O11E3 Incrementar y modernizar la red de carreteras"]
[null,"San Julián",{"$nulls":5},"3.3.1 Carbón y Otros Combustibles Minerales Sólidos",{"$nulls":3},"O11E4 Modernizar y ampliar la infraestructura aérea y la marítima"]
[null,"San Marcos",{"$nulls":5},"3.3.2 Petróleo y Gas Natural (Hidrocarburos)",{"$nulls":3},"O11E5 Propiciar la ampliación de servicios logísticos estratégicos para el desarrollo social y económico"]
[null,"San Martín de Bolaños",{"$nulls":5},"3.3.3 Combustibles Nucleares",{"$nulls":3},"O12E1 Ampliar las capacidades productivas de la población en condiciones de vulnerabilidad"]
[null,"San Martín Hidalgo",{"$nulls":5},"3.3.4 Otros Combustibles",{"$nulls":3},"O12E2 Incrementar la disponibilidad y el acceso a una adecuada alimentación de la población en condiciones de pobreza"]
[null,"San Miguel el Alto",{"$nulls":5},"3.3.5 Electricidad",{"$nulls":3},"O12E3 Mejorar el pago de impuestos y servicios públicos acorde con el nivel de vida e ingresos de la población"]
[null,"Gómez Farías",{"$nulls":5},"3.3.6 Energía no Eléctrica",{"$nulls":3},"O12E4 Mejorar la calidad y espacios en las viviendas de la población en situación de pobreza"]
[null,"San Sebastián del Oeste",{"$nulls":5},"3.4.1 Extracción de Recursos Minerales excepto los Combustibles Minerales",{"$nulls":3},"O12E5 Promover la cohesión social desde los espacios de deliberación pública, fortaleciendo las organizaciones sociales y la participación comunitaria"]
[null,"Santa María de los Ángeles",{"$nulls":5},"3.4.2 Manufacturas",{"$nulls":3},"O12E6 Reducir el rezago educativo"]
[null,"Sayula",{"$nulls":5},"3.4.3 Construcción",{"$nulls":3},"O13E1 Ampliar las capacidades productivas de los grupos prioritarios"]
[null,"Tala",{"$nulls":5},"3.5.1 Transporte por Carretera",{"$nulls":3},"O13E2 Brindar atención y acompañamiento a la población migrante"]
[null,"Talpa de Allende",{"$nulls":5},"3.5.2 Transporte por Agua y Puertos",{"$nulls":3},"O13E3 Garantizar la accesibilidad y la inclusión de las personas con discapacidad; y reducir el riego de adquirirla"]
[null,"Tamazula de Gordiano",{"$nulls":5},"3.5.3 Transporte por Ferrocarril",{"$nulls":3},"O13E4 Garantizar los derechos de los adultos mayores, incrementar su autonomía y promover el envejecimiento activo"]
[null,"Tapalpa",{"$nulls":5},"3.5.4 Transporte Aéreo",{"$nulls":3},"O13E5 Garantizar y restituir los derechos de las niñas, niños y adolescentes"]
[null,"Tecalitlán",{"$nulls":5},"3.5.5 Transporte por Oleoductos y Gasoductos y Otros Sistemas de Transporte",{"$nulls":3},"O13E6 Incrementar el ingreso, permanencia y conclusión de la formación educativa de estudiantes indígenas"]
[null,"Tecolotlán",{"$nulls":5},"3.5.6 Otros Relacionados con Transporte",{"$nulls":3},"O13E7 Mejorar la dotación de servicios públicos en las localidades con población indígena"]
[null,"Techaluta de Montenegro",{"$nulls":5},"3.6.1 Comunicaciones",{"$nulls":3},"O13E8 Reducir la violencia intrafamiliar y comunitaria"]
[null,"Tenamaxtlán",{"$nulls":5},"3.7.1 Turismo",{"$nulls":3},"O13E9 Reducir los principales riesgos sociales y de salud a los que está expuesta la población joven (alcoholismo y drogadicción, embarazos adolescente, abandono escolar)"]
[null,"Teocaltiche",{"$nulls":5},"3.7.2 Hoteles y Restaurantes",{"$nulls":3},"O14E1 Impulsar la integración y universalidad de los servicios de salud"]
[null,"Teocuitatlán de Corona",{"$nulls":5},"3.8.1 Investigación Científica",{"$nulls":3},"O14E2 Incrementar el acceso efectivo a los servicios de salud, en especial la población en condiciones de vulnerabilidad y pobreza"]
[null,"Tepatitlán de Morelos",{"$nulls":5},"3.8.2 Desarrollo Tecnológico",{"$nulls":3},"O14E3 Mejorar la calidad en la prestación de los servicios de salud"]
[null,"Tequila",{"$nulls":5},"3.8.3 Servicios Científicos y Tecnológicos",{"$nulls":3},"O14E4 Reducir el sobrepeso y la obesidad de la población"]
[null,"Teuchitlán",{"$nulls":5},"3.8.4 Innovación",{"$nulls":3},"O14E5 Reducir y controlar los factores de riesgo para la salud con enfoque preventivo a la comunidad"]
[null,"Tizapán el Alto",{"$nulls":5},"3.9.1 Comercio, Distribución, Almacenamiento y Depósito",{"$nulls":3},"O15E1 Facilitar el acceso al financiamiento para adquirir una vivienda propia a la población más vulnerable"]
[null,"Tlajomulco de Zúñiga",{"$nulls":5},"3.9.2 Otras Industrias",{"$nulls":3},"O15E2 Garantizar la aplicación de los instrumentos de planeación urbana en la construcción de fraccionamientos y para evitar asentamiento irregulares"]
[null,"Tlaquepaque",{"$nulls":5},"3.9.3 Otros Asuntos Económicos",{"$nulls":3},"O15E3 Garantizar reservas territoriales suficientes para la construcción de viviendas"]
[null,"Tolimán",{"$nulls":5},"4.1.1 Deuda Pública Interna",{"$nulls":3},"O15E4 Incrementar la efectividad de los programas sociales dirigidos a la adquisición, autoconstrucción y mejora de la vivienda"]
[null,"Tomatlán",{"$nulls":5},"4.1.2 Deuda Pública Externa",{"$nulls":3},"O15E5 Mejorar el entorno y servicios en las viviendas en zonas urbanas y rurales marginadas"]
[null,"Tonalá",{"$nulls":5},"4.2.1 Transferencias entre Diferentes Niveles y Ordenes de Gobierno",{"$nulls":3},"O15E6 Mejorar los procesos de certificación de la propiedad de la vivienda en asentamientos irregulares"]
[null,"Tonaya",{"$nulls":5},"4.2.2 Participaciones entre Diferentes Niveles y Ordenes de Gobierno",{"$nulls":3},"O16E1 Ampliar la oferta, la calidad y el acceso para realizar estudios de posgrado y de educación continua"]
[null,"Tonila",{"$nulls":5},"4.2.3 Aportaciones entre Diferentes Niveles y Ordenes de Gobierno",{"$nulls":3},"O16E2 Ampliar las oportunidades educativas, en especial la población en condiciones de vulnerabilidad y pobreza"]
[null,"Totatiche",{"$nulls":5},"4.3.1 Saneamiento del Sistema Financiero",{"$nulls":3},"O16E3 Ampliar y mejorar la enseñanza de la ciencia y la tecnología en la educación básica"]
[null,"Tototlán",{"$nulls":5},"4.3.2 Apoyos IPAB",{"$nulls":3},"O16E4 Diversificar la oferta de programas de educación superior y sus modalidades"]
[null,"Tuxcacuesco",{"$nulls":5},"4.3.3 Banca de Desarrollo",{"$nulls":3},"O16E5 Incrementar en la educación superior la movilidad de estudiantes y académicos a nivel estatal, nacional e internacional"]
[null,"Tuxcueca",{"$nulls":5},"4.3.4 Apoyo a los programas de reestructura en unidades de inversión (UDIS)",{"$nulls":3},"O16E6 Incrementar espacios educativos comunes que permitan la conjunción de esfuerzos de instituciones para mejorar la calidad y consolidar el clúster de la educación superior en el estado"]
[null,"Tuxpan",{"$nulls":5},"4.4.1 Adeudos de Ejercicios Fiscales Anteriores",{"$nulls":3},"O16E7 Incrementar la cobertura de la educación media superior y superior"]
[null,"Unión de San Antonio",{"$nulls":9},"O16E8 Mejorar el aprendizaje de un segundo idioma por parte de los estudiantes en todos los niveles educativos, particularmente el básico"]
[null,"Unión de Tula",{"$nulls":9},"O16E9 Mejorar la capacitación y actualización de docente y directivos del sistema educativo"]
[null,"Valle de Guadalupe",{"$nulls":9},"O16E10 Reducir el rezago educativo"]
[null,"Valle de Juárez",{"$nulls":9},"O16E11 Reducir la violencia en los planteles educativos"]
[null,"San Gabriel",{"$nulls":9},"O17E1 Ampliar y mejorar los instrumentos de transferencia y difusión tecnológica"]
[null,"Villa Corona",{"$nulls":9},"O17E2 Aumentar las fuentes de financiamiento para actividades de ciencia y tecnología"]
[null,"Villa Guerrero",{"$nulls":9},"O17E3 Aumentar las instituciones y empresas que realizan actividades de investigación y desarrollo tecnológico"]
[null,"Villa Hidalgo",{"$nulls":9},"O17E4 Incrementar el desarrollo de proyectos científicos tecnológicos entre los sectores académicos y las empresas"]
[null,"Cañadas de Obregón",{"$nulls":9},"O17E5 Incrementar la I+D en las empresas que exportan productos de alta tecnología"]
[null,"Yahualica de González Gallo",{"$nulls":9},"O17E6 Incrementar la investigación y el desarrollo tecnológico en las instituciones educativas"]
[null,"Zacoalco de Torres",{"$nulls":9},"O17E7 Mejorar y ampliar la formación de recursos humanos calificados en el campo de la investigación y desarrollo"]
[null,"Zapopan",{"$nulls":9},"O18E1 Diversificar y ampliar las alternativas de recreación cultural en regiones y municipios"]
[null,"Zapotiltic",{"$nulls":9},"O18E2 Garantizar la disponibilidad, seguridad y conservación de los espacios y sitios culturales"]
[null,"Zapotitlán de Vadillo",{"$nulls":9},"O18E3 Incrementar la disponibilidad de recursos humanos en el ámbito artístico"]
[null,"Zapotlán del Rey",{"$nulls":9},"O18E4 Incrementar las capacidades creativas y de producción artística de la población"]
[null,"Zapotlanejo",{"$nulls":9},"O18E5 Mejorar las condiciones materiales, humanas e institucionales vinculadas a la cultura"]
[null,"San Ignacio Cerro Gordo",{"$nulls":9},"O19E1 Acrecentar la capacitación y formación de instructores y entrenadores en actividades físicas y deportivas"]
[{"$nulls":11},"O19E2 Incrementar la práctica de actividades físicas y deportivas en todos los niveles educativos, y la población en general"]
[{"$nulls":11},"O19E3 Incrementar y mejorar los espacios para la práctica de actividades físicas y deportivas"]
[{"$nulls":11},"O19E4 Mejorar y ampliar el sistema estatal del deporte de alto rendimiento"]
[{"$nulls":11},"O19E5 Promover la práctica del deporte competitivo en el ámbito local, regional y estatal"]
[{"$nulls":11},"O20E1 Fortalecer las capacidades y equipamiento de los cuerpos de seguridad pública"]
[{"$nulls":11},"O20E2 Garantizar la honestidad, confianza y el profesionalismo del personal que labora en las instituciones de seguridad pública y privada a través de un sistema adecuado de evaluación"]
[{"$nulls":11},"O20E3 Incrementar el acceso de la población a las actividades culturales, deportivas y recreativas"]
[{"$nulls":11},"O20E4 Incrementar el nivel de denuncia ciudadana y su correcta atención"]
[{"$nulls":11},"O20E5 Incrementar la participación ciudadana en la prevención del delito"]
[{"$nulls":11},"O20E6 Intensificar y mejorar la comunicación en materia de prevención del delito y combate a la inseguridad"]
[{"$nulls":11},"O21E1 Concluir y consolidar el nuevo sistema penal acusatorio"]
[{"$nulls":11},"O21E2 Disminuir la incidencia de los actos de corrupción"]
[{"$nulls":11},"O21E3 Facilitar el acceso de la justicia a nivel local y regional"]
[{"$nulls":11},"O21E4 Incrementar el uso de métodos alternativos de solución de conflictos"]
[{"$nulls":11},"O21E5 Mejorar el sistema penal con el propósito de reducir la sobrepoblación penitenciaria"]
[{"$nulls":11},"O21E6 Mejorar la capacitación y formación de los recursos humanos del poder judicial"]
[{"$nulls":11},"O21E7 Proporcionar asistencia y representación eficaz a las víctimas con perspectiva de derechos humanos"]
[{"$nulls":11},"O22E1 Aumentar la probabilidad de captura y condena por delitos cometidos"]
[{"$nulls":11},"O22E2 Disminuir la incidencia de los actos de corrupción"]
[{"$nulls":11},"O22E3 Investigar y perseguir el delito con mayor eficacia"]
[{"$nulls":11},"O22E4 Mejorar la calidad de los servicios que prestan los ministerios públicos"]
[{"$nulls":11},"O22E5 Mejorar la capacitación y formación de los recursos humanos para la procuración de justicia"]
[{"$nulls":11},"O22E6 Mejorar la percepción ciudadana sobre el quehacer del sistema de procuración de justicia"]
[{"$nulls":11},"O23E1 Disminuir la incidencia de las violaciones a los Derechos Humanos"]
[{"$nulls":11},"O23E2 Mejorar la atención a las víctimas de violaciones a los derechos humanos"]
[{"$nulls":11},"O23E3 Reducir la violencia y discriminación, particularmente aquella ejercida en contra de grupos en situación de vulnerabilidad"]
[{"$nulls":11},"O24E1 Contribuir al desarrollo democrático social y político"]
[{"$nulls":11},"O24E2 Incrementar la participación ciudadana en asuntos públicos y en organizaciones civiles y comunitarias"]
[{"$nulls":11},"O24E3 Mejorar la coordinación de los tres órdenes y niveles de gobierno"]
[{"$nulls":11},"O24E4 Prevenir y gestionar conflictos sociales a través del diálogo constructivo"]
[{"$nulls":11},"O25E1 Disminuir la incidencia de los actos de corrupción"]
[{"$nulls":11},"O25E2 Impulsar un gobierno abierto, promotor de la transparencia, la rendición de cuentas, la participación ciudadana y del uso de las tecnologías de información y comunicación"]
[{"$nulls":11},"O25E3 Incrementar la disponibilidad de recursos financieros y mejorar su uso y asignación"]
[{"$nulls":11},"O25E4 Mejorar la calidad y disponibilidad de información para la toma de decisiones de la sociedad y el gobierno"]
[{"$nulls":11},"O25E5 Mejorar la calidad y la prestación de servicios públicos"]
[{"$nulls":11},"O25E6 Mejorar la capacitación y profesionalización de los funcionarios y servidores públicos"]
[{"$nulls":11},"O25E7 Mejorar la planeación, programación, el seguimiento y la evaluación para una gestión pública eficiente orientada a resultados"]
[{"$nulls":11},"O26E1 Asegurar el acceso igualitario a la justicia"]
[{"$nulls":11},"O26E2 Garantizar el acceso universal a la salud reproductiva y sexual"]
[{"$nulls":11},"O26E3 Incrementar el acceso a la educación de niñas y mujeres"]
[{"$nulls":11},"O26E4 Incrementar la participación de las mujeres en cargos públicos y en puestos de elección popular"]
[{"$nulls":11},"O26E5 Incrementar las oportunidades laborales dignas para las mujeres, en particular las mujeres jefas de familia"]
[{"$nulls":11},"O26E6 Reducir la violencia contra las mujeres"]
[{"$nulls":11},"O27E1 Crear espacios físicos y virtuales, y otros mecanismos de diálogo y reflexión para generar soluciones innovadoras a problemas públicos y sociales"]
[{"$nulls":11},"O27E2 Desarrollar alianzas y redes entre empresas, gobierno, grupos sociales y universidades para impulsar la innovación, el emprendurismo y la creatividad que genere la creación de valor público y económico"]
[{"$nulls":11},"O27E3 Incrementar las actividades de investigación y desarrollo, principalmente en el sector agropecuario, la industria alimentaria, la industria creativa y la biotecnológica"]
[{"$nulls":11},"O27E4 Promover la innovación en el sector gubernamental en todos los órdenes y niveles de gobierno"]

{"sheet":"Base","index":4,"n_rows":1,"n_cols":60,"rows_kept":1,"hidden":true}
["ID","Ente auditable","Denominación del Programa","Categoría programática","Unidad Responsable","Finalidad","Función","Sub-función","Alineación con objetivos superiores del PND","Alineación con objetivos secundarios del PND","Alineación con objetivos superiores del PED","Alineación con objetivos secundarios del PED","Alineación con objetivos superiores del PMD","Alineación con objetivos secundarios del PMD","Nivel MIR","Código del nivel MIR","Resumen Narrativo (objetivos)","Nombre del indicador","Definición del indicador","Dimensión del indicador","Tipo de indicador","Método de Cálculo del indicador","Valor programado 1 (Numerador)","Valor programado 2 (Denominador)","Frecuencia de Medición del indicador","Unidad de Medida del indicador","Metas del indicador","Medios de Verificación del indicador","Supuestos del indicador","Capítulo 1000","Capítulo 2000","Capítulo 3000","Capítulo 4000","Capítulo 5000","Capítulo 6000","Capítulo 7000","Capítulo 8000","Capítulo 9000","Avance 1er Semestre del Valor programado 1 (Numerador)","Avance 1er Semestre del Valor programado 2 (Denominador)","Avance Anual del Valor programado 1 (Numerador)","Avance Anual del Valor programado 2 (Denominador)","Avance 1er Semestre del Capítulo 1000","Avance 1er Semestre del Capítulo 2000","Avance 1er Semestre del Capítulo 3000","Avance 1er Semestre del Capítulo 4000","Avance 1er Semestre del Capítulo 5000","Avance 1er Semestre del Capítulo 6000","Avance 1er Semestre del Capítulo 7000","Avance 1er Semestre del Capítulo 8000","Avance 1er Semestre del Capítulo 9000","Avance Anual del Capítulo 1000","Avance Anual del Capítulo 2000","Avance Anual del Capítulo 3000","Avance Anual del Capítulo 4000","Avance Anual del Capítulo 5000","Avance Anual del Capítulo 6000","Avance Anual del Capítulo 7000","Avance Anual del Capítulo 8000","Avance Anual del Capítulo 9000"]

{"sheet":"SUSTENTO INDICADOR","index":5,"n_rows":534,"n_cols":20,"rows_kept":534,"merged":[[1,1,1,15],[3,5,3,15],[5,2,6,3],[5,5,6,15],[8,2,9,3],[8,5,9,15],[13,2,13,9],[13,11,13,15],[14,11,17,15],[27,2,27,4],[27,5,27,6],[27,7,27,8],[27,9,27,11],[27,12,27,13],[27,15,27,16],[27,18,27,19],[28,1,32,1],[28,2,31,4],[28,5,31,6],[28,7,31,8],[28,9,31,11],[28,12,29,13],[28,14,29,14],[28,15,31,16],[28,17,29,17],[30,12,31,13],[30,14,31,14],[30,17,31,17],[33,1,36,1],[33,2,36,4],[33,5,36,6],[33,7,36,8],[33,9,36,11],[33,12,34,13],[33,14,34,14],[33,15,36,16],[33,17,34,17],[35,12,36,13],[35,14,36,14],[35,17,36,17],[37,1,38,1],[37,2,38,3],[37,18,58,19],[39,1,40,1],[39,2,40,3],[41,1,42,1],[41,2,42,3],[43,1,44,1],[43,2,44,3],[45,1,46,1],[45,2,46,3],[47,1,48,1],[47,2,48,3],[49,1,50,1],[49,2,50,3],[51,1,52,1],[51,2,52,3],[53,1,54,1],[53,2,54,3],[55,1,56,1],[55,2,56,3],[57,1,58,1],[57,2,58,3],[59,2,60,3],[61,1,62,1],[61,2,62,3],[63,2,64,3],[65,1,66,1],[65,2,66,3],[67,1,70,1],[67,2,70,4],[67,5,70,6],[67,7,70,8],[67,9,70,11],[67,12,68,13],[67,14,68,14],[67,15,70,16],[67,17,68,17],[69,12,70,13],[69,14,70,14],[69,17,70,17],[71,1,72,1],[71,2,72,3],[71,18,84,19],[73,1,74,1],[73,2,74,3],[75,1,76,1],[75,2,76,3],[77,1,78,1],[77,2,78,3],[79,1,80,1],[79,2,80,3],[81,1,82,1],[81,2,82,3],[83,1,84,1],[83,2,84,3],[85,1,86,1],[85,2,86,3],[87,1,88,1],[87,2,88,3],[89,1,90,1],[89,2,90,3],[91,2,92,3],[93,1,94,1],[93,2,94,3],[95,2,96,3],[97,1,98,1],[97,2,98,3],[99,2,100,3],[101,1,102,1],[101,2,102,3],[103,2,104,3],[105,1,106,1],[105,2,106,3],[107,1,108,1],[107,2,108,3],[109,2,110,3],[111,1,112,1],[111,2,112,3],[113,2,114,3],[115,1,116,1],[115,2,116,3],[117,2,118,3],[119,1,120,1],[119,2,120,3],[121,1,124,1],[121,2,124,4],[121,5,124,6],[121,7,124,8],[121,9,124,11],[121,12,122,13],[121,14,122,14],[121,15,124,16],[121,17,122,17],[123,12,124,13],[123,14,124,14],[123,17,124,17],[125,1,126,1],[125,2,126,3],[125,18,136,19],[127,2,128,3],[129,1,130,1],[129,2,130,3],[131,1,132,1],[131,2,132,3],[133,1,134,1],[133,2,134,3],[135,1,136,1],[135,2,136,3],[137,1,138,1],[137,2,138,3],[139,1,140,1],[139,2,140,3],[141,1,142,1],[141,2,142,3],[143,1,144,1],[143,2,144,3],[145,1,146,1],[145,2,146,3],[147,2,148,3],[149,1,150,1],[149,2,150,3],[151,2,152,3],[153,1,154,1],[153,2,154,3],[155,2,156,3],[157,1,158,1],[157,2,158,3],[159,2,160,3],[161,1,162,1],[161,2,162,3],[163,2,164,3],[165,1,166,1],[165,2,166,3],[167,2,168,3],[169,1,170,1],[169,2,170,3],[171,1,172,1],[171,2,172,3],[173,2,174,3],[175,1,176,1],[175,2,176,3],[177,2,178,3],[179,1,180,1],[179,2,180,3],[181,2,182,3],[183,1,184,1],[183,2,184,3],[185,2,186,3],[187,1,188,1],[187,2,188,3],[189,1,192,1],[189,2,192,4],[189,5,192,6],[189,7,192,8],[189,9,192,11],[189,12,190,13],[189,14,190,14],[189,15,192,16],[189,17,190,17],[191,12,192,13],[191,14,192,14],[191,17,192,17],[193,1,194,1],[193,2,194,3],[193,18,212,19],[195,1,196,1],[195,2,196,3],[197,1,198,1],[197,2,198,3],[199,1,200,1],[199,2,200,3],[201,1,202,1],[201,2,202,3],[203,1,204,1],[203,2,204,3],[205,1,206,1],[205,2,206,3],[207,1,208,1],[207,2,208,3],[209,1,210,1],[209,2,210,3],[211,1,212,1],[211,2,212,3],[213,2,214,3],[215,1,216,1],[215,2,216,3],[217,1,218,1],[217,2,218,3],[219,2,220,3],[221,1,222,1],[221,2,222,3],[223,2,224,3],[225,1,226,1],[225,2,226,3],[227,2,228,3],[229,1,230,1],[229,2,230,3],[231,2,232,3],[233,1,234,1],[233,2,234,3],[235,1,236,1],[235,2,236,3],[237,1,240,1],[237,2,240,4],[237,5,240,6],[237,7,240,8],[237,9,240,11],[237,12,238,13],[237,14,238,14],[237,15,240,16],[237,17,238,17],[239,12,240,13],[239,14,240,14],[239,17,240,17],[241,1,242,1],[241,2,242,3],[241,18,260,19],[243,1,244,1],[243,2,244,3],[245,1,246,1],[245,2,246,3],[247,1,248,1],[247,2,248,3],[249,1,250,1],[249,2,250,3],[251,1,252,1],[251,2,252,3],[253,1,254,1],[253,2,254,3],[255,1,256,1],[255,2,256,3],[257,1,258,1],[257,2,258,3],[259,1,260,1],[259,2,260,3],[261,1,262,1],[261,2,262,3],[263,1,264,1],[263,2,264,3],[265,1,266,1],[265,2,266,3],[267,1,268,1],[267,2,268,3],[269,1,270,1],[269,2,270,3],[271,2,272,3],[273,1,274,1],[273,2,274,3],[275,2,276,3],[277,1,278,1],[277,2,278,3],[279,1,280,1],[279,2,280,3],[281,1,282,1],[281,2,282,3],[283,1,284,1],[283,2,284,3],[285,2,286,3],[287,1,288,1],[287,2,288,3],[289,2,290,3],[291,1,292,1],[291,2,292,3],[293,2,294,3],[295,1,296,1],[295,2,296,3],[297,2,298,3],[299,1,300,1],[299,2,300,3],[301,1,302,1],[301,2,302,3],[303,1,304,1],[303,2,304,3],[305,2,306,3],[307,1,308,1],[307,2,308,3],[309,2,310,3],[311,1,312,1],[311,2,312,3],[313,1,316,1],[313,2,316,4],[313,5,316,6],[313,7,316,8],[313,9,316,11],[313,12,314,13],[313,14,314,14],[313,15,316,16],[313,17,314,17],[315,12,316,13],[315,14,316,14],[315,17,316,17],[317,1,318,1],[317,2,318,3],[317,18,332,19],[319,1,320,1],[319,2,320,3],[321,1,322,1],[321,2,322,3],[323,1,324,1],[323,2,324,3],[325,1,326,1],[325,2,326,3],[327,1,328,1],[327,2,328,3],[329,1,330,1],[329,2,330,3],[331,1,332,1],[331,2,332,3],[333,2,334,3],[335,1,336,1],[335,2,336,3],[337,1,340,1],[337,2,340,4],[337,5,340,6],[337,7,340,8],[337,9,340,11],[337,12,338,13],[337,14,338,14],[337,15,340,16],[337,17,338,17],[339,12,340,13],[339,14,340,14],[339,17,340,17],[341,1,342,1],[341,2,342,3],[341,18,362,19],[343,1,344,1],[343,2,344,3],[345,1,346,1],[345,2,346,3],[347,1,348,1],[347,2,348,3],[349,1,350,1],[349,2,350,3],[351,1,352,1],[351,2,352,3],[353,1,354,1],[353,2,354,3],[355,1,356,1],[355,2,356,3],[357,1,358,1],[357,2,358,3],[359,1,360,1],[359,2,360,3],[361,1,362,1],[361,2,362,3],[363,2,364,3],[365,1,366,1],[365,2,366,3],[367,1,370,1],[367,2,370,4],[367,5,370,6],[367,7,370,8],[367,9,370,11],[367,12,368,13],[367,14,368,14],[367,15,370,16],[367,17,368,17],[369,12,370,13],[369,14,370,14],[369,17,370,17],[371,1,372,1],[371,2,372,3],[371,18,384,19],[373,1,374,1],[373,2,374,3],[375,1,376,1],[375,2,376,3],[377,1,378,1],[377,2,378,3],[379,1,380,1],[379,2,380,3],[381,1,382,1],[381,2,382,3],[383,1,384,1],[383,2,384,3],[385,1,386,1],[385,2,386,3],[387,1,388,1],[387,2,388,3],[389,1,390,1],[389,2,390,3],[391,1,392,1],[391,2,392,3],[393,1,394,1],[393,2,394,3],[395,1,396,1],[395,2,396,3],[397,1,398,1],[397,2,398,3],[399,1,400,1],[399,2,400,3],[401,1,402,1],[401,2,402,3],[403,1,404,1],[403,2,404,3],[405,1,406,1],[405,2,406,3],[407,1,408,1],[407,2,408,3],[409,1,410,1],[409,2,410,3],[411,1,412,1],[411,2,412,3],[413,1,414,1],[413,2,414,3],[415,1,416,1],[415,2,416,3],[419,2,419,6],[420,4,420,6],[450,2,450,5],[450,6,451,15],[453,5,454,15],[458,2,458,10],[458,14,458,15],[460,14,476,15],[481,2,481,5],[481,6,482,15],[484,5,485,15],[489,2,489,10],[489,14,489,15],[491,14,495,15],[500,2,500,5],[500,6,501,15],[503,5,504,15],[508,2,508,10],[508,14,508,15],[510,14,514,15],[519,2,519,5],[519,6,520,15],[522,5,523,15],[527,2,527,10],[527,14,527,15],[529,14,533,15]]}
[]
[null,"Municipio de Ixtlahuacán de los Membrillos, Jal."]
[]
[null,null,"DIRECCION MUNICIPAL:",null,null,"SAMAPA"]
[]
[null,null,"NOMBRE DEL PROGRAMA PRESUPUESTARIO:",null,null,"Desarrollo Social Municipal"]
[]
[]
[null,null,"NOMBRE DEL INDICADOR ESTRATEGICO:",null,null,"Índice de avance en el combate a la marginación municipal (IMNM)"]
[]
[]
[{"$nulls":5},"AÑO: ",2018,2019,2020,2021]
[]
[null,null,"AVANCE BIMESTRAL",{"$nulls":8},"Criterios para determinar avance de porcentaje de metas"]
[null,null,"Proyectos a desarrollar",null,"1ro.","2do.","3ro.","4to.","5to.","6to.",null,"En la MIR se establecen los proyectos que ha programado la dirección para cumplir con el indicador estrategico  durante la administración, con el cumplimiento al 100% de ellos y sus 16 variables dara cumplimiento a las meta individuales y de la dirección que constituyen el indicador estrategico o de evaluacion del exito ejercico el presupuesto asignado a la direccion y a cada proyecto y sus actividades, los informes bimensuales seran la suma de los valores relativos de cada bimestre que se va acumulando, hasta llegar al último bimestre de trabajo para su cumplimiento."]
[null,null,"Cobertura de Agua Potable y Alcantarillado Ampliada","Índice de cobertura agua potable y alcantarillado (Í1-CAPyA)",0.25,{"v":0.5,"d":"0.50"}]
[null,1.1,"Gestionar un estudio de aguas subterráneas","PORCENTAJE de avance del estudio de aguas subterráneas (P51-AEAS)",{"v":0,"d":"0%"},{"v":0.06,"d":"6%"},0,0,0,0]
[null,1.2,"Instalación de macro medidores en pozos municipales","PORCENTAJE de pozos municipales con macro medidores (P52-PMMM)",{"v":0.14,"d":"14%"},{"v":0.29,"d":"29%"},0,0,0,0]
[null,1.3,"Programa de cultura del agua","PORCENTAJE de cumplimiento del programa de cultura del agua (P53-CPCA)",{"v":0.65,"d":"65%"},{"v":0.79,"d":"79%"},0,0,0,0]
[null,1.4,"Reemplazar el colector principal de la línea de drenaje ","PORCENTAJE colector principal remplazado (P54-CPR)",{"v":0.95,"d":"95%"},{"v":1,"d":"100%"},0,0,0,0]
[null,1.5,"Construcción de 2 pozos profundos","PORCENTAJE de avance en perforación de pozos (P55-AP2P)",{"v":0.3,"d":"30%"},{"v":0.6,"d":"60%"},0,0,0,0]
[null,1.6,"Desazolve de cárcamos","PORCENTAJE de cárcamos con desazolve (P56-CCD)",{"v":0.5,"d":"50%"},{"v":0.75,"d":"75%"},0,0,0,0]
[null,1.7,"Construcción del humedal arroyo de los sabinos","PORCENTAJE de avance en la construcción del humedal (P57-ACH)",{"v":0.15,"d":"15%"},{"v":0.2,"d":"20%"},0,0,0,0]
[null,1.8,"Rehabilitación de 4 plantas de tratamiento","PORCENTAJE de Plantas de tratamiento de aguas residuales en operación dentro de norma (P58-PPTARDN)",{"v":0.14,"d":"14%"},{"v":0.36,"d":"36%"},0,0,0,0]
[null,null,"VALOR BIMESTRAL DEL INDICADOR",null,{"$f":"SUM(E17:E24)/8","v":{"v":0.35375,"d":"35.38%"}},{"$f":"SUM(F17:F24)/8","v":{"v":0.5062500000000001,"d":"50.63%"}},{"$f":"SUM(G17:G24)/3","v":{"v":0,"d":"0%"}},{"v":0,"d":"0%"},{"v":0,"d":"0%"},{"v":0,"d":"0%"}]
[]
[]
[null,null,"Proyectos a Desarrollar",null,null,"Nombre del indicador",null,"Definición",null,"Método de cálculo",null,null,"Valor programado 1 (Numerador)",null,"Valor programado 2 (Denominador)","Frecuencia de medición",null,"Meta","Caracteristicas del Indicador"]
[null,"Propósito","Cobertura de Agua Potable y Alcantarillado Ampliada",null,null,"Índice de cobertura agua potable y alcantarillado (T1-CAPyA)",null,"Mide la ampliacion en la cobertura de suministro de agua potable y alcantarillado ",null,"(valor resultante de sumar los valores individuales  de  los cosientes entre sus denominadores por su ponderacion asignada, que miden las  variables de: aguas subterraneas, macromedidores, cultura agua, colector principal, construccion pozos, desazolve carcamos, construccion humedal y rahabilitacion plantas con su correspondientes ponderaciones de .1, .2, .1, .1, .2, .1, .1, y .1)",null,null,{"$f":"0.1*(M34)+0.2*(M68)+0.1*(M122)+0.1*(M190)+0.2*(M238)+0.1*(M314)+0.1*(M338)+0.1*(M368)","v":4.53},null,{"$f":"0.1*(O34)+0.2*(O68)+0.1*(O122)+0.1*(O190)+0.2*(O238)+0.1*(O314)+0.1*(O338)+0.1*(O368)","v":8.1},"Bimestral",null,{"$f":"M29/O29","v":{"v":0.5592592592592593,"d":"0.56"}},"Eficacia","Dimensión"]
[{"$nulls":18},"Estratégico","Tipo"]
[{"$nulls":12},{"$f":"(M36+M70+M124+M192+M240+M316+M340+M370)/8","v":{"$error":"#REF!"}},null,{"$f":"(O36+O70+O124+O192+O240+O316+O340+O370)/8","v":{"$error":"#REF!"}},null,null,{"$f":"M31/O31","v":{"$error":"#REF!"}},"Bimestral","Frecuencia de medición"]
[{"$nulls":18},"Índice","Unidad de medida"]
[null,null,"Calendario de ejecución",null,null,"Enero","Feb","Mzo","Abril","Mayo","Jun","Jul","Agosto","Sept","Oct","Nov","Dic"]
[null,"Componente 1","Gestionar un estudio de aguas subterráneas",null,null,"PORCENTAJE de avance del estudio de aguas subterráneas (P51-AEAS)",null,"Mide la ampliacion en la cobertura de suministro de agua potable y alcantarillado ",null,"(Cantidad de  actividades (1) desarrolladas para la gestion de un estudio de aguas subterráneas / Total de  actividades (10) a desarrollar para la gestion de un estudio de aguas subterráneas)*100",null,null,1,null,10,"Mensual",null,{"$f":"M34/O34","v":{"v":0.1,"d":"10.00%"}},"Eficacia","Dimensión"]
[{"$nulls":18},"Gestión","Tipo"]
[{"$nulls":12},{"$f":"R39+R41+R43+R45+#REF!","v":{"$error":"#REF!"}},null,{"$f":"R38+R40+R42+R44+#REF!","v":{"$error":"#REF!"}},null,null,{"$f":"M36/O36","v":{"$error":"#REF!"}},"Bimestral","Frecuencia de medición"]
[{"$nulls":18},"Porcentaje","Unidad de medida"]
[null,null,"XXV. Preveer las necesidades a futuro, tanto de la cabecera municipal como el resto de las localidades del municipio agotando las posibilidades de exploracion de nuevas fuentes de abastecimiento a distancias razonables, pudiendo contar con la acesoria y apoyo de la comision, previa solicitud del consejo de administracion del organismo operador o del ayuntamiento.",null,"P",{"$nulls":12},{"$f":"SUM($F38:$Q38)/100","v":0}]
[{"$nulls":4},"E",{"$nulls":12},0]
[null,"Actividad 1.1","Elaborar UN anteproyecto y la cotización del Estudio de Hidrología superficial - subterranea integral de los recursos hidrícos disponibles en el municipio.",null,"P",{"$nulls":4},50,50,{"$nulls":6},1]
[{"$nulls":4},"E",{"$nulls":4},50,50,{"$nulls":6},1]
[null,"Actividad 1.2","Elaborar un estudio de hidrologia superficial-subterranea integral de los recursos hídricos disponibles en el municipio, con la siguiente tematica: Identificacion y delimitacion de cuenca y subcuenca correspondiente al municipio. ",null,"P",{"$nulls":9},50,50,null,1]
[{"$nulls":4},"E",{"$nulls":9},0,0,null,0]
[null,"Actividad 1.3"," Calculo de área de captacion de la microcuenca ",null,"P",{"$nulls":9},50,50,null,1]
[{"$nulls":4},"E",{"$nulls":9},0,0,null,0]
[null,"Actividad 1.4","Establecer el patrón de drenaje en el área de estudio. ",null,"P",{"$nulls":9},50,50,null,1]
[{"$nulls":4},"E",{"$nulls":9},0,0,null,0]
[null,"Actividad 1.5","Analisis de pluviometria estadística",null,"P",{"$nulls":9},50,50,null,1]
[{"$nulls":4},"E",{"$nulls":9},0,0,null,0]
[null,"Actividad 1.6","Balance Hidrologico del Sistema. ",null,"P",{"$nulls":9},50,50,null,1]
[{"$nulls":4},"E",{"$nulls":9},0,0,null,0]
[null,"Actividad 1.7","Observacion de 5 sondeos eléctricos verticales distribuidos en los sitios criticos definidos en el an{alisis hidrológico. ",null,"P",{"$nulls":9},50,50,null,1]
[{"$nulls":4},"E",{"$nulls":9},0,0,null,0]
[null,"Actividad 1.8","Caracterizacion del acuifero, Subcuenca Cajititlan, Zona de Ixtlahuacan de los Membrillos de la Cuenca Lerma Santiago.",null,"P",{"$nulls":9},50,50,null,1]
[{"$nulls":4},"E",{"$nulls":9},0,0,null,0]
[null,"Actividad 1.9","Elaboración del Informe con determinaciones del modelo hidrologico superficial-subterraneo. ",null,"P",{"$nulls":9},50,50,null,1]
[{"$nulls":4},"E",{"$nulls":9},0,0,null,0]
[null,"Actividad 1.10","Definicion de cálculo de disponibilidad de recursos hidráulicos superficiales y subterráneos ",null,"P",{"$nulls":9},50,50,null,1]
[{"$nulls":4},"E",{"$nulls":9},0,0,null,0]
[null,null,"XXXIV. Proponer al Ayuntamiento, adecuaciones o modificaciones para reformar el presente reglamento.",null,"P",0,0,0,0,0,0,20,25,25,15,15,0,{"$f":"SUM($F60:$Q60)/100","v":1}]
[{"$nulls":4},"E",0,0,0,0,0,0,0,0,0,0,0,0,0]
[null,"Actividad 1.11","Analisis para su posible actualización o modificación del Reglamento para la Prestacion de los Servicios de Agua Potable, Alcantarillado y Saneamiento, así como el Manual de Organización, para tener un mejor funcionamiento y organización dentro del Organismo.",null,"P",0,0,0,0,0,0,20,25,25,15,15,0,1]
[{"$nulls":4},"E",0,0,0,0,0,0,0,0,0,0,0,0,0]
[null,null,"XLVII. Realizar todas las actividades y actos juridicos encaminados directa o indirectamente al cumplimeinto de sus objetivos.",null,"P",10,10,10,10,10,10,10,10,5,5,5,5,1]
[{"$nulls":4},"E",10,10,10,10,10,10,0,0,0,0,0,0,0.6]
[null,"Actividad 1.12","Para cumplir con el objetivo del Organismo se realizan las siguientes actividades; reparacion de 1,800 fugas de agua reparadas, reconexion de 240 tomas,  tomas destapadas domiciliarias 192, reparaciones en cemento con piera ahogada 144, destape de drenaje con roto zonda 960, incorporaciones de agua potable 160, incorporaciones a drenaje 36, mantenimiento preventivo a 32 pozos de todo el municipio, mantenimiento a las 4 Plantas de Tratamiento de las localidades de Sabinos 1 y Huerta Vieja, Atequiza e Ixtlahuacán, llevando tambien 50,400 Requerimientos a cada predio de las localidades del municipio, de estos se les requiere a 31,294 de nuestros usuarios y el resto que son 19,106 a personas morosas, y así mismo notificar con un promedio de 40 multas por desperdicio o mal uso del agua, todo esto anualmente. Donde también se llevan acabo la recepcion, contestacion y seguimiento en tiempo y forma de 140 oficios recibidos anualmente. ",null,"P",10,10,10,10,10,10,10,10,5,5,5,5,1]
[{"$nulls":4},"E",10,10,10,10,10,10,0,0,0,0,0,0,0.6]
[null,"Componente 2","Instalación de macro medidores en pozos municipales",null,null,"PORCENTAJE de pozos municipales con macro medidores (P52-PMMM)",null,"Mide los avances en poner macromedidores en los pozos municipales",null,"(Cantidad de  actividades (2) desarrolladas para  colocar 5 macro medidores en las lineas de conducción del agua / Total de actividades (7) desarrolladas para  colocar 5 macro medidores en las lineas de conducción del agua de los pozos municipales a la red de agua potable )*100",null,null,2,null,7,"Mensual",null,{"$f":"M68/O68","v":{"v":0.2857142857142857,"d":"29%"}},"Eficacia","Dimensión"]
[{"$nulls":18},"Gestión","Tipo"]
[{"$nulls":12},{"$f":"R73+R75+R77+R79+R81+R83+R85","v":6.5},null,{"$f":"R72+R74+R76+R78+R80+R82+R84","v":7},null,null,{"$f":"M70/O70","v":{"v":0.9285714285714286,"d":"93%"}},"Bimestral","Frecuencia de medición"]
[{"$nulls":18},"Índice","Unidad de medida"]
[null,"Actividad 2.1","Iniciar con las 3 cotizaciones correspondientes",null,"P",0,20,20,30,20,10,0,0,0,0,0,0,{"$f":"SUM($F72:$Q72)/100","v":1}]
[{"$nulls":4},"E",0,20,20,30,20,0,0,0,0,0,0,0,{"$f":"SUM($F73:$Q73)/100","v":0.9}]
[null,"Actividad 2.2","Definir donde se colocarán los 5 Macromedidores",null,"P",0,20,20,20,20,20,0,0,0,0,0,0,1]
[{"$nulls":4},"E",0,20,20,20,20,20,0,0,0,0,0,0,1]
[null,"Actividad 2.3","Definir que tipo de Macromedidores se colocarán",null,"P",0,0,20,20,20,40,0,0,0,0,0,0,1]
[{"$nulls":4},"E",0,0,20,20,20,40,0,0,0,0,0,0,1]
[null,"Actividad 2.4","Especificar que los Macromedidores cumplan con lo especificado por la norma NOM-012-SCFI-2002",null,"P",0,0,20,20,20,40,0,0,0,0,0,0,1]
[{"$nulls":4},"E",0,0,20,20,20,0,0,0,0,0,0,0,0.6]
[null,"Actividad 2.5","Definir si los 5 Macromedidores se colocan a la salida de la fuente de abastecimiento (pozo)",null,"P",10,30,20,20,20,0,0,0,0,0,0,0,1]
[{"$nulls":4},"E",10,30,20,20,20,0,0,0,0,0,0,0,1]
[null,"Actividad 2.6","Definir si los 5 Macromedidores se colocarán a la salida del tanque de almacenamiento",null,"P",10,30,20,20,20,0,0,0,0,0,0,0,1]
[{"$nulls":4},"E",10,30,20,20,20,0,0,0,0,0,0,0,1]
[null,"Actividad 2.7","Analizar si es conveniente que los Macromedidores se coloquen a la entrada de fraccionamientos o condominios.",null,"P",10,30,20,20,20,0,0,0,0,0,0,0,1]
[{"$nulls":4},"E",10,30,20,20,20,0,0,0,0,0,0,0,1]
[null,null,"XIII. Emitir cuando proceda, directamente tecnicos de factibilidad para la dotacion de los servicios.",null,"P",{"$nulls":12},0]
[{"$nulls":4},"E",{"$nulls":12},0]
[null,"Actividad 2.8","Recepcion de 125   oficio en 2019, para 2020 se esperarian la misma cantidad, de quien solicite el servicio, se elabora un oficio a quien solicite el estudio de factibilidad, por el que se dara respuesta si es posible la prestacion de servicios de agua potable o drenaje.se da respuesta.",null,"P",10,10,10,10,10,10,10,10,10,10,null,null,1]
[{"$nulls":4},"E",10,10,10,10,10,{"$nulls":7},0.5]
[null,"Actividad 2.9","El responsable de la operación de las 32 fuente de abastecimiento (pozo) verifica en el domicilio que se solicita el servicio e informa a SAMAPA si es factible el dictamén.  La factibilidad para dar el servicio (positiva o negativa), se le informa al Área Técnica. Aproximadamente al año son 100 dictamenes de factibilidad que se realizan en todo el municipio.",null,"P",10,10,10,10,10,10,10,10,10,5,5,null,1]
[{"$nulls":4},"E",10,10,10,10,10,{"$nulls":7},0.5]
[null,null,"XXXIII. Formular y mantener actualizado el padron de usuarios de los servicios a su cargo.",null,"P",5,5,5,5,10,10,10,10,10,10,10,10,1]
[{"$nulls":4},"E",5,5,5,5,10,10,0,0,0,0,0,0,0.4]
[null,"Actividad 2.10","Realizamos una supervisión constante de trabajo de campo de nuestro padron de 31,294 cuentas existentes, realizando visitas en cada predio, en donde se verifican si existen tomas clandestinas, subdivisiones no registradas, cuentas duplicadas, derivaciones de tomas de agua, para verificar que la informacion que esta capturada en el sistema sea la correcta y para mantener actualizado nuestro padrón, e invitando también al usuario a que asista a nuestras oficinas a presentar su documentacion adecuada para realizar las modificacion requerida. Detectando así alrededor de un 30% de estas irregularidades.",null,"P",5,5,5,5,10,10,10,10,10,10,10,10,1]
[{"$nulls":4},"E",5,5,5,5,10,10,0,0,0,0,0,0,0.4]
[null,null,"XXXIV. Instalar los instrumentos de medicion adecuados en cada fuente de abastecimiento a su cargo, en puntos donde tecnicamente la medicion sea representativa de la totalidad del suministro de agua a las localidades de que se trate.",null,"P",0,0,0,0,0,0,20,20,20,20,20,0,1]
[{"$nulls":4},"E",0,0,0,0,0,0,0,0,0,0,0,0,0]
[null,"Actividad 2.11","Instalacion de macromedidiores en las fuentes de abastecimiento que contienen mas caudal que son las siguientes Pozo #1 ixtlahuacan con 25 l/s horas trabajadas 18 hrs tren de descarga 6\" abasteciendo 40%  de la cabecera municipal con una dotacion de 591,300 m3 anuales. Pozo la cañada con 25 l/s horas trabajadas 18 hrs tren de descarga 6\" abastece las localidades de la cañada y Luis Garcia con una dotacion de 591,300 m3 anuales. Pozo Fracc. Olivos 2 con 30 l/s horas trabajadas 24 hrs tren de descarga 6\" abastece los Fracc. Olivos 2, Olivos 3 y Laureles con una dotacion de 946,080 m3 anuales. Pozo #4 Atequiza con 18 l/s horas trabajadas 18 hrs tren de descarga 4\" abastece el 50% de la localidad de atequiza y el 50% de lomas de Atequiza con una dotacion de 425,736 m3 anuales. Pozo #3 de ixtlahuacan con 40 l/s horas trabajadas 12, tren de descarga  de 6\", abastece el 60% de la cabecera municipal con una dotacion programada de 630,720 m3 anuales.",null,"P",0,0,0,0,0,0,20,20,20,20,20,0,1]
[{"$nulls":4},"E",0,0,0,0,0,0,0,0,0,0,0,0,0]
[null,null,"XXXV. Instalar y operar los aparatos medidores para la cuantificacion de consumos de todos los usuarios, incluyendo los servicios a los bienes de dominio publico.",null,"P",0,0,0,20,20,20,20,10,10,0,0,0,1]
[{"$nulls":4},"E",0,0,0,0,20,20,20,0,0,0,0,0,0.6]
[null,"Actividad 2.112","Iniciar con la implementacion de 100 medidores en el fraccionamiento buenavista, ya que este fraccionamiento es de mayor consumo derivado por las caracteristicas de sus predios, con una cantidad de consumo aproximado de 252,288 m3  anualmente ",null,"P",0,0,0,20,20,20,20,10,10,0,0,0,1]
[{"$nulls":4},"E",0,0,0,0,20,20,0,0,0,0,0,0,0.4]
[null,null,"XXXVI. Verificar e inspeccionar las tomas, mecanismo de regulacion o medicion, las redes o instalaciones domiciliarias o privadas en los predios o lotes, para administrar o controlar la dotacion de los servicios de agua potable, drenaje, alcantarillado o disposicion final de sus aguas residuales o autorizar las solicitudes de conexion, sujetando sus actuaciones a lo dispuesto a las normas que establecen las bases generales y regulan el procedimiento administrativo.",null,"P",{"$nulls":12},0]
[{"$nulls":4},"E",{"$nulls":12},0]
[null,"Actividad 2.13","Atencion a los reportes de los usuarios, anualmente se atienden las siguientes cantidades:  fugas de agua 1,800,  reconecciones 240,  tomas tapadas domiciliarias 192, reparaciones en cemento con piedra ahogada 144, destape de drenaje con roto zonda 960, incorporaciones de agua potable 60, incorporaciones al drenaje 36. ",null,"P ",10,10,5,5,5,5,10,10,10,10,10,10,1]
[{"$nulls":4},"E",10,10,5,5,5,5,{"$nulls":6},0.4]
[null,"Actividad 2.14","Atencion a los reportes de los usuarios respecto a drenajes, anualmente se atienden 600 fugas provocadas por taponamientos en las redes. Se realiza la limpieza de las siguientes fosas sépticas: Panteón Ixtlahuacan (12 anuales), Panteón de Atequiza (3 anuales), Fosa en Buenavista (12 anuales), Fosa en la Capilla (2 anuales), Fosa en el Sacrificio (12 anuales), Fosa en la escuela San Mateo en Olivos 2 (8 anuales). Con un Total de 49 servicios de limpieza al año con el camion Váctor.                                 ",null,"P",5,5,10,10,10,10,10,10,10,10,5,5,1]
[{"$nulls":4},"E",5,5,10,10,10,10,{"$nulls":6},0.5]
[null,null,"XXXVII. Realizar el proceso de lectura, cuantificacion de volumen administrado, facturacion y cobro de los servicios proporcionados.",null,"P",0,0,0,20,10,10,10,10,10,10,10,10,1]
[{"$nulls":4},"E",0,0,0,20,10,10,0,0,0,0,0,0,0.4]
[null,"Actividad 2.15","Mensualmente se realizan visitas a 100 usuario con consumo medido, para toma de lectura manual. ",null,"P",0,0,0,20,10,10,10,10,10,10,10,10]
[{"$nulls":4},"E",0,0,0,20,10,10,0,0,0,0,0,0]
[null,null,"XXXVIII. Requerir a los usuarios y recibir el pago encontra prestacion de los servicios que reciben, generan o demandan.",null,"P",5,5,5,5,10,10,10,10,10,10,10,10,{"$f":"SUM($F114:$Q114)/100","v":1}]
[{"$nulls":4},"E",5,5,5,5,10,10,0,0,0,0,0,0,0.4]
[null,"Actividad 2.16","En promedio anualmente se entregan 50,400 requerimientos en las 12 localidades  y 14 Fraccionamientos del municipio, aumentanto el pago 30%.",null,"P",5,5,5,5,10,10,10,10,10,10,10,10]
[{"$nulls":4},"E",5,5,5,5,10,10,0,0,0,0,0,0]
[null,null,"XLV. Inspeccionar las actividades de prestacion de los servicios, cuando estos sean administrados por terceros. ",null,"P"]
[{"$nulls":4},"E"]
[null,"Actividad 2.17","Supervicion a dos plantas de tratamiento que estan bajo la responsabilidad de la Comision Estatal del Agua CEA.  La Planta de Tratamiento de Atequiza con tipo de proceso Lagunar, caudal 19.23 l/s, Capacidad de tratamiento 32 l/s, Ubicacion Georeferencial 20°25´51.02 N\n103°13´37.26´´O, Estatus Operando y la Planta de tratamiento de Ixtlahuacan con un Tipo de proceso lodos activados, caudal 14 l/s, capacidad de tratamiento  16 l/s, Ubicacion Georeferencial 20°21´18.07´´N\n103°10´44.43´´O, Estatus operando.",null,"P",{"$nulls":6},50,{"$nulls":3},50]
[{"$nulls":4},"E",{"$nulls":6},50,{"$nulls":3},0]
[null,"Componente 3","Programa de cultura del agua",null,null,"PORCENTAJE de cumplimiento del programa de cultura del agua (P53-CPCA)",null,"Mide el avance en el cumplimiento del programa ",null,"(Cantidad de  actividades (1) desarrolladas dentro del programa de cultura del agua / Total de  actividades (6) a desarrollar dentro del programa de cultura del agua)*100",null,null,1,null,6,"Mensual",null,{"$f":"M122/O122","v":{"v":0.16666666666666666,"d":"17%"}},"Eficacia","Dimensión"]
[{"$nulls":18},"Gestión","Tipo"]
[{"$nulls":12},{"$f":"R127+#REF!+#REF!+#REF!+R135+#REF!+#REF!+#REF!+#REF!+R137","v":{"$error":"#REF!"}},null,{"$f":"R126+#REF!+#REF!+#REF!+R134+#REF!+#REF!+#REF!+#REF!+#REF!+R136","v":{"$error":"#REF!"}},null,null,{"$f":"M124/O124","v":{"$error":"#REF!"}},"Bimestral","Frecuencia de medición"]
[{"$nulls":18},"Porcentaje","Unidad de medida"]
[null,"Actividad 3.1","Preparar la presentación en 65 Escuelas de todo el municipio, con el siguiente material;  1 proyector, par de bocinas, 1 Lap top, 1 extension de uso rudo, 30 videos recreativos, 4,000 hojas de material impreso, 80 cajas de crayolas. Con una inversion de $18,000.00",null,"P",80,20,0,0,0,0,0,0,0,0,0,0,{"$f":"SUM($F126:$Q126)/100","v":1}]
[{"$nulls":4},"E",80,20,0,0,0,0,0,0,0,0,0,0,{"$f":"SUM($F127:$Q127)/100","v":1}]
[null,null,"XLIII. Promover y ejecutar programas de uso eficiente de agua y difundir una cultura del agua en el municipio, destinando un porcentaje anual de sus recursos para ello. ",null,"P",10,10,0,20,10,20,0,0,10,10,10,0,{"$f":"SUM($F128:$Q128)/100","v":1}]
[{"$nulls":4},"E",10,10,0,0,0,0,0,0,0,0,0,0,0.2]
[null,"Actividad 3.2","Promover 6 programas de cultura del agua, visitando 29 preescolares y 36 primarias de las 12 localidades y 14 fraccionamientos de este municipio siendo beneficiarios de estos programas; 2,610 alumnos de kinder y 6,480 alumnos de nivel primaria, realizando las siguientes actividades; 30 documentales audiovisuales (videos recreativos) con proyector, con los temas de cuidado del agua, contaminación, sequías, medio ambiente,etc., realizando tambien crucigramas, juegos de serpientes y escaleras, loteria con temas relacionados con cultura del agua.",null,"P",10,10,0,20,10,20,0,0,10,10,10,0,1]
[{"$nulls":4},"E",10,10,0,0,0,0,0,0,0,0,0,0,0.2]
[null,"Actividad 3.3","Incorporar mecanismos de reconocimiento premieando a un promedio del 10% de la totalidad de alumnos de kinder con y 10% alumnos de nivel primaria a los niños que cuentan con una mayor participación mediante el programa impartido en su escuela, premiando con 800 pelotas en total, y 20 kilos de dulces surtidos. Con una inversion total de $5,500.00",null,"P",10,10,0,20,10,20,0,0,10,10,10,0,1]
[{"$nulls":4},"E",10,10,0,0,0,0,0,0,0,0,0,0,0.2]
[null,"Actividad 3.4","Definir mecanismos de difusión en las redes sociales tales como; Facebook con 3825 ususarios, Instagram con 57 seguidores, subiendo a nuestras redes sociales; 10 videos de concientizacion del cuidado del agua, 540 fotografias de las escuelas visitadas y eventos realizados por nuestro Organismo, y subiendo notas informativas o datos interesantes. Adémas de realizar 10 perifoneos (informando sobre los descuentos del 15% en Enero y Febrero, y el 5% Mrazo y Abril), 3 Lonas con informacion de horarios y servicios cada una instalada en 1 Buenavista, 1 La Capilla y en 1 Oficina Móvil.Con una inversion de $7,000.00.",null,"P",10,10,10,10,10,10,10,10,5,5,5,5,{"$f":"SUM($F134:$Q134)/100","v":1}]
[{"$nulls":4},"E",10,10,10,10,10,10,0,0,0,0,0,0,0.6]
[null,"Actividad 3.5","Definir 52 sesiones de platicas con proyeccion en pantalla gigante, con el objetivo de concientizar a la población con temas del cuidado del agua y medio ambiente, con las visitas a 14 Fraccionamientos y 12 localidades de todo el municipio, invitando a un promedio de 5,200 personas entre niños y adultos. Repartiendo en estas proyecciones 2 garrafones de agua fresca por Sesión, dando un total de $15,600.00 contemplando que se realicen las 52 Sesiones. ",null,"P",5,10,10,10,5,10,5,10,10,10,10,5,1]
[{"$nulls":4},"E",0,0,0,0,0,0,0,0,0,0,0,0,0]
[null,null,"XV. Promover la participacion social de los usuarios de la sociedad organizada en general, en la realizacion de estudios de costos, inversiones, cuotas y tarifas.",null,"P",{"$nulls":12},0]
[{"$nulls":4},"E",{"$nulls":12},0]
[null,"Actividad 3.6","Con la finalidad de conocer la persepción que tienen los usuarios sobre los costos,inversiones, cuotas y tarifas donde se asignara a una persona encargada para atencion a usuarios, la cual sera la encargada de llevar a cabo via digital cuestionarios por medio de google forms un total de 19,080 usuarios como muestreo representativo del 60% de nuestros usuarios activos en nuestro padrón.",null,"P",15,15,10,10,10,10,5,5,5,5,5,5,1]
[{"$nulls":4},"E",0,0,0,0,0,0,0,0,0,0,0,0,0]
[null,"Actividad 3.7","Se realiza una Sesion de Consejo Administrativo donde participan 17 Representantes entre ellos; I. Presidente Municipal. II. Director general del Organismo. III. Encragado de la Hacienda Municipal. IV. Regidor de la Comision de Servicios Publicos Municipales. V. Regidor de la Comision de Salud del Ayuntamiento. VI. Sindico Municipal. VII. Director de Planeación de Desarrollo Sustentable y Obras Públicas. VIII. Director de Ecologia del Ayuntamiento. IX. Representante de la Comision Estatal del Agua de Jalisco. X. Representante de los Industriales. XI. Representante de los Comerciantes. XII. Representante de los Profesionistas. XIII. Representante de los Comites de Padres de Familia. XIV. Representante de los Directores de las Escuelas. XV. Representante de la Union Ganadera. XVI. Representante de los Usuarios Domesticos. XVII. Represenatnte de los Usuarios de las Delegaciones. Donde se analizan, se discuten  y se aprueban las tarifas anuales. (Agregar el punto de acuerdo donde autorizan estas tarifas.",null,"P",0,0,0,0,0,0,0,30,10,10,20,30,1]
[{"$nulls":4},"E",0,0,0,0,0,0,0,0,0,0,0,0,0]
[null,null,"XVI. Elaborar la propuesta para aplicar en la contribucion la formula establecida en el Art. 101 - bis de la ley del agua, misma que debera remitir al ayuntamiento a mas tardar el dia 31 del mes de julio de cada año, para que sea incorporada a la iniciativa de la ley de ingresos municipal, y aprobada por el congreso del estado.",null,"P",0,0,0,0,0,50,50,0,0,0,0,0,1]
[{"$nulls":4},"E",0,0,0,0,0,0,0,0,0,0,0,0,0]
[null,"Actividad 3.8","Se elabora una reunion de trabajo con las 4 areas internas del Organismo (Area Tecnica, Administrativa, Comercial y Direccion General) esto para realizar un analisis de la calidad del servicio de las 12 localidades y 14 fraccionamientos del municipio, tomando en cuenta los siguientes puntos;1) Inversion de $19,644,030.00 obteniendo una mejora en los servicios como construccion, rehabilitacion y mantenimiento de pozos, sustitucion de red de agua y red de drenaje, construccion de 1 pozo nuevo. 2) Hipoclorito de Sodio un promedio de 75,980 kilos con un gasto de $357,106 al año. 3) El cobro de extraccion total de CFE de todos los pozos con la cantidad de aproximadamente de $15,641,898.00 al año. 4) El pago de 24 Reparaciones con un monto total de $1,507,285.30. De este modo es como se realiza la propuesta tarifaria, para presentarse a mas tardar el día 31 de Julio de cada año ante el Ayuntamiento para que sea incorporada a la Ley de ingresos municipal. ",null,"P",0,0,0,0,0,20,80,0,0,0,0,0,1]
[{"$nulls":4},"E",0,0,0,0,0,10,0,0,0,0,0,0,0.1]
[null,null,"XXII. Celebrar convenios con Instituciones bancarias o financieras corresponsables bancarios y empresas de traslado de valores, cadenas comerciales y equivalentes, que seran auxiliares en la recaudaciòn y concentracion de los ingresos del organismo y celebrar los actos juridicos y necesarios para tal fin. ",null,"P",10,10,10,10,10,10,10,10,5,5,5,5,1]
[{"$nulls":4},"E",10,10,10,10,10,10,0,0,0,0,0,0,0.6]
[null,"Actividad 3.9","Tener 4 cuentas productivas, las cuales nos auxilian en la recaudación por medio de transferencias, depósitos, cobros por terminales y recepcion de cheques. Contemplando en nuestro presupuesto anual aprobado por una cantidad de $6,000.00 para el pago de servicios financieros y bancarios. ",null,"P",10,10,10,10,10,10,10,10,5,5,5,5,1]
[{"$nulls":4},"E",10,10,10,10,10,10,0,0,0,0,0,0,0.6]
[null,null,"XXIII. Abrir las cuentas productivas de cheques en la Instituciòn bancaria de su eleccion, a fin de ingresar lo recuperado por la prestacion de los servicios, asi como lo que corresponda a infraestructura, saneamiento o por cualquier otro concepto establecido en la normatividad aplicable. La cuenta bancaria serà exclusiva para el manejo de estos ingresos y rendimientos financieros que se produzcan. ",null,"P",10,10,10,10,10,10,10,10,5,5,5,5,1]
[{"$nulls":4},"E",10,10,10,10,10,10,0,0,0,0,0,0,0.6]
[null,"Actividad 3.10","Contar con 4 cuentas productivas destinadas para; 1) El 73% de Consumo con una recaudación de $16,279,272.73.  2) El 20% de Saneamiento con un total de $12,102,380.62   3) El 3% de Infraestructura con la cantidad de $528,009.96  y  4) El 4% en Incorporaciones con una recaudacion de $698,422.09. Dando un total de $29,608,085.40, todo esto recaudado hasta el mes de Julio, a fin de ingresar lo recuperado por la prestación de los servicios.",null,"P",10,10,10,10,10,10,10,10,5,5,5,5,1]
[{"$nulls":4},"E",10,10,10,10,10,10,0,0,0,0,0,0,0.6]
[null,null,"XXVI. Realizar los estudios tecnicos y financieros, y las gestiones necesarias para la realizacion de las inversiones publicas productivas del organismo operador, cuando se necesite el financiamiento siguiendo los procedimientos establecidos en las leyes de la materia.",null,"P",10,10,10,10,10,10,10,10,5,5,5,5,1]
[{"$nulls":4},"E",5,5,5,5,5,5,0,0,0,0,0,0,0.3]
[null,"Actividad 3.11","1) Plantear un estudio tecnico y financieros en las zonas donde no cuentan con servicio de agua y drenaje. 2) Realizar propuesta en base al estudio financiero y presentarla al Comité de Adquisiciones esto para saber si es conveniente seguir surtiendo por bloque de pipa o realizar el trabajo de nuevas lineas de conduccion de agua potable o de drenaje segun sea el caso, e informando a este Consejo la venta de agua en bloque que se recauda al año siendo la cantidad de $9,126.00 con 14 servicios de pipa, y con la venta de desasolve de fosas y drenaje al año un aproximado de $28,100.00 de 24 servicios del vactor, con un total de recaudación anual de $37,226.00.",null,"P",10,10,10,10,10,10,10,10,5,5,5,5,1]
[{"$nulls":4},"E",5,5,5,5,5,5,0,0,0,0,0,0,0.3]
[null,null,"XXVII. Rendir el informe de la cuenta mensual a la hacienda municipal. ",null,"P",10,10,10,10,10,10,10,10,5,5,5,5,1]
[{"$nulls":4},"E",10,10,10,10,10,10,0,0,0,0,0,0,0.6]
[null,"Actividad 3.12","Realizar 3,600 capturas de ingresos y 288 capturas de Egresos, así como 48 cuentas conciliadas anual.",null,"P",10,10,10,10,10,10,10,10,5,5,5,5,1]
[{"$nulls":4},"E",10,10,10,10,10,10,0,0,0,0,0,0,0.6]
[null,null,"XXVIII. Rendir anualmente al Ayuntamiento y al Consejo de Administracion un informe de las labores realizadas durante el ejercicio anterior asi como del estado general del Organismo Operador.",null,"P",0,0,0,0,0,0,10,20,20,50,0,0,1]
[{"$nulls":4},"E",0,0,0,0,0,0,0,0,0,0,0,0,0]
[null,"Actividad 3.13","1) Realizar un informe con las 3 areas internas del organismo sobre las actividades y proyectos ha cumplir al año, con nuestro presuepuesto ya aprobado de un total de $37, 902,027 el cual se distribuira de la siguiente manera; con el 70% del presupuesto para llevar a cabo 77 actividades del Area Técnica, para el Area Administrativa un 10% para cumplir con 18 actividades y para Area Comercial un 20% para realizar 20 actividades. 2) Presentar el Informe de las labores realizadas ante el Consejo de Administración y al Ayuntamiento antes de finalizar el periodo anual.",null,"P",0,0,0,0,0,0,10,20,20,50,0,0,1]
[{"$nulls":4},"E",0,0,0,0,0,0,0,0,0,0,0,0,0]
[null,null,"XXIX. Permitir y apoyar la fiscalizacion de los organismos de revision correspondientes, asi como la practica de auditorias al organismo operador al termino del ejercicio anual.",null,"P",{"$nulls":12},0]
[{"$nulls":4},"E",{"$nulls":12},0]
[null,"Actividad 3.14","Realizar la licitación para contratar los servicios externos de un auditor contable, esto para llevar a cabo la revision de 1 cuenta publica, correspondiente del Organismo Operador, con una inversion aproximada de $100,000.00",null,"P",0,0,0,0,0,0,50,50,0,0,0,0,1]
[{"$nulls":4},"E",0,0,0,0,0,0,0,0,0,0,0,0,0]
[null,"Actividad 3.15","Llevar a cabo los servicios de auditoria con las etapas correspondietes; I.Revision de documentación. II. Encuentro de hallazgos. III.Solventacion. 2) Programar contratación durante 4 meses comenzando en Septiembre.",null,"P",0,0,0,0,0,0,0,0,25,25,25,25,1]
[{"$nulls":4},"E",0,0,0,0,0,0,0,0,0,0,0,0]
[null,null,"XXXI. Examinar y aprobar sus presuestos anuales de ingresos y egresos, los estados financieros, los balances y los informes generales y especiales que procedan. ",null,"P",0,0,0,0,0,0,0,0,0,50,25,25,1]
[{"$nulls":4},"E",0,0,0,0,0,0,0,0,0,0,0,0,0]
[null,"Actividad 3.16","Se realiza analisis comparativo de años anteriores y año actual, 1 de ingresos y 1 de egresos, ademas de revisar los proyectos planteados del año posterior de las 3 areas del organismo para así aprobar los presupuestos del proximo año, esto es presentado ante el Consejo de Administración llevada a cabo el mes de Diciembre",null,"P",0,0,0,0,0,0,0,0,0,0,50,50,1]
[{"$nulls":4},"E",0,0,0,0,0,0,0,0,0,0,0,0,0]
[null,null,"XL. Expedir su reglamento organico y demas disposiciones necesarias para su funcionamiento y organización interna.",null,"P",0,0,0,0,0,0,20,25,25,15,15,0,1]
[{"$nulls":4},"E",0,0,0,0,0,0,0,0,0,0,0,0,0]
[null,"Actividad 3.17","Actualizar el Reglamento para la incorporación de la presupuestación bajo la metodologia de presupuestos para resultados.",null,"P",0,0,0,0,10,10,10,10,15,15,15,15,1]
[{"$nulls":4},"E",0,0,0,0,0,0,0,0,0,0,0,0,0]
[null,null,"XLI. Integrar su Unidad de Transparencia e informacion publica e implementar las acciones necesarias para garantizar la transparencia y el acceso a la informacion publica en los terminos de la ley de Informacion publica del Estado de Jalisco. ",null,"P",10,10,10,10,10,10,10,10,5,5,5,5,1]
[{"$nulls":4},"E",10,10,10,10,10,10,0,0,0,0,0,0,{"$f":"SUM($F183:$Q183)/100","v":0.6}]
[null,"Actividad 3.18","El comité de transparencia esta conformado por un precidente, un secretario y un Titular del area de transparencia, llevamos contestadas 38 solicitudes de información, de SIIRES 28 e INFOMEX 10. llenando 460 formatos de plataforma nacional todo actualizado al mes de junio, y realizando la actualizacion de mes con mes en la pagina principal de SAMAPA.",null,"P",10,10,10,10,10,10,10,10,5,5,5,5,1]
[{"$nulls":4},"E",10,10,10,10,10,10,0,0,0,0,0,0,0.6]
[null,null,"XLIII. Promover y ejecutar programas de uso eficiente de agua y difundir una cultura del agua en el municipio, destinando un porcentaje anual de sus recursos para ello. ",null,"P",10,20,70,0,0,0,0,0,0,0,0,0,1]
[{"$nulls":4},"E",10,20,0,0,0,0,0,0,0,0,0,0,0.3]
[null,"Actividad 3.19","Planificacion de los talleres que se llevaran a cabo en el evento del Dia Mundial del Agua con fecha del 22 de marzo, asi como la invitacion a 65 todas las escuelas del municipio, esperando la presencia de 9,090 niños.",null,"P",10,20,70,0,0,0,0,0,0,0,0,0,1]
[{"$nulls":4},"E",10,20,0,0,0,0,0,0,0,0,0,0,0.3]
[null,"Componente 4","Reemplazar el colector principal de la línea de drenaje ",null,null,"PORCENTAJE colector principal remplazado (P54-CPR)",null,"Mide los avances en el reemplazo del colector principal",null,"(Cantidad de  actividades (10) desarrolladas para  reemplazar 100 ml del colector principal de la línea de drenaje  en cabecera municipal / Total de actividades (10) programadas para  reemplazar 100 ml del colector principal de la línea de drenaje de la cabecera municipal )*100",null,null,10,null,10,"Mensual",null,{"$f":"M190/O190","v":{"v":1,"d":"100%"}},"Eficacia","Dimensión"]
[{"$nulls":18},"Gestión","Tipo"]
[{"$nulls":12},{"$f":"R195+R197+R199+R201+R203+R205+R207+R209+R211+R213","v":10},null,{"$f":"R194+R196+R198+R200+R202+R204+R206+R208+R210+R212","v":10},null,null,{"$f":"M192/O192","v":{"v":1,"d":"100.00%"}},"Bimestral","Frecuencia de medición"]
[{"$nulls":18},"Porcentaje","Unidad de medida"]
[null,"Actividad 4.1","Sacar lo obsoleto y meter tuberia de pvc",null,"P",100,0,0,0,0,0,0,0,0,0,0,0,{"$f":"SUM($F194:$Q194)/100","v":1}]
[{"$nulls":4},"E",100,0,0,0,0,0,0,0,0,0,0,0,{"$f":"SUM($F195:$Q195)/100","v":1}]
[null,"Actividad 4.2","Elaborar Planos del proyecto",null,"P",100,0,0,0,0,0,0,0,0,0,0,0,1]
[{"$nulls":4},"E",100,0,0,0,0,0,0,0,0,0,0,0,1]
[null,"Actividad 4.3","Elaborar la memoria fotográfica",null,"P",0,100,0,0,0,0,0,0,0,0,0,0,1]
[{"$nulls":4},"E",0,100,0,0,0,0,0,0,0,0,0,0,1]
[null,"Actividad 4.4","Realizar la matriz metodológica de Bojorquez para la cuantificación de impactos ambientales",null,"P",100,0,0,0,0,0,0,0,0,0,0,0,1]
[{"$nulls":4},"E",100,0,0,0,0,0,0,0,0,0,0,0,1]
[null,"Actividad 4.5","Desarrollar la Matriz de Leopold para identificar los impactos ambientales",null,"P",100,0,0,0,0,0,0,0,0,0,0,0,1]
[{"$nulls":4},"E",100,0,0,0,0,0,0,0,0,0,0,0,1]
[null,"Actividad 4.6","Levantar la cartografía del sitio del proyecto",null,"P",100,0,0,0,0,0,0,0,0,0,0,0,1]
[{"$nulls":4},"E",100,0,0,0,0,0,0,0,0,0,0,0,1]
[null,"Actividad 4.7","Elaborar el calendario de obra",null,"P",100,0,0,0,0,0,0,0,0,0,0,0,1]
[{"$nulls":4},"E",100,0,0,0,0,0,0,0,0,0,0,0,1]
[null,"Actividad 4.8","Verificar la documentación legal del predio",null,"P",100,0,0,0,0,0,0,0,0,0,0,0,1]
[{"$nulls":4},"E",100,0,0,0,0,0,0,0,0,0,0,0,1]
[null,"Actividad 4.9","Elaborar el listado de flora y fauna",null,"P",100,0,0,0,0,0,0,0,0,0,0,0,1]
[{"$nulls":4},"E",100,0,0,0,0,0,0,0,0,0,0,0,1]
[null,"Actividad 4.10","Elaborar el programa de vigilancia ambiental",null,"P",100,0,0,0,0,0,0,0,0,0,0,0,1]
[{"$nulls":4},"E",100,0,0,0,0,0,0,0,0,0,0,0,1]
[null,null,"IV. Proponer y ejecutar servicios de agua potable, alcantarillado y tratamiento de aguas residuales, por si o a traves de terceros, con la cooperacion y participacion de los colonos y vecinos organizados de acuerdo con las disposiciones establecidas.",null,"P",{"$nulls":12},0]
[{"$nulls":4},"E",{"$nulls":12},0]
[null,"Actividad 4.11","  Propuesta y ejecucion de las siguientes obras para el servicio de agua potable, 1.- Sustitucion de Lineas de Agua Potable en las calles Morelos, Parroquia y Priv. Parroquia en la localidad de la Capilla con una tubería de 3\" en pvc con una longitud de 238 mts., se colocaron 14 tomas domiciliarias con una población beneficiada de 70 personas, además se libero el flujo de agua (porque la tubería anterior estaba completamente tapada) veneficiando a las siguientes zonas, Zona Centro y el Barrio de la Mora con una población aproximada de 1,000 habitantes.  2.- Contruccion de la linea de conduccion del fraccionamiento residencial la capilla, a la linea de conduccion del pozo #1 de la capilla con una longitud de 350 mts, tuberia de pvc de 3\" con una poblacion beneficiada de 2,500 habitantes. 3.- Construccion de red de distribucion de agua Potable en la calle Santa Elena, Santa Ana, Guadalupe, Santa rosa y Santa Patricia del fraccionamiento la Capilla con un diametro de 4\" con una longitud de 973 mts con 29 tomas domiciliarias con una poblacion beneficiada de 120 habitantes. 4.- Sustitucion de la red de agua potable en la calle Javier mina en lomas de atequiza de 2 \", 50 mts de longitud con una poblacion beneficiada de 44 habitantes y 11 tomas domiciliarias.  5.- Red de interconeccion del pozo #3 de ixtlahuacan a la red existente, tuberia de pvc de 6\" con una longitud de 350 mts beneficiando al 60% de la poblacion que equivale a 3,900 habitantes.",null,"P",10,20,10,10,20,10,20,0,0,0,0,0,1]
[{"$nulls":4},"E",10,20,10,20,20,10,10,0,0,0,0,0,1]
[null,"Actividad 4.12"," Propuesta y ejecucion de las siguientes obras para el servicio de drenaje, 1.- Construccion de 40 mts de drenaje de tubo corrugado de 18\" de la linea principal de aguilillas a el rancho de ochoa evitando el derrame a cielo abierto de 157,680 m3 de aguas residuales al año.  2.- Construccion de red de edrenaje de 10\" en la calle azucena entre justa sierra y camino a la estacion colonia magisterial en  la localidad de  atequiza con una longitus de 650 mts con 19 descargas sanitarias de 8\" y una poblacion benefiada de 80 habitantes.  3.- Sustitucion de la linea de drenaje en la calle Javier Mina en la cabecera   municipal con una longitud de 50 mts con 9 descargas sanitarias beneficiando a directamente 300 casas 1,200 habitantes. 4.- Construcción del conector de drenaje que inicia en el cruce de la calle Efraín González Luna y calle Cárcamo, continua por la calle Cárcamo hasta el entronque del colector existente en la calle López Mateos, con una longitud de 300 m.",null,"P",10,20,10,20,20,10,10,0,0,0,0,0,1]
[{"$nulls":4},"E",10,20,10,20,20,10,0,0,0,0,0,0,0.9]
[null,null,"X. Establecer sistemas de drenajes separados para la captaciòn y conduccion de aguas pluviales. ",null,"P",0,0,0,0,0,0,0,0,25,25,25,25,1]
[{"$nulls":4},"E",0,0,0,0,0,0,0,0,0,0,0,0,0]
[null,"Actividad 4.13","Se elaborará proyecto para la separacion de aguas residuales de pluviales en el que se trabaja mutuamente con el departamento de obras publicas y desarrollo urbano del ayuntamiento de Ixtlahuacan.",null,"P",0,0,0,0,0,0,0,0,25,25,25,25,1]
[{"$nulls":4},"E",0,0,0,0,0,0,0,0,0,0,0,0,0]
[null,null,"XI. Verificar que las nuevas construcciones o edificaciones cuenten con sistema de recoleccion de agua pluvial con capacidad suficiente, asì como con redes para el desalojo de las mismas.",null,"P",0,0,0,0,0,0,0,100,0,0,0,0,1]
[{"$nulls":4},"E",0,0,0,0,0,0,0,0,0,0,0,0,0]
[null,"Actividad 4.14","Realizar un acuerdo con el departamento desarrollo Urbano  donde se nos notifique de las nuevas contrucciones y edificaciones para realizar una verificación de sus sistemas de recoleccion de agua pluvial y que cuenten con redes de desalojo de las mismas ",null,"P",{"$nulls":7},100,{"$nulls":4},1]
[{"$nulls":4},"E",{"$nulls":7},0,{"$nulls":4},0]
[null,null,"XII. Coordinar sus acciones con la direccion de obras publicas del municipio, para reparar las rupturas de calles y banquetas, cuando se instalen o reparen tomas de agua o descarga de drenaje.",null,"P",10,10,10,10,10,10,10,10,5,5,5,5,1]
[{"$nulls":4},"E",10,10,10,10,10,10,0,0,0,0,0,0,0.6]
[null,"Actividad 4.15","SAMAPA realiza directamente las reparaciones de las ropturas de calles y banquetas, se realizan aproximadamente 144 reparaciones anuales. El costo promedio de este tipo de reparaciones es de $ 1,400 por obra, el gasto anual corresponde al 4.3% de la partida presupuestal.",null,"P",10,10,10,10,10,10,10,10,5,5,5,5,1]
[{"$nulls":4},"E",10,10,10,10,10,10,0,0,0,0,0,0,0.6]
[null,null,"IX. Fijar los límites máximos permisibles de descarga de aguas residuales al sistema de alcantarillado sanitario, y supervisar que las mismas se realicen conforme a la normatividad aplicable y vigente, en coordinación con las autoridades competentes.",{"$nulls":14},0]
[{"$nulls":17},0]
[null,"Actividad 4.16","Elaborar un programa de supervisión a las empresas que vierten sus aguas residuales a la red de drenaje municipal. En el municipio se localizan las siguientes empresas que vierten sus descargas a la red municipal: Santorini, Azucarera, Rastro de pollos, Gatorade, Parque Industrial, Ecotek, Cytec y una piedrera.",{"$nulls":9},40,40,20,null,null,1]
[{"$nulls":12},0,0,0,null,null,0]
[null,"Actividad 4.17","Elaborar un manual para supervisar a las empresas que vierten sus aguas residuales a la red de drenaje municipal. Que contenga como mínimo la siguiente temática: Apego a las directrices de los Planes Nacional y Estatal de Desarrollo, Normas oficiales de Semarnat, Parametros de contaminantes (básicos, metales pesados y cianuros, y contaminantes patógenos), Frecuencias de muestreo y presentación de reportes elaborados por las empresas, responsabilidades de la empresas que vierten aguas residuales a la red de drenaje municipal, ",{"$nulls":10},40,40,20,null,1]
[{"$nulls":13},0,0,0,null,0]
[null,"Componente 5","Construcción de 2 pozos profundos",null,null,"PORCENTAJE de avance en perforación de pozos (P55-AP2P)",null,"Mide los avances en la perforación de dos nuevos pozos profundos",null,"(Cantidad de  actividades (10) desarrolladas para la construcción de 2 nuevos pozos profundos / Total de  actividades (10) a desarrollar para la construcción de 2 nuevos pozos profundos en el territorio municipal)*100",null,null,10,null,10,"Mensual",null,{"$f":"M238/O238","v":{"v":1,"d":"100%"}},"Eficacia","Dimensión"]
[{"$nulls":18},"Gestión","Tipo"]
[{"$nulls":12},{"$f":"R243+R245+R247+R249+R251+R253+R255+R257+R259+R261","v":6.6},null,{"$f":"R242+R244+R246+R248+R250+R252+R254+R256+R258+R260","v":10},null,null,{"$f":"M240/O240","v":{"v":0.6599999999999999,"d":"66%"}},"Bimestral","Frecuencia de medición"]
[{"$nulls":18},"Porcentaje","Unidad de medida"]
[null,"Actividad 5.1","Buscar un equipo especializado en este tipo de actividades",null,"P",100,0,0,0,0,0,0,0,0,0,0,0,{"$f":"SUM($F242:$Q242)/100","v":1}]
[{"$nulls":4},"E",100,0,0,0,0,0,0,0,0,0,0,0,{"$f":"SUM($F243:$Q243)/100","v":1}]
[null,"Actividad 5.2","Gestiónar los recursos para su contratación",null,"P",20,40,40,0,0,0,0,0,0,0,0,0,1]
[{"$nulls":4},"E",20,40,40,0,0,0,0,0,0,0,0,0,1]
[null,"Actividad 5.3","Contratación de un equipo experto para la realización de dos perforaciones para dos pozos profundos",null,"P",30,30,40,0,0,0,0,0,0,0,0,0,1]
[{"$nulls":4},"E",30,30,40,0,0,0,0,0,0,0,0,0,1]
[null,"Actividad 5.4","Especificaciones técnicas para la perforación de 1 pozo en cabecera municipal",null,"P",10,30,20,40,0,0,0,0,0,0,0,0,1]
[{"$nulls":4},"E",10,30,20,0,0,0,0,0,0,0,0,0,0.6]
[null,"Actividad 5.5","Etapa exploratoria de 1 pozo en cabecera municipal",null,"P",50,50,0,0,0,0,0,0,0,0,0,0,1]
[{"$nulls":4},"E",50,50,0,0,0,0,0,0,0,0,0,0,1]
[null,"Actividad 5.6","Diseño de 1 pozo en cabecera municipal",null,"P",40,40,20,0,0,0,0,0,0,0,0,0,1]
[{"$nulls":4},"E",40,40,20,0,0,0,0,0,0,0,0,0,1]
[null,"Actividad 5.7","Terminación, desarrollo y desinfección de 1 pozo en cabecera municipal",null,"P",0,0,0,50,50,0,0,0,0,0,0,0,1]
[{"$nulls":4},"E",0,0,0,0,0,0,0,0,0,0,0,0,0]
[null,"Actividad 5.8","Pruebas de aforo de 1 pozo en cabecera municipal",null,"P",0,50,50,0,0,0,0,0,0,0,0,0,1]
[{"$nulls":4},"E",0,50,50,0,0,0,0,0,0,0,0,0,1]
[null,"Actividad 5.9","Equipamiento e instrumentación ",null,"P",0,0,0,50,50,0,0,0,0,0,0,0,1]
[{"$nulls":4},"E",0,0,0,0,0,0,0,0,0,0,0,0,{"$f":"SUM($F259:$Q259)/100","v":0}]
[null,"Actividad 5.10","Determinar la operación y mantenimiento de 1 pozo en cabecera municipal",null,"P",0,0,0,40,40,20,0,0,0,0,0,0,1]
[{"$nulls":4},"E",0,0,0,0,0,0,0,0,0,0,0,0,0]
[null,null,"I. Planear, estudiar, proyectar, construir, aprobar, conservar, mantener, apliar, rehabilitar, administrar y operar las obras y sistemas de agua potable, alcantarillado, tratamiento y disposicion de aguas residuales, asi como su reutilizacion y circulacion, en los terminos de las leyes estatales y federales de la materia; ",null,"P",{"$nulls":12},0]
[{"$nulls":4},"E",{"$nulls":12},0]
[null,"Actividad 5.11","Elaboración del Programa de Trabajo 2020 que integre  las 4 areas  que conforman el SAMAPA (Área Técnica, Área Administrativa, Área de Comercialización y Cultura del Agua, Transparencia y Difusión), asi como sus objetivos, acciones y la programación de sus actividades. Este documento es revisado y autorizado por el Consejo de Administracion y el representante de la Comision Estatal del Agua.",null,"P",100,{"$nulls":11},1]
[{"$nulls":4},"E",100,{"$nulls":11},1]
[null,"Actividad 5.12","Elaboración del Presupuesto de Egresos, que se integra con la información del Programa de Trabajo 2020 y lo revisa y aprueba el Consejo de Administración y las autoridades municipales",null,"P",100,{"$nulls":11},1]
[{"$nulls":4},"E",100,{"$nulls":11},1]
[null,"Actividad 5.13","Perforar el pozo profundo #3 en la localidad de ixtlahuacan, con las siguientes características:  ademe de 10\", columna de 120 mts de 6\", l/s 40 , bomba de extraccion de  40 litros por segundo , motor 75 hp a 440 volts, transformador 75 kva, profundidad 150, arrancador 75 hp marca siems.  ",null,"P",50,50]
[{"$nulls":4},"E",50,50]
[null,"Actividad 5.14","Mantenimiento preventivo de los siguientes pozos, #1 de la cabecera, #2 de aguilillas, #1 de Buenavista, #1 del Fracc. Buenavista, #1 Capilla, #1, #2 y #3 de Atequiza, #1 Sacrificio, #2  del rodeo, #1 Santa rosa, #1 Huerta Vieja, a los cuales se a realizado el ajuste de tornilleria de los arrancadores, verificacion de nieveles de amperaje y voltaje para detectar posibles fallas de falsos contactos o sobrecaliento de motor, limpieza de malesa al area verde de cada fuente de abastecimiento, revision  de existencia de capacitadores, y que se encuentren trabajando.",null,"P",10,10,10,10,10,10,10,5,5,5,5,10]
[{"$nulls":4},"E",10,10,10,10,10,10]
[null,null,"VI. Cumplir las normas tecnicas, criterios y lineamientos para la prestaciòn de los servicios a su cargo, establecidas por la comision, asi como las normas oficiales mexicanas, vigilando su observancia, ampliandolas con lo necesario para cubrir los casos especificos; en particular, sobre descargas de aguas residuales, para disposicion, tratamiento, reutilizacion de lodos.",null,"P",0,0,0,0,0,0,0,20,20,20,20,20,1]
[{"$nulls":4},"E",0,0,0,0,0,0,0,0,0,0,0,0,0]
[null,"Actividad 5.15","Solicitar analisis quimicos de aguas tratadas y agua potable al CEA, de nuestras plantas de tratamiento de Huerta Vieja, con una descarga de 18 litros por segundo, aportando 550,000 metros cúbicos al año a la presa la capilla, esta agua apoya para que en época de estiage se riegan 60 héctareas de trigo con una produccion de 5 toneladas por héctarea que suman 300 toneladas por temporal. Y la planta de tratamiento Sabinos 1, descarga 35 l/s aportando 1,050,000 metros cubicos al año y descarga al arroyo los sabinos un 50%, y el otro 50% es tomado por los ejidatarios para regar 25 hectareas de maíz que producen 9 toneladas por héctarea que suman 225 tonelas.  ",null,"P",{"$nulls":7},20,20,20,20,20,1]
[{"$nulls":4},"E",{"$nulls":7},0,0,0,0,0,0]
[null,null,"VII. Llevar a cabo la cloraciòn adecuada del agua en los depositos, con la finalidad de mantener su calidad.",null,"P",10,10,5,5,10,10,10,5,5,10,10,10,1]
[{"$nulls":4},"E",10,10,5,5,10,10,0,0,0,0,0,0,0.5]
[null,"Actividad 5.16","Instalacion de docificadores de cloro en los siguientes pozos: Fracc. Aguilillas con 250 habitantes, El sacrificio con una poblacion de 100 habitantes y el pozo 3 de Ixtlahuacan que abastece aproximadamente una poblacion de 4,000 habitantes.",null,"P",10,10,5,5,10,10,10,5,5,10,10,10,1]
[{"$nulls":4},"E",10,10,5,5,10,10,0,0,0,0,0,0,0.5]
[null,"Actividad 5.17","Cambio de dosificadores de cloro dañados, en los pozos: Rinconada las lomas, Puerta del Sol, Cedros y Pozo de atequiza que beneficia a dos fraccionamientos y 2 localidades con una poblacion de 6,300 habitantes.",null,"P",0,20,20,20,10,10,10,10,0,0,0,0,1]
[{"$nulls":4},"E",0,20,20,20,10,10,0,0,0,0,0,0,0.8]
[null,"Actividad 5.18","Monitorear el contenido de cloro en el agua, en tomas domiciliarias, con la siguiente metodología: a) seleccionar tres vivendas por localidad, una en las cercanias del pozo, otra a la mitad de la localidad y la tercera al final de la red de distribucion de agua potable. b) Medir la cantidad de cloro en el agua que debe de ser entre .5 y 3 puntos por millar de cloro disuelto en el agua (segun especificaciones de la comision estatal del agua). Y c) Registrar los datos espaciales de las viviendas muestreadas y elaborar un reporte donde se indique si hubo necesidad de modificar la cantidad de cloro inyectada en la red. Se realizan 36 muestras en 12 localidades y 42 muestras en 14 fraccionamientos de forma mensual, las cuales suman 936 muestras anuales.  ",null,"P",10,10,5,5,10,10,10,5,5,10,10,10]
[{"$nulls":4},"E",10,10,5,5,10,10]
[null,"Actividad 5.19","Contruccion de cuartos de clorado en los pozos profundos del Fracc. Aguilillas, El Sacrificio  y fracc. Buenavista, con instalacion eléctrica, tuberia para inyectar el cloro e instalacion de la base para el dosificador, asi como tambien los depositos con capacidad de 250 kilos de  hipoclorito al 13% ",null,"P",null,20,20,20,10,10,10,10]
[{"$nulls":4},"E",null,20,20,20,10,10]
[null,null,"XIV.  Proporcionar los servicios de agua potable, alcantarillado, tratamiento y disposicion de aguas residuales, y en su caso, el manejo y control de aguas pluviales, a los usuarios de lotes, fincas o predios comprendidos en los centros de poblaciòn, areas, zona, asentamiento rural o turistico que integren la circunscripcion territorial del municipio.",null,"P",10,10,10,5,5,10,10,10,5,5,10,10,1]
[{"$nulls":4},"E",10,10,10,5,5,10,0,0,0,0,0,0,0.5]
[null,"Actividad 5.20","Dar mantenimiento a las 32 fuentes de abastecimiento, atender los reportes de fugas y taponamiento en las redes de agua potable, asi como abastecer por medio de la pipa las las zonas que no cuentan con la red de distribucion de agua potable que son las  siguientes:  Guayabitos, La Cañita, Acueducto y calle Vista del Pueblo, donde se benefician 44 familias con 176 habitantes,  para dar este servicio se realizan 528 servicios anuales. Ádemas se abastece de agua con las pipas  cuando hay reparaciones de fugas de agua, falta de energía eléctrica y cuando se da mantenimiento a los pozos de abastecimiento. ",null,"P",10,10,10,5,5,10,10,10,5,5,10,10,1]
[{"$nulls":4},"E",10,10,10,5,5,10,{"$nulls":6},0.5]
[null,null,"XIX. Publicar las cuotas y tarifas aprobadas por la comision tarifaria, correspondientes a los servicios que opere y administre, en la gaceta municipal y en el periodico oficial \"Estado de Jalisco\" acosta del propio Organismo, antes del 15 de Diciembre del año inmediato anterior a su vigencia.",null,"P",0,0,0,0,0,0,0,0,0,0,0,100,1]
[{"$nulls":4},"E",0,0,0,0,0,0,0,0,0,0,0,0]
[null,"Actividad 5.21","Se presenta el resolutivo tarifario aprobado mediante el consejo de comision tarifaria, y su publicacion se realiza antes del 15 de diciembre del año en curso en la Gaceta Municipal (5 ejemplares) y el Periodico Oficial del Estado de Jalisco y posteriormente en la pagina oficial de samapa, esto conlleva  a una inversion de $22,700.00 ",null,"P",0,0,0,0,0,0,0,0,0,0,0,100]
[{"$nulls":4},"E",0,0,0,0,0,0,0,0,0,0,0,0]
[null,null,"XX. Aplicar las cuotas y tarifas por la prestacion de los servicios que correspondan.",null,"P",10,10,10,10,10,10,10,10,5,5,5,5,1]
[{"$nulls":4},"E",5,5,5,5,5,5,0,0,0,0,0,0,0.3]
[null,"Actividad 5.22","De las 31, 294 cuentas que actualmente contamos, siendo las siguientes: 1) Habitacional con 30,159 cuentas la cual se divide en 2; 1.1.Habitacional Generico con 29,769 inmuebles con un monto de recaudacion de $16,955,355.32, 1.2. Habitacional Alto con una cantidad de inmuebles de 390 y un monto de $610,023.42. 2) No Habitacional con 1,135 cuentas la cual se dividen en; 2.1. No habitacional seco con 445 inmuebles y con una recaudacion de $705,055.73, 2.2. No habitacional Alto con 106 inmuebles y un monto de recaudacion de $238,402.78, 2.3. No Habitacional Intensivo con 33 inmuebles y un monto de $88,401.36, 2.4. No habitacional Mixto con 257 inmuebles y una recaudacion de $102,125.35 esto por concepto se incrementa el 25% de uso diferente habitacional basada en el art. 52 de la Ley de Ingresos del Municipio, 2.5. No habitacional Lotes baldios con 294 inmuebles y recaudacion de $376, 064.26 por concepto de incorporaciones tenemos un total de 132 aperturas de cuentas dando un total de $698,422.09, obteniendo un total de ingresos de $19,075,428.22. ",null,"P",10,10,10,10,10,10,10,10,5,5,5,5,1]
[{"$nulls":4},"E",5,5,5,5,5,5,0,0,0,0,0,0,0.3]
[null,null,"XXXII. Adquirir los bienes muebles o inmuebles necesarios para el mejor desempeño de sus fines.",null,"P",{"$nulls":12},0]
[{"$nulls":4},"E",{"$nulls":12},0]
[null,"Actividad 5.23","Creación de la Instalación del Comité de Adquisiciones del Organismo.",null,"P",20,30,50,0,0,0,0,0,0,0,0,0,1]
[{"$nulls":4},"E",0,100,0,0,0,0,0,0,0,0,0,0,1]
[null,"Actividad 5.24","Llevar a cabo la licitacion correspondiente para la adquisicion de un terreno de 1,170 m2 para el resguardo del parque vehicular y construcción del almacén de materiales del Area Tecnica del SAMAPA. Con una inversion de $2,500,000.00",null,"P",0,50,50,0,0,0,0,0,0,0,0,0,1]
[{"$nulls":4},"E",0,100,0,0,0,0,0,0,0,0,0,0,1]
[null,"Actividad 5.25","Llevar a cabo la licitacion correspondiente para la adquisicion de un terreno de 200 m2 parala construccion de un pozo profundo de agaua potable, localizado entre las calles Priv. Juarez y Paseo Hondo de la Cabecera Municipal. Con una inversion de $310,000.00",null,"P",0,0,50,50,0,0,0,0,0,0,0,0,1]
[{"$nulls":4},"E",0,0,100,0,0,0,0,0,0,0,0,0,1]
[null,null,"XLII. Formular y mantener actualizado el registro e inventario de las fuentes de abastecimiento, bienes, recursos, reservas hidrologicas y demas infraestructura hidraulica en el municipio.",null,"P",{"$nulls":12},0]
[{"$nulls":4},"E",{"$nulls":12},0]
[null,"Actividad 5.26","Actualizar las bitacoras de cada una de las fuentes de abastecimiento incluyendo todas las  actividades que se realicen en los 32 pozos profundos. Donde se incluyen las siguientes 4 actividades: horarios de inicio de arranque, registro del flujo de agua a travez de la purga del cloro, purga del dosificador de cloro, visitas del tecnico (verificacion del amperaje del motor, voltaje y sistema de cloracion), reparaciones y mantenimiento en general). Los responsables de cada pozo entregan a el Área Técnica 2 bitacoras mensuales, por lo que se elaboran anualmente 768 bitacoras",null,"p",{"$nulls":7},20,20,20,20,20]
[{"$nulls":4},"E"]
[null,null,"Perforacion de pozo profundo en la localidad de Sant Ana de los Cedros con las siguientes características: profundidad 100 mts, Ademe de 6\", Columna de 3\" y el equipamiento que incluye motor, bomba,transformador eléctrico, tren de descarga, cuarto de control, arrancadores y clorador.",null,"p",{"$nulls":7},{"v":0.65,"d":"65%"}]
[{"$nulls":4},"e",{"$nulls":7},{"v":0.65,"d":"65%"}]
[null,"Actividad 5.27","Actualizacion del expediente técnico de las 32 fuentes de abastecimiento, que contiene 17 datos: fecha de contrucción, Georeferencia, domicilio, profundidad del pozo, diametro del ademe, metros de la columna, diametro del pozo, características del tren de descarga, cacapacidad del motor y la bomba, arrancador,  transformador, nivel dinámico y nivel estatico, medidor de consumo electrico de la CFE, y archivo fotografico. ",null,"P",{"$nulls":7},20,20,20,20,20]
[{"$nulls":4},"E"]
[null,"Componente 6","Desazolve de cárcamos",null,null,"PORCENTAJE de cárcamos con desazolve (P56-CCD)",null,"Mide el avance en el desasolve de carcamos",null,"(Cantidad de  actividades (8) desarrolladas para  el desazolve  de 2 cárcamos construidos en el territorio municipal / Total de actividades (8) programas a desarrollar para  el desazolve  de 2 cárcamos construidos en el territorio municipal )*100",null,null,8,null,8,"Mensual",null,{"$f":"M314/O314","v":{"v":1,"d":"100%"}},"Eficacia","Dimensión"]
[{"$nulls":18},"Gestión","Tipo"]
[{"$nulls":12},{"$f":"R319+R321+R323+R325+R327+R329+R331+R333","v":8},null,{"$f":"R318+R320+R322+R324+R326+R328+R330+R332","v":8},null,null,{"$f":"M316/O316","v":{"v":1,"d":"100%"}},"Bimestral","Frecuencia de medición"]
[{"$nulls":18},"Porcentaje","Unidad de medida"]
[null,"Actividad 6.1","Limpieza y extracción",null,"P",0,0,50,0,0,0,0,0,50,0,0,0,{"$f":"SUM($F318:$Q318)/100","v":1}]
[{"$nulls":4},"E",0,0,50,0,0,0,0,50,0,0,0,0,{"$f":"SUM($F319:$Q319)/100","v":1}]
[null,"Actividad 6.2","Definicion de equipos a utilizar en la limpieza y extracción",null,"P",50,50,0,0,0,0,0,0,0,0,0,0,1]
[{"$nulls":4},"E",50,50,0,0,0,0,0,0,0,0,0,0,1]
[null,"Actividad 6.3","Verificar si se puede necesitar equipo hidroneumatico mixto para el dragado de lagunas ",null,"P",50,50,0,0,0,0,0,0,0,0,0,0,1]
[{"$nulls":4},"E",50,50,0,0,0,0,0,0,0,0,0,0,1]
[null,"Actividad 6.4","Verificar si se puede necesitar bomba sumergible para el dragado de lagunas ",null,"P",50,50,0,0,0,0,0,0,0,0,0,0,1]
[{"$nulls":4},"E",50,50,0,0,0,0,0,0,0,0,0,0,1]
[null,"Actividad 6.5","Considerar si se es suficiente con el malacate",null,"P",50,50,0,0,0,0,0,0,0,0,0,0,1]
[{"$nulls":4},"E",0,100,0,0,0,0,0,0,0,0,0,0,1]
[null,"Actividad 6.6","Programar el equipo necesario para el retiro de lo extraido y su deposito en el área de confinamiento",null,"P",0,100,0,0,0,0,0,0,0,0,0,0,1]
[{"$nulls":4},"E",0,50,50,0,0,0,0,0,0,0,0,0,1]
[null,"Actividad 6.7","Establecer el área a intervenir",null,"P",0,50,50,0,0,0,0,0,0,0,0,0,1]
[{"$nulls":4},"E",50,50,0,0,0,0,0,0,0,0,0,0,1]
[null,"Actividad 6.8","Contemplar el uso de equipo de video inspección",null,"P",50,50,0,0,0,0,0,0,0,0,0,0,1]
[{"$nulls":4},"E",0,100,0,0,0,0,0,0,0,0,0,0,1]
[null,null,"XXI. Percibir y administrar los ingresos que se deriven de la prestacion de los servicios publicos a su cargo, quedando facultados para ejercer las funciones municipales que establezca el presente instrumento.",null,"P",0,100,0,0,0,0,0,0,0,0,0,0,1]
[{"$nulls":4},"E",10,10,10,10,10,10,0,0,0,0,0,0,0.6]
[null,"Actividad 6.9","Seperciben los ingresos del pago del servicio de agua potable de los usuarios, venta de agua en bloque, desasolve de fosas. Con este ingreso se realiza mantenimiento y limpieza de bombas de lodos sumergibles, desensolve de la fosa del carcamo con camion tipo vactor, verificacion de los flotadores electricos asi como los contactores de cada bomba, en los carcamos en los fracc. Sabinos 2,3 (se realiza desansolve 1 ves al año antes del temporal de lluevias) y  en las plantas de tratamiento del fracc. Huerta y sabinos 1 ( se realiza de 2 a 3 veces por semana por que las condiciones de la PTA´R estan fabricadas para que el operador se baje y limpie las rejillas). Se extraen aprox. 2 metros cubicos mensuales de lodos y solidos grandes en cada uno de lo carcamos. ",null,"P",10,10,10,5,5,10,10,5,5,10,10,10,1]
[{"$nulls":4},"E",10,10,10,5,5,10,0,0,0,0,0,0,0.5]
[null,"Componente 7","Construcción del humedal arroyo de los sabinos",null,null,"PORCENTAJE de avance en la construcción del humedal (P57-ACH)",null,"Mide el avance en la costrucción del humedal",null,"(Cantidad de  actividades (1) desarrolladas para la Construcción del humedal arroyo de los sabinos / Total de  actividades (11) a desarrollar para la Construcción del humedal arroyo de los sabinos)*100",null,null,1,null,11,"Mensual",null,{"$f":"M338/O338","v":{"v":0.09090909090909091,"d":"9%"}},"Eficacia","Dimensión"]
[{"$nulls":18},"Gestión","Tipo"]
[{"$nulls":12},{"$f":"R343+R347+R349+R351+R353+R355+R357+R359+R361+R363","v":1.6},null,{"$f":"R342+R346+R348+R350+R352+R354+R356+R358+R360+R362","v":3.8},null,null,{"$f":"M340/O340","v":{"v":0.4210526315789474,"d":"42%"}},"Bimestral","Frecuencia de medición"]
[{"$nulls":18},"Porcentaje","Unidad de medida"]
[null,"Actividad 7.1","Establecer el nombre del proyecto",null,"P",10,30,20,40,0,0,0,0,0,0,0,0,{"$f":"SUM($F342:$Q342)/100","v":1}]
[{"$nulls":4},"E",10,30,20,40,0,0,0,0,0,0,0,0,{"$f":"SUM($F343:$Q343)/100","v":1}]
[null,"Actividad 7.2","Gestion de un predio cercano a la Localidad de La Capilla para la construcción del humedal ",null,"P",0,0,0,0,0,0,10,10,20,20,40,null,1]
[{"$nulls":4},"E",0,0,0,0,0,0,10,0,0,{"$nulls":3},0.1]
[null,"Actividad 7.3","Definir e informar del avance que guarda el proyecto al momento de elaborar el estudio de impacto ambiental.",null,"P",0,0,0,0,0,0,0,0,0,10,10,10,{"$f":"SUM($F346:$Q346)/100","v":0.3}]
[{"$nulls":4},"E",0,0,0,0,0,0,0,0,0,0,0,0,0]
[null,"Actividad 7.4","Generalizar sobre el tipo de la obra o actividad que se pretende llevar a cabo",null,"P",10,20,20,20,20,0,0,0,0,0,0,0,0.9]
[{"$nulls":4},"E",10,20,20,0,0,0,0,0,0,0,0,0,0.5]
[null,"Actividad 7.5","Establecer los tipos y cantidad de los materiales y sustancias que serán utilizados en las diferentes etapas del proyecto.",null,"P",0,0,0,0,0,0,0,10,10,10,10,0,0.4]
[{"$nulls":4},"E",0,0,0,0,0,0,0,0,0,0,0,0,0]
[null,"Actividad 7.6","Control para cumplir exigencias de descarga",null,"P",0,0,0,0,0,0,0,0,10,10,10,0,0.3]
[{"$nulls":4},"E",0,0,0,0,0,0,0,0,{"$nulls":4},0]
[null,"Actividad 7.7","Control del rendimiento del sistema.",null,"P",0,0,0,0,0,0,0,0,0,10,10,10,0.3]
[{"$nulls":4},"E",0,0,0,0,0,0,0,0,0,0,0,0,0]
[null,"Actividad 7.8","Control de la salud  del humedal",null,"P",0,0,0,0,0,0,0,0,0,0,0,0,0]
[{"$nulls":4},"E",0,0,0,0,0,0,0,0,0,0,0,0,0]
[null,"Actividad 7.9","Establecer los tipos y cantidad de los residuos que se generarán en las diferentes etapas del proyecto y destino final de los mismos.",null,"P",0,0,0,0,0,0,0,0,0,0,10,10,0.2]
[{"$nulls":4},"E",0,0,0,0,0,0,0,0,0,0,0,0,0]
[null,"Actividad 7.10","Infraestructura para el manejo y la disposición adecuada de los residuos",null,"P",0,0,0,0,0,0,0,0,0,0,0,10,0.1]
[{"$nulls":4},"E",0,0,0,0,0,0,0,0,0,0,0,0,0]
[null,"Actividad 7.11","Instrumentos normativos que rigen el proyecto",null,"P",0,0,0,0,0,0,0,10,10,10,0,0,0.3]
[{"$nulls":4},"E",0,0,10,0,0,0,0,0,0,0,0,0,0.1]
[null,null,"XXIV. Utilizar todos los servicios exclusivamente en los servicios publicos destinandolos en forma prioritaria y su operación, mantenimiento, sustitucion de la infraestructura y administracion, pago de derechos y posteriormente a ampliar la infraestructura hidraulica en ningun caso podran ser destinados a otros fines. ",null,"P",10,10,10,10,10,10,10,10,10,10,10,10,1.2]
[{"$nulls":4},"E",10,10,10,10,10,10,0,0,0,0,0,0,0.6]
[null,"Actividad 7.12","Cabe señalar que la espectativa de ingresos para este año es de recaudar la cantidad de $37,902,027.00 de los cuales serán designados de forma prioritaria según el presupuesto de egresos aprobado por el consejo de administracion de este organismo, a las siguientes acciones; operacion, mantenimiento, sustitucion de la infraestructura y administracion, pago de derechos y posteriormente ampliar la infraestructura hidraulica. ",null,"P",10,10,10,10,10,10,10,10,10,10,10,10,1.2]
[{"$nulls":4},"E",10,10,10,10,10,10,0,0,0,0,0,0,0.6]
[null,"Componente 8","Rehabilitación de 4 plantas de tratamiento",null,null,"PORCENTAJE de Plantas de tratamiento de aguas residuales en operación dentro de norma (P58-PPTARDN)",null,"Mide el avance en la rehabilitación de plantas de tratamiento de aguas residuales y puestas en operación dentro de norma",null,"(Cantidad de plantas de tratamiento de aguas residuales (.3) a las que se les dio mantenimiento y rehabilitación  / Total plantas de tratamiento de aguas residuales (2) existentes en el municipio)*100",null,null,0.3,null,2,"Mensual",null,{"$f":"M368/O368","v":{"v":0.15,"d":"15%"}},"Eficacia","Dimensión"]
[{"$nulls":18},"Gestión","Tipo"]
[{"$nulls":12},{"$f":"R373+#REF!+R375+R377+R379+R381+R383+R385","v":{"$error":"#REF!"}},null,{"$f":"R372+#REF!+R374+R376+R378+R380+R382+R384","v":{"$error":"#REF!"}},null,null,{"$f":"M370/O370","v":{"$error":"#REF!"}},"Bimestral","Frecuencia de medición"]
[{"$nulls":18},"Porcentaje","Unidad de medida"]
[null,"Actividad 8.1","Establecer la información general del proyecto",null,"P",10,30,20,20,20,0,0,0,0,0,0,0,{"$f":"SUM($F372:$Q372)/100","v":1}]
[{"$nulls":4},"E",10,30,20,20,20,0,0,0,0,0,0,0,{"$f":"SUM($F373:$Q373)/100","v":1}]
[null,"Actividad 8.2","Definir las actividades y áreas principales del proyecto",null,"P",30,20,20,20,10,0,0,0,0,0,0,0,1]
[{"$nulls":4},"E",30,10,20,20,10,0,0,0,0,0,0,0,0.9]
[null,"Actividad 8.3","Revisar la ubicación fisica y los planos de ubicación como constructivos y de funcionamiento",null,"P",10,10,10,10,10,10,10,10,10,10,0,0,1]
[{"$nulls":4},"E",10,10,10,10,10,10,0,0,0,0,0,0,0.6]
[null,"Actividad 8.4","Calcular la inversion reqerida y la capacidad de cada planta de tratamiento",null,"P",0,0,0,10,10,10,10,10,10,20,10,10,1]
[{"$nulls":4},"E",0,0,0,10,10,10,0,0,0,0,0,0,0.3]
[null,"Actividad 8.5","Revisar los usos actuales de suelo y los cuerpos de agua en el sitio de cada planta de tratamiento y sus colindancias",null,"P",0,0,0,0,10,10,10,10,20,20,10,10,1]
[{"$nulls":4},"E",0,0,0,0,10,10,0,0,0,0,0,0,0.2]
[null,"Actividad 8.6","Revisar la descripción general de cada proceso en cada planta",null,"P",0,10,10,10,10,10,10,10,10,10,10,0,1]
[{"$nulls":4},"E",0,10,10,10,10,10,0,0,0,0,0,0,0.5]
[null,"Actividad 8.7","Describir las obras y actividades provisionales  a desarrollar",null,"P",0,0,0,0,0,0,0,0,0,10,10,10,0.3]
[{"$nulls":4},"E",0,0,0,0,0,0,0,0,0,0,0,0,0]
[null,"Actividad 8.8","II. Mejorar los sistemas de capacitaciòn, conducciòn, tratamiento de aguas residuales, reutilizaciòn y recirculacion de las aguas servidas, prevencion y control de contaminaciòn de las aguas que se localizan dentro del municipio; vigilar todas las partes del sistema de distribucion, abastecimiento, y descargas patra detectar cualquier irregularidad, la cual debera ser corregida; si sus medidas son insuficientes por ello, para solicitar el apoyo de la comision, la cual debera hacerlo tenerlo siempre en cuenta su suficiencia presupuestaria.",null,"P",10,10,10,5,5,5,5,10,10,10,10,10,1]
[{"$nulls":4},"E",10,10,10,5,5,5,0,0,0,0,0,0,0.45]
[null,"Actividad 8.9","Rehabilitar los carcamos de rebombeo de aguas negras hacia  los fracc. Sabinos 2 y 3 que descargan en la planta de tratamiento de sabinos 1.  Asi como la planta de tratamiento de Huerta Vieja que descarga aguas tratadas hacia la presa de la capilla la cual  sirve para riego agricola. ",null,"P",10,10,10,5,5,5,5,10,10,10,10,10,1]
[{"$nulls":4},"E",10,10,10,5,5,5,{"$nulls":6},0.45]
[null,null,"V. Cumplir las normas tecnicas, criterios y lineamientos para la prestaciòn de los servicios a su cargo, establecidas por la comision, asi como las normas oficiales mexicanas, vigilando su observancia, ampliandolas con lo necesario para cubrir los casos especificos; en particular, sobre descargas de aguas residuales, para disposicion, tratamiento, reutilizacion de lodos.",null,"P",0,0,0,0,0,0,0,20,20,20,20,20,1]
[{"$nulls":4},"E",0,0,0,0,0,0,0,0,0,0,0,0,0]
[null,"Actividad 8.10","Elaborar el presupuesto para reactivar las siguientes 7 plantas de tratamiento localizadas en los fraccionamientos Puerta del Sol, Olivos 1, Olivos 2, Residencial la Capilla, Rinconada las Lomas, Lomas de la Capilla y Girasoles. Se beneficiarían aprox. 12,250 habitantes",null,"P",{"$nulls":8},20,20,20,40,1]
[{"$nulls":4},"E",{"$nulls":8},0,0,0,0,0]
[null,"Actividad 8.11","Poner en funcionamiento las plantas de tratamiento de aguas residuales que se encuentran obsoletas en los fraccionamientos puerta del sol, Olivos 1, Olivos 2, Residencial la capilla, Rinconada las lomas, Lomas de la capilla y Girasoles. se beneficiarían aprox. 12,250 habitantes",null,"P",{"$nulls":12},0]
[{"$nulls":4},"E",{"$nulls":12},0]
[null,"Actividad 8.12","Elaborar el presupuesto para poner en funcionamiento al 100% las plantas de tratamiento de aguas residuales de los Fraccionamientos Huerta Vieja y Sabinos 1.",null,"P",{"$nulls":9},20,20,20,0.6]
[{"$nulls":4},"E",{"$nulls":9},0,0,0,0]
[null,"Actividad 8.13","Poner en funcionamiento al 100% la planta de tratamiento de aguas residuales del fraccionamiento Huerta Vieja, con una poblacion beneficiada de 1,500 habitantes,  para lo que se requiere la compra de la computadora-cerebro del sistema (TLC-AUTOMATICO), La instalacion de tubos y charolas que bajan el agua de la criba (PAILERIA), y una bomba de lodos de 5 HP para el cárcamo principal.",null,"P",{"$nulls":12},0]
[{"$nulls":4},"E",{"$nulls":12},0]
[null,"Actividad 8.14","Poner en funcionamiento al 100% la planta de tratamiento de aguas residuales en el fraccionamiento de sabinos 1 con una poblacion de 1,000 habitantes, para lo que se requiere reparar el motoreductor del clarificador del agua, reparar la bomba de lodos de 20 HP para el cárcamo principal, compra de quimicos (GEL) para la desinfeccion de lodos que permitan su colocacion en el lecho de secado y poder utilizarlos como abono agricola ",null,"P",{"$nulls":12},0]
[{"$nulls":4},"E",{"$nulls":12},0]
[null,null,"VIII.Prevenir y controlar la contaminaciòn de las aguas que tengan asignadas para la prestacion de los servicios.",null,"P",0,0,0,0,0,0,25,25,25,25,0,0,1]
[{"$nulls":4},"E",0,0,0,0,0,0,0,0,0,0,0,0,0]
[null,"Actividad 8.15","Realizar 52 conferencias y platicas de consientizacion para prevenir la contaminacion de nuestras aguas y suelos, llevar acabo estas visitas a 14 Fraccionamientos y 12 localidades de todo el municipio.",null,"P",5,10,10,10,5,10,5,10,10,10,10,5,1]
[{"$nulls":4},"E",0,0,0,0,0,0,0,0,0,0,0,0,0]
[null,"Actividad 8.16","Limpieza de 6  fosas sépticas que que se localizán en el municipio, la siguientes fosas se les da limpieza cada mes; Panteón de Ixtlahuacan, Buenavista y Sacrificio. La fosa del panteón de Atequiza se limpia 3 veces al año, la fosa de la Capilla se limpia  2 veces al año, la fosa de la escuela San Mateo en el fraccionamiento Olivos 2, se limpia 8 veces al año, en total se dan 49 servicios de limpieza al año con el Vactor. ",null,"P",{"$nulls":12},0]
[{"$nulls":4},"E",{"$nulls":12},0]
[null,"Actividad 8.17","Supervisar descargas de aguas residuales que cumplan con la norma oficial 001 de Salud Ambiental.",null,"P",{"$nulls":7},20,20,20,20,20,1]
[{"$nulls":4},"E",{"$nulls":12},0]
[null,null,"XXX. Brindar al personal acreditado de la comision estatal del agua de Jalisco, todas las facilidades para desempeñar las actividades que tenga conferidas en la ley y su reglamento o le sean encomendadas por la autoridad competente.",null,"P",10,10,10,10,10,10,10,10,5,5,5,5,1]
[{"$nulls":4},"E",0,0,0,0,0,0,0,0,0,0,0,0,0]
[null,"Actividad 8.18","Se les brinda toda la información que soliciten para el desempeño de sus trabajos (expediente de cada pozo que se visite y la información de las plantas de tratamiento).",{"$nulls":14},0]
[{"$nulls":17},0]
[null,null,"XLVI. Informar a la Comision respecto a los Programas de inversion y desarrollo de los servicios de agua y saneamiento, de conformidad con lo establecido en el articulo 87 de la ley del agua.",null,"P",{"$nulls":7},20,20,20,20,20,1]
[{"$nulls":4},"E",{"$nulls":7},0,0,0,0,0,0]
[null,"Actividad 8.19","En base al articulo 87 de la ley del agua se informa a la Comision Estatal del Agua sobre los programas de inversion y desarrollo de los servicios municipales de agua y saneamiento, contiene información sobre la cobertura de servicios de agua potable, alcantarillado sanitario y tratameinto de aguas residuales, pozos de abastecimiento, condiciones de distribución y  volumen y calidad del agua extraida.",null,"P",{"$nulls":7},20,20,20,20,20,1]
[{"$nulls":4},"E",{"$nulls":7},0,0,0,0,0,0]
[]
[null,null,"P : Programado  /  E: Ejecutado"]
[null,null,"SEMAFORO DE CUMPLIMIENTO DE LOS PROYECTOS  y DE LA DIRECCION"]
[null,null,"Avance en tiempo","Avance  relativo","Avances limitado"]
{"$rows_empty":29}
[null,null,"NOMBRE DEL PROGRAMA PRESUPUESTARIO:",{"$nulls":3},"SISTEMA DE EVALUACION Y DESEMPEÑO E INFORME"]
[]
[]
[null,null,"NOMBRE DEL INDICADOR:",null,null,"INDICE DE IMPLEMENTACIÓN DEL SISTEMA DE EVALUACIÓN DEL DESEMPEÑO E INFORME"]
[]
[]
[{"$nulls":5},"AÑO: ",2019]
[]
[null,null,"AVANCE TRIMESTRAL",{"$nulls":11},"Criterios para determinar avance de porcentaje de metas"]
[null,null,"VARIABLES",null,null,"1ro.","2do.",null,null,"3ro.","4to."]
[null,1,"número de reportes programados",null,null,9,{"$nulls":8},"Las metas de este indicador son muy especificas, hacer reportes, documentos y avances, en funcion de que estos han sido terminados y entregados o subidos a la pagina de la CEPLAP, se dan por terminadas las metas y por lo tanto cumplidos los valores de las variables                                                                                                                                                                                                                                                                      \n15 (3/9)    +   10  (59/59)   +   15 (3/4)     +  10 (0/1)   +  15 (0/1)   +   10(2/5 )+ 15(1/1)+ 10(2/3)= 0.516\n"]
[null,2,"número de reportes generados",null,null,3]
[null,3,"número de documentos programados para el desarrollo del psge",null,null,59]
[null,4,"número de documentos realizados para el desarrollo del psge",null,null,59]
[null,5,"número de documentos programados para la implementación del sed y seguimiento al diagnóstico de shcp",null,null,4]
[null,6,"número de documentos generados para la implementación del sed y seguimiento al diagnóstico de shcp",null,null,3]
[null,7,"número de reportes  programados para el seguimiento de la coespo/número de reportes realizados para el seguimiento de la coespo",null,null,1]
[null,8,"número de reportes realizados para el seguimiento de la coespo",null,null,0]
[null,9,"número de actividades programadas para el cumplimiento del psge",null,null,1]
[null,10,"número de actividades realizadas para el cumplimiento del psge",null,null,0]
[null,11,"número de acciones programadas para la presentación de actividades ",null,null,5]
[null,12,"número de acciones realizadas para la presentación de actividades",null,null,2]
[null,13,"actividades realizadas para la implementación del sed",null,null,1]
[null,14,"actividades programadas  para la implementación del sed",null,null,1]
[null,15,"número de acciones realizadas parala evaluación externa de resultados de impacto de los fondos federales",null,null,3]
[null,16,"número de acciones programadas parala evaluación externa de resultados de impacto de los fondos federales",null,null,2]
[null,null,"VALOR DEL INDICADOR",null,null,0.516,0,null,null,0,0]
[]
[]
[]
[]
[null,null,"NOMBRE DEL PROGRAMA PRESUPUESTARIO:"]
[]
[]
[null,null,"NOMBRE DEL INDICADOR:"]
[]
[]
[{"$nulls":5},"AÑO: ",2016]
[]
[null,null,"AVANCE TRIMESTRAL",{"$nulls":11},"Criterios para determinar avance de porcentaje de metas"]
[null,null,"VARIABLES",null,null,"1ro.","2do.",null,null,"3ro.","4to."]
[null,null,"Número de Apoyos entregados"]
[null,null,"Total de solicitudes de apoyo recibidas"]
[null,null,"NOMBRE DE LA VARIABLE N"]
[null,null,"ETC.."]
[null,null,"VALOR DEL INDICADOR",null,null,0,0,null,null,0,0]
[]
[]
[]
[]
[null,null,"NOMBRE DEL PROGRAMA PRESUPUESTARIO:"]
[]
[]
[null,null,"NOMBRE DEL INDICADOR:"]
[]
[]
[{"$nulls":5},"AÑO: ",2016]
[]
[null,null,"AVANCE TRIMESTRAL",{"$nulls":11},"Criterios para determinar avance de porcentaje de metas"]
[null,null,"VARIABLES",null,null,"1ro.","2do.",null,null,"3ro.","4to."]
[null,null,"Número de Apoyos entregados",null,null,0,35,null,null,0,0]
[null,null,"Total de solicitudes de apoyo recibidas",null,null,0,51,null,null,0,0]
[null,null,"NOMBRE DE LA VARIABLE N"]
[null,null,"ETC.."]
[null,null,"VALOR DEL INDICADOR",null,null,0,0,null,null,0,0]
[]
[]
[]
[]
[null,null,"NOMBRE DEL PROGRAMA PRESUPUESTARIO:"]
[]
[]
[null,null,"NOMBRE DEL INDICADOR:"]
[]
[]
[{"$nulls":5},"AÑO: ",2016]
[]
[null,null,"AVANCE TRIMESTRAL",{"$nulls":11},"Criterios para determinar avance de porcentaje de metas"]
[null,null,"VARIABLES",null,null,"1ro.","2do.",null,null,"3ro.","4to."]
[null,null,"Número de Apoyos entregados",null,null,0,35,null,null,0,0]
[null,null,"Total de solicitudes de apoyo recibidas",null,null,0,51,null,null,0,0]
[null,null,"NOMBRE DE LA VARIABLE N"]
[null,null,"ETC.."]
[null,null,"VALOR DEL INDICADOR",null,null,0,0,null,null,0,0]

{"sheet":"Hoja5","index":6,"n_rows":0,"n_cols":0,"rows_kept":0}